Workbook

Sheet Eingaben
A1: Version | B1: 18 | C1: Solartirol Tool zur Berechnung der KW Leistung /Ertrag / Wirkungsgrad/Puffererwärmung mit verschiedenen Kollektoren im Tagesverlauf (mit Winkelfaktor)
A2: allgemeine Eingaben | C2: Infos > | K2: Korrekturfaktor Winter > | L2: 95 | M2: =P18 -> 22.229069 | N2: kWh (Einstrahlung) | O2: ="in "&L18&" Std. " -> in 7,5 Std.
A3: Diff.Winter > | B3: 28 | C3: Kollektor > | D3: SolRose 26 | E3: Synergie 210 | F3: Sunex AMX 2,85 | G3: Sunex 2,0 | H3: Star Azzurro CPC | I3: Billig VRK | K3: Korrekturfaktor Herbst Frühjahr > | L3: 100 | M3: =P29 -> 63.84923467 | N3: kWh (Einstrahlung) | O3: ="in "&L29&" Std. " -> in 8,5 Std.
A4: Diff.Frühjahr/Herbst > | B4: 32 | C4: Bruttofl.(m²) > | D4: 2.6 | E4: 2.07 | F4: 2.87 | G4: 2.03 | H4: 3.92 | I4: 4.18 | K4: Korrekturfaktor Sommer > | L4: 100 | M4: =P40 -> 54.82260333 | N4: kWh (Einstrahlung) | O4: ="in "&L40&" Std. " -> in 5,9 Std.
A5: Diff.Sommer > | B5: 35 | C5: Aperturfl. (m²) > | D5: 2.47 | E5: 1.92 | F5: 2.67 | G5: 1.84 | H5: 3.47 | I5: 2.84
A6: Gesamtfläche (m²) > | B6: 10.46 | C6: η0 > | D6: 0.81 | E6: 0.785 | F6: 0.82 | G6: 0.8 | H6: 0.64 | I6: 0.654 | K6: Strahlung bei Sonne mit Korrekturfaktor
A7: Puffervolumen (L) > | B7: 1500 | C7: a1 > | D7: 3.36 | E7: 3.722 | F7: 3.29 | G7: 4.16 | H7: 0.749 | I7: 1.82
A8: Eingaben Winter | C8: a2 > | D8: 0.0141 | E8: 0.012 | F8: 0.023 | G8: 0.004 | H8: 0.005 | I8: 0.0066 | K8: Eingaben Winter
A9: GBS zu Datum (W/m²) | B9: 2013-12-21 | C9: IAM 0° > | D9: 1 | E9: 1 | F9: 1 | G9: 1 | H9: 1 | I9: 1 | K9: GBS zu Datum (W/m²) | L9: =B9 -> 2013-12-21 | N9: kWh der Tageseinstrahlung bei Sonne
A10: Strahlung 0° | B10: 632 | C10: IAM 10° > | D10: 1 | E10: 1 | F10: 1 | G10: 1 | H10: 1.01 | I10: 1 | K10: Strahlung 0° | L10: =IF($L$2>0,B10/100*$L$2,B10) -> 600.4 | N10: =L10 -> 600.4 | O10: =IF(N10>0,N10/1000,0) -> 0.6004 | P10: =O10*($L$18/15) -> 0.3002
A11: Strahlung 10° | B11: 616 | C11: IAM 20° > | D11: 1 | E11: 0.99 | F11: 0.99 | G11: 0.99 | H11: 1.01 | I11: 1.04 | K11: Strahlung 10° | L11: 585.2 | N11: 585.2 | O11: 0.5852 | P11: =O11*($L$18/15)*2 -> 0.5852
A12: Strahlung 20° | B12: 532 | C12: IAM 30° > | D12: 0.99 | E12: 0.98 | F12: 0.98 | G12: 0.98 | H12: 1.02 | I12: 1.15 | K12: Strahlung 20° | L12: 505.4 | N12: 505.4 | O12: 0.5054 | P12: 0.5054
A13: Strahlung 30° | B13: 423 | C13: IAM 40° > | D13: 0.96 | E13: 0.97 | F13: 0.97 | G13: 0.97 | H13: 1.02 | I13: 1.3 | K13: Strahlung 30° | L13: 401.85 | N13: 401.85 | O13: 0.40185 | P13: 0.40185
A14: Strahlung 40° | B14: 254 | C14: IAM 50° > | D14: 0.94 | E14: 0.94 | F14: 0.94 | G14: 0.95 | H14: 0.98 | I14: 1.36 | K14: Strahlung 40° | L14: 241.3 | N14: 241.3 | O14: 0.2413 | P14: 0.2413
A15: Strahlung 50° | B15: 96 | C15: IAM 60° > | D15: 0.86 | E15: 0.9 | F15: 0.9 | G15: 0.9 | H15: 1.05 | I15: 1.34 | K15: Strahlung 50° | L15: 91.2 | N15: 91.2 | O15: 0.0912 | P15: 0.0912
A16: Strahlung 60° | B16: 0 | C16: IAM 70° > | D16: 0.73 | E16: 0.8 | F16: 0.81 | G16: 0.81 | H16: 1.14 | I16: 1.11 | K16: Strahlung 60° | L16: 0 | N16: 0 | O16: 0 | P16: 0
A17: Strahlung 70° | B17: 0 | C17: Kollektorpreis (Euro/m²) > | E17: 104 | G17: 135 | H17: 650 | I17: 218 | K17: Strahlung 70° | L17: 0 | N17: 0 | O17: 0 | P17: 0
A18: Laufzeit gesamt (Std.) > | B18: 7.5 | C18: =C3 -> Kollektor > | D18: SolRose 26 | E18: Synergie 210 | F18: Sunex AMX 2,85 | G18: Sunex 2,0 | H18: Star Azzurro CPC | I18: Billig VRK | K18: Laufzeit gesamt (Std.) > | L18: =B18 -> 7.5 | P18: =SUM(P10:P17)*$B$6 -> 22.229069 | Q18: =P18/$B$6 -> 2.12515 | R18: kWh/m²
A19: Eingaben Frühjahr/Herbst | C19: Bruttoflächenanteil (%) > | D19: =Maxpeak!D9 -> 95 | E19: =Maxpeak!E9 -> 92.75362319 | F19: =Maxpeak!F9 -> 93.03135889 | G19: =Maxpeak!G9 -> 90.64039409 | H19: =Maxpeak!H9 -> 88.52040816 | I19: =Maxpeak!I9 -> 67.94258373 | K19: Eingaben Frühjahr/Herbst
A20: GBS zu Datum (W/m²) | B20: 2013-09-23 | C20: η0 nach Apertur > | D20: =Maxpeak!D10 -> 81 | E20: =Maxpeak!E10 -> 78.5 | F20: =Maxpeak!F10 -> 82 | G20: =Maxpeak!G10 -> 80 | H20: =Maxpeak!H10 -> 64 | I20: =Maxpeak!I10 -> 65.4 | K20: GBS zu Datum (W/m²) | L20: =B20 -> 2013-09-23
A21: Strahlung 0° | B21: 942 | C21: max.Peak.n. Gesamtfl.(W) > | D21: =IF(D4>0,Maxpeak!D12/D4*$B$6,"") -> 8048.97 | E21: =IF(E4>0,Maxpeak!E12/E4*$B$6,"") -> 7616.092754 | F21: =IF(F4>0,Maxpeak!F12/F4*$B$6,"") -> 7979.485714 | G21: =IF(G4>0,Maxpeak!G12/G4*$B$6,"") -> 7584.788177 | H21: =IF(H4>0,Maxpeak!H12/H4*$B$6,"") -> 5925.910204 | I21: =IF(I4>0,Maxpeak!I12/I4*$B$6,"") -> 4647.843445 | K21: Strahlung 0° | L21: =IF($L$3>0,B21/100*$L$3,B21) -> 942 | N21: =L21 -> 942 | O21: =IF(N21>0,N21/1000,0) -> 0.942 | P21: =O21*($L$29/15) -> 0.5338
A22: Strahlung 10° | B22: 931 | K22: Strahlung 10° | L22: 931 | N22: 931 | O22: 0.931 | P22: =O22*($L$29/15)*2 -> 1.055133333
A23: Strahlung 20° | B23: 897 | K23: Strahlung 20° | L23: 897 | N23: 897 | O23: 0.897 | P23: 1.0166
A24: Strahlung 30° | B24: 834 | K24: Strahlung 30° | L24: 834 | N24: 834 | O24: 0.834 | P24: 0.9452
A25: Strahlung 40° | B25: 744 | K25: Strahlung 40° | L25: 744 | N25: 744 | O25: 0.744 | P25: 0.8432
A26: Strahlung 50° | B26: 657 | K26: Strahlung 50° | L26: 657 | N26: 657 | O26: 0.657 | P26: 0.7446
A27: Strahlung 60° | B27: 524 | K27: Strahlung 60° | L27: 524 | N27: 524 | O27: 0.524 | P27: 0.5938666667
A28: Strahlung 70° | B28: 328 | K28: Strahlung 70° | L28: 328 | N28: 328 | O28: 0.328 | P28: 0.3717333333
A29: Laufzeit gesamt (Std.) > | B29: 8.5 | K29: Laufzeit gesamt (Std.) > | L29: =B29 -> 8.5 | P29: =SUM(P21:P28)*$B$6 -> 63.84923467 | Q29: =P29/$B$6 -> 6.104133333 | R29: kWh/m²
A30: Eingaben Sommer | K30: Eingaben Sommer
A31: GBS zu Datum (W/m²) | B31: 2013-06-21 | K31: GBS zu Datum (W/m²) | L31: =B31 -> 2013-06-21
A32: Strahlung 0° | B32: 993 | K32: Strahlung 0° | L32: =IF($L$4>0,B32/100*$L$4,B32) -> 993 | N32: =L32 -> 993 | O32: =IF(N32>0,N32/1000,0) -> 0.993 | P32: =O32*($L$40/15) -> 0.39058
A33: Strahlung 10° | B33: 990 | K33: Strahlung 10° | L33: 990 | N33: 990 | O33: 0.99 | P33: =O33*($L$40/15)*2 -> 0.7788
A34: Strahlung 20° | B34: 977 | K34: Strahlung 20° | L34: 977 | N34: 977 | O34: 0.977 | P34: 0.7685733333
A35: Strahlung 30° | B35: 955 | K35: Strahlung 30° | L35: 955 | N35: 955 | O35: 0.955 | P35: 0.7512666667
A36: Strahlung 40° | B36: 920 | K36: Strahlung 40° | L36: 920 | N36: 920 | O36: 0.92 | P36: 0.7237333333
A37: Strahlung 50° | B37: 865 | K37: Strahlung 50° | L37: 865 | N37: 865 | O37: 0.865 | P37: 0.6804666667
A38: Strahlung 60° | B38: 786 | K38: Strahlung 60° | L38: 786 | N38: 786 | O38: 0.786 | P38: 0.61832
A39: Strahlung 70° | B39: 673 | K39: Strahlung 70° | L39: 673 | N39: 673 | O39: 0.673 | P39: 0.5294266667
A40: Laufzeit gesamt (Std.) > | B40: 5.9 | K40: Laufzeit gesamt (Std.) > | L40: =B40 -> 5.9 | P40: =SUM(P32:P39)*$B$6 -> 54.82260333 | Q40: =P40/$B$6 -> 5.241166667 | R40: kWh/m²
A42: Übersicht ! (maximaler Jahreszeitenertrag und hoch gerechneter Jahresertrag bei verschiedenen Bedingungen je nach Einstellungen der Kollektorfläche und Differenz) | K42: Strahlung bei leichter Bewölkung | L42: Faktor (%)
A43: Sommer bei Sonne | C43: KW Schnitt > | D43: =Sommer!D43 -> 5.484316354 | E43: =Sommer!E43 -> 5.111342504 | F43: =Sommer!F43 -> 5.435011897 | G43: =Sommer!G43 -> 5.077381091 | H43: =Sommer!H43 -> 5.092556119 | I43: =Sommer!I43 -> 4.218745631 | L43: 75
C44: Tagesertrag kWh > | D44: =Sommer!D44 -> 32.35746649 | E44: =Sommer!E44 -> 30.15692077 | F44: =Sommer!F44 -> 32.06657019 | G44: =Sommer!G44 -> 29.95654844 | H44: =Sommer!H44 -> 30.0460811 | I44: =Sommer!I44 -> 24.89059922 | K44: Eingaben Winter | N44: kWh der Tageseinstrahlung bei leichter Bewölkung
C45: Puffererwärmung > | D45: =Sommer!D45 -> 18.54827543 | E45: =Sommer!E45 -> 17.28685628 | F45: =Sommer!F45 -> 18.3815249 | G45: =Sommer!G45 -> 17.17199681 | H45: =Sommer!H45 -> 17.22331963 | I45: =Sommer!I45 -> 14.26804197 | K45: GBS zu Datum (W/m²) | L45: =L9 -> 2013-12-21 | N45: kWh der Tageseinstrahlung
K46: Strahlung 0° | L46: =L10/100*$L$43 -> 450.3 | N46: =L46 -> 450.3 | O46: =IF(N46>0,N46/1000,0) -> 0.4503 | P46: =O46*($L$18/15) -> 0.22515
A47: Sommer leicht bewölkt | C47: KW Schnitt > | D47: =Sommer!D72 -> 3.801410877 | E47: =Sommer!E72 -> 3.501572136 | F47: =Sommer!F72 -> 3.746643154 | G47: =Sommer!G72 -> 3.470338926 | H47: =Sommer!H72 -> 3.742260442 | I47: =Sommer!I72 -> 3.01441193 | K47: Strahlung 10° | L47: 438.9 | N47: 438.9 | O47: 0.4389 | P47: =O47*($L$18/15)*2 -> 0.4389
C48: Tagesertrag kWh > | D48: =Sommer!D73 -> 22.42832417 | E48: =Sommer!E73 -> 20.6592756 | F48: =Sommer!F73 -> 22.10519461 | G48: =Sommer!G73 -> 20.47499966 | H48: =Sommer!H73 -> 22.07933661 | I48: =Sommer!I73 -> 17.78503039 | K48: Strahlung 20° | L48: 379.05 | N48: 379.05 | O48: 0.37905 | P48: 0.37905
C49: Puffererwärmung > | D49: =Sommer!D74 -> 12.85659167 | E49: =Sommer!E74 -> 11.84251969 | F49: =Sommer!F74 -> 12.67136406 | G49: =Sommer!G74 -> 11.73688717 | H49: =Sommer!H74 -> 12.65654148 | I49: =Sommer!I74 -> 10.19491567 | K49: Strahlung 30° | L49: 301.3875 | N49: 301.3875 | O49: 0.3013875 | P49: 0.3013875
K50: Strahlung 40° | L50: 180.975 | N50: 180.975 | O50: 0.180975 | P50: 0.180975
A51: Sommer mittel bewölkt | C51: KW Schnitt > | D51: =Sommer!D101 -> 2.118505399 | E51: =Sommer!E101 -> 1.891801769 | F51: =Sommer!F101 -> 2.058274411 | G51: =Sommer!G101 -> 1.863296761 | H51: =Sommer!H101 -> 2.391964765 | I51: =Sommer!I101 -> 1.81007823 | K51: Strahlung 50° | L51: 68.4 | N51: 68.4 | O51: 0.0684 | P51: 0.0684
C52: Tagesertrag kWh > | D52: =Sommer!D102 -> 12.49918186 | E52: =Sommer!E102 -> 11.16163044 | F52: =Sommer!F102 -> 12.14381902 | G52: =Sommer!G102 -> 10.99345089 | H52: =Sommer!H102 -> 14.11259211 | I52: =Sommer!I102 -> 10.67946155 | K52: Strahlung 60° | L52: 0 | N52: 0 | O52: 0 | P52: 0
C53: Puffererwärmung > | D53: =Sommer!D103 -> 7.164907914 | E53: =Sommer!E103 -> 6.398183111 | F53: =Sommer!F103 -> 6.961203224 | G53: =Sommer!G103 -> 6.301777525 | H53: =Sommer!H103 -> 8.089763321 | I53: =Sommer!I103 -> 6.121789369 | K53: Strahlung 70° | L53: 0 | N53: 0 | O53: 0 | P53: 0
K54: Laufzeit gesamt (Std.) > | L54: =L18 -> 7.5 | P54: =SUM(P46:P53)*$B$6 -> 16.67180175 | Q54: =P54/$B$6 -> 1.5938625 | R54: kWh/m²
A55: Sommer stark bewölkt | C55: KW Schnitt > | D55: =Sommer!D130 -> 0.434236168 | E55: =Sommer!E130 -> 0.2953749253 | F55: =Sommer!F130 -> 0.3755387957 | G55: =Sommer!G130 -> 0.2725353447 | H55: =Sommer!H130 -> 0.9639804055 | I55: =Sommer!I130 -> 0.5655124408 | K55: Eingaben Frühjahr/Herbst
C56: Tagesertrag kWh > | D56: =Sommer!D131 -> 2.561993391 | E56: =Sommer!E131 -> 1.742712059 | F56: =Sommer!F131 -> 2.215678894 | G56: =Sommer!G131 -> 1.607958533 | H56: =Sommer!H131 -> 5.687484392 | I56: =Sommer!I131 -> 3.336523401 | K56: GBS zu Datum (W/m²) | L56: =L20 -> 2013-09-23
C57: Puffererwärmung > | D57: =Sommer!D132 -> 1.468611861 | E57: =Sommer!E132 -> 0.9989750983 | F57: =Sommer!F132 -> 1.270093949 | G57: =Sommer!G132 -> 0.9217303144 | H57: =Sommer!H132 -> 3.260237542 | I57: =Sommer!I132 -> 1.912595816 | K57: Strahlung 0° | L57: =L21/100*$L$43 -> 706.5 | N57: =L57 -> 706.5 | O57: =IF(N57>0,N57/1000,0) -> 0.7065 | P57: =O57*($L$29/15) -> 0.40035
K58: Strahlung 10° | L58: 698.25 | N58: 698.25 | O58: 0.69825 | P58: =O58*($L$29/15)*2 -> 0.79135
A59: Frühjahr Herbst bei Sonne | C59: KW Schnitt > | D59: =Herbstfrühjahr!D43 -> 4.395392095 | E59: =Herbstfrühjahr!E43 -> 4.057418908 | F59: =Herbstfrühjahr!F43 -> 4.330163184 | G59: =Herbstfrühjahr!G43 -> 4.017579371 | H59: =Herbstfrühjahr!H43 -> 4.063982502 | I59: =Herbstfrühjahr!I43 -> 3.31319586 | K59: Strahlung 20° | L59: 672.75 | N59: 672.75 | O59: 0.67275 | P59: 0.76245
C60: Tagesertrag kWh > | D60: =Herbstfrühjahr!D44 -> 37.3608328 | E60: =Herbstfrühjahr!E44 -> 34.48806072 | F60: =Herbstfrühjahr!F44 -> 36.80638706 | G60: =Herbstfrühjahr!G44 -> 34.14942465 | H60: =Herbstfrühjahr!H44 -> 34.54385127 | I60: =Herbstfrühjahr!I44 -> 28.16216481 | K60: Strahlung 30° | L60: 625.5 | N60: 625.5 | O60: 0.6255 | P60: 0.7089
C61: Puffererwärmung > | D61: =Herbstfrühjahr!D45 -> 21.41635586 | E61: =Herbstfrühjahr!E45 -> 19.76959629 | F61: =Herbstfrühjahr!F45 -> 21.09853085 | G61: =Herbstfrühjahr!G45 -> 19.57547988 | H61: =Herbstfrühjahr!H45 -> 19.80157711 | I61: =Herbstfrühjahr!I45 -> 16.14340201 | K61: Strahlung 40° | L61: 558 | N61: 558 | O61: 0.558 | P61: 0.6324
K62: Strahlung 50° | L62: 492.75 | N62: 492.75 | O62: 0.49275 | P62: 0.55845
A63: Frühjahr Herbst leicht bewölkt | C63: KW Schnitt > | D63: =Herbstfrühjahr!D72 -> 3.014575193 | E63: =Herbstfrühjahr!E72 -> 2.742218699 | F63: =Herbstfrühjahr!F72 -> 2.95133731 | G63: =Herbstfrühjahr!G72 -> 2.705294716 | H63: =Herbstfrühjahr!H72 -> 2.978588838 | I63: =Herbstfrühjahr!I72 -> 2.349397353 | K63: Strahlung 60° | L63: 393 | N63: 393 | O63: 0.393 | P63: 0.4454
C64: Tagesertrag kWh > | D64: =Herbstfrühjahr!D73 -> 25.62388914 | E64: =Herbstfrühjahr!E73 -> 23.30885894 | F64: =Herbstfrühjahr!F73 -> 25.08636714 | G64: =Herbstfrühjahr!G73 -> 22.99500508 | H64: =Herbstfrühjahr!H73 -> 25.31800513 | I64: =Herbstfrühjahr!I73 -> 19.9698775 | K64: Strahlung 70° | L64: 246 | N64: 246 | O64: 0.246 | P64: 0.2788
C65: Puffererwärmung > | D65: =Herbstfrühjahr!D74 -> 14.68838587 | E65: =Herbstfrühjahr!E74 -> 13.36134075 | F65: =Herbstfrühjahr!F74 -> 14.38026205 | G65: =Herbstfrühjahr!G74 -> 13.18143026 | H65: =Herbstfrühjahr!H74 -> 14.51304392 | I65: =Herbstfrühjahr!I74 -> 11.44733591 | K65: Laufzeit gesamt (Std.) > | L65: =L29 -> 8.5 | P65: =SUM(P57:P64)*$B$6 -> 47.886926 | Q65: =P65/$B$6 -> 4.5781 | R65: kWh/m²
K66: Eingaben Sommer
A67: Frühjahr Herbst mittel bewölkt | C67: KW Schnitt > | D67: =Herbstfrühjahr!D101 -> 1.633758292 | E67: =Herbstfrühjahr!E101 -> 1.429763 | F67: =Herbstfrühjahr!F101 -> 1.572511437 | G67: =Herbstfrühjahr!G101 -> 1.399170123 | H67: =Herbstfrühjahr!H101 -> 1.893195175 | I67: =Herbstfrühjahr!I101 -> 1.385598846 | K67: GBS zu Datum (W/m²) | L67: =L31 -> 2013-06-21
C68: Tagesertrag kWh > | D68: =Herbstfrühjahr!D102 -> 13.88694548 | E68: =Herbstfrühjahr!E102 -> 12.1529855 | F68: =Herbstfrühjahr!F102 -> 13.36634721 | G68: =Herbstfrühjahr!G102 -> 11.89294604 | H68: =Herbstfrühjahr!H102 -> 16.09215899 | I68: =Herbstfrühjahr!I102 -> 11.77759019 | K68: Strahlung 0° | L68: =L32/100*$L$43 -> 744.75 | N68: =L68 -> 744.75 | O68: =IF(N68>0,N68/1000,0) -> 0.74475 | P68: =O68*($L$40/15) -> 0.292935
C69: Puffererwärmung > | D69: =Herbstfrühjahr!D103 -> 7.960415867 | E69: =Herbstfrühjahr!E103 -> 6.966457723 | F69: =Herbstfrühjahr!F103 -> 7.661993244 | G69: =Herbstfrühjahr!G103 -> 6.817395266 | H69: =Herbstfrühjahr!H103 -> 9.22451074 | I69: =Herbstfrühjahr!I103 -> 6.751269816 | K69: Strahlung 10° | L69: 742.5 | N69: 742.5 | O69: 0.7425 | P69: =O69*($L$40/15)*2 -> 0.5841
K70: Strahlung 20° | L70: 732.75 | N70: 732.75 | O70: 0.73275 | P70: 0.57643
A71: Frühjahr Herbst stark bewolkt | C71: KW Schnitt > | D71: =Herbstfrühjahr!D130 -> 0.324716548 | E71: =Herbstfrühjahr!E130 -> 0.2174116777 | F71: =Herbstfrühjahr!F130 -> 0.2834195126 | G71: =Herbstfrühjahr!G130 -> 0.1979212045 | H71: =Herbstfrühjahr!H130 -> 0.8078015112 | I71: =Herbstfrühjahr!I130 -> 0.4337597896 | K71: Strahlung 30° | L71: 1901-12-16T06:00:00 | N71: 716.25 | O71: 0.71625 | P71: 0.56345
C72: Tagesertrag kWh > | D72: =Herbstfrühjahr!D131 -> 2.760090658 | E72: =Herbstfrühjahr!E131 -> 1.84799926 | F72: =Herbstfrühjahr!F131 -> 2.409065857 | G72: =Herbstfrühjahr!G131 -> 1.682330238 | H72: =Herbstfrühjahr!H131 -> 6.866312845 | I72: =Herbstfrühjahr!I131 -> 3.686958211 | K72: Strahlung 40° | L72: 690 | N72: 690 | O72: 0.69 | P72: 0.5428
C73: Puffererwärmung > | D73: =Herbstfrühjahr!D132 -> 1.582167187 | E73: =Herbstfrühjahr!E132 -> 1.059328897 | F73: =Herbstfrühjahr!F132 -> 1.380949187 | G73: =Herbstfrühjahr!G132 -> 0.9643624182 | H73: =Herbstfrühjahr!H132 -> 3.935977555 | I73: =Herbstfrühjahr!I132 -> 2.113475616 | K73: Strahlung 50° | L73: 648.75 | N73: 648.75 | O73: 0.64875 | P73: 0.51035
K74: Strahlung 60° | L74: 589.5 | N74: 589.5 | O74: 0.5895 | P74: 0.46374
A75: Winter bei Sonne | C75: KW Schnitt > | D75: =Winter!D43 -> 1.548288362 | E75: =Winter!E43 -> 1.392177954 | F75: =Winter!F43 -> 1.507790023 | G75: =Winter!G43 -> 1.365010259 | H75: =Winter!H43 -> 1.526217087 | I75: =Winter!I43 -> 1.094306641 | K75: Strahlung 70° | L75: 1901-05-18T18:00:00 | N75: 504.75 | O75: 0.50475 | P75: 0.39707
C76: Tagesertrag kWh > | D76: =Winter!D44 -> 11.61216272 | E76: =Winter!E44 -> 10.44133465 | F76: =Winter!F44 -> 11.30842517 | G76: =Winter!G44 -> 10.23757694 | H76: =Winter!H44 -> 11.44662815 | I76: =Winter!I44 -> 8.207299806 | K76: Laufzeit gesamt (Std.) > | L76: =L40 -> 5.9 | P76: =SUM(P68:P75)*$B$6 -> 41.1169525 | Q76: =P76/$B$6 -> 3.930875 | R76: kWh/m²
C77: Puffererwärmung > | D77: =Winter!D45 -> 6.656441798 | E77: =Winter!E45 -> 5.98528785 | F77: =Winter!F45 -> 6.482330279 | G77: =Winter!G45 -> 5.868487787 | H77: =Winter!H45 -> 6.561552393 | I77: =Winter!I45 -> 4.704671714
K78: Strahlung bei mittlerer Bewölkung | L78: Faktor (%)
A79: Winter leicht bewölkt | C79: KW Schnitt > | D79: =Winter!D72 -> 1.006249393 | E79: =Winter!E72 -> 0.8809807309 | F79: =Winter!F72 -> 0.9722016222 | G79: =Winter!G72 -> 0.8559142202 | H79: =Winter!H72 -> 1.102100681 | I79: =Winter!I72 -> 0.7509808013 | L79: 50
C80: Tagesertrag kWh > | D80: =Winter!D73 -> 7.546870444 | E80: =Winter!E73 -> 6.607355482 | F80: =Winter!F73 -> 7.291512167 | G80: =Winter!G73 -> 6.419356652 | H80: =Winter!H73 -> 8.265755107 | I80: =Winter!I73 -> 5.632356009 | K80: Eingaben Winter | N80: kWh der Tageseinstrahlung bei mittlerer Bewölkung
C81: Puffererwärmung > | D81: =Winter!D74 -> 4.326093691 | E81: =Winter!E74 -> 3.787535387 | F81: =Winter!F74 -> 4.179714627 | G81: =Winter!G74 -> 3.679768789 | H81: =Winter!H74 -> 4.738180056 | I81: =Winter!I74 -> 3.228636291 | K81: GBS zu Datum (W/m²) | L81: =L9 -> 2013-12-21 | N81: kWh der Tageseinstrahlung
K82: Strahlung 0° | L82: =L10/100*$L$79 -> 300.2 | N82: =L82 -> 300.2 | O82: =IF(N82>0,N82/1000,0) -> 0.3002 | P82: =O82*($L$18/15) -> 0.1501
A83: Winter mittel bewölkt | C83: KW Schnitt > | D83: =Winter!D101 -> 0.4736327977 | E83: =Winter!E101 -> 0.393516401 | F83: =Winter!F101 -> 0.4507329279 | G83: =Winter!G101 -> 0.3751386679 | H83: =Winter!H101 -> 0.6779842753 | I83: =Winter!I101 -> 0.4121788096 | K83: Strahlung 10° | L83: 1900-10-18T14:24:00 | N83: 292.6 | O83: 0.2926 | P83: =O83*($L$18/15)*2 -> 0.2926
C84: Tagesertrag kWh > | D84: =Winter!D102 -> 3.552245983 | E84: =Winter!E102 -> 2.951373007 | F84: =Winter!F102 -> 3.380496959 | G84: =Winter!G102 -> 2.813540009 | H84: =Winter!H102 -> 5.084882065 | I84: =Winter!I102 -> 3.091341072 | K84: Strahlung 20° | L84: 252.7 | N84: 252.7 | O84: 0.2527 | P84: 0.2527
C85: Puffererwärmung > | D85: =Winter!D103 -> 2.036254504 | E85: =Winter!E103 -> 1.691815997 | F85: =Winter!F103 -> 1.937802785 | G85: =Winter!G103 -> 1.612805967 | H85: =Winter!H103 -> 2.914807719 | I85: =Winter!I103 -> 1.772049912 | K85: Strahlung 30° | L85: 200.925 | N85: 200.925 | O85: 0.200925 | P85: 0.200925
K86: Strahlung 40° | L86: 120.65 | N86: 120.65 | O86: 0.12065 | P86: 0.12065
A87: Winter stark bewölkt | C87: KW Schnitt > | D87: =Winter!D130 -> 0.02860782804 | E87: =Winter!E130 -> 0.004299615845 | F87: =Winter!F130 -> 0.02112163381 | G87: =Winter!G130 -> 0.0002932784762 | H87: =Winter!H130 -> 0.266329565 | I87: =Winter!I130 -> 0.09392626051 | K87: Strahlung 50° | L87: 1900-02-14T14:24:00 | N87: 45.6 | O87: 0.0456 | P87: 0.0456
C88: Tagesertrag kWh > | D88: =Winter!D131 -> 0.2145587103 | E88: =Winter!E131 -> 0.03224711884 | F88: =Winter!F131 -> 0.1584122536 | G88: =Winter!G131 -> 0.002199588571 | H88: =Winter!H131 -> 1.997471738 | I88: =Winter!I131 -> 0.7044469538 | K88: Strahlung 60° | L88: 0 | N88: 0 | O88: 0 | P88: 0
C89: Puffererwärmung > | D89: =Winter!D132 -> 0.1229915221 | E89: =Winter!E132 -> 0.01848502083 | F89: =Winter!F132 -> 0.09080668019 | G89: =Winter!G132 -> 0.001260870491 | H89: =Winter!H132 -> 1.145011028 | I89: =Winter!I132 -> 0.4038102344 | K89: Strahlung 70° | L89: 0 | N89: 0 | O89: 0 | P89: 0
K90: Laufzeit gesamt (Std.) > | L90: =L18 -> 7.5 | P90: =SUM(P82:P89)*$B$6 -> 11.1145345 | Q90: =P90/$B$6 -> 1.062575 | R90: kWh/m²
A91: theoretischer max. Ertrag ! > | C91: =Jahreshochrechnung!C8 -> Summe Sommer (kWh)> | D91: =Jahreshochrechnung!D8 -> 2597.575175 | E91: =Jahreshochrechnung!E8 -> 2411.807737 | F91: =Jahreshochrechnung!F8 -> 2569.676352 | G91: =Jahreshochrechnung!G8 -> 2394.028223 | H91: =Jahreshochrechnung!H8 -> 2458.855586 | I91: =Jahreshochrechnung!I8 -> 2017.95645 | K91: Eingaben Frühjahr/Herbst
C92: =Jahreshochrechnung!C13 -> Summe Frühj./Herbst (kWh)> | D92: =Jahreshochrechnung!D13 -> 4707.660312 | E92: =Jahreshochrechnung!E13 -> 4295.709055 | F92: =Jahreshochrechnung!F13 -> 4615.101244 | G92: =Jahreshochrechnung!G13 -> 4242.71935 | H92: =Jahreshochrechnung!H13 -> 4629.5046 | I92: =Jahreshochrechnung!I13 -> 3655.07357 | K92: GBS zu Datum (W/m²) | L92: =L20 -> 2013-09-23
C93: =Jahreshochrechnung!C18 -> Summe Winter (kWh)> | D93: =Jahreshochrechnung!D18 -> 235.8141568 | E93: =Jahreshochrechnung!E18 -> 197.8691715 | F93: =Jahreshochrechnung!F18 -> 225.1402489 | G93: =Jahreshochrechnung!G18 -> 190.6984079 | H93: =Jahreshochrechnung!H18 -> 365.9786236 | I93: =Jahreshochrechnung!I18 -> 209.6888607 | K93: Strahlung 0° | L93: =L21/100*$L$79 -> 471 | N93: =L93 -> 471 | O93: =IF(N93>0,N93/1000,0) -> 0.471 | P93: =O93*($L$29/15) -> 0.2669
C94: =Jahreshochrechnung!C19 -> Jahresertrag (kWh) > | D94: =Jahreshochrechnung!D19 -> 7541.049643 | E94: =Jahreshochrechnung!E19 -> 6905.385963 | F94: =Jahreshochrechnung!F19 -> 7409.917844 | G94: =Jahreshochrechnung!G19 -> 6827.44598 | H94: =Jahreshochrechnung!H19 -> 7454.338809 | I94: =Jahreshochrechnung!I19 -> 5882.71888 | K94: Strahlung 10° | L94: 465.5 | N94: 465.5 | O94: 0.4655 | P94: =O94*($L$29/15)*2 -> 0.5275666667
C95: =Jahreshochrechnung!C20 -> Leistung Jahresertrag (%) > | D95: =Jahreshochrechnung!D20 -> 100 | E95: =Jahreshochrechnung!E20 -> 91.57062068 | F95: =Jahreshochrechnung!F20 -> 98.26109355 | G95: =Jahreshochrechnung!G20 -> 90.53707778 | H95: =Jahreshochrechnung!H20 -> 98.85014902 | I95: =Jahreshochrechnung!I20 -> 78.00928464 | K95: Strahlung 20° | L95: =L23/100*$L$79 -> 448.5 | N95: 448.5 | O95: 0.4485 | P95: 0.5083
C96: =C18 -> Kollektor > | D96: SolRose 26 | E96: Synergie 210 | F96: Sunex AMX 2,85 | G96: Sunex 2,0 | H96: Star Azzurro CPC | I96: Billig VRK | K96: Strahlung 30° | L96: =L24/100*$L$79 -> 417 | N96: 417 | O96: 0.417 | P96: 0.4726
A97: Übersicht ! (nutzbarer Jahreszeitenertrag und hoch gerechneter Jahresertrag bei verschiedenen Bedingungen je nach Einstellungen der Kollektorfläche und Differenz)
A98: nutzbarer Realertrag ! > | C98: =C91 -> Summe Sommer (kWh)> | D98: =Amortisation!B16 -> 843 | E98: =Amortisation!B17 -> 843 | F98: =Amortisation!B18 -> 843 | G98: =Amortisation!B19 -> 843 | H98: =Amortisation!B20 -> 843 | I98: =Amortisation!B21 -> 843
C99: =C92 -> Summe Frühj./Herbst (kWh)> | D99: =Amortisation!C16 -> 4707.660312 | E99: =Amortisation!C17 -> 4295.709055 | F99: =Amortisation!C18 -> 4615.101244 | G99: =Amortisation!C19 -> 4242.71935 | H99: =Amortisation!C20 -> 4629.5046 | I99: =Amortisation!C21 -> 3655.07357
C100: Summe Winter (kWh)> | D100: =Amortisation!E16 -> 235.8141568 | E100: =Amortisation!E17 -> 197.8691715 | F100: =Amortisation!E18 -> 225.1402489 | G100: =Amortisation!E19 -> 190.6984079 | H100: =Amortisation!E20 -> 365.9786236 | I100: =Amortisation!E21 -> 209.6888607
C101: Jahresertrag /m² > | D101: =Amortisation!B8 -> 553.200236 | E101: =Amortisation!B9 -> 510.189123 | F101: =Amortisation!B10 -> 543.3309266 | G101: =Amortisation!B11 -> 504.4376441 | H101: =Amortisation!B12 -> 558.1723923 | I101: =Amortisation!B13 -> 450.0728901
C102: Jahresdeckung (%) > | D102: =(D100+D99+D98)/(Amortisation!$F$4/100) -> 30.60007651 | E102: =(E100+E99+E98)/(Amortisation!$F$4/100) -> 28.22093192 | F102: =(F100+F99+F98)/(Amortisation!$F$4/100) -> 30.05415914 | G102: =(G100+G99+G98)/(Amortisation!$F$4/100) -> 27.90279089 | H102: =(H100+H99+H98)/(Amortisation!$F$4/100) -> 30.87510959 | I102: =(I100+I99+I98)/(Amortisation!$F$4/100) -> 24.89562364
C103: =C96 -> Kollektor > | D103: =D96 -> SolRose 26 | E103: Synergie 210 | F103: Sunex AMX 2,85 | G103: Sunex 2,0 | H103: Star Azzurro CPC | I103: Billig VRK
C104: Amortisationsberechnung nach nutzbaren Ertrag (nach eingetragenen Vorgaben) bei verschiedenen Preisentwicklungen ! | K104: Strahlung 40° | L104: =L25/100*$L$79 -> 372 | N104: 372 | O104: 0.372 | P104: 0.4216
A105: Amortisation (J) > | C105: =Amortisation!F22 -> Kollektorbez. | D105: =Amortisation!G23 -> Jahre bei aktuellen Preis | E105: =Amortisation!H23 -> Jahre leichter Anstieg | F105: =Amortisation!I23 -> Jahre mittlerer Anstieg | G105: =Amortisation!J23 -> Jahre hoher Anstieg | H105: Anlagenpreis (Euro) | K105: Strahlung 50° | L105: =L26/100*$L$79 -> 328.5 | N105: 328.5 | O105: 0.3285 | P105: 0.3723
C106: =Amortisation!F24 -> SolRose 26 | D106: =IF($D$17>0,Amortisation!G24,"") ->  | E106: =IF($D$17>0,Amortisation!H24,"") ->  | F106: =IF($D$17>0,Amortisation!I24,"") ->  | G106: =IF($D$17>0,Amortisation!J24,"") ->  | H106: =Amortisation!K24 -> 8000 | K106: Strahlung 60° | L106: =L27/100*$L$79 -> 262 | N106: 262 | O106: 0.262 | P106: 0.2969333333
C107: =Amortisation!F25 -> Synergie 210 | D107: =IF($E$17>0,Amortisation!G25,"") -> 20.03451653 | E107: =IF($E$17>0,Amortisation!H25,"") -> 17.92562006 | F107: =IF($E$17>0,Amortisation!I25,"") -> 14.19111588 | G107: =IF($E$17>0,Amortisation!J25,"") -> 11.3528927 | H107: =Amortisation!K25 -> 9087.84 | K107: Strahlung 70° | L107: =L28/100*$L$79 -> 164 | N107: 164 | O107: 0.164 | P107: 0.1858666667
C108: =Amortisation!F26 -> Sunex AMX 2,85 | D108: =IF($F$17>0,Amortisation!G26,"") ->  | E108: =IF($F$17>0,Amortisation!H26,"") ->  | F108: =IF($F$17>0,Amortisation!I26,"") ->  | G108: =IF($F$17>0,Amortisation!J26,"") ->  | H108: =Amortisation!K26 -> 8000 | K108: Laufzeit gesamt (Std.) > | L108: =L29 -> 8.5 | P108: =SUM(P93:P107)*$B$6 -> 31.92461733 | Q108: =P108/$B$6 -> 3.052066667 | R108: kWh/m²
C109: =Amortisation!F27 -> Sunex 2,0 | D109: =IF($G$17>0,Amortisation!G27,"") -> 20.98594033 | E109: =IF($G$17>0,Amortisation!H27,"") -> 18.77689398 | F109: =IF($G$17>0,Amortisation!I27,"") -> 14.86504107 | G109: =IF($G$17>0,Amortisation!J27,"") -> 11.89203286 | H109: =Amortisation!K27 -> 9412.1 | K109: Eingaben Sommer
C110: =Amortisation!F28 -> Star Azzurro CPC | D110: =IF($H$17>0,Amortisation!G28,"") -> 29.8203961 | E110: =IF($H$17>0,Amortisation!H28,"") -> 26.68140704 | F110: =IF($H$17>0,Amortisation!I28,"") -> 21.12278057 | G110: =IF($H$17>0,Amortisation!J28,"") -> 16.89822446 | H110: =Amortisation!K28 -> 14799 | K110: Strahlung 0° | L110: =L32/100*$L$79 -> 496.5 | N110: =L110 -> 496.5 | O110: =IF(N110>0,N110/1000,0) -> 0.4965 | P110: =O110*($L$40/15) -> 0.19529
C111: =Amortisation!F29 -> Billig VRK | D111: =IF($I$17>0,Amortisation!G29,"") -> 25.69043625 | E111: =IF($I$17>0,Amortisation!H29,"") -> 22.9861798 | F111: =IF($I$17>0,Amortisation!I29,"") -> 18.19739234 | G111: =IF($I$17>0,Amortisation!J29,"") -> 14.55791387 | H111: =Amortisation!K29 -> 10280.28 | K111: Strahlung 10° | L111: 495 | N111: 495 | O111: 0.495 | P111: =O111*($L$40/15)*2 -> 0.3894
K112: Strahlung 20° | L112: 488.5 | N112: 488.5 | O112: 0.4885 | P112: 0.3842866667
K113: Strahlung 30° | L113: =L35/100*$L$79 -> 477.5 | N113: 477.5 | O113: 0.4775 | P113: 0.3756333333
K114: Strahlung 40° | L114: =L36/100*$L$79 -> 460 | N114: 460 | O114: 0.46 | P114: 0.3618666667
K115: Strahlung 50° | L115: =L37/100*$L$79 -> 432.5 | N115: 432.5 | O115: 0.4325 | P115: 0.3402333333
K116: Strahlung 60° | L116: =L38/100*$L$79 -> 393 | N116: 393 | O116: 0.393 | P116: 0.30916
K117: Strahlung 70° | L117: =L39/100*$L$79 -> 336.5 | N117: 336.5 | O117: 0.3365 | P117: 0.2647133333
K118: Laufzeit gesamt (Std.) > | L118: =L40 -> 5.9 | P118: =SUM(P110:P117)*$B$6 -> 27.41130167 | Q118: =P118/$B$6 -> 2.620583333 | R118: kWh/m²
K120: Strahlung bei starker Bewölkung | L120: Faktor (%)
L121: 25
K122: Eingaben Winter | N122: kWh der Tageseinstrahlung bei starker Bewölkung
K123: GBS zu Datum (W/m²) | L123: =L9 -> 2013-12-21 | N123: kWh der Tageseinstrahlung
K124: Strahlung 0° | L124: =L10/100*$L$121 -> 150.1 | N124: =L124 -> 150.1 | O124: =IF(N124>0,N124/1000,0) -> 0.1501 | P124: =O124*($L$18/15) -> 0.07505
K125: Strahlung 10° | L125: 146.3 | N125: 146.3 | O125: 0.1463 | P125: =O125*($L$18/15)*2 -> 0.1463
K126: Strahlung 20° | L126: 126.35 | N126: 126.35 | O126: 0.12635 | P126: 0.12635
K127: Strahlung 30° | L127: 100.4625 | N127: 100.4625 | O127: 0.1004625 | P127: 0.1004625
K128: Strahlung 40° | L128: 60.325 | N128: 60.325 | O128: 0.060325 | P128: 0.060325
K129: Strahlung 50° | L129: 22.8 | N129: 22.8 | O129: 0.0228 | P129: 0.0228
K130: Strahlung 60° | L130: 0 | N130: 0 | O130: 0 | P130: 0
K131: Strahlung 70° | L131: 0 | N131: 0 | O131: 0 | P131: 0
K132: Laufzeit gesamt (Std.) > | L132: =L18 -> 7.5 | P132: =SUM(P124:P131)*$B$6 -> 5.55726725 | Q132: =P132/$B$6 -> 0.5312875 | R132: kWh/m²
K133: Eingaben Frühjahr/Herbst
K134: GBS zu Datum (W/m²) | L134: =L20 -> 2013-09-23
K135: Strahlung 0° | L135: =L21/100*$L$121 -> 235.5 | N135: =L135 -> 235.5 | O135: =IF(N135>0,N135/1000,0) -> 0.2355 | P135: =O135*($L$29/15) -> 0.13345
K136: Strahlung 10° | L136: 232.75 | N136: 232.75 | O136: 0.23275 | P136: =O136*($L$29/15)*2 -> 0.2637833333
K137: Strahlung 20° | L137: 224.25 | N137: 224.25 | O137: 0.22425 | P137: 0.25415
K138: Strahlung 30° | L138: 208.5 | N138: 208.5 | O138: 0.2085 | P138: 0.2363
K139: Strahlung 40° | L139: 186 | N139: 186 | O139: 0.186 | P139: 0.2108
K140: Strahlung 50° | L140: 164.25 | N140: 164.25 | O140: 0.16425 | P140: 0.18615
K141: Strahlung 60° | L141: 131 | N141: 131 | O141: 0.131 | P141: 0.1484666667
K142: Strahlung 70° | L142: 82 | N142: 82 | O142: 0.082 | P142: 0.09293333333
K143: Laufzeit gesamt (Std.) > | L143: =L29 -> 8.5 | P143: =SUM(P135:P142)*$B$6 -> 15.96230867 | Q143: =P143/$B$6 -> 1.526033333 | R143: kWh/m²
K144: Eingaben Sommer
K145: GBS zu Datum (W/m²) | L145: =L31 -> 2013-06-21
K146: Strahlung 0° | L146: =L32/100*$L$121 -> 248.25 | N146: =L146 -> 248.25 | O146: =IF(N146>0,N146/1000,0) -> 0.24825 | P146: =O146*($L$40/15) -> 0.097645
K147: Strahlung 10° | L147: 247.5 | N147: 247.5 | O147: 0.2475 | P147: =O147*($L$40/15)*2 -> 0.1947
K148: Strahlung 20° | L148: 244.25 | N148: 244.25 | O148: 0.24425 | P148: 0.1921433333
K149: Strahlung 30° | L149: 238.75 | N149: 238.75 | O149: 0.23875 | P149: 0.1878166667
K150: Strahlung 40° | L150: 230 | N150: 230 | O150: 0.23 | P150: 0.1809333333
K151: Strahlung 50° | L151: 216.25 | N151: 216.25 | O151: 0.21625 | P151: 0.1701166667
K152: Strahlung 60° | L152: 196.5 | N152: 196.5 | O152: 0.1965 | P152: 0.15458
K153: Strahlung 70° | L153: 168.25 | N153: 168.25 | O153: 0.16825 | P153: 0.1323566667
K154: Laufzeit gesamt (Std.) > | L154: =L40 -> 5.9 | P154: =SUM(P146:P153)*$B$6 -> 13.70565083 | Q154: =P154/$B$6 -> 1.310291667 | R154: kWh/m²

Sheet Herbstfrühjahr
A1: Solartirol Tool Herbst/Frühjahr Berechnung eines Tagesverlaufes mit IAM (Beispielort Breitengrad 48,8 Kollektorneigung 50°, Strahlung mit Getsolar ermittelt)
C2: Infos > | D2: =Eingaben!D2 -> 0 | E2: =Eingaben!E2 -> 0 | F2: =Eingaben!F2 -> 0 | G2: =Eingaben!G2 -> 0 | H2: =Eingaben!H2 -> 0 | I2: =Eingaben!I2 -> 0
C3: Kollektor > | D3: =Eingaben!D3 -> SolRose 26 | E3: =Eingaben!E3 -> Synergie 210 | F3: =Eingaben!F3 -> Sunex AMX 2,85 | G3: =Eingaben!G3 -> Sunex 2,0 | H3: =Eingaben!H3 -> Star Azzurro CPC | I3: =Eingaben!I3 -> Billig VRK
C4: Bruttofl.(m²) | D4: =Eingaben!D4 -> 2.6 | E4: =Eingaben!E4 -> 2.07 | F4: =Eingaben!F4 -> 2.87 | G4: =Eingaben!G4 -> 2.03 | H4: =Eingaben!H4 -> 3.92 | I4: =Eingaben!I4 -> 4.18
A5: Berechnung zu Diff. | B5: =Eingaben!B4 -> 32 | C5: Aperturfl. (m²) | D5: =Eingaben!D5 -> 2.47 | E5: =Eingaben!E5 -> 1.92 | F5: =Eingaben!F5 -> 2.67 | G5: =Eingaben!G5 -> 1.84 | H5: =Eingaben!H5 -> 3.47 | I5: =Eingaben!I5 -> 2.84
A6: Gesamtfläche (m²) | B6: =Eingaben!B6 -> 10.46 | C6: η0 | D6: =Eingaben!D6 -> 0.81 | E6: =Eingaben!E6 -> 0.785 | F6: =Eingaben!F6 -> 0.82 | G6: =Eingaben!G6 -> 0.8 | H6: =Eingaben!H6 -> 0.64 | I6: =Eingaben!I6 -> 0.654
A7: Strahlungseingaben zu Datum | C7: a1 | D7: =Eingaben!D7 -> 3.36 | E7: =Eingaben!E7 -> 3.722 | F7: =Eingaben!F7 -> 3.29 | G7: =Eingaben!G7 -> 4.16 | H7: =Eingaben!H7 -> 0.749 | I7: =Eingaben!I7 -> 1.82
A8: GBS zu Datum (W/m²) | B8: =Eingaben!L20 -> 2013-09-23 | C8: a2 | D8: =Eingaben!D8 -> 0.0141 | E8: =Eingaben!E8 -> 0.012 | F8: =Eingaben!F8 -> 0.023 | G8: =Eingaben!G8 -> 0.004 | H8: =Eingaben!H8 -> 0.005 | I8: =Eingaben!I8 -> 0.0066
A9: Strahlung 0° | B9: =Eingaben!L21 -> 942 | C9: IAM 0° | D9: =Eingaben!D9 -> 1 | E9: =Eingaben!E9 -> 1 | F9: =Eingaben!F9 -> 1 | G9: =Eingaben!G9 -> 1 | H9: =Eingaben!H9 -> 1 | I9: =Eingaben!I9 -> 1
A10: Strahlung 10° | B10: =Eingaben!L22 -> 931 | C10: IAM 10° | D10: =Eingaben!D10 -> 1 | E10: =Eingaben!E10 -> 1 | F10: =Eingaben!F10 -> 1 | G10: =Eingaben!G10 -> 1 | H10: =Eingaben!H10 -> 1.01 | I10: =Eingaben!I10 -> 1
A11: Strahlung 20° | B11: =Eingaben!L23 -> 897 | C11: IAM 20° | D11: =Eingaben!D11 -> 1 | E11: =Eingaben!E11 -> 0.99 | F11: =Eingaben!F11 -> 0.99 | G11: =Eingaben!G11 -> 0.99 | H11: =Eingaben!H11 -> 1.01 | I11: =Eingaben!I11 -> 1.04
A12: Strahlung 30° | B12: =Eingaben!L24 -> 834 | C12: IAM 30° | D12: =Eingaben!D12 -> 0.99 | E12: =Eingaben!E12 -> 0.98 | F12: =Eingaben!F12 -> 0.98 | G12: =Eingaben!G12 -> 0.98 | H12: =Eingaben!H12 -> 1.02 | I12: =Eingaben!I12 -> 1.15
A13: Strahlung 40° | B13: =Eingaben!L25 -> 744 | C13: IAM 40° | D13: =Eingaben!D13 -> 0.96 | E13: =Eingaben!E13 -> 0.97 | F13: =Eingaben!F13 -> 0.97 | G13: =Eingaben!G13 -> 0.97 | H13: =Eingaben!H13 -> 1.02 | I13: =Eingaben!I13 -> 1.3
A14: Strahlung 50° | B14: =Eingaben!L26 -> 657 | C14: IAM 50° | D14: =Eingaben!D14 -> 0.94 | E14: =Eingaben!E14 -> 0.94 | F14: =Eingaben!F14 -> 0.94 | G14: =Eingaben!G14 -> 0.95 | H14: =Eingaben!H14 -> 0.98 | I14: =Eingaben!I14 -> 1.36
A15: Strahlung 60° | B15: =Eingaben!L27 -> 524 | C15: IAM 60° | D15: =Eingaben!D15 -> 0.86 | E15: =Eingaben!E15 -> 0.9 | F15: =Eingaben!F15 -> 0.9 | G15: =Eingaben!G15 -> 0.9 | H15: =Eingaben!H15 -> 1.05 | I15: =Eingaben!I15 -> 1.34
A16: Strahlung 70° | B16: =Eingaben!L28 -> 328 | C16: IAM 70° | D16: =Eingaben!D16 -> 0.73 | E16: =Eingaben!E16 -> 0.8 | F16: =Eingaben!F16 -> 0.81 | G16: =Eingaben!G16 -> 0.81 | H16: =Eingaben!H16 -> 1.14 | I16: =Eingaben!I16 -> 1.11
A17: Laufzeit gesamt (Std.) > | B17: =Eingaben!L29 -> 8.5 | C17: ="Berechnung nach Tagesverlauf bei Sonne (mit IAM) mit Diff. "&B5&" bei "&B6&" m²"&" am " -> Berechnung nach Tagesverlauf bei Sonne (mit IAM) mit Diff. 32 bei 10,46 m² am | H17: =B8 -> 2013-09-23
A18: Tageswirkungsgrad bei Sonne (%) > | D18: =IF(D44>0,D44/(Eingaben!$M$3/100),"") -> 58.51414351 | E18: =IF(E44>0,E44/(Eingaben!$M$3/100),"") -> 54.01483808 | F18: =IF(F44>0,F44/(Eingaben!$M$3/100),"") -> 57.64577642 | G18: =IF(G44>0,G44/(Eingaben!$M$3/100),"") -> 53.48446983 | H18: =IF(H44>0,H44/(Eingaben!$M$3/100),"") -> 54.10221665 | I18: =IF(I44>0,I44/(Eingaben!$M$3/100),"") -> 44.10728642
A19: Wirkungsgrad bei eingestellter Diff. bei 0° > | D19: =IF($B$9>0,($D$6-$D$7*($B$5/$B$9)-$D$8*$B$9*(($B$5/$B$9*$B$5/$B$9)))*$D$9,0) -> 0.6805324841 | E19: =IF($B$9>0,($E$6-$E$7*($B$5/$B$9)-$E$8*$B$9*(($B$5/$B$9*$B$5/$B$9)))*$E$9,0) -> 0.6455180467 | F19: =IF($B$9>0,($F$6-$F$7*($B$5/$B$9)-$F$8*$B$9*(($B$5/$B$9*$B$5/$B$9)))*$F$9,0) -> 0.6832356688 | G19: =IF($B$9>0,($G$6-$G$7*($B$5/$B$9)-$G$8*$B$9*(($B$5/$B$9*$B$5/$B$9)))*$G$9,0) -> 0.6543354565 | H19: =IF($B$9>0,($H$6-$H$7*($B$5/$B$9)-$H$8*$B$9*(($B$5/$B$9*$B$5/$B$9)))*$H$9,0) -> 0.6091210191 | I19: =IF($B$9>0,($I$6-$I$7*($B$5/$B$9)-$I$8*$B$9*(($B$5/$B$9*$B$5/$B$9)))*$I$9,0) -> 0.5849995754
A20: Wirkungsgrad bei eingestellter Diff. bei 10° > | D20: =IF($B$10>0,($D$6-$D$7*($B$5/$B$10)-$D$8*$B$10*(($B$5/$B$10*$B$5/$B$10)))*$D$10,0) -> 0.6790027927 | E20: =IF($B$10>0,($E$6-$E$7*($B$5/$B$10)-$E$8*$B$10*(($B$5/$B$10*$B$5/$B$10)))*$E$10,0) -> 0.6438700322 | F20: =IF($B$10>0,($F$6-$F$7*($B$5/$B$10)-$F$8*$B$10*(($B$5/$B$10*$B$5/$B$10)))*$F$10,0) -> 0.6816197637 | G20: =IF($B$10>0,($G$6-$G$7*($B$5/$B$10)-$G$8*$B$10*(($B$5/$B$10*$B$5/$B$10)))*$G$10,0) -> 0.6526143931 | H20: =IF($B$10>0,($H$6-$H$7*($B$5/$B$10)-$H$8*$B$10*(($B$5/$B$10*$B$5/$B$10)))*$H$10,0) -> 0.6148437379 | I20: =IF($B$10>0,($I$6-$I$7*($B$5/$B$10)-$I$8*$B$10*(($B$5/$B$10*$B$5/$B$10)))*$I$10,0) -> 0.5841843179
A21: Wirkungsgrad bei eingestellter Diff. bei 20° > | D21: =IF($B$11>0,($D$6-$D$7*($B$5/$B$11)-$D$8*$B$11*(($B$5/$B$11*$B$5/$B$11)))*$D$11,0) -> 0.6740374582 | E21: =IF($B$11>0,($E$6-$E$7*($B$5/$B$11)-$E$8*$B$11*(($B$5/$B$11*$B$5/$B$11)))*$E$11,0) -> 0.6321354181 | F21: =IF($B$11>0,($F$6-$F$7*($B$5/$B$11)-$F$8*$B$11*(($B$5/$B$11*$B$5/$B$11)))*$F$11,0) -> 0.6696108361 | G21: =IF($B$11>0,($G$6-$G$7*($B$5/$B$11)-$G$8*$B$11*(($B$5/$B$11*$B$5/$B$11)))*$G$11,0) -> 0.640557592 | H21: =IF($B$11>0,($H$6-$H$7*($B$5/$B$11)-$H$8*$B$11*(($B$5/$B$11*$B$5/$B$11)))*$H$11,0) -> 0.6136476254 | I21: =IF($B$11>0,($I$6-$I$7*($B$5/$B$11)-$I$8*$B$11*(($B$5/$B$11*$B$5/$B$11)))*$I$11,0) -> 0.6047995362
A22: Wirkungsgrad bei eingestellter Diff. bei 30° > | D22: =IF($B$12>0,($D$6-$D$7*($B$5/$B$12)-$D$8*$B$12*(($B$5/$B$12*$B$5/$B$12)))*$D$12,0) -> 0.6571292374 | E22: =IF($B$12>0,($E$6-$E$7*($B$5/$B$12)-$E$8*$B$12*(($B$5/$B$12*$B$5/$B$12)))*$E$12,0) -> 0.6149065228 | F22: =IF($B$12>0,($F$6-$F$7*($B$5/$B$12)-$F$8*$B$12*(($B$5/$B$12*$B$5/$B$12)))*$F$12,0) -> 0.6522146763 | G22: =IF($B$12>0,($G$6-$G$7*($B$5/$B$12)-$G$8*$B$12*(($B$5/$B$12*$B$5/$B$12)))*$G$12,0) -> 0.6227629736 | H22: =IF($B$12>0,($H$6-$H$7*($B$5/$B$12)-$H$8*$B$12*(($B$5/$B$12*$B$5/$B$12)))*$H$12,0) -> 0.6172247482 | I22: =IF($B$12>0,($I$6-$I$7*($B$5/$B$12)-$I$8*$B$12*(($B$5/$B$12*$B$5/$B$12)))*$I$12,0) -> 0.6624739089
A23: Wirkungsgrad bei eingestellter Diff. bei 40° > | D23: =IF($B$13>0,($D$6-$D$7*($B$5/$B$13)-$D$8*$B$13*(($B$5/$B$13*$B$5/$B$13)))*$D$13,0) -> 0.6202343226 | E23: =IF($B$13>0,($E$6-$E$7*($B$5/$B$13)-$E$8*$B$13*(($B$5/$B$13*$B$5/$B$13)))*$E$13,0) -> 0.590145914 | F23: =IF($B$13>0,($F$6-$F$7*($B$5/$B$13)-$F$8*$B$13*(($B$5/$B$13*$B$5/$B$13)))*$F$13,0) -> 0.6274335484 | G23: =IF($B$13>0,($G$6-$G$7*($B$5/$B$13)-$G$8*$B$13*(($B$5/$B$13*$B$5/$B$13)))*$G$13,0) -> 0.5971027957 | H23: =IF($B$13>0,($H$6-$H$7*($B$5/$B$13)-$H$8*$B$13*(($B$5/$B$13*$B$5/$B$13)))*$H$13,0) -> 0.6129212903 | I23: =IF($B$13>0,($I$6-$I$7*($B$5/$B$13)-$I$8*$B$13*(($B$5/$B$13*$B$5/$B$13)))*$I$13,0) -> 0.7366275269
A24: Wirkungsgrad bei eingestellter Diff. bei 50° > | D24: =IF($B$14>0,($D$6-$D$7*($B$5/$B$14)-$D$8*$B$14*(($B$5/$B$14*$B$5/$B$14)))*$D$14,0) -> 0.5869085297 | E24: =IF($B$14>0,($E$6-$E$7*($B$5/$B$14)-$E$8*$B$14*(($B$5/$B$14*$B$5/$B$14)))*$E$14,0) -> 0.549911446 | F24: =IF($B$14>0,($F$6-$F$7*($B$5/$B$14)-$F$8*$B$14*(($B$5/$B$14*$B$5/$B$14)))*$F$14,0) -> 0.5864741553 | G24: =IF($B$14>0,($G$6-$G$7*($B$5/$B$14)-$G$8*$B$14*(($B$5/$B$14*$B$5/$B$14)))*$G$14,0) -> 0.5615902588 | H24: =IF($B$14>0,($H$6-$H$7*($B$5/$B$14)-$H$8*$B$14*(($B$5/$B$14*$B$5/$B$14)))*$H$14,0) -> 0.5838115068 | I24: =IF($B$14>0,($I$6-$I$7*($B$5/$B$14)-$I$8*$B$14*(($B$5/$B$14*$B$5/$B$14)))*$I$14,0) -> 0.7548923227
A25: Wirkungsgrad bei eingestellter Diff. bei 60° > | D25: =IF($B$15>0,($D$6-$D$7*($B$5/$B$15)-$D$8*$B$15*(($B$5/$B$15*$B$5/$B$15)))*$D$15,0) -> 0.4964392672 | E25: =IF($B$15>0,($E$6-$E$7*($B$5/$B$15)-$E$8*$B$15*(($B$5/$B$15*$B$5/$B$15)))*$E$15,0) -> 0.4808267176 | F25: =IF($B$15>0,($F$6-$F$7*($B$5/$B$15)-$F$8*$B$15*(($B$5/$B$15*$B$5/$B$15)))*$F$15,0) -> 0.5167236641 | G25: =IF($B$15>0,($G$6-$G$7*($B$5/$B$15)-$G$8*$B$15*(($B$5/$B$15*$B$5/$B$15)))*$G$15,0) -> 0.4843236641 | H25: =IF($B$15>0,($H$6-$H$7*($B$5/$B$15)-$H$8*$B$15*(($B$5/$B$15*$B$5/$B$15)))*$H$15,0) -> 0.6137129771 | I25: =IF($B$15>0,($I$6-$I$7*($B$5/$B$15)-$I$8*$B$15*(($B$5/$B$15*$B$5/$B$15)))*$I$15,0) -> 0.7101427176
A26: Wirkungsgrad bei eingestellter Diff. bei 70° > | D26: =IF($B$16>0,($D$6-$D$7*($B$5/$B$16)-$D$8*$B$16*(($B$5/$B$16*$B$5/$B$16)))*$D$16,0) -> 0.3198681951 | E26: =IF($B$16>0,($E$6-$E$7*($B$5/$B$16)-$E$8*$B$16*(($B$5/$B$16*$B$5/$B$16)))*$E$16,0) -> 0.3075317073 | F26: =IF($B$16>0,($F$6-$F$7*($B$5/$B$16)-$F$8*$B$16*(($B$5/$B$16*$B$5/$B$16)))*$F$16,0) -> 0.3460478049 | G26: =IF($B$16>0,($G$6-$G$7*($B$5/$B$16)-$G$8*$B$16*(($B$5/$B$16*$B$5/$B$16)))*$G$16,0) -> 0.3091434146 | H26: =IF($B$16>0,($H$6-$H$7*($B$5/$B$16)-$H$8*$B$16*(($B$5/$B$16*$B$5/$B$16)))*$H$16,0) -> 0.6285014634 | I26: =IF($B$16>0,($I$6-$I$7*($B$5/$B$16)-$I$8*$B$16*(($B$5/$B$16*$B$5/$B$16)))*$I$16,0) -> 0.5059759024
A27: Leistung nach Tagesverlauf | C27: Azimut | D27: =IF(D3>0,D3,"") -> SolRose 26 | E27: =IF(E3>0,E3,"") -> Synergie 210 | F27: Sunex AMX 2,85 | G27: Sunex 2,0 | H27: Star Azzurro CPC | I27: Billig VRK
A28: Leistung bei eingetragener Fläche (KW) | C28: -70 | D28: =IF(D26>0,($B$16*D26*$B$6/1000)*$D$5/$D$4,0) -> 1.042557924 | E28: =IF(E26>0,($B$16*E26*$B$6/1000)*$E$5/$E$4,0) -> 0.9786475446 | F28: =IF(F26>0,($B$16*F26*$B$6/1000)*$F$5/$F$4,0) -> 1.104513406 | G28: =IF(G26>0,($B$16*G26*$B$6/1000)*$G$5/$G$4,0) -> 0.9613627997 | H28: =IF(H26>0,($B$16*H26*$B$6/1000)*$H$5/$H$4,0) -> 1.908777158 | I28: =IF(I26>0,($B$16*I26*$B$6/1000)*$I$5/$I$4,0) -> 1.179444257
A29: Leistung bei eingetragener Fläche (KW) | C29: -60 | D29: =IF(D25>0,($B$15*D25*$B$6/1000)*$D$5/$D$4,0) -> 2.584953307 | E29: =IF(E25>0,($B$15*E25*$B$6/1000)*$E$5/$E$4,0) -> 2.444457249 | F29: =IF(F25>0,($B$15*F25*$B$6/1000)*$F$5/$F$4,0) -> 2.634818398 | G29: =IF(G25>0,($B$15*G25*$B$6/1000)*$G$5/$G$4,0) -> 2.406137523 | H29: =IF(H25>0,($B$15*H25*$B$6/1000)*$H$5/$H$4,0) -> 2.977636545 | I29: =IF(I25>0,($B$15*I25*$B$6/1000)*$I$5/$I$4,0) -> 2.64454321
A30: Leistung bei eingetragener Fläche (KW) | C30: -50 | D30: =IF(D24>0,($B$14*D24*$B$6/1000)*$D$5/$D$4,0) -> 3.831696309 | E30: =IF(E24>0,($B$14*E24*$B$6/1000)*$E$5/$E$4,0) -> 3.50526371 | F30: =IF(F24>0,($B$14*F24*$B$6/1000)*$F$5/$F$4,0) -> 3.749516742 | G30: =IF(G24>0,($B$14*G24*$B$6/1000)*$G$5/$G$4,0) -> 3.498149816 | H30: =IF(H24>0,($B$14*H24*$B$6/1000)*$H$5/$H$4,0) -> 3.551510578 | I30: =IF(I24>0,($B$14*I24*$B$6/1000)*$I$5/$I$4,0) -> 3.524715927
A31: Leistung bei eingetragener Fläche (KW) | C31: -40 | D31: =IF(D23>0,($B$13*D23*$B$6/1000)*$D$5/$D$4,0) -> 4.585471737 | E31: =IF(E23>0,($B$13*E23*$B$6/1000)*$E$5/$E$4,0) -> 4.259855896 | F31: =IF(F23>0,($B$13*F23*$B$6/1000)*$F$5/$F$4,0) -> 4.542570969 | G31: =IF(G23>0,($B$13*G23*$B$6/1000)*$G$5/$G$4,0) -> 4.21187535 | H31: =IF(H23>0,($B$13*H23*$B$6/1000)*$H$5/$H$4,0) -> 4.222335465 | I31: =IF(I23>0,($B$13*I23*$B$6/1000)*$I$5/$I$4,0) -> 3.894884847
A32: Leistung bei eingetragener Fläche (KW) | C32: -30 | D32: =IF(D22>0,($B$12*D22*$B$6/1000)*$D$5/$D$4,0) -> 5.445930956 | E32: =IF(E22>0,($B$12*E22*$B$6/1000)*$E$5/$E$4,0) -> 4.975511317 | F32: =IF(F22>0,($B$12*F22*$B$6/1000)*$F$5/$F$4,0) -> 5.293192238 | G32: =IF(G22>0,($B$12*G22*$B$6/1000)*$G$5/$G$4,0) -> 4.924275062 | H32: =IF(H22>0,($B$12*H22*$B$6/1000)*$H$5/$H$4,0) -> 4.766334021 | I32: =IF(I22>0,($B$12*I22*$B$6/1000)*$I$5/$I$4,0) -> 3.926526854
A33: Leistung bei eingetragener Fläche (KW) | C33: -20 | D33: =IF(D21>0,($B$11*D21*$B$6/1000)*$D$5/$D$4,0) -> 6.008025469 | E33: =IF(E21>0,($B$11*E21*$B$6/1000)*$E$5/$E$4,0) -> 5.501297545 | F33: =IF(F21>0,($B$11*F21*$B$6/1000)*$F$5/$F$4,0) -> 5.844884928 | G33: =IF(G21>0,($B$11*G21*$B$6/1000)*$G$5/$G$4,0) -> 5.447586006 | H33: =IF(H21>0,($B$11*H21*$B$6/1000)*$H$5/$H$4,0) -> 5.096670923 | I33: =IF(I21>0,($B$11*I21*$B$6/1000)*$I$5/$I$4,0) -> 3.855472727
A34: Leistung bei eingetragener Fläche (KW) | C34: -10 | D34: =IF(D20>0,($B$10*D20*$B$6/1000)*$D$5/$D$4,0) -> 6.281690449 | E34: =IF(E20>0,($B$10*E20*$B$6/1000)*$E$5/$E$4,0) -> 5.815813361 | F34: =IF(F20>0,($B$10*F20*$B$6/1000)*$F$5/$F$4,0) -> 6.175226683 | G34: =IF(G20>0,($B$10*G20*$B$6/1000)*$G$5/$G$4,0) -> 5.760494925 | H34: =IF(H20>0,($B$10*H20*$B$6/1000)*$H$5/$H$4,0) -> 5.300166679 | I34: =IF(I20>0,($B$10*I20*$B$6/1000)*$I$5/$I$4,0) -> 3.865211991
A35: Leistung bei eingetragener Fläche (KW) | C35: 0 | D35: =IF(D19>0,($B$9*D19*$B$6/1000)*$D$5/$D$4,0) -> 6.370229119 | E35: =IF(E19>0,($B$9*E19*$B$6/1000)*$E$5/$E$4,0) -> 5.899590381 | F35: =IF(F19>0,($B$9*F19*$B$6/1000)*$F$5/$F$4,0) -> 6.263001026 | G35: =IF(G19>0,($B$9*G19*$B$6/1000)*$G$5/$G$4,0) -> 5.843927595 | H35: =IF(H19>0,($B$9*H19*$B$6/1000)*$H$5/$H$4,0) -> 5.312874793 | I35: =IF(I19>0,($B$9*I19*$B$6/1000)*$I$5/$I$4,0) -> 3.916338269
A36: Leistung bei eingetragener Fläche (KW) | C36: 10 | D36: =IF(D20>0,($B$10*D20*$B$6/1000)*$D$5/$D$4,0) -> 6.281690449 | E36: =IF(E20>0,($B$10*E20*$B$6/1000)*$E$5/$E$4,0) -> 5.815813361 | F36: =IF(F20>0,($B$10*F20*$B$6/1000)*$F$5/$F$4,0) -> 6.175226683 | G36: =IF(G20>0,($B$10*G20*$B$6/1000)*$G$5/$G$4,0) -> 5.760494925 | H36: =IF(H20>0,($B$10*H20*$B$6/1000)*$H$5/$H$4,0) -> 5.300166679 | I36: =IF(I20>0,($B$10*I20*$B$6/1000)*$I$5/$I$4,0) -> 3.865211991
A37: Leistung bei eingetragener Fläche (KW) | C37: 20 | D37: =IF(D21>0,($B$11*D21*$B$6/1000)*$D$5/$D$4,0) -> 6.008025469 | E37: =IF(E21>0,($B$11*E21*$B$6/1000)*$E$5/$E$4,0) -> 5.501297545 | F37: =IF(F21>0,($B$11*F21*$B$6/1000)*$F$5/$F$4,0) -> 5.844884928 | G37: =IF(G21>0,($B$11*G21*$B$6/1000)*$G$5/$G$4,0) -> 5.447586006 | H37: =IF(H21>0,($B$11*H21*$B$6/1000)*$H$5/$H$4,0) -> 5.096670923 | I37: =IF(I21>0,($B$11*I21*$B$6/1000)*$I$5/$I$4,0) -> 3.855472727
A38: Leistung bei eingetragener Fläche (KW) | C38: 30 | D38: =IF(D22>0,($B$12*D22*$B$6/1000)*$D$5/$D$4,0) -> 5.445930956 | E38: =IF(E22>0,($B$12*E22*$B$6/1000)*$E$5/$E$4,0) -> 4.975511317 | F38: =IF(F22>0,($B$12*F22*$B$6/1000)*$F$5/$F$4,0) -> 5.293192238 | G38: =IF(G22>0,($B$12*G22*$B$6/1000)*$G$5/$G$4,0) -> 4.924275062 | H38: =IF(H22>0,($B$12*H22*$B$6/1000)*$H$5/$H$4,0) -> 4.766334021 | I38: =IF(I22>0,($B$12*I22*$B$6/1000)*$I$5/$I$4,0) -> 3.926526854
A39: Leistung bei eingetragener Fläche (KW) | C39: 40 | D39: =IF(D23>0,($B$13*D23*$B$6/1000)*$D$5/$D$4,0) -> 4.585471737 | E39: =IF(E23>0,($B$13*E23*$B$6/1000)*$E$5/$E$4,0) -> 4.259855896 | F39: =IF(F23>0,($B$13*F23*$B$6/1000)*$F$5/$F$4,0) -> 4.542570969 | G39: =IF(G23>0,($B$13*G23*$B$6/1000)*$G$5/$G$4,0) -> 4.21187535 | H39: =IF(H23>0,($B$13*H23*$B$6/1000)*$H$5/$H$4,0) -> 4.222335465 | I39: =IF(I23>0,($B$13*I23*$B$6/1000)*$I$5/$I$4,0) -> 3.894884847
A40: Leistung bei eingetragener Fläche (KW) | C40: 50 | D40: =IF(D24>0,($B$14*D24*$B$6/1000)*$D$5/$D$4,0) -> 3.831696309 | E40: =IF(E24>0,($B$14*E24*$B$6/1000)*$E$5/$E$4,0) -> 3.50526371 | F40: =IF(F24>0,($B$14*F24*$B$6/1000)*$F$5/$F$4,0) -> 3.749516742 | G40: =IF(G24>0,($B$14*G24*$B$6/1000)*$G$5/$G$4,0) -> 3.498149816 | H40: =IF(H24>0,($B$14*H24*$B$6/1000)*$H$5/$H$4,0) -> 3.551510578 | I40: =IF(I24>0,($B$14*I24*$B$6/1000)*$I$5/$I$4,0) -> 3.524715927
A41: Leistung bei eingetragener Fläche (KW) | C41: 60 | D41: =IF(D25>0,($B$15*D25*$B$6/1000)*$D$5/$D$4,0) -> 2.584953307 | E41: =IF(E25>0,($B$15*E25*$B$6/1000)*$E$5/$E$4,0) -> 2.444457249 | F41: =IF(F25>0,($B$15*F25*$B$6/1000)*$F$5/$F$4,0) -> 2.634818398 | G41: =IF(G25>0,($B$15*G25*$B$6/1000)*$G$5/$G$4,0) -> 2.406137523 | H41: =IF(H25>0,($B$15*H25*$B$6/1000)*$H$5/$H$4,0) -> 2.977636545 | I41: =IF(I25>0,($B$15*I25*$B$6/1000)*$I$5/$I$4,0) -> 2.64454321
A42: Leistung bei eingetragener Fläche (KW) | C42: 70 | D42: =IF(D26>0,($B$16*D26*$B$6/1000)*$D$5/$D$4,0) -> 1.042557924 | E42: =IF(E26>0,($B$16*E26*$B$6/1000)*$E$5/$E$4,0) -> 0.9786475446 | F42: =IF(F26>0,($B$16*F26*$B$6/1000)*$F$5/$F$4,0) -> 1.104513406 | G42: =IF(G26>0,($B$16*G26*$B$6/1000)*$G$5/$G$4,0) -> 0.9613627997 | H42: =IF(H26>0,($B$16*H26*$B$6/1000)*$H$5/$H$4,0) -> 1.908777158 | I42: =IF(I26>0,($B$16*I26*$B$6/1000)*$I$5/$I$4,0) -> 1.179444257
A43: KW Schnitt > | D43: =SUM(D28:D42)/15 -> 4.395392095 | E43: =SUM(E28:E42)/15 -> 4.057418908 | F43: 4.330163184 | G43: 4.017579371 | H43: 4.063982502 | I43: 3.31319586
A44: KWH gesamt bei Azimut -70 bis +70 > | D44: =IF(D43>0,D43*$B$17,0) -> 37.3608328 | E44: 34.48806072 | F44: 36.80638706 | G44: 34.14942465 | H44: 34.54385127 | I44: 28.16216481
A45: Puffervolumen (L) > | B45: =Eingaben!B7 -> 1500 | C45: Erwärmung (K)> | D45: =IF(D44>0,D44/(($B$45/1000)*1*1.163),0) -> 21.41635586 | E45: =IF(E44>0,E44/(($B$45/1000)*1*1.163),0) -> 19.76959629 | F45: 21.09853085 | G45: 19.57547988 | H45: 19.80157711 | I45: 16.14340201
A46: Laufzeit gesamt (Std.) > | B46: =B17 -> 8.5 | C46: ="Berechnung nach Tagesverlauf bei leichter Bewölkung (mit IAM) mit Diff. "&B5&" bei "&B6&" m²"&" am " -> Berechnung nach Tagesverlauf bei leichter Bewölkung (mit IAM) mit Diff. 32 bei 10,46 m² am | H46: =H17 -> 2013-09-23
A47: Wirkungsgrad bei Diff.0 > | D47: =$D$6-$D$7*(0/1000)-$D$8*1000*((0/1000*0/1000)) -> 0.81 | E47: =$E$6-$E$7*(0/1000)-$E$8*1000*((0/1000*0/1000)) -> 0.785 | F47: =$F$6-$F$7*(0/1000)-$F$8*1000*((0/1000*0/1000)) -> 0.82 | G47: =$G$6-$G$7*(0/1000)-$G$8*1000*((0/1000*0/1000)) -> 0.8 | H47: =$H$6-$H$7*(0/1000)-$H$8*1000*((0/1000*0/1000)) -> 0.64 | I47: =$I$6-$I$7*(0/1000)-$I$8*1000*((0/1000*0/1000)) -> 0.654
A48: Wirkungsgrad bei eingestellter Diff. bei 0° > | D48: =IF(Eingaben!L57>0,($D$6-$D$7*($B$5/Eingaben!L57)-$D$8*Eingaben!L57*(($B$5/Eingaben!L57*$B$5/Eingaben!L57)))*$D$9,0) -> 0.6373766454 | E48: =IF(Eingaben!L57>0,($E$6-$E$7*($B$5/Eingaben!L57)-$E$8*Eingaben!L57*(($B$5/Eingaben!L57*$B$5/Eingaben!L57)))*$E$9,0) -> 0.5990240623 | F48: =IF(Eingaben!L57>0,($F$6-$F$7*($B$5/Eingaben!L57)-$F$8*Eingaben!L57*(($B$5/Eingaben!L57*$B$5/Eingaben!L57)))*$F$9,0) -> 0.6376475584 | G48: =IF(Eingaben!L57>0,($G$6-$G$7*($B$5/Eingaben!L57)-$G$8*Eingaben!L57*(($B$5/Eingaben!L57*$B$5/Eingaben!L57)))*$G$9,0) -> 0.6057806086 | H48: =IF(Eingaben!L57>0,($H$6-$H$7*($B$5/Eingaben!L57)-$H$8*Eingaben!L57*(($B$5/Eingaben!L57*$B$5/Eingaben!L57)))*$H$9,0) -> 0.5988280255 | I48: =IF(Eingaben!L57>0,($I$6-$I$7*($B$5/Eingaben!L57)-$I$8*Eingaben!L57*(($B$5/Eingaben!L57*$B$5/Eingaben!L57)))*$I$9,0) -> 0.5619994338
A49: Wirkungsgrad bei eingestellter Diff. bei 10° > | D49: =IF(Eingaben!L58>0,($D$6-$D$7*($B$5/Eingaben!L58)-$D$8*Eingaben!L58*(($B$5/Eingaben!L58*$B$5/Eingaben!L58)))*$D$10,0) -> 0.6353370569 | E49: =IF(Eingaben!L58>0,($E$6-$E$7*($B$5/Eingaben!L58)-$E$8*Eingaben!L58*(($B$5/Eingaben!L58*$B$5/Eingaben!L58)))*$E$10,0) -> 0.5968267096 | F49: =IF(Eingaben!L58>0,($F$6-$F$7*($B$5/Eingaben!L58)-$F$8*Eingaben!L58*(($B$5/Eingaben!L58*$B$5/Eingaben!L58)))*$F$10,0) -> 0.6354930183 | G49: =IF(Eingaben!L58>0,($G$6-$G$7*($B$5/Eingaben!L58)-$G$8*Eingaben!L58*(($B$5/Eingaben!L58*$B$5/Eingaben!L58)))*$G$10,0) -> 0.6034858575 | H49: =IF(Eingaben!L58>0,($H$6-$H$7*($B$5/Eingaben!L58)-$H$8*Eingaben!L58*(($B$5/Eingaben!L58*$B$5/Eingaben!L58)))*$H$10,0) -> 0.6043249839 | I49: =IF(Eingaben!L58>0,($I$6-$I$7*($B$5/Eingaben!L58)-$I$8*Eingaben!L58*(($B$5/Eingaben!L58*$B$5/Eingaben!L58)))*$I$10,0) -> 0.5609124239
A50: Wirkungsgrad bei eingestellter Diff. bei 20° > | D50: =IF(Eingaben!L59>0,($D$6-$D$7*($B$5/Eingaben!L59)-$D$8*Eingaben!L59*(($B$5/Eingaben!L59*$B$5/Eingaben!L59)))*$D$11,0) -> 0.6287166109 | E50: =IF(Eingaben!L59>0,($E$6-$E$7*($B$5/Eingaben!L59)-$E$8*Eingaben!L59*(($B$5/Eingaben!L59*$B$5/Eingaben!L59)))*$E$11,0) -> 0.5837972241 | F50: =IF(Eingaben!L59>0,($F$6-$F$7*($B$5/Eingaben!L59)-$F$8*Eingaben!L59*(($B$5/Eingaben!L59*$B$5/Eingaben!L59)))*$F$11,0) -> 0.6222144482 | G50: =IF(Eingaben!L59>0,($G$6-$G$7*($B$5/Eingaben!L59)-$G$8*Eingaben!L59*(($B$5/Eingaben!L59*$B$5/Eingaben!L59)))*$G$11,0) -> 0.5900767893 | H50: =IF(Eingaben!L59>0,($H$6-$H$7*($B$5/Eingaben!L59)-$H$8*Eingaben!L59*(($B$5/Eingaben!L59*$B$5/Eingaben!L59)))*$H$11,0) -> 0.6027301672 | I50: =IF(Eingaben!L59>0,($I$6-$I$7*($B$5/Eingaben!L59)-$I$8*Eingaben!L59*(($B$5/Eingaben!L59*$B$5/Eingaben!L59)))*$I$11,0) -> 0.5796793816
A51: Wirkungsgrad bei eingestellter Diff. bei 30° > | D51: =IF(Eingaben!L60>0,($D$6-$D$7*($B$5/Eingaben!L60)-$D$8*Eingaben!L60*(($B$5/Eingaben!L60*$B$5/Eingaben!L60)))*$D$12,0) -> 0.6088723165 | E51: =IF(Eingaben!L60>0,($E$6-$E$7*($B$5/Eingaben!L60)-$E$8*Eingaben!L60*(($B$5/Eingaben!L60*$B$5/Eingaben!L60)))*$E$12,0) -> 0.5634420304 | F51: =IF(Eingaben!L60>0,($F$6-$F$7*($B$5/Eingaben!L60)-$F$8*Eingaben!L60*(($B$5/Eingaben!L60*$B$5/Eingaben!L60)))*$F$12,0) -> 0.6017529017 | G51: =IF(Eingaben!L60>0,($G$6-$G$7*($B$5/Eingaben!L60)-$G$8*Eingaben!L60*(($B$5/Eingaben!L60*$B$5/Eingaben!L60)))*$G$12,0) -> 0.5690172982 | H51: =IF(Eingaben!L60>0,($H$6-$H$7*($B$5/Eingaben!L60)-$H$8*Eingaben!L60*(($B$5/Eingaben!L60*$B$5/Eingaben!L60)))*$H$12,0) -> 0.6053663309 | I51: =IF(Eingaben!L60>0,($I$6-$I$7*($B$5/Eingaben!L60)-$I$8*Eingaben!L60*(($B$5/Eingaben!L60*$B$5/Eingaben!L60)))*$I$12,0) -> 0.6325985452
A52: Wirkungsgrad bei eingestellter Diff. bei 40° > | D52: =IF(Eingaben!L61>0,($D$6-$D$7*($B$5/Eingaben!L61)-$D$8*Eingaben!L61*(($B$5/Eingaben!L61*$B$5/Eingaben!L61)))*$D$13,0) -> 0.5677790968 | E52: =IF(Eingaben!L61>0,($E$6-$E$7*($B$5/Eingaben!L61)-$E$8*Eingaben!L61*(($B$5/Eingaben!L61*$B$5/Eingaben!L61)))*$E$13,0) -> 0.533044552 | F52: =IF(Eingaben!L61>0,($F$6-$F$7*($B$5/Eingaben!L61)-$F$8*Eingaben!L61*(($B$5/Eingaben!L61*$B$5/Eingaben!L61)))*$F$13,0) -> 0.5714447312 | G52: =IF(Eingaben!L61>0,($G$6-$G$7*($B$5/Eingaben!L61)-$G$8*Eingaben!L61*(($B$5/Eingaben!L61*$B$5/Eingaben!L61)))*$G$13,0) -> 0.5374703943 | H52: =IF(Eingaben!L61>0,($H$6-$H$7*($B$5/Eingaben!L61)-$H$8*Eingaben!L61*(($B$5/Eingaben!L61*$B$5/Eingaben!L61)))*$H$13,0) -> 0.5996283871 | I52: =IF(Eingaben!L61>0,($I$6-$I$7*($B$5/Eingaben!L61)-$I$8*Eingaben!L61*(($B$5/Eingaben!L61*$B$5/Eingaben!L61)))*$I$13,0) -> 0.6987700358
A53: Wirkungsgrad bei eingestellter Diff. bei 50° > | D53: =IF(Eingaben!L62>0,($D$6-$D$7*($B$5/Eingaben!L62)-$D$8*Eingaben!L62*(($B$5/Eingaben!L62*$B$5/Eingaben!L62)))*$D$14,0) -> 0.5287447062 | E53: =IF(Eingaben!L62>0,($E$6-$E$7*($B$5/Eingaben!L62)-$E$8*Eingaben!L62*(($B$5/Eingaben!L62*$B$5/Eingaben!L62)))*$E$14,0) -> 0.4872485946 | F53: =IF(Eingaben!L62>0,($F$6-$F$7*($B$5/Eingaben!L62)-$F$8*Eingaben!L62*(($B$5/Eingaben!L62*$B$5/Eingaben!L62)))*$F$14,0) -> 0.525032207 | G53: =IF(Eingaben!L62>0,($G$6-$G$7*($B$5/Eingaben!L62)-$G$8*Eingaben!L62*(($B$5/Eingaben!L62*$B$5/Eingaben!L62)))*$G$14,0) -> 0.4954536783 | H53: =IF(Eingaben!L62>0,($H$6-$H$7*($B$5/Eingaben!L62)-$H$8*Eingaben!L62*(($B$5/Eingaben!L62*$B$5/Eingaben!L62)))*$H$14,0) -> 0.5693486758 | I53: =IF(Eingaben!L62>0,($I$6-$I$7*($B$5/Eingaben!L62)-$I$8*Eingaben!L62*(($B$5/Eingaben!L62*$B$5/Eingaben!L62)))*$I$14,0) -> 0.7100430969
A54: Wirkungsgrad bei eingestellter Diff. bei 60° > | D54: =IF(Eingaben!L63>0,($D$6-$D$7*($B$5/Eingaben!L63)-$D$8*Eingaben!L63*(($B$5/Eingaben!L63*$B$5/Eingaben!L63)))*$D$15,0) -> 0.4297190229 | E54: =IF(Eingaben!L63>0,($E$6-$E$7*($B$5/Eingaben!L63)-$E$8*Eingaben!L63*(($B$5/Eingaben!L63*$B$5/Eingaben!L63)))*$E$15,0) -> 0.4056022901 | F54: =IF(Eingaben!L63>0,($F$6-$F$7*($B$5/Eingaben!L63)-$F$8*Eingaben!L63*(($B$5/Eingaben!L63*$B$5/Eingaben!L63)))*$F$15,0) -> 0.4429648855 | G54: =IF(Eingaben!L63>0,($G$6-$G$7*($B$5/Eingaben!L63)-$G$8*Eingaben!L63*(($B$5/Eingaben!L63*$B$5/Eingaben!L63)))*$G$15,0) -> 0.4057648855 | H54: =IF(Eingaben!L63>0,($H$6-$H$7*($B$5/Eingaben!L63)-$H$8*Eingaben!L63*(($B$5/Eingaben!L63*$B$5/Eingaben!L63)))*$H$15,0) -> 0.5942839695 | I54: =IF(Eingaben!L63>0,($I$6-$I$7*($B$5/Eingaben!L63)-$I$8*Eingaben!L63*(($B$5/Eingaben!L63*$B$5/Eingaben!L63)))*$I$15,0) -> 0.6547369567
A55: Wirkungsgrad bei eingestellter Diff. bei 70° > | D55: =IF(Eingaben!L64>0,($D$6-$D$7*($B$5/Eingaben!L64)-$D$8*Eingaben!L64*(($B$5/Eingaben!L64*$B$5/Eingaben!L64)))*$D$16,0) -> 0.2293909268 | E55: =IF(Eingaben!L64>0,($E$6-$E$7*($B$5/Eingaben!L64)-$E$8*Eingaben!L64*(($B$5/Eingaben!L64*$B$5/Eingaben!L64)))*$E$16,0) -> 0.2007089431 | F55: =IF(Eingaben!L64>0,($F$6-$F$7*($B$5/Eingaben!L64)-$F$8*Eingaben!L64*(($B$5/Eingaben!L64*$B$5/Eingaben!L64)))*$F$16,0) -> 0.2399970732 | G55: =IF(Eingaben!L64>0,($G$6-$G$7*($B$5/Eingaben!L64)-$G$8*Eingaben!L64*(($B$5/Eingaben!L64*$B$5/Eingaben!L64)))*$G$16,0) -> 0.1961912195 | H55: =IF(Eingaben!L64>0,($H$6-$H$7*($B$5/Eingaben!L64)-$H$8*Eingaben!L64*(($B$5/Eingaben!L64*$B$5/Eingaben!L64)))*$H$16,0) -> 0.5948019512 | I55: =IF(Eingaben!L64>0,($I$6-$I$7*($B$5/Eingaben!L64)-$I$8*Eingaben!L64*(($B$5/Eingaben!L64*$B$5/Eingaben!L64)))*$I$16,0) -> 0.4326545366
A56: Leistung nach Tagesverlauf | C56: Azimut | D56: =D27 -> SolRose 26 | E56: =E27 -> Synergie 210 | F56: Sunex AMX 2,85 | G56: Sunex 2,0 | H56: Star Azzurro CPC | I56: Billig VRK
A57: Leistung bei eingetragener Fläche (KW) | C57: -70 | D57: =IF(D55>0,(Eingaben!L64*D55*$B$6/1000)*$D$5/$D$4,0) -> 0.5607465794 | E57: =IF(E55>0,(Eingaben!L64*E55*$B$6/1000)*$E$5/$E$4,0) -> 0.4790318599 | F57: =IF(F55>0,(Eingaben!L64*F55*$B$6/1000)*$F$5/$F$4,0) -> 0.5745159651 | G57: =IF(G55>0,(Eingaben!L64*G55*$B$6/1000)*$G$5/$G$4,0) -> 0.457581169 | H57: =IF(H55>0,(Eingaben!L64*H55*$B$6/1000)*$H$5/$H$4,0) -> 1.354823072 | I57: =IF(I55>0,(Eingaben!L64*I55*$B$6/1000)*$I$5/$I$4,0) -> 0.756397547
A58: Leistung bei eingetragener Fläche (KW) | C58: -60 | D58: =IF(D54>0,(Eingaben!L63*D54*$B$6/1000)*$D$5/$D$4,0) -> 1.678156347 | E58: =IF(E54>0,(Eingaben!L63*E54*$B$6/1000)*$E$5/$E$4,0) -> 1.546519914 | F58: =IF(F54>0,(Eingaben!L63*F54*$B$6/1000)*$F$5/$F$4,0) -> 1.694037032 | G58: =IF(G54>0,(Eingaben!L63*G54*$B$6/1000)*$G$5/$G$4,0) -> 1.511890997 | H58: =IF(H54>0,(Eingaben!L63*H54*$B$6/1000)*$H$5/$H$4,0) -> 2.162527596 | I58: =IF(I54>0,(Eingaben!L63*I54*$B$6/1000)*$I$5/$I$4,0) -> 1.828660772
A59: Leistung bei eingetragener Fläche (KW) | C59: -50 | D59: =IF(D53>0,(Eingaben!L62*D53*$B$6/1000)*$D$5/$D$4,0) -> 2.588975586 | E59: =IF(E53>0,(Eingaben!L62*E53*$B$6/1000)*$E$5/$E$4,0) -> 2.329377069 | F59: =IF(F53>0,(Eingaben!L62*F53*$B$6/1000)*$F$5/$F$4,0) -> 2.517524045 | G59: =IF(G53>0,(Eingaben!L62*G53*$B$6/1000)*$G$5/$G$4,0) -> 2.314638431 | H59: =IF(H53>0,(Eingaben!L62*H53*$B$6/1000)*$H$5/$H$4,0) -> 2.597646442 | I59: =IF(I53>0,(Eingaben!L62*I53*$B$6/1000)*$I$5/$I$4,0) -> 2.486480658
A60: Leistung bei eingetragener Fläche (KW) | C60: -40 | D60: =IF(D52>0,(Eingaben!L61*D52*$B$6/1000)*$D$5/$D$4,0) -> 3.148247654 | E60: =IF(E52>0,(Eingaben!L61*E52*$B$6/1000)*$E$5/$E$4,0) -> 2.885760441 | F60: =IF(F52>0,(Eingaben!L61*F52*$B$6/1000)*$F$5/$F$4,0) -> 3.102912157 | G60: =IF(G52>0,(Eingaben!L61*G52*$B$6/1000)*$G$5/$G$4,0) -> 2.843427867 | H60: =IF(H52>0,(Eingaben!L61*H52*$B$6/1000)*$H$5/$H$4,0) -> 3.098071781 | I60: =IF(I52>0,(Eingaben!L61*I52*$B$6/1000)*$I$5/$I$4,0) -> 2.771036302
A61: Leistung bei eingetragener Fläche (KW) | C61: -30 | D61: =IF(D51>0,(Eingaben!L60*D51*$B$6/1000)*$D$5/$D$4,0) -> 3.784502813 | E61: =IF(E51>0,(Eingaben!L60*E51*$B$6/1000)*$E$5/$E$4,0) -> 3.419315084 | F61: =IF(F51>0,(Eingaben!L60*F51*$B$6/1000)*$F$5/$F$4,0) -> 3.662743922 | G61: =IF(G51>0,(Eingaben!L60*G51*$B$6/1000)*$G$5/$G$4,0) -> 3.374475294 | H61: =IF(H51>0,(Eingaben!L60*H51*$B$6/1000)*$H$5/$H$4,0) -> 3.506070698 | I61: =IF(I51>0,(Eingaben!L60*I51*$B$6/1000)*$I$5/$I$4,0) -> 2.812090192
A62: Leistung bei eingetragener Fläche (KW) | C62: -20 | D62: =IF(D50>0,(Eingaben!L59*D50*$B$6/1000)*$D$5/$D$4,0) -> 4.203043947 | E62: =IF(E50>0,(Eingaben!L59*E50*$B$6/1000)*$E$5/$E$4,0) -> 3.810467833 | F62: =IF(F50>0,(Eingaben!L59*F50*$B$6/1000)*$F$5/$F$4,0) -> 4.073379253 | G62: =IF(G50>0,(Eingaben!L59*G50*$B$6/1000)*$G$5/$G$4,0) -> 3.763706144 | H62: =IF(H50>0,(Eingaben!L59*H50*$B$6/1000)*$H$5/$H$4,0) -> 3.754496706 | I62: =IF(I50>0,(Eingaben!L59*I50*$B$6/1000)*$I$5/$I$4,0) -> 2.771502679
A63: Leistung bei eingetragener Fläche (KW) | C63: -10 | D63: =IF(D49>0,(Eingaben!L58*D49*$B$6/1000)*$D$5/$D$4,0) -> 4.408292682 | E63: =IF(E49>0,(Eingaben!L58*E49*$B$6/1000)*$E$5/$E$4,0) -> 4.043167773 | F63: =IF(F49>0,(Eingaben!L58*F49*$B$6/1000)*$F$5/$F$4,0) -> 4.318001383 | G63: =IF(G49>0,(Eingaben!L58*G49*$B$6/1000)*$G$5/$G$4,0) -> 3.995135477 | H63: =IF(H49>0,(Eingaben!L58*H49*$B$6/1000)*$H$5/$H$4,0) -> 3.907118523 | I63: =IF(I49>0,(Eingaben!L58*I49*$B$6/1000)*$I$5/$I$4,0) -> 2.78342643
A64: Leistung bei eingetragener Fläche (KW) | C64: 0 | D64: =IF(D48>0,(Eingaben!L57*D48*$B$6/1000)*$D$5/$D$4,0) -> 4.474696684 | E64: =IF(E48>0,(Eingaben!L57*E48*$B$6/1000)*$E$5/$E$4,0) -> 4.106000538 | F64: =IF(F48>0,(Eingaben!L57*F48*$B$6/1000)*$F$5/$F$4,0) -> 4.383832141 | G64: =IF(G48>0,(Eingaben!L57*G48*$B$6/1000)*$G$5/$G$4,0) -> 4.057709979 | H64: =IF(H48>0,(Eingaben!L57*H48*$B$6/1000)*$H$5/$H$4,0) -> 3.91732294 | I64: =IF(I48>0,(Eingaben!L57*I48*$B$6/1000)*$I$5/$I$4,0) -> 2.821771138
A65: Leistung bei eingetragener Fläche (KW) | C65: 10 | D65: =IF(D49>0,(Eingaben!L58*D49*$B$6/1000)*$D$5/$D$4,0) -> 4.408292682 | E65: =IF(E49>0,(Eingaben!L58*E49*$B$6/1000)*$E$5/$E$4,0) -> 4.043167773 | F65: =IF(F49>0,(Eingaben!L58*F49*$B$6/1000)*$F$5/$F$4,0) -> 4.318001383 | G65: =IF(G49>0,(Eingaben!L58*G49*$B$6/1000)*$G$5/$G$4,0) -> 3.995135477 | H65: =IF(H49>0,(Eingaben!L58*H49*$B$6/1000)*$H$5/$H$4,0) -> 3.907118523 | I65: =IF(I49>0,(Eingaben!L58*I49*$B$6/1000)*$I$5/$I$4,0) -> 2.78342643
A66: Leistung bei eingetragener Fläche (KW) | C66: 20 | D66: =IF(D50>0,(Eingaben!L59*D50*$B$6/1000)*$D$5/$D$4,0) -> 4.203043947 | E66: =IF(E50>0,(Eingaben!L59*E50*$B$6/1000)*$E$5/$E$4,0) -> 3.810467833 | F66: =IF(F50>0,(Eingaben!L59*F50*$B$6/1000)*$F$5/$F$4,0) -> 4.073379253 | G66: =IF(G50>0,(Eingaben!L59*G50*$B$6/1000)*$G$5/$G$4,0) -> 3.763706144 | H66: =IF(H50>0,(Eingaben!L59*H50*$B$6/1000)*$H$5/$H$4,0) -> 3.754496706 | I66: =IF(I50>0,(Eingaben!L59*I50*$B$6/1000)*$I$5/$I$4,0) -> 2.771502679
A67: Leistung bei eingetragener Fläche (KW) | C67: 30 | D67: =IF(D51>0,(Eingaben!L60*D51*$B$6/1000)*$D$5/$D$4,0) -> 3.784502813 | E67: =IF(E51>0,(Eingaben!L60*E51*$B$6/1000)*$E$5/$E$4,0) -> 3.419315084 | F67: =IF(F51>0,(Eingaben!L60*F51*$B$6/1000)*$F$5/$F$4,0) -> 3.662743922 | G67: =IF(G51>0,(Eingaben!L60*G51*$B$6/1000)*$G$5/$G$4,0) -> 3.374475294 | H67: =IF(H51>0,(Eingaben!L60*H51*$B$6/1000)*$H$5/$H$4,0) -> 3.506070698 | I67: =IF(I51>0,(Eingaben!L60*I51*$B$6/1000)*$I$5/$I$4,0) -> 2.812090192
A68: Leistung bei eingetragener Fläche (KW) | C68: 40 | D68: =IF(D52>0,(Eingaben!L61*D52*$B$6/1000)*$D$5/$D$4,0) -> 3.148247654 | E68: =IF(E52>0,(Eingaben!L61*E52*$B$6/1000)*$E$5/$E$4,0) -> 2.885760441 | F68: =IF(F52>0,(Eingaben!L61*F52*$B$6/1000)*$F$5/$F$4,0) -> 3.102912157 | G68: =IF(G52>0,(Eingaben!L61*G52*$B$6/1000)*$G$5/$G$4,0) -> 2.843427867 | H68: =IF(H52>0,(Eingaben!L61*H52*$B$6/1000)*$H$5/$H$4,0) -> 3.098071781 | I68: =IF(I52>0,(Eingaben!L61*I52*$B$6/1000)*$I$5/$I$4,0) -> 2.771036302
A69: Leistung bei eingetragener Fläche (KW) | C69: 50 | D69: =IF(D53>0,(Eingaben!L62*D53*$B$6/1000)*$D$5/$D$4,0) -> 2.588975586 | E69: =IF(E53>0,(Eingaben!L62*E53*$B$6/1000)*$E$5/$E$4,0) -> 2.329377069 | F69: =IF(F53>0,(Eingaben!L62*F53*$B$6/1000)*$F$5/$F$4,0) -> 2.517524045 | G69: =IF(G53>0,(Eingaben!L62*G53*$B$6/1000)*$G$5/$G$4,0) -> 2.314638431 | H69: =IF(H53>0,(Eingaben!L62*H53*$B$6/1000)*$H$5/$H$4,0) -> 2.597646442 | I69: =IF(I53>0,(Eingaben!L62*I53*$B$6/1000)*$I$5/$I$4,0) -> 2.486480658
A70: Leistung bei eingetragener Fläche (KW) | C70: 60 | D70: =IF(D54>0,(Eingaben!L63*D54*$B$6/1000)*$D$5/$D$4,0) -> 1.678156347 | E70: =IF(E54>0,(Eingaben!L63*E54*$B$6/1000)*$E$5/$E$4,0) -> 1.546519914 | F70: =IF(F54>0,(Eingaben!L63*F54*$B$6/1000)*$F$5/$F$4,0) -> 1.694037032 | G70: =IF(G54>0,(Eingaben!L63*G54*$B$6/1000)*$G$5/$G$4,0) -> 1.511890997 | H70: =IF(H54>0,(Eingaben!L63*H54*$B$6/1000)*$H$5/$H$4,0) -> 2.162527596 | I70: =IF(I54>0,(Eingaben!L63*I54*$B$6/1000)*$I$5/$I$4,0) -> 1.828660772
A71: Leistung bei eingetragener Fläche (KW) | C71: 70 | D71: =IF(D55>0,(Eingaben!L64*D55*$B$6/1000)*$D$5/$D$4,0) -> 0.5607465794 | E71: =IF(E55>0,(Eingaben!L64*E55*$B$6/1000)*$E$5/$E$4,0) -> 0.4790318599 | F71: =IF(F55>0,(Eingaben!L64*F55*$B$6/1000)*$F$5/$F$4,0) -> 0.5745159651 | G71: =IF(G55>0,(Eingaben!L64*G55*$B$6/1000)*$G$5/$G$4,0) -> 0.457581169 | H71: =IF(H55>0,(Eingaben!L64*H55*$B$6/1000)*$H$5/$H$4,0) -> 1.354823072 | I71: =IF(I55>0,(Eingaben!L64*I55*$B$6/1000)*$I$5/$I$4,0) -> 0.756397547
A72: KW Schnitt > | D72: =SUM(D57:D71)/15 -> 3.014575193 | E72: =SUM(E57:E71)/15 -> 2.742218699 | F72: 2.95133731 | G72: 2.705294716 | H72: 2.978588838 | I72: 2.349397353
A73: KWH gesamt bei Azimut -70 bis +70 > | D73: =IF(D72>0,D72*$B$17,0) -> 25.62388914 | E73: 23.30885894 | F73: 25.08636714 | G73: 22.99500508 | H73: 25.31800513 | I73: 19.9698775
A74: Puffervolumen (L) > | B74: =B45 -> 1500 | C74: Erwärmung (K)> | D74: =IF(D73>0,D73/(($B$45/1000)*1*1.163),0) -> 14.68838587 | E74: =IF(E73>0,E73/(($B$45/1000)*1*1.163),0) -> 13.36134075 | F74: 14.38026205 | G74: 13.18143026 | H74: 14.51304392 | I74: 11.44733591
A75: Laufzeit gesamt (Std.) > | B75: =B17 -> 8.5 | C75: ="Berechnung nach Tagesverlauf bei mittlerer Bewölkung (mit IAM) mit Diff. "&B5&" bei "&B6&" m²"&" am " -> Berechnung nach Tagesverlauf bei mittlerer Bewölkung (mit IAM) mit Diff. 32 bei 10,46 m² am | H75: =H17 -> 2013-09-23
A76: Wirkungsgrad bei Diff.0 > | D76: =$D$6-$D$7*(0/1000)-$D$8*1000*((0/1000*0/1000)) -> 0.81 | E76: =$E$6-$E$7*(0/1000)-$E$8*1000*((0/1000*0/1000)) -> 0.785 | F76: =$F$6-$F$7*(0/1000)-$F$8*1000*((0/1000*0/1000)) -> 0.82 | G76: =$G$6-$G$7*(0/1000)-$G$8*1000*((0/1000*0/1000)) -> 0.8 | H76: =$H$6-$H$7*(0/1000)-$H$8*1000*((0/1000*0/1000)) -> 0.64 | I76: =$I$6-$I$7*(0/1000)-$I$8*1000*((0/1000*0/1000)) -> 0.654
A77: Wirkungsgrad bei eingestellter Diff. bei 0° > | D77: =IF(Eingaben!L93>0,($D$6-$D$7*($B$5/Eingaben!L93)-$D$8*Eingaben!L93*(($B$5/Eingaben!L93*$B$5/Eingaben!L93)))*$D$9,0) -> 0.5510649682 | E77: =IF(Eingaben!L93>0,($E$6-$E$7*($B$5/Eingaben!L93)-$E$8*Eingaben!L93*(($B$5/Eingaben!L93*$B$5/Eingaben!L93)))*$E$9,0) -> 0.5060360934 | F77: =IF(Eingaben!L93>0,($F$6-$F$7*($B$5/Eingaben!L93)-$F$8*Eingaben!L93*(($B$5/Eingaben!L93*$B$5/Eingaben!L93)))*$F$9,0) -> 0.5464713376 | G77: =IF(Eingaben!L93>0,($G$6-$G$7*($B$5/Eingaben!L93)-$G$8*Eingaben!L93*(($B$5/Eingaben!L93*$B$5/Eingaben!L93)))*$G$9,0) -> 0.508670913 | H77: =IF(Eingaben!L93>0,($H$6-$H$7*($B$5/Eingaben!L93)-$H$8*Eingaben!L93*(($B$5/Eingaben!L93*$B$5/Eingaben!L93)))*$H$9,0) -> 0.5782420382 | I77: =IF(Eingaben!L93>0,($I$6-$I$7*($B$5/Eingaben!L93)-$I$8*Eingaben!L93*(($B$5/Eingaben!L93*$B$5/Eingaben!L93)))*$I$9,0) -> 0.5159991507
A78: Wirkungsgrad bei eingestellter Diff. bei 10° > | D78: =IF(Eingaben!L94>0,($D$6-$D$7*($B$5/Eingaben!L94)-$D$8*Eingaben!L94*(($B$5/Eingaben!L94*$B$5/Eingaben!L94)))*$D$10,0) -> 0.5480055854 | E78: =IF(Eingaben!L94>0,($E$6-$E$7*($B$5/Eingaben!L94)-$E$8*Eingaben!L94*(($B$5/Eingaben!L94*$B$5/Eingaben!L94)))*$E$10,0) -> 0.5027400644 | F78: =IF(Eingaben!L94>0,($F$6-$F$7*($B$5/Eingaben!L94)-$F$8*Eingaben!L94*(($B$5/Eingaben!L94*$B$5/Eingaben!L94)))*$F$10,0) -> 0.5432395274 | G78: =IF(Eingaben!L94>0,($G$6-$G$7*($B$5/Eingaben!L94)-$G$8*Eingaben!L94*(($B$5/Eingaben!L94*$B$5/Eingaben!L94)))*$G$10,0) -> 0.5052287863 | H78: =IF(Eingaben!L94>0,($H$6-$H$7*($B$5/Eingaben!L94)-$H$8*Eingaben!L94*(($B$5/Eingaben!L94*$B$5/Eingaben!L94)))*$H$10,0) -> 0.5832874758 | I78: =IF(Eingaben!L94>0,($I$6-$I$7*($B$5/Eingaben!L94)-$I$8*Eingaben!L94*(($B$5/Eingaben!L94*$B$5/Eingaben!L94)))*$I$10,0) -> 0.5143686359
A79: Wirkungsgrad bei eingestellter Diff. bei 20° > | D79: =IF(Eingaben!L95>0,($D$6-$D$7*($B$5/Eingaben!L95)-$D$8*Eingaben!L95*(($B$5/Eingaben!L95*$B$5/Eingaben!L95)))*$D$11,0) -> 0.5380749164 | E79: =IF(Eingaben!L95>0,($E$6-$E$7*($B$5/Eingaben!L95)-$E$8*Eingaben!L95*(($B$5/Eingaben!L95*$B$5/Eingaben!L95)))*$E$11,0) -> 0.4871208361 | F79: =IF(Eingaben!L95>0,($F$6-$F$7*($B$5/Eingaben!L95)-$F$8*Eingaben!L95*(($B$5/Eingaben!L95*$B$5/Eingaben!L95)))*$F$11,0) -> 0.5274216722 | G79: =IF(Eingaben!L95>0,($G$6-$G$7*($B$5/Eingaben!L95)-$G$8*Eingaben!L95*(($B$5/Eingaben!L95*$B$5/Eingaben!L95)))*$G$11,0) -> 0.4891151839 | H79: =IF(Eingaben!L95>0,($H$6-$H$7*($B$5/Eingaben!L95)-$H$8*Eingaben!L95*(($B$5/Eingaben!L95*$B$5/Eingaben!L95)))*$H$11,0) -> 0.5808952508 | I79: =IF(Eingaben!L95>0,($I$6-$I$7*($B$5/Eingaben!L95)-$I$8*Eingaben!L95*(($B$5/Eingaben!L95*$B$5/Eingaben!L95)))*$I$11,0) -> 0.5294390725
A80: Wirkungsgrad bei eingestellter Diff. bei 30° > | D80: =IF(Eingaben!L96>0,($D$6-$D$7*($B$5/Eingaben!L96)-$D$8*Eingaben!L96*(($B$5/Eingaben!L96*$B$5/Eingaben!L96)))*$D$12,0) -> 0.5123584748 | E80: =IF(Eingaben!L96>0,($E$6-$E$7*($B$5/Eingaben!L96)-$E$8*Eingaben!L96*(($B$5/Eingaben!L96*$B$5/Eingaben!L96)))*$E$12,0) -> 0.4605130456 | F80: =IF(Eingaben!L96>0,($F$6-$F$7*($B$5/Eingaben!L96)-$F$8*Eingaben!L96*(($B$5/Eingaben!L96*$B$5/Eingaben!L96)))*$F$12,0) -> 0.5008293525 | G80: =IF(Eingaben!L96>0,($G$6-$G$7*($B$5/Eingaben!L96)-$G$8*Eingaben!L96*(($B$5/Eingaben!L96*$B$5/Eingaben!L96)))*$G$12,0) -> 0.4615259472 | H80: =IF(Eingaben!L96>0,($H$6-$H$7*($B$5/Eingaben!L96)-$H$8*Eingaben!L96*(($B$5/Eingaben!L96*$B$5/Eingaben!L96)))*$H$12,0) -> 0.5816494964 | I80: =IF(Eingaben!L96>0,($I$6-$I$7*($B$5/Eingaben!L96)-$I$8*Eingaben!L96*(($B$5/Eingaben!L96*$B$5/Eingaben!L96)))*$I$12,0) -> 0.5728478177
A81: Wirkungsgrad bei eingestellter Diff. bei 40° > | D81: =IF(Eingaben!L104>0,($D$6-$D$7*($B$5/Eingaben!L104)-$D$8*Eingaben!L104*(($B$5/Eingaben!L104*$B$5/Eingaben!L104)))*$D$13,0) -> 0.4628686452 | E81: =IF(Eingaben!L104>0,($E$6-$E$7*($B$5/Eingaben!L104)-$E$8*Eingaben!L104*(($B$5/Eingaben!L104*$B$5/Eingaben!L104)))*$E$13,0) -> 0.418841828 | F81: =IF(Eingaben!L104>0,($F$6-$F$7*($B$5/Eingaben!L104)-$F$8*Eingaben!L104*(($B$5/Eingaben!L104*$B$5/Eingaben!L104)))*$F$13,0) -> 0.4594670968 | G81: =IF(Eingaben!L104>0,($G$6-$G$7*($B$5/Eingaben!L104)-$G$8*Eingaben!L104*(($B$5/Eingaben!L104*$B$5/Eingaben!L104)))*$G$13,0) -> 0.4182055914 | H81: =IF(Eingaben!L104>0,($H$6-$H$7*($B$5/Eingaben!L104)-$H$8*Eingaben!L104*(($B$5/Eingaben!L104*$B$5/Eingaben!L104)))*$H$13,0) -> 0.5730425806 | I81: =IF(Eingaben!L104>0,($I$6-$I$7*($B$5/Eingaben!L104)-$I$8*Eingaben!L104*(($B$5/Eingaben!L104*$B$5/Eingaben!L104)))*$I$13,0) -> 0.6230550538
A82: Wirkungsgrad bei eingestellter Diff. bei 50° > | D82: =IF(Eingaben!L105>0,($D$6-$D$7*($B$5/Eingaben!L105)-$D$8*Eingaben!L105*(($B$5/Eingaben!L105*$B$5/Eingaben!L105)))*$D$14,0) -> 0.4124170594 | E82: =IF(Eingaben!L105>0,($E$6-$E$7*($B$5/Eingaben!L105)-$E$8*Eingaben!L105*(($B$5/Eingaben!L105*$B$5/Eingaben!L105)))*$E$14,0) -> 0.3619228919 | F82: =IF(Eingaben!L105>0,($F$6-$F$7*($B$5/Eingaben!L105)-$F$8*Eingaben!L105*(($B$5/Eingaben!L105*$B$5/Eingaben!L105)))*$F$14,0) -> 0.4021483105 | G82: =IF(Eingaben!L105>0,($G$6-$G$7*($B$5/Eingaben!L105)-$G$8*Eingaben!L105*(($B$5/Eingaben!L105*$B$5/Eingaben!L105)))*$G$14,0) -> 0.3631805175 | H82: =IF(Eingaben!L105>0,($H$6-$H$7*($B$5/Eingaben!L105)-$H$8*Eingaben!L105*(($B$5/Eingaben!L105*$B$5/Eingaben!L105)))*$H$14,0) -> 0.5404230137 | I82: =IF(Eingaben!L105>0,($I$6-$I$7*($B$5/Eingaben!L105)-$I$8*Eingaben!L105*(($B$5/Eingaben!L105*$B$5/Eingaben!L105)))*$I$14,0) -> 0.6203446454
A83: Wirkungsgrad bei eingestellter Diff. bei 60° > | D83: =IF(Eingaben!L106>0,($D$6-$D$7*($B$5/Eingaben!L106)-$D$8*Eingaben!L106*(($B$5/Eingaben!L106*$B$5/Eingaben!L106)))*$D$15,0) -> 0.2962785344 | E83: =IF(Eingaben!L106>0,($E$6-$E$7*($B$5/Eingaben!L106)-$E$8*Eingaben!L106*(($B$5/Eingaben!L106*$B$5/Eingaben!L106)))*$E$15,0) -> 0.2551534351 | F83: =IF(Eingaben!L106>0,($F$6-$F$7*($B$5/Eingaben!L106)-$F$8*Eingaben!L106*(($B$5/Eingaben!L106*$B$5/Eingaben!L106)))*$F$15,0) -> 0.2954473282 | G83: =IF(Eingaben!L106>0,($G$6-$G$7*($B$5/Eingaben!L106)-$G$8*Eingaben!L106*(($B$5/Eingaben!L106*$B$5/Eingaben!L106)))*$G$15,0) -> 0.2486473282 | H83: =IF(Eingaben!L106>0,($H$6-$H$7*($B$5/Eingaben!L106)-$H$8*Eingaben!L106*(($B$5/Eingaben!L106*$B$5/Eingaben!L106)))*$H$15,0) -> 0.5554259542 | I83: =IF(Eingaben!L106>0,($I$6-$I$7*($B$5/Eingaben!L106)-$I$8*Eingaben!L106*(($B$5/Eingaben!L106*$B$5/Eingaben!L106)))*$I$15,0) -> 0.5439254351
A84: Wirkungsgrad bei eingestellter Diff. bei 70° > | D84: =IF(Eingaben!L107>0,($D$6-$D$7*($B$5/Eingaben!L107)-$D$8*Eingaben!L107*(($B$5/Eingaben!L107*$B$5/Eingaben!L107)))*$D$16,0) -> 0.04843639024 | E84: =IF(Eingaben!L107>0,($E$6-$E$7*($B$5/Eingaben!L107)-$E$8*Eingaben!L107*(($B$5/Eingaben!L107*$B$5/Eingaben!L107)))*$E$16,0) -> -0.01293658537 | F84: =IF(Eingaben!L107>0,($F$6-$F$7*($B$5/Eingaben!L107)-$F$8*Eingaben!L107*(($B$5/Eingaben!L107*$B$5/Eingaben!L107)))*$F$16,0) -> 0.02789560976 | G84: =IF(Eingaben!L107>0,($G$6-$G$7*($B$5/Eingaben!L107)-$G$8*Eingaben!L107*(($B$5/Eingaben!L107*$B$5/Eingaben!L107)))*$G$16,0) -> -0.02971317073 | H84: =IF(Eingaben!L107>0,($H$6-$H$7*($B$5/Eingaben!L107)-$H$8*Eingaben!L107*(($B$5/Eingaben!L107*$B$5/Eingaben!L107)))*$H$16,0) -> 0.5274029268 | I84: =IF(Eingaben!L107>0,($I$6-$I$7*($B$5/Eingaben!L107)-$I$8*Eingaben!L107*(($B$5/Eingaben!L107*$B$5/Eingaben!L107)))*$I$16,0) -> 0.2860118049
A85: Leistung nach Tagesverlauf | C85: Azimut | D85: =D27 -> SolRose 26 | E85: =E27 -> Synergie 210 | F85: Sunex AMX 2,85 | G85: Sunex 2,0 | H85: Star Azzurro CPC | I85: Billig VRK
A86: Leistung bei eingetragener Fläche (KW) | C86: -70 | D86: =IF(D84>0,(Eingaben!L107*D84*$B$6/1000)*$D$5/$D$4,0) -> 0.07893523522 | E86: =IF(E84>0,(Eingaben!L107*E84*$B$6/1000)*$E$5/$E$4,0) -> 0 | F86: =IF(F84>0,(Eingaben!L107*F84*$B$6/1000)*$F$5/$F$4,0) -> 0.04451852391 | G86: =IF(G84>0,(Eingaben!L107*G84*$B$6/1000)*$G$5/$G$4,0) -> 0 | H86: =IF(H84>0,(Eingaben!L107*H84*$B$6/1000)*$H$5/$H$4,0) -> 0.8008689864 | I86: =IF(I84>0,(Eingaben!L107*I84*$B$6/1000)*$I$5/$I$4,0) -> 0.3333508366
A87: Leistung bei eingetragener Fläche (KW) | C87: -60 | D87: =IF(D83>0,(Eingaben!L106*D83*$B$6/1000)*$D$5/$D$4,0) -> 0.7713593865 | E87: =IF(E83>0,(Eingaben!L106*E83*$B$6/1000)*$E$5/$E$4,0) -> 0.6485825781 | F87: =IF(F83>0,(Eingaben!L106*F83*$B$6/1000)*$F$5/$F$4,0) -> 0.7532556666 | G87: =IF(G83>0,(Eingaben!L106*G83*$B$6/1000)*$G$5/$G$4,0) -> 0.6176444709 | H87: =IF(H83>0,(Eingaben!L106*H83*$B$6/1000)*$H$5/$H$4,0) -> 1.347418647 | I87: =IF(I83>0,(Eingaben!L106*I83*$B$6/1000)*$I$5/$I$4,0) -> 1.012778334
A88: Leistung bei eingetragener Fläche (KW) | C88: -50 | D88: =IF(D82>0,(Eingaben!L105*D82*$B$6/1000)*$D$5/$D$4,0) -> 1.346254863 | E88: =IF(E82>0,(Eingaben!L105*E82*$B$6/1000)*$E$5/$E$4,0) -> 1.153490428 | F88: =IF(F82>0,(Eingaben!L105*F82*$B$6/1000)*$F$5/$F$4,0) -> 1.285531348 | G88: =IF(G82>0,(Eingaben!L105*G82*$B$6/1000)*$G$5/$G$4,0) -> 1.131127046 | H88: =IF(H82>0,(Eingaben!L105*H82*$B$6/1000)*$H$5/$H$4,0) -> 1.643782306 | I88: =IF(I82>0,(Eingaben!L105*I82*$B$6/1000)*$I$5/$I$4,0) -> 1.448245389
A89: Leistung bei eingetragener Fläche (KW) | C89: -40 | D89: =IF(D81>0,(Eingaben!L104*D81*$B$6/1000)*$D$5/$D$4,0) -> 1.71102357 | E89: =IF(E81>0,(Eingaben!L104*E81*$B$6/1000)*$E$5/$E$4,0) -> 1.511664987 | F89: =IF(F81>0,(Eingaben!L104*F81*$B$6/1000)*$F$5/$F$4,0) -> 1.663253344 | G89: =IF(G81>0,(Eingaben!L104*G81*$B$6/1000)*$G$5/$G$4,0) -> 1.474980384 | H89: =IF(H81>0,(Eingaben!L104*H81*$B$6/1000)*$H$5/$H$4,0) -> 1.973808097 | I89: =IF(I81>0,(Eingaben!L104*I81*$B$6/1000)*$I$5/$I$4,0) -> 1.647187757
A90: Leistung bei eingetragener Fläche (KW) | C90: -30 | D90: =IF(D80>0,(Eingaben!L96*D80*$B$6/1000)*$D$5/$D$4,0) -> 2.123074671 | E90: =IF(E80>0,(Eingaben!L96*E80*$B$6/1000)*$E$5/$E$4,0) -> 1.863118852 | F90: =IF(F80>0,(Eingaben!L96*F80*$B$6/1000)*$F$5/$F$4,0) -> 2.032295606 | G90: =IF(G80>0,(Eingaben!L96*G80*$B$6/1000)*$G$5/$G$4,0) -> 1.824675526 | H90: =IF(H80>0,(Eingaben!L96*H80*$B$6/1000)*$H$5/$H$4,0) -> 2.245807375 | I90: =IF(I80>0,(Eingaben!L96*I80*$B$6/1000)*$I$5/$I$4,0) -> 1.69765353
A91: Leistung bei eingetragener Fläche (KW) | C91: -20 | D91: =IF(D79>0,(Eingaben!L95*D79*$B$6/1000)*$D$5/$D$4,0) -> 2.398062424 | E91: =IF(E79>0,(Eingaben!L95*E79*$B$6/1000)*$E$5/$E$4,0) -> 2.119638121 | F91: =IF(F79>0,(Eingaben!L95*F79*$B$6/1000)*$F$5/$F$4,0) -> 2.301873578 | G91: =IF(G79>0,(Eingaben!L95*G79*$B$6/1000)*$G$5/$G$4,0) -> 2.079826283 | H91: =IF(H79>0,(Eingaben!L95*H79*$B$6/1000)*$H$5/$H$4,0) -> 2.412322489 | I91: =IF(I79>0,(Eingaben!L95*I79*$B$6/1000)*$I$5/$I$4,0) -> 1.68753263
A92: Leistung bei eingetragener Fläche (KW) | C92: -10 | D92: =IF(D78>0,(Eingaben!L94*D78*$B$6/1000)*$D$5/$D$4,0) -> 2.534894914 | E92: =IF(E78>0,(Eingaben!L94*E78*$B$6/1000)*$E$5/$E$4,0) -> 2.270522184 | F92: =IF(F78>0,(Eingaben!L94*F78*$B$6/1000)*$F$5/$F$4,0) -> 2.460776083 | G92: =IF(G78>0,(Eingaben!L94*G78*$B$6/1000)*$G$5/$G$4,0) -> 2.229776028 | H92: =IF(H78>0,(Eingaben!L94*H78*$B$6/1000)*$H$5/$H$4,0) -> 2.514070367 | I92: =IF(I78>0,(Eingaben!L94*I78*$B$6/1000)*$I$5/$I$4,0) -> 1.701640868
A93: Leistung bei eingetragener Fläche (KW) | C93: 0 | D93: =IF(D77>0,(Eingaben!L93*D77*$B$6/1000)*$D$5/$D$4,0) -> 2.579164249 | E93: =IF(E77>0,(Eingaben!L93*E77*$B$6/1000)*$E$5/$E$4,0) -> 2.312410694 | F93: =IF(F77>0,(Eingaben!L93*F77*$B$6/1000)*$F$5/$F$4,0) -> 2.504663255 | G93: =IF(G77>0,(Eingaben!L93*G77*$B$6/1000)*$G$5/$G$4,0) -> 2.271492363 | H93: =IF(H77>0,(Eingaben!L93*H77*$B$6/1000)*$H$5/$H$4,0) -> 2.521771087 | I93: =IF(I77>0,(Eingaben!L93*I77*$B$6/1000)*$I$5/$I$4,0) -> 1.727204007
A94: Leistung bei eingetragener Fläche (KW) | C94: 10 | D94: =IF(D78>0,(Eingaben!L94*D78*$B$6/1000)*$D$5/$D$4,0) -> 2.534894914 | E94: =IF(E78>0,(Eingaben!L94*E78*$B$6/1000)*$E$5/$E$4,0) -> 2.270522184 | F94: =IF(F78>0,(Eingaben!L94*F78*$B$6/1000)*$F$5/$F$4,0) -> 2.460776083 | G94: =IF(G78>0,(Eingaben!L94*G78*$B$6/1000)*$G$5/$G$4,0) -> 2.229776028 | H94: =IF(H78>0,(Eingaben!L94*H78*$B$6/1000)*$H$5/$H$4,0) -> 2.514070367 | I94: =IF(I78>0,(Eingaben!L94*I78*$B$6/1000)*$I$5/$I$4,0) -> 1.701640868
A95: Leistung bei eingetragener Fläche (KW) | C95: 20 | D95: =IF(D79>0,(Eingaben!L95*D79*$B$6/1000)*$D$5/$D$4,0) -> 2.398062424 | E95: =IF(E79>0,(Eingaben!L95*E79*$B$6/1000)*$E$5/$E$4,0) -> 2.119638121 | F95: =IF(F79>0,(Eingaben!L95*F79*$B$6/1000)*$F$5/$F$4,0) -> 2.301873578 | G95: =IF(G79>0,(Eingaben!L95*G79*$B$6/1000)*$G$5/$G$4,0) -> 2.079826283 | H95: =IF(H79>0,(Eingaben!L95*H79*$B$6/1000)*$H$5/$H$4,0) -> 2.412322489 | I95: =IF(I79>0,(Eingaben!L95*I79*$B$6/1000)*$I$5/$I$4,0) -> 1.68753263
A96: Leistung bei eingetragener Fläche (KW) | C96: 30 | D96: =IF(D80>0,(Eingaben!L96*D80*$B$6/1000)*$D$5/$D$4,0) -> 2.123074671 | E96: =IF(E80>0,(Eingaben!L96*E80*$B$6/1000)*$E$5/$E$4,0) -> 1.863118852 | F96: =IF(F80>0,(Eingaben!L96*F80*$B$6/1000)*$F$5/$F$4,0) -> 2.032295606 | G96: =IF(G80>0,(Eingaben!L96*G80*$B$6/1000)*$G$5/$G$4,0) -> 1.824675526 | H96: =IF(H80>0,(Eingaben!L96*H80*$B$6/1000)*$H$5/$H$4,0) -> 2.245807375 | I96: =IF(I80>0,(Eingaben!L96*I80*$B$6/1000)*$I$5/$I$4,0) -> 1.69765353
A97: Leistung bei eingetragener Fläche (KW) | C97: 40 | D97: =IF(D81>0,(Eingaben!L104*D81*$B$6/1000)*$D$5/$D$4,0) -> 1.71102357 | E97: =IF(E81>0,(Eingaben!L104*E81*$B$6/1000)*$E$5/$E$4,0) -> 1.511664987 | F97: =IF(F81>0,(Eingaben!L104*F81*$B$6/1000)*$F$5/$F$4,0) -> 1.663253344 | G97: =IF(G81>0,(Eingaben!L104*G81*$B$6/1000)*$G$5/$G$4,0) -> 1.474980384 | H97: =IF(H81>0,(Eingaben!L104*H81*$B$6/1000)*$H$5/$H$4,0) -> 1.973808097 | I97: =IF(I81>0,(Eingaben!L104*I81*$B$6/1000)*$I$5/$I$4,0) -> 1.647187757
A98: Leistung bei eingetragener Fläche (KW) | C98: 50 | D98: =IF(D82>0,(Eingaben!L105*D82*$B$6/1000)*$D$5/$D$4,0) -> 1.346254863 | E98: =IF(E82>0,(Eingaben!L105*E82*$B$6/1000)*$E$5/$E$4,0) -> 1.153490428 | F98: =IF(F82>0,(Eingaben!L105*F82*$B$6/1000)*$F$5/$F$4,0) -> 1.285531348 | G98: =IF(G82>0,(Eingaben!L105*G82*$B$6/1000)*$G$5/$G$4,0) -> 1.131127046 | H98: =IF(H82>0,(Eingaben!L105*H82*$B$6/1000)*$H$5/$H$4,0) -> 1.643782306 | I98: =IF(I82>0,(Eingaben!L105*I82*$B$6/1000)*$I$5/$I$4,0) -> 1.448245389
A99: Leistung bei eingetragener Fläche (KW) | C99: 60 | D99: =IF(D83>0,(Eingaben!L106*D83*$B$6/1000)*$D$5/$D$4,0) -> 0.7713593865 | E99: =IF(E83>0,(Eingaben!L106*E83*$B$6/1000)*$E$5/$E$4,0) -> 0.6485825781 | F99: =IF(F83>0,(Eingaben!L106*F83*$B$6/1000)*$F$5/$F$4,0) -> 0.7532556666 | G99: =IF(G83>0,(Eingaben!L106*G83*$B$6/1000)*$G$5/$G$4,0) -> 0.6176444709 | H99: =IF(H83>0,(Eingaben!L106*H83*$B$6/1000)*$H$5/$H$4,0) -> 1.347418647 | I99: =IF(I83>0,(Eingaben!L106*I83*$B$6/1000)*$I$5/$I$4,0) -> 1.012778334
A100: Leistung bei eingetragener Fläche (KW) | C100: 70 | D100: =IF(D84>0,(Eingaben!L107*D84*$B$6/1000)*$D$5/$D$4,0) -> 0.07893523522 | E100: =IF(E84>0,(Eingaben!L107*E84*$B$6/1000)*$E$5/$E$4,0) -> 0 | F100: =IF(F84>0,(Eingaben!L107*F84*$B$6/1000)*$F$5/$F$4,0) -> 0.04451852391 | G100: =IF(G84>0,(Eingaben!L107*G84*$B$6/1000)*$G$5/$G$4,0) -> 0 | H100: =IF(H84>0,(Eingaben!L107*H84*$B$6/1000)*$H$5/$H$4,0) -> 0.8008689864 | I100: =IF(I84>0,(Eingaben!L107*I84*$B$6/1000)*$I$5/$I$4,0) -> 0.3333508366
A101: KW Schnitt > | D101: =SUM(D86:D100)/15 -> 1.633758292 | E101: =SUM(E86:E100)/15 -> 1.429763 | F101: 1.572511437 | G101: 1.399170123 | H101: 1.893195175 | I101: 1.385598846
A102: KWH gesamt bei Azimut -70 bis +70 > | D102: =IF(D101>0,D101*$B$17,0) -> 13.88694548 | E102: 12.1529855 | F102: 13.36634721 | G102: 11.89294604 | H102: 16.09215899 | I102: 11.77759019
A103: Puffervolumen (L) > | B103: =B45 -> 1500 | C103: Erwärmung (K)> | D103: =IF(D102>0,D102/(($B$45/1000)*1*1.163),0) -> 7.960415867 | E103: =IF(E102>0,E102/(($B$45/1000)*1*1.163),0) -> 6.966457723 | F103: 7.661993244 | G103: 6.817395266 | H103: 9.22451074 | I103: 6.751269816
A104: Laufzeit gesamt (Std.) > | B104: =B17 -> 8.5 | C104: ="Berechnung nach Tagesverlauf bei starker Bewölkung (mit IAM) mit Diff. "&B5&" bei "&B6&" m²"&" am " -> Berechnung nach Tagesverlauf bei starker Bewölkung (mit IAM) mit Diff. 32 bei 10,46 m² am | H104: =H17 -> 2013-09-23
A105: Wirkungsgrad bei Diff.0 > | D105: =$D$6-$D$7*(0/1000)-$D$8*1000*((0/1000*0/1000)) -> 0.81 | E105: =$E$6-$E$7*(0/1000)-$E$8*1000*((0/1000*0/1000)) -> 0.785 | F105: =$F$6-$F$7*(0/1000)-$F$8*1000*((0/1000*0/1000)) -> 0.82 | G105: =$G$6-$G$7*(0/1000)-$G$8*1000*((0/1000*0/1000)) -> 0.8 | H105: =$H$6-$H$7*(0/1000)-$H$8*1000*((0/1000*0/1000)) -> 0.64 | I105: =$I$6-$I$7*(0/1000)-$I$8*1000*((0/1000*0/1000)) -> 0.654
A106: Wirkungsgrad bei eingestellter Diff. bei 0° > | D106: =IF(Eingaben!L135>0,($D$6-$D$7*($B$5/Eingaben!L135)-$D$8*Eingaben!L135*(($B$5/Eingaben!L135*$B$5/Eingaben!L135)))*$D$9,0) -> 0.2921299363 | E106: =IF(Eingaben!L135>0,($E$6-$E$7*($B$5/Eingaben!L135)-$E$8*Eingaben!L135*(($B$5/Eingaben!L135*$B$5/Eingaben!L135)))*$E$9,0) -> 0.2270721868 | F106: =IF(Eingaben!L135>0,($F$6-$F$7*($B$5/Eingaben!L135)-$F$8*Eingaben!L135*(($B$5/Eingaben!L135*$B$5/Eingaben!L135)))*$F$9,0) -> 0.2729426752 | G106: =IF(Eingaben!L135>0,($G$6-$G$7*($B$5/Eingaben!L135)-$G$8*Eingaben!L135*(($B$5/Eingaben!L135*$B$5/Eingaben!L135)))*$G$9,0) -> 0.2173418259 | H106: =IF(Eingaben!L135>0,($H$6-$H$7*($B$5/Eingaben!L135)-$H$8*Eingaben!L135*(($B$5/Eingaben!L135*$B$5/Eingaben!L135)))*$H$9,0) -> 0.5164840764 | I106: =IF(Eingaben!L135>0,($I$6-$I$7*($B$5/Eingaben!L135)-$I$8*Eingaben!L135*(($B$5/Eingaben!L135*$B$5/Eingaben!L135)))*$I$9,0) -> 0.3779983015
A107: Wirkungsgrad bei eingestellter Diff. bei 10° > | D107: =IF(Eingaben!L136>0,($D$6-$D$7*($B$5/Eingaben!L136)-$D$8*Eingaben!L136*(($B$5/Eingaben!L136*$B$5/Eingaben!L136)))*$D$10,0) -> 0.2860111708 | E107: =IF(Eingaben!L136>0,($E$6-$E$7*($B$5/Eingaben!L136)-$E$8*Eingaben!L136*(($B$5/Eingaben!L136*$B$5/Eingaben!L136)))*$E$10,0) -> 0.2204801289 | F107: =IF(Eingaben!L136>0,($F$6-$F$7*($B$5/Eingaben!L136)-$F$8*Eingaben!L136*(($B$5/Eingaben!L136*$B$5/Eingaben!L136)))*$F$10,0) -> 0.2664790548 | G107: =IF(Eingaben!L136>0,($G$6-$G$7*($B$5/Eingaben!L136)-$G$8*Eingaben!L136*(($B$5/Eingaben!L136*$B$5/Eingaben!L136)))*$G$10,0) -> 0.2104575725 | H107: =IF(Eingaben!L136>0,($H$6-$H$7*($B$5/Eingaben!L136)-$H$8*Eingaben!L136*(($B$5/Eingaben!L136*$B$5/Eingaben!L136)))*$H$10,0) -> 0.5201749517 | I107: =IF(Eingaben!L136>0,($I$6-$I$7*($B$5/Eingaben!L136)-$I$8*Eingaben!L136*(($B$5/Eingaben!L136*$B$5/Eingaben!L136)))*$I$10,0) -> 0.3747372718
A108: Wirkungsgrad bei eingestellter Diff. bei 20° > | D108: =IF(Eingaben!L137>0,($D$6-$D$7*($B$5/Eingaben!L137)-$D$8*Eingaben!L137*(($B$5/Eingaben!L137*$B$5/Eingaben!L137)))*$D$11,0) -> 0.2661498328 | E108: =IF(Eingaben!L137>0,($E$6-$E$7*($B$5/Eingaben!L137)-$E$8*Eingaben!L137*(($B$5/Eingaben!L137*$B$5/Eingaben!L137)))*$E$11,0) -> 0.1970916722 | F108: =IF(Eingaben!L137>0,($F$6-$F$7*($B$5/Eingaben!L137)-$F$8*Eingaben!L137*(($B$5/Eingaben!L137*$B$5/Eingaben!L137)))*$F$11,0) -> 0.2430433445 | G108: =IF(Eingaben!L137>0,($G$6-$G$7*($B$5/Eingaben!L137)-$G$8*Eingaben!L137*(($B$5/Eingaben!L137*$B$5/Eingaben!L137)))*$G$11,0) -> 0.1862303679 | H108: =IF(Eingaben!L137>0,($H$6-$H$7*($B$5/Eingaben!L137)-$H$8*Eingaben!L137*(($B$5/Eingaben!L137*$B$5/Eingaben!L137)))*$H$11,0) -> 0.5153905017 | I108: =IF(Eingaben!L137>0,($I$6-$I$7*($B$5/Eingaben!L137)-$I$8*Eingaben!L137*(($B$5/Eingaben!L137*$B$5/Eingaben!L137)))*$I$11,0) -> 0.3787181449
A109: Wirkungsgrad bei eingestellter Diff. bei 30° > | D109: =IF(Eingaben!L138>0,($D$6-$D$7*($B$5/Eingaben!L138)-$D$8*Eingaben!L138*(($B$5/Eingaben!L138*$B$5/Eingaben!L138)))*$D$12,0) -> 0.2228169496 | E109: =IF(Eingaben!L138>0,($E$6-$E$7*($B$5/Eingaben!L138)-$E$8*Eingaben!L138*(($B$5/Eingaben!L138*$B$5/Eingaben!L138)))*$E$12,0) -> 0.1517260911 | F109: =IF(Eingaben!L138>0,($F$6-$F$7*($B$5/Eingaben!L138)-$F$8*Eingaben!L138*(($B$5/Eingaben!L138*$B$5/Eingaben!L138)))*$F$12,0) -> 0.198058705 | G109: =IF(Eingaben!L138>0,($G$6-$G$7*($B$5/Eingaben!L138)-$G$8*Eingaben!L138*(($B$5/Eingaben!L138*$B$5/Eingaben!L138)))*$G$12,0) -> 0.1390518945 | H109: =IF(Eingaben!L138>0,($H$6-$H$7*($B$5/Eingaben!L138)-$H$8*Eingaben!L138*(($B$5/Eingaben!L138*$B$5/Eingaben!L138)))*$H$12,0) -> 0.5104989928 | I109: =IF(Eingaben!L138>0,($I$6-$I$7*($B$5/Eingaben!L138)-$I$8*Eingaben!L138*(($B$5/Eingaben!L138*$B$5/Eingaben!L138)))*$I$12,0) -> 0.3935956355
A110: Wirkungsgrad bei eingestellter Diff. bei 40° > | D110: =IF(Eingaben!L139>0,($D$6-$D$7*($B$5/Eingaben!L139)-$D$8*Eingaben!L139*(($B$5/Eingaben!L139*$B$5/Eingaben!L139)))*$D$13,0) -> 0.1481372903 | E110: =IF(Eingaben!L139>0,($E$6-$E$7*($B$5/Eingaben!L139)-$E$8*Eingaben!L139*(($B$5/Eingaben!L139*$B$5/Eingaben!L139)))*$E$13,0) -> 0.07623365591 | F110: =IF(Eingaben!L139>0,($F$6-$F$7*($B$5/Eingaben!L139)-$F$8*Eingaben!L139*(($B$5/Eingaben!L139*$B$5/Eingaben!L139)))*$F$13,0) -> 0.1235341935 | G110: =IF(Eingaben!L139>0,($G$6-$G$7*($B$5/Eingaben!L139)-$G$8*Eingaben!L139*(($B$5/Eingaben!L139*$B$5/Eingaben!L139)))*$G$13,0) -> 0.0604111828 | H110: =IF(Eingaben!L139>0,($H$6-$H$7*($B$5/Eingaben!L139)-$H$8*Eingaben!L139*(($B$5/Eingaben!L139*$B$5/Eingaben!L139)))*$H$13,0) -> 0.4932851613 | I110: =IF(Eingaben!L139>0,($I$6-$I$7*($B$5/Eingaben!L139)-$I$8*Eingaben!L139*(($B$5/Eingaben!L139*$B$5/Eingaben!L139)))*$I$13,0) -> 0.3959101075
A111: Wirkungsgrad bei eingestellter Diff. bei 50° > | D111: =IF(Eingaben!L140>0,($D$6-$D$7*($B$5/Eingaben!L140)-$D$8*Eingaben!L140*(($B$5/Eingaben!L140*$B$5/Eingaben!L140)))*$D$14,0) -> 0.06343411872 | E111: =IF(Eingaben!L140>0,($E$6-$E$7*($B$5/Eingaben!L140)-$E$8*Eingaben!L140*(($B$5/Eingaben!L140*$B$5/Eingaben!L140)))*$E$14,0) -> -0.01405421613 | F111: =IF(Eingaben!L140>0,($F$6-$F$7*($B$5/Eingaben!L140)-$F$8*Eingaben!L140*(($B$5/Eingaben!L140*$B$5/Eingaben!L140)))*$F$14,0) -> 0.033496621 | G111: =IF(Eingaben!L140>0,($G$6-$G$7*($B$5/Eingaben!L140)-$G$8*Eingaben!L140*(($B$5/Eingaben!L140*$B$5/Eingaben!L140)))*$G$14,0) -> -0.03363896499 | H111: =IF(Eingaben!L140>0,($H$6-$H$7*($B$5/Eingaben!L140)-$H$8*Eingaben!L140*(($B$5/Eingaben!L140*$B$5/Eingaben!L140)))*$H$14,0) -> 0.4536460274 | I111: =IF(Eingaben!L140>0,($I$6-$I$7*($B$5/Eingaben!L140)-$I$8*Eingaben!L140*(($B$5/Eingaben!L140*$B$5/Eingaben!L140)))*$I$14,0) -> 0.3512492907
A112: Wirkungsgrad bei eingestellter Diff. bei 60° > | D112: =IF(Eingaben!L141>0,($D$6-$D$7*($B$5/Eingaben!L141)-$D$8*Eingaben!L141*(($B$5/Eingaben!L141*$B$5/Eingaben!L141)))*$D$15,0) -> -0.1040429313 | E112: =IF(Eingaben!L141>0,($E$6-$E$7*($B$5/Eingaben!L141)-$E$8*Eingaben!L141*(($B$5/Eingaben!L141*$B$5/Eingaben!L141)))*$E$15,0) -> -0.1961931298 | F112: =IF(Eingaben!L141>0,($F$6-$F$7*($B$5/Eingaben!L141)-$F$8*Eingaben!L141*(($B$5/Eingaben!L141*$B$5/Eingaben!L141)))*$F$15,0) -> -0.1471053435 | G112: =IF(Eingaben!L141>0,($G$6-$G$7*($B$5/Eingaben!L141)-$G$8*Eingaben!L141*(($B$5/Eingaben!L141*$B$5/Eingaben!L141)))*$G$15,0) -> -0.2227053435 | H112: =IF(Eingaben!L141>0,($H$6-$H$7*($B$5/Eingaben!L141)-$H$8*Eingaben!L141*(($B$5/Eingaben!L141*$B$5/Eingaben!L141)))*$H$15,0) -> 0.4388519084 | I112: =IF(Eingaben!L141>0,($I$6-$I$7*($B$5/Eingaben!L141)-$I$8*Eingaben!L141*(($B$5/Eingaben!L141*$B$5/Eingaben!L141)))*$I$15,0) -> 0.2114908702
A113: Wirkungsgrad bei eingestellter Diff. bei 70° > | D113: =IF(Eingaben!L142>0,($D$6-$D$7*($B$5/Eingaben!L142)-$D$8*Eingaben!L142*(($B$5/Eingaben!L142*$B$5/Eingaben!L142)))*$D$16,0) -> -0.4944272195 | E113: =IF(Eingaben!L142>0,($E$6-$E$7*($B$5/Eingaben!L142)-$E$8*Eingaben!L142*(($B$5/Eingaben!L142*$B$5/Eingaben!L142)))*$E$16,0) -> -0.6538731707 | F113: =IF(Eingaben!L142>0,($F$6-$F$7*($B$5/Eingaben!L142)-$F$8*Eingaben!L142*(($B$5/Eingaben!L142*$B$5/Eingaben!L142)))*$F$16,0) -> -0.6084087805 | G113: =IF(Eingaben!L142>0,($G$6-$G$7*($B$5/Eingaben!L142)-$G$8*Eingaben!L142*(($B$5/Eingaben!L142*$B$5/Eingaben!L142)))*$G$16,0) -> -0.7074263415 | H113: =IF(Eingaben!L142>0,($H$6-$H$7*($B$5/Eingaben!L142)-$H$8*Eingaben!L142*(($B$5/Eingaben!L142*$B$5/Eingaben!L142)))*$H$16,0) -> 0.3252058537 | I113: =IF(Eingaben!L142>0,($I$6-$I$7*($B$5/Eingaben!L142)-$I$8*Eingaben!L142*(($B$5/Eingaben!L142*$B$5/Eingaben!L142)))*$I$16,0) -> -0.1539163902
A114: Leistung nach Tagesverlauf | C114: Azimut | D114: =D27 -> SolRose 26 | E114: =E27 -> Synergie 210 | F114: Sunex AMX 2,85 | G114: Sunex 2,0 | H114: Star Azzurro CPC | I114: Billig VRK
A115: Leistung bei eingetragener Fläche (KW) | C115: -70 | D115: =IF(D113>0,(Eingaben!L142*D113*$B$6/1000)*$D$5/$D$4,0) -> 0 | E115: =IF(E113>0,(Eingaben!L142*E113*$B$6/1000)*$E$5/$E$4,0) -> 0 | F115: =IF(F113>0,(Eingaben!L142*F113*$B$6/1000)*$F$5/$F$4,0) -> 0 | G115: =IF(G113>0,(Eingaben!L142*G113*$B$6/1000)*$G$5/$G$4,0) -> 0 | H115: =IF(H113>0,(Eingaben!L142*H113*$B$6/1000)*$H$5/$H$4,0) -> 0.2469149005 | I115: =IF(I113>0,(Eingaben!L142*I113*$B$6/1000)*$I$5/$I$4,0) -> 0
A116: Leistung bei eingetragener Fläche (KW) | C116: -60 | D116: =IF(D112>0,(Eingaben!L141*D112*$B$6/1000)*$D$5/$D$4,0) -> 0 | E116: =IF(E112>0,(Eingaben!L141*E112*$B$6/1000)*$E$5/$E$4,0) -> 0 | F116: =IF(F112>0,(Eingaben!L141*F112*$B$6/1000)*$F$5/$F$4,0) -> 0 | G116: =IF(G112>0,(Eingaben!L141*G112*$B$6/1000)*$G$5/$G$4,0) -> 0 | H116: =IF(H112>0,(Eingaben!L141*H112*$B$6/1000)*$H$5/$H$4,0) -> 0.5323096989 | I116: =IF(I112>0,(Eingaben!L141*I112*$B$6/1000)*$I$5/$I$4,0) -> 0.1968958954
A117: Leistung bei eingetragener Fläche (KW) | C117: -50 | D117: =IF(D111>0,(Eingaben!L140*D111*$B$6/1000)*$D$5/$D$4,0) -> 0.1035341396 | E117: =IF(E111>0,(Eingaben!L140*E111*$B$6/1000)*$E$5/$E$4,0) -> 0 | F117: =IF(F111>0,(Eingaben!L140*F111*$B$6/1000)*$F$5/$F$4,0) -> 0.05353865133 | G117: =IF(G111>0,(Eingaben!L140*G111*$B$6/1000)*$G$5/$G$4,0) -> 0 | H117: =IF(H111>0,(Eingaben!L140*H111*$B$6/1000)*$H$5/$H$4,0) -> 0.6899181696 | I117: =IF(I111>0,(Eingaben!L140*I111*$B$6/1000)*$I$5/$I$4,0) -> 0.4100101207
A118: Leistung bei eingetragener Fläche (KW) | C118: -40 | D118: =IF(D110>0,(Eingaben!L139*D110*$B$6/1000)*$D$5/$D$4,0) -> 0.2737994872 | E118: =IF(E110>0,(Eingaben!L139*E110*$B$6/1000)*$E$5/$E$4,0) -> 0.1375695319 | F118: =IF(F110>0,(Eingaben!L139*F110*$B$6/1000)*$F$5/$F$4,0) -> 0.2235945316 | G118: =IF(G110>0,(Eingaben!L139*G110*$B$6/1000)*$G$5/$G$4,0) -> 0.1065329008 | H118: =IF(H110>0,(Eingaben!L139*H110*$B$6/1000)*$H$5/$H$4,0) -> 0.8495444128 | I118: =IF(I110>0,(Eingaben!L139*I110*$B$6/1000)*$I$5/$I$4,0) -> 0.5233392123
A119: Leistung bei eingetragener Fläche (KW) | C119: -30 | D119: =IF(D109>0,(Eingaben!L138*D109*$B$6/1000)*$D$5/$D$4,0) -> 0.461646528 | E119: =IF(E109>0,(Eingaben!L138*E109*$B$6/1000)*$E$5/$E$4,0) -> 0.3069226197 | F119: =IF(F109>0,(Eingaben!L138*F109*$B$6/1000)*$F$5/$F$4,0) -> 0.4018472898 | G119: =IF(G109>0,(Eingaben!L138*G109*$B$6/1000)*$G$5/$G$4,0) -> 0.2748757575 | H119: =IF(H109>0,(Eingaben!L138*H109*$B$6/1000)*$H$5/$H$4,0) -> 0.985544052 | I119: =IF(I109>0,(Eingaben!L138*I109*$B$6/1000)*$I$5/$I$4,0) -> 0.5832168677
A120: Leistung bei eingetragener Fläche (KW) | C120: -20 | D120: =IF(D108>0,(Eingaben!L137*D108*$B$6/1000)*$D$5/$D$4,0) -> 0.5930809017 | E120: =IF(E108>0,(Eingaben!L137*E108*$B$6/1000)*$E$5/$E$4,0) -> 0.4288084095 | F120: =IF(F108>0,(Eingaben!L137*F108*$B$6/1000)*$F$5/$F$4,0) -> 0.5303679034 | G120: =IF(G108>0,(Eingaben!L137*G108*$B$6/1000)*$G$5/$G$4,0) -> 0.3959464218 | H120: =IF(H108>0,(Eingaben!L137*H108*$B$6/1000)*$H$5/$H$4,0) -> 1.070148272 | I120: =IF(I108>0,(Eingaben!L137*I108*$B$6/1000)*$I$5/$I$4,0) -> 0.6035625821
A121: Leistung bei eingetragener Fläche (KW) | C121: -10 | D121: =IF(D107>0,(Eingaben!L136*D107*$B$6/1000)*$D$5/$D$4,0) -> 0.6614971467 | E121: =IF(E107>0,(Eingaben!L136*E107*$B$6/1000)*$E$5/$E$4,0) -> 0.4978765959 | F121: =IF(F107>0,(Eingaben!L136*F107*$B$6/1000)*$F$5/$F$4,0) -> 0.6035507835 | G121: =IF(G107>0,(Eingaben!L136*G107*$B$6/1000)*$G$5/$G$4,0) -> 0.4644165801 | H121: =IF(H107>0,(Eingaben!L136*H107*$B$6/1000)*$H$5/$H$4,0) -> 1.121022211 | I121: =IF(I107>0,(Eingaben!L136*I107*$B$6/1000)*$I$5/$I$4,0) -> 0.6198553059
A122: Leistung bei eingetragener Fläche (KW) | C122: 0 | D122: =IF(D106>0,(Eingaben!L135*D106*$B$6/1000)*$D$5/$D$4,0) -> 0.6836318142 | E122: =IF(E106>0,(Eingaben!L135*E106*$B$6/1000)*$E$5/$E$4,0) -> 0.518820851 | F122: =IF(F106>0,(Eingaben!L135*F106*$B$6/1000)*$F$5/$F$4,0) -> 0.6254943692 | G122: =IF(G106>0,(Eingaben!L135*G106*$B$6/1000)*$G$5/$G$4,0) -> 0.4852747476 | H122: =IF(H106>0,(Eingaben!L135*H106*$B$6/1000)*$H$5/$H$4,0) -> 1.126219234 | I122: =IF(I106>0,(Eingaben!L135*I106*$B$6/1000)*$I$5/$I$4,0) -> 0.6326368754
A123: Leistung bei eingetragener Fläche (KW) | C123: 10 | D123: =IF(D107>0,(Eingaben!L136*D107*$B$6/1000)*$D$5/$D$4,0) -> 0.6614971467 | E123: =IF(E107>0,(Eingaben!L136*E107*$B$6/1000)*$E$5/$E$4,0) -> 0.4978765959 | F123: =IF(F107>0,(Eingaben!L136*F107*$B$6/1000)*$F$5/$F$4,0) -> 0.6035507835 | G123: =IF(G107>0,(Eingaben!L136*G107*$B$6/1000)*$G$5/$G$4,0) -> 0.4644165801 | H123: =IF(H107>0,(Eingaben!L136*H107*$B$6/1000)*$H$5/$H$4,0) -> 1.121022211 | I123: =IF(I107>0,(Eingaben!L136*I107*$B$6/1000)*$I$5/$I$4,0) -> 0.6198553059
A124: Leistung bei eingetragener Fläche (KW) | C124: 20 | D124: =IF(D108>0,(Eingaben!L137*D108*$B$6/1000)*$D$5/$D$4,0) -> 0.5930809017 | E124: =IF(E108>0,(Eingaben!L137*E108*$B$6/1000)*$E$5/$E$4,0) -> 0.4288084095 | F124: =IF(F108>0,(Eingaben!L137*F108*$B$6/1000)*$F$5/$F$4,0) -> 0.5303679034 | G124: =IF(G108>0,(Eingaben!L137*G108*$B$6/1000)*$G$5/$G$4,0) -> 0.3959464218 | H124: =IF(H108>0,(Eingaben!L137*H108*$B$6/1000)*$H$5/$H$4,0) -> 1.070148272 | I124: =IF(I108>0,(Eingaben!L137*I108*$B$6/1000)*$I$5/$I$4,0) -> 0.6035625821
A125: Leistung bei eingetragener Fläche (KW) | C125: 30 | D125: =IF(D109>0,(Eingaben!L138*D109*$B$6/1000)*$D$5/$D$4,0) -> 0.461646528 | E125: =IF(E109>0,(Eingaben!L138*E109*$B$6/1000)*$E$5/$E$4,0) -> 0.3069226197 | F125: =IF(F109>0,(Eingaben!L138*F109*$B$6/1000)*$F$5/$F$4,0) -> 0.4018472898 | G125: =IF(G109>0,(Eingaben!L138*G109*$B$6/1000)*$G$5/$G$4,0) -> 0.2748757575 | H125: =IF(H109>0,(Eingaben!L138*H109*$B$6/1000)*$H$5/$H$4,0) -> 0.985544052 | I125: =IF(I109>0,(Eingaben!L138*I109*$B$6/1000)*$I$5/$I$4,0) -> 0.5832168677
A126: Leistung bei eingetragener Fläche (KW) | C126: 40 | D126: =IF(D110>0,(Eingaben!L139*D110*$B$6/1000)*$D$5/$D$4,0) -> 0.2737994872 | E126: =IF(E110>0,(Eingaben!L139*E110*$B$6/1000)*$E$5/$E$4,0) -> 0.1375695319 | F126: =IF(F110>0,(Eingaben!L139*F110*$B$6/1000)*$F$5/$F$4,0) -> 0.2235945316 | G126: =IF(G110>0,(Eingaben!L139*G110*$B$6/1000)*$G$5/$G$4,0) -> 0.1065329008 | H126: =IF(H110>0,(Eingaben!L139*H110*$B$6/1000)*$H$5/$H$4,0) -> 0.8495444128 | I126: =IF(I110>0,(Eingaben!L139*I110*$B$6/1000)*$I$5/$I$4,0) -> 0.5233392123
A127: Leistung bei eingetragener Fläche (KW) | C127: 50 | D127: =IF(D111>0,(Eingaben!L140*D111*$B$6/1000)*$D$5/$D$4,0) -> 0.1035341396 | E127: =IF(E111>0,(Eingaben!L140*E111*$B$6/1000)*$E$5/$E$4,0) -> 0 | F127: =IF(F111>0,(Eingaben!L140*F111*$B$6/1000)*$F$5/$F$4,0) -> 0.05353865133 | G127: =IF(G111>0,(Eingaben!L140*G111*$B$6/1000)*$G$5/$G$4,0) -> 0 | H127: =IF(H111>0,(Eingaben!L140*H111*$B$6/1000)*$H$5/$H$4,0) -> 0.6899181696 | I127: =IF(I111>0,(Eingaben!L140*I111*$B$6/1000)*$I$5/$I$4,0) -> 0.4100101207
A128: Leistung bei eingetragener Fläche (KW) | C128: 60 | D128: =IF(D112>0,(Eingaben!L141*D112*$B$6/1000)*$D$5/$D$4,0) -> 0 | E128: =IF(E112>0,(Eingaben!L141*E112*$B$6/1000)*$E$5/$E$4,0) -> 0 | F128: =IF(F112>0,(Eingaben!L141*F112*$B$6/1000)*$F$5/$F$4,0) -> 0 | G128: =IF(G112>0,(Eingaben!L141*G112*$B$6/1000)*$G$5/$G$4,0) -> 0 | H128: =IF(H112>0,(Eingaben!L141*H112*$B$6/1000)*$H$5/$H$4,0) -> 0.5323096989 | I128: =IF(I112>0,(Eingaben!L141*I112*$B$6/1000)*$I$5/$I$4,0) -> 0.1968958954
A129: Leistung bei eingetragener Fläche (KW) | C129: 70 | D129: =IF(D113>0,(Eingaben!L142*D113*$B$6/1000)*$D$5/$D$4,0) -> 0 | E129: =IF(E113>0,(Eingaben!L142*E113*$B$6/1000)*$E$5/$E$4,0) -> 0 | F129: =IF(F113>0,(Eingaben!L142*F113*$B$6/1000)*$F$5/$F$4,0) -> 0 | G129: =IF(G113>0,(Eingaben!L142*G113*$B$6/1000)*$G$5/$G$4,0) -> 0 | H129: =IF(H113>0,(Eingaben!L142*H113*$B$6/1000)*$H$5/$H$4,0) -> 0.2469149005 | I129: =IF(I113>0,(Eingaben!L142*I113*$B$6/1000)*$I$5/$I$4,0) -> 0
A130: KW Schnitt > | D130: =SUM(D115:D129)/15 -> 0.324716548 | E130: =SUM(E115:E129)/15 -> 0.2174116777 | F130: 0.2834195126 | G130: 0.1979212045 | H130: 0.8078015112 | I130: 0.4337597896
A131: KWH gesamt bei Azimut -70 bis +70 > | D131: =IF(D130>0,D130*$B$17,0) -> 2.760090658 | E131: 1.84799926 | F131: 2.409065857 | G131: 1.682330238 | H131: 6.866312845 | I131: 3.686958211
A132: Puffervolumen (L) > | B132: =B45 -> 1500 | C132: Erwärmung (K)> | D132: =IF(D131>0,D131/(($B$45/1000)*1*1.163),0) -> 1.582167187 | E132: =IF(E131>0,E131/(($B$45/1000)*1*1.163),0) -> 1.059328897 | F132: 1.380949187 | G132: 0.9643624182 | H132: 3.935977555 | I132: 2.113475616

Sheet Winter
A1: Solartirol Tool Winter Berechnung eines Tagesverlaufes mit IAM (Beispielort Breitengrad 48,8 Kollektorneigung 50°, Strahlung mit Getsolar ermittelt)
C2: Infos > | D2: =Herbstfrühjahr!D2 -> 0 | E2: =Herbstfrühjahr!E2 -> 0 | F2: =Herbstfrühjahr!F2 -> 0 | G2: =Herbstfrühjahr!G2 -> 0 | H2: =Herbstfrühjahr!H2 -> 0 | I2: =Herbstfrühjahr!I2 -> 0
A3: allgemeine Eingaben | C3: Kollektor > | D3: =Herbstfrühjahr!D3 -> SolRose 26 | E3: =Herbstfrühjahr!E3 -> Synergie 210 | F3: =Herbstfrühjahr!F3 -> Sunex AMX 2,85 | G3: =Herbstfrühjahr!G3 -> Sunex 2,0 | H3: =Herbstfrühjahr!H3 -> Star Azzurro CPC | I3: =Herbstfrühjahr!I3 -> Billig VRK
C4: Bruttofl.(m²) | D4: =Herbstfrühjahr!D4 -> 2.6 | E4: =Herbstfrühjahr!E4 -> 2.07 | F4: =Herbstfrühjahr!F4 -> 2.87 | G4: =Herbstfrühjahr!G4 -> 2.03 | H4: =Herbstfrühjahr!H4 -> 3.92 | I4: =Herbstfrühjahr!I4 -> 4.18
A5: Berechnung zu Diff. | B5: =Eingaben!B3 -> 28 | C5: Aperturfl. (m²) | D5: =Herbstfrühjahr!D5 -> 2.47 | E5: =Herbstfrühjahr!E5 -> 1.92 | F5: =Herbstfrühjahr!F5 -> 2.67 | G5: =Herbstfrühjahr!G5 -> 1.84 | H5: =Herbstfrühjahr!H5 -> 3.47 | I5: =Herbstfrühjahr!I5 -> 2.84
A6: Gesamtfläche (m²) | B6: =Eingaben!B6 -> 10.46 | C6: η0 | D6: =Herbstfrühjahr!D6 -> 0.81 | E6: =Herbstfrühjahr!E6 -> 0.785 | F6: =Herbstfrühjahr!F6 -> 0.82 | G6: =Herbstfrühjahr!G6 -> 0.8 | H6: =Herbstfrühjahr!H6 -> 0.64 | I6: =Herbstfrühjahr!I6 -> 0.654
A7: Strahlungseingaben zu Datum | C7: a1 | D7: =Herbstfrühjahr!D7 -> 3.36 | E7: =Herbstfrühjahr!E7 -> 3.722 | F7: =Herbstfrühjahr!F7 -> 3.29 | G7: =Herbstfrühjahr!G7 -> 4.16 | H7: =Herbstfrühjahr!H7 -> 0.749 | I7: =Herbstfrühjahr!I7 -> 1.82
A8: GBS zu Datum (W/m²) | B8: =Eingaben!L9 -> 2013-12-21 | C8: a2 | D8: =Herbstfrühjahr!D8 -> 0.0141 | E8: =Herbstfrühjahr!E8 -> 0.012 | F8: =Herbstfrühjahr!F8 -> 0.023 | G8: =Herbstfrühjahr!G8 -> 0.004 | H8: =Herbstfrühjahr!H8 -> 0.005 | I8: =Herbstfrühjahr!I8 -> 0.0066
A9: Strahlung 0° | B9: =Eingaben!L10 -> 600.4 | C9: IAM 0° | D9: =Herbstfrühjahr!D9 -> 1 | E9: =Herbstfrühjahr!E9 -> 1 | F9: =Herbstfrühjahr!F9 -> 1 | G9: =Herbstfrühjahr!G9 -> 1 | H9: =Herbstfrühjahr!H9 -> 1 | I9: =Herbstfrühjahr!I9 -> 1
A10: Strahlung 10° | B10: =Eingaben!L11 -> 585.2 | C10: IAM 10° | D10: =Herbstfrühjahr!D10 -> 1 | E10: =Herbstfrühjahr!E10 -> 1 | F10: =Herbstfrühjahr!F10 -> 1 | G10: =Herbstfrühjahr!G10 -> 1 | H10: =Herbstfrühjahr!H10 -> 1.01 | I10: =Herbstfrühjahr!I10 -> 1
A11: Strahlung 20° | B11: =Eingaben!L12 -> 505.4 | C11: IAM 20° | D11: =Herbstfrühjahr!D11 -> 1 | E11: =Herbstfrühjahr!E11 -> 0.99 | F11: =Herbstfrühjahr!F11 -> 0.99 | G11: =Herbstfrühjahr!G11 -> 0.99 | H11: =Herbstfrühjahr!H11 -> 1.01 | I11: =Herbstfrühjahr!I11 -> 1.04
A12: Strahlung 30° | B12: =Eingaben!L13 -> 401.85 | C12: IAM 30° | D12: =Herbstfrühjahr!D12 -> 0.99 | E12: =Herbstfrühjahr!E12 -> 0.98 | F12: =Herbstfrühjahr!F12 -> 0.98 | G12: =Herbstfrühjahr!G12 -> 0.98 | H12: =Herbstfrühjahr!H12 -> 1.02 | I12: =Herbstfrühjahr!I12 -> 1.15
A13: Strahlung 40° | B13: =Eingaben!L14 -> 241.3 | C13: IAM 40° | D13: =Herbstfrühjahr!D13 -> 0.96 | E13: =Herbstfrühjahr!E13 -> 0.97 | F13: =Herbstfrühjahr!F13 -> 0.97 | G13: =Herbstfrühjahr!G13 -> 0.97 | H13: =Herbstfrühjahr!H13 -> 1.02 | I13: =Herbstfrühjahr!I13 -> 1.3
A14: Strahlung 50° | B14: =Eingaben!L15 -> 91.2 | C14: IAM 50° | D14: =Herbstfrühjahr!D14 -> 0.94 | E14: =Herbstfrühjahr!E14 -> 0.94 | F14: =Herbstfrühjahr!F14 -> 0.94 | G14: =Herbstfrühjahr!G14 -> 0.95 | H14: =Herbstfrühjahr!H14 -> 0.98 | I14: =Herbstfrühjahr!I14 -> 1.36
A15: Strahlung 60° | B15: =Eingaben!L16 -> 0 | C15: IAM 60° | D15: =Herbstfrühjahr!D15 -> 0.86 | E15: =Herbstfrühjahr!E15 -> 0.9 | F15: =Herbstfrühjahr!F15 -> 0.9 | G15: =Herbstfrühjahr!G15 -> 0.9 | H15: =Herbstfrühjahr!H15 -> 1.05 | I15: =Herbstfrühjahr!I15 -> 1.34
A16: Strahlung 70° | B16: =Eingaben!L17 -> 0 | C16: IAM 70° | D16: =Herbstfrühjahr!D16 -> 0.73 | E16: =Herbstfrühjahr!E16 -> 0.8 | F16: =Herbstfrühjahr!F16 -> 0.81 | G16: =Herbstfrühjahr!G16 -> 0.81 | H16: =Herbstfrühjahr!H16 -> 1.14 | I16: =Herbstfrühjahr!I16 -> 1.11
A17: Laufzeit gesamt (Std.) > | B17: =Eingaben!L18 -> 7.5 | C17: ="Berechnung nach Tagesverlauf mit Sonne (mit IAM) mit Diff. "&B5&" bei "&B6&" m²"&" am " -> Berechnung nach Tagesverlauf mit Sonne (mit IAM) mit Diff. 28 bei 10,46 m² am | D17: ="Berechnung nach Tagesverlauf (mit IAM) mit Diff. "&B5&" bei "&B6&" m²"&" am " -> Berechnung nach Tagesverlauf (mit IAM) mit Diff. 28 bei 10,46 m² am | H17: =B8 -> 2013-12-21
A18: Tageswirkungsgrad bei Sonne (%) > | D18: =IF(D44>0,D44/(Eingaben!$M$2/100),"") -> 52.23863724 | E18: =IF(E44>0,E44/(Eingaben!$M$2/100),"") -> 46.97153378 | F18: =IF(F44>0,F44/(Eingaben!$M$2/100),"") -> 50.87223929 | G18: =IF(G44>0,G44/(Eingaben!$M$2/100),"") -> 46.0549065 | H18: =IF(H44>0,H44/(Eingaben!$M$2/100),"") -> 51.49396113 | I18: =IF(I44>0,I44/(Eingaben!$M$2/100),"") -> 36.92147343
A19: Wirkungsgrad bei eingestellter Diff. bei 0° > | D19: =IF($B$9>0,($D$6-$D$7*($B$5/$B$9)-$D$8*$B$9*(($B$5/$B$9*$B$5/$B$9)))*$D$9,0) -> 0.6348927382 | E19: =IF($B$9>0,($E$6-$E$7*($B$5/$B$9)-$E$8*$B$9*(($B$5/$B$9*$B$5/$B$9)))*$E$9,0) -> 0.5957528314 | F19: =IF($B$9>0,($F$6-$F$7*($B$5/$B$9)-$F$8*$B$9*(($B$5/$B$9*$B$5/$B$9)))*$F$9,0) -> 0.6365356429 | G19: =IF($B$9>0,($G$6-$G$7*($B$5/$B$9)-$G$8*$B$9*(($B$5/$B$9*$B$5/$B$9)))*$G$9,0) -> 0.6007728181 | H19: =IF($B$9>0,($H$6-$H$7*($B$5/$B$9)-$H$8*$B$9*(($B$5/$B$9*$B$5/$B$9)))*$H$9,0) -> 0.5985409727 | I19: =IF($B$9>0,($I$6-$I$7*($B$5/$B$9)-$I$8*$B$9*(($B$5/$B$9*$B$5/$B$9)))*$I$9,0) -> 0.5605049967
A20: Wirkungsgrad bei eingestellter Diff. bei 10° > | D20: =IF($B$10>0,($D$6-$D$7*($B$5/$B$10)-$D$8*$B$10*(($B$5/$B$10*$B$5/$B$10)))*$D$10,0) -> 0.6303444976 | E20: =IF($B$10>0,($E$6-$E$7*($B$5/$B$10)-$E$8*$B$10*(($B$5/$B$10*$B$5/$B$10)))*$E$10,0) -> 0.5908373206 | F20: =IF($B$10>0,($F$6-$F$7*($B$5/$B$10)-$F$8*$B$10*(($B$5/$B$10*$B$5/$B$10)))*$F$10,0) -> 0.6317703349 | G20: =IF($B$10>0,($G$6-$G$7*($B$5/$B$10)-$G$8*$B$10*(($B$5/$B$10*$B$5/$B$10)))*$G$10,0) -> 0.5955980861 | H20: =IF($B$10>0,($H$6-$H$7*($B$5/$B$10)-$H$8*$B$10*(($B$5/$B$10*$B$5/$B$10)))*$H$10,0) -> 0.603438756 | I20: =IF($B$10>0,($I$6-$I$7*($B$5/$B$10)-$I$8*$B$10*(($B$5/$B$10*$B$5/$B$10)))*$I$10,0) -> 0.558076555
A21: Wirkungsgrad bei eingestellter Diff. bei 20° > | D21: =IF($B$11>0,($D$6-$D$7*($B$5/$B$11)-$D$8*$B$11*(($B$5/$B$11*$B$5/$B$11)))*$D$11,0) -> 0.6019778393 | E21: =IF($B$11>0,($E$6-$E$7*($B$5/$B$11)-$E$8*$B$11*(($B$5/$B$11*$B$5/$B$11)))*$E$11,0) -> 0.5545782548 | F21: =IF($B$11>0,($F$6-$F$7*($B$5/$B$11)-$F$8*$B$11*(($B$5/$B$11*$B$5/$B$11)))*$F$11,0) -> 0.5960293629 | G21: =IF($B$11>0,($G$6-$G$7*($B$5/$B$11)-$G$8*$B$11*(($B$5/$B$11*$B$5/$B$11)))*$G$11,0) -> 0.5576908587 | H21: =IF($B$11>0,($H$6-$H$7*($B$5/$B$11)-$H$8*$B$11*(($B$5/$B$11*$B$5/$B$11)))*$H$11,0) -> 0.5966554017 | I21: =IF($B$11>0,($I$6-$I$7*($B$5/$B$11)-$I$8*$B$11*(($B$5/$B$11*$B$5/$B$11)))*$I$11,0) -> 0.5646479778
A22: Wirkungsgrad bei eingestellter Diff. bei 30° > | D22: =IF($B$12>0,($D$6-$D$7*($B$5/$B$12)-$D$8*$B$12*(($B$5/$B$12*$B$5/$B$12)))*$D$12,0) -> 0.54289028 | E22: =IF($B$12>0,($E$6-$E$7*($B$5/$B$12)-$E$8*$B$12*(($B$5/$B$12*$B$5/$B$12)))*$E$12,0) -> 0.4922027747 | F22: =IF($B$12>0,($F$6-$F$7*($B$5/$B$12)-$F$8*$B$12*(($B$5/$B$12*$B$5/$B$12)))*$F$12,0) -> 0.5349700137 | G22: =IF($B$12>0,($G$6-$G$7*($B$5/$B$12)-$G$8*$B$12*(($B$5/$B$12*$B$5/$B$12)))*$G$12,0) -> 0.4922899589 | H22: =IF($B$12>0,($H$6-$H$7*($B$5/$B$12)-$H$8*$B$12*(($B$5/$B$12*$B$5/$B$12)))*$H$12,0) -> 0.5896176185 | I22: =IF($B$12>0,($I$6-$I$7*($B$5/$B$12)-$I$8*$B$12*(($B$5/$B$12*$B$5/$B$12)))*$I$12,0) -> 0.5914565758
A23: Wirkungsgrad bei eingestellter Diff. bei 40° > | D23: =IF($B$13>0,($D$6-$D$7*($B$5/$B$13)-$D$8*$B$13*(($B$5/$B$13*$B$5/$B$13)))*$D$13,0) -> 0.3593280398 | E23: =IF($B$13>0,($E$6-$E$7*($B$5/$B$13)-$E$8*$B$13*(($B$5/$B$13*$B$5/$B$13)))*$E$13,0) -> 0.304693763 | F23: =IF($B$13>0,($F$6-$F$7*($B$5/$B$13)-$F$8*$B$13*(($B$5/$B$13*$B$5/$B$13)))*$F$13,0) -> 0.3526008288 | G23: =IF($B$13>0,($G$6-$G$7*($B$5/$B$13)-$G$8*$B$13*(($B$5/$B$13*$B$5/$B$13)))*$G$13,0) -> 0.2951565686 | H23: =IF($B$13>0,($H$6-$H$7*($B$5/$B$13)-$H$8*$B$13*(($B$5/$B$13*$B$5/$B$13)))*$H$13,0) -> 0.5475789474 | I23: =IF($B$13>0,($I$6-$I$7*($B$5/$B$13)-$I$8*$B$13*(($B$5/$B$13*$B$5/$B$13)))*$I$13,0) -> 0.5477767924
A24: Wirkungsgrad bei eingestellter Diff. bei 50° > | D24: =IF($B$14>0,($D$6-$D$7*($B$5/$B$14)-$D$8*$B$14*(($B$5/$B$14*$B$5/$B$14)))*$D$14,0) -> -0.3222221053 | E24: =IF($B$14>0,($E$6-$E$7*($B$5/$B$14)-$E$8*$B$14*(($B$5/$B$14*$B$5/$B$14)))*$E$14,0) -> -0.4332245614 | F24: =IF($B$14>0,($F$6-$F$7*($B$5/$B$14)-$F$8*$B$14*(($B$5/$B$14*$B$5/$B$14)))*$F$14,0) -> -0.3645385965 | G24: =IF($B$14>0,($G$6-$G$7*($B$5/$B$14)-$G$8*$B$14*(($B$5/$B$14*$B$5/$B$14)))*$G$14,0) -> -0.486 | H24: =IF($B$14>0,($H$6-$H$7*($B$5/$B$14)-$H$8*$B$14*(($B$5/$B$14*$B$5/$B$14)))*$H$14,0) -> 0.3597201754 | I24: =IF($B$14>0,($I$6-$I$7*($B$5/$B$14)-$I$8*$B$14*(($B$5/$B$14*$B$5/$B$14)))*$I$14,0) -> 0.05234807018
A25: Wirkungsgrad bei eingestellter Diff. bei 60° > | D25: =IF($B$15>0,($D$6-$D$7*($B$5/$B$15)-$D$8*$B$15*(($B$5/$B$15*$B$5/$B$15)))*$D$15,0) -> 0 | E25: =IF($B$15>0,($E$6-$E$7*($B$5/$B$15)-$E$8*$B$15*(($B$5/$B$15*$B$5/$B$15)))*$E$15,0) -> 0 | F25: =IF($B$15>0,($F$6-$F$7*($B$5/$B$15)-$F$8*$B$15*(($B$5/$B$15*$B$5/$B$15)))*$F$15,0) -> 0 | G25: =IF($B$15>0,($G$6-$G$7*($B$5/$B$15)-$G$8*$B$15*(($B$5/$B$15*$B$5/$B$15)))*$G$15,0) -> 0 | H25: =IF($B$15>0,($H$6-$H$7*($B$5/$B$15)-$H$8*$B$15*(($B$5/$B$15*$B$5/$B$15)))*$H$15,0) -> 0 | I25: =IF($B$15>0,($I$6-$I$7*($B$5/$B$15)-$I$8*$B$15*(($B$5/$B$15*$B$5/$B$15)))*$I$15,0) -> 0
A26: Wirkungsgrad bei eingestellter Diff. bei 70° > | D26: =IF($B$16>0,($D$6-$D$7*($B$5/$B$16)-$D$8*$B$16*(($B$5/$B$16*$B$5/$B$16)))*$D$16,0) -> 0 | E26: =IF($B$16>0,($E$6-$E$7*($B$5/$B$16)-$E$8*$B$16*(($B$5/$B$16*$B$5/$B$16)))*$E$16,0) -> 0 | F26: =IF($B$16>0,($F$6-$F$7*($B$5/$B$16)-$F$8*$B$16*(($B$5/$B$16*$B$5/$B$16)))*$F$16,0) -> 0 | G26: =IF($B$16>0,($G$6-$G$7*($B$5/$B$16)-$G$8*$B$16*(($B$5/$B$16*$B$5/$B$16)))*$G$16,0) -> 0 | H26: =IF($B$16>0,($H$6-$H$7*($B$5/$B$16)-$H$8*$B$16*(($B$5/$B$16*$B$5/$B$16)))*$H$16,0) -> 0 | I26: =IF($B$16>0,($I$6-$I$7*($B$5/$B$16)-$I$8*$B$16*(($B$5/$B$16*$B$5/$B$16)))*$I$16,0) -> 0
A27: Leistung nach Tagesverlauf | C27: Azimut | D27: =IF(D3>0,D3,"") -> SolRose 26 | E27: =IF(E3>0,E3,"") -> Synergie 210 | F27: Sunex AMX 2,85 | G27: Sunex 2,0 | H27: Star Azzurro CPC | I27: Billig VRK
A28: Leistung bei eingetragener Fläche (KW) | C28: -70 | D28: =IF(D26>0,($B$16*D26*$B$6/1000)*$D$5/$D$4,0) -> 0 | E28: =IF(E26>0,($B$16*E26*$B$6/1000)*$E$5/$E$4,0) -> 0 | F28: =IF(F26>0,($B$16*F26*$B$6/1000)*$F$5/$F$4,0) -> 0 | G28: =IF(G26>0,($B$16*G26*$B$6/1000)*$G$5/$G$4,0) -> 0 | H28: =IF(H26>0,($B$16*H26*$B$6/1000)*$H$5/$H$4,0) -> 0 | I28: =IF(I26>0,($B$16*I26*$B$6/1000)*$I$5/$I$4,0) -> 0
A29: Leistung bei eingetragener Fläche (KW) | C29: -60 | D29: =IF(D25>0,($B$15*D25*$B$6/1000)*$D$5/$D$4,0) -> 0 | E29: =IF(E25>0,($B$15*E25*$B$6/1000)*$E$5/$E$4,0) -> 0 | F29: =IF(F25>0,($B$15*F25*$B$6/1000)*$F$5/$F$4,0) -> 0 | G29: =IF(G25>0,($B$15*G25*$B$6/1000)*$G$5/$G$4,0) -> 0 | H29: =IF(H25>0,($B$15*H25*$B$6/1000)*$H$5/$H$4,0) -> 0 | I29: =IF(I25>0,($B$15*I25*$B$6/1000)*$I$5/$I$4,0) -> 0
A30: Leistung bei eingetragener Fläche (KW) | C30: -50 | D30: =IF(D24>0,($B$14*D24*$B$6/1000)*$D$5/$D$4,0) -> 0 | E30: =IF(E24>0,($B$14*E24*$B$6/1000)*$E$5/$E$4,0) -> 0 | F30: =IF(F24>0,($B$14*F24*$B$6/1000)*$F$5/$F$4,0) -> 0 | G30: =IF(G24>0,($B$14*G24*$B$6/1000)*$G$5/$G$4,0) -> 0 | H30: =IF(H24>0,($B$14*H24*$B$6/1000)*$H$5/$H$4,0) -> 0.3037628978 | I30: =IF(I24>0,($B$14*I24*$B$6/1000)*$I$5/$I$4,0) -> 0.03392885917
A31: Leistung bei eingetragener Fläche (KW) | C31: -40 | D31: =IF(D23>0,($B$13*D23*$B$6/1000)*$D$5/$D$4,0) -> 0.8615960911 | E31: =IF(E23>0,($B$13*E23*$B$6/1000)*$E$5/$E$4,0) -> 0.7133184448 | F31: =IF(F23>0,($B$13*F23*$B$6/1000)*$F$5/$F$4,0) -> 0.8279454044 | G31: =IF(G23>0,($B$13*G23*$B$6/1000)*$G$5/$G$4,0) -> 0.6752479031 | H31: =IF(H23>0,($B$13*H23*$B$6/1000)*$H$5/$H$4,0) -> 1.223430087 | I31: =IF(I23>0,($B$13*I23*$B$6/1000)*$I$5/$I$4,0) -> 0.9393656892
A32: Leistung bei eingetragener Fläche (KW) | C32: -30 | D32: =IF(D22>0,($B$12*D22*$B$6/1000)*$D$5/$D$4,0) -> 2.167860481 | E32: =IF(E22>0,($B$12*E22*$B$6/1000)*$E$5/$E$4,0) -> 1.918980661 | F32: =IF(F22>0,($B$12*F22*$B$6/1000)*$F$5/$F$4,0) -> 2.091965227 | G32: =IF(G22>0,($B$12*G22*$B$6/1000)*$G$5/$G$4,0) -> 1.875592209 | H32: =IF(H22>0,($B$12*H22*$B$6/1000)*$H$5/$H$4,0) -> 2.193863068 | I32: =IF(I22>0,($B$12*I22*$B$6/1000)*$I$5/$I$4,0) -> 1.689120295
A33: Leistung bei eingetragener Fläche (KW) | C33: -20 | D33: =IF(D21>0,($B$11*D21*$B$6/1000)*$D$5/$D$4,0) -> 3.023228905 | E33: =IF(E21>0,($B$11*E21*$B$6/1000)*$E$5/$E$4,0) -> 2.719322037 | F33: =IF(F21>0,($B$11*F21*$B$6/1000)*$F$5/$F$4,0) -> 2.931324799 | G33: =IF(G21>0,($B$11*G21*$B$6/1000)*$G$5/$G$4,0) -> 2.672281672 | H33: =IF(H21>0,($B$11*H21*$B$6/1000)*$H$5/$H$4,0) -> 2.792118889 | I33: =IF(I21>0,($B$11*I21*$B$6/1000)*$I$5/$I$4,0) -> 2.028087823
A34: Leistung bei eingetragener Fläche (KW) | C34: -10 | D34: =IF(D20>0,($B$10*D20*$B$6/1000)*$D$5/$D$4,0) -> 3.665536711 | E34: =IF(E20>0,($B$10*E20*$B$6/1000)*$E$5/$E$4,0) -> 3.354554138 | F34: =IF(F20>0,($B$10*F20*$B$6/1000)*$F$5/$F$4,0) -> 3.5976971 | G34: =IF(G20>0,($B$10*G20*$B$6/1000)*$G$5/$G$4,0) -> 3.304540513 | H34: =IF(H20>0,($B$10*H20*$B$6/1000)*$H$5/$H$4,0) -> 3.269735399 | I34: =IF(I20>0,($B$10*I20*$B$6/1000)*$I$5/$I$4,0) -> 2.320982352
A35: Leistung bei eingetragener Fläche (KW) | C35: 0 | D35: =IF(D19>0,($B$9*D19*$B$6/1000)*$D$5/$D$4,0) -> 3.787881055 | E35: =IF(E19>0,($B$9*E19*$B$6/1000)*$E$5/$E$4,0) -> 3.470318748 | F35: =IF(F19>0,($B$9*F19*$B$6/1000)*$F$5/$F$4,0) -> 3.718985283 | G35: =IF(G19>0,($B$9*G19*$B$6/1000)*$G$5/$G$4,0) -> 3.419829293 | H35: =IF(H19>0,($B$9*H19*$B$6/1000)*$H$5/$H$4,0) -> 3.327435617 | I35: =IF(I19>0,($B$9*I19*$B$6/1000)*$I$5/$I$4,0) -> 2.391629573
A36: Leistung bei eingetragener Fläche (KW) | C36: 10 | D36: =IF(D20>0,($B$10*D20*$B$6/1000)*$D$5/$D$4,0) -> 3.665536711 | E36: =IF(E20>0,($B$10*E20*$B$6/1000)*$E$5/$E$4,0) -> 3.354554138 | F36: =IF(F20>0,($B$10*F20*$B$6/1000)*$F$5/$F$4,0) -> 3.5976971 | G36: =IF(G20>0,($B$10*G20*$B$6/1000)*$G$5/$G$4,0) -> 3.304540513 | H36: =IF(H20>0,($B$10*H20*$B$6/1000)*$H$5/$H$4,0) -> 3.269735399 | I36: =IF(I20>0,($B$10*I20*$B$6/1000)*$I$5/$I$4,0) -> 2.320982352
A37: Leistung bei eingetragener Fläche (KW) | C37: 20 | D37: =IF(D21>0,($B$11*D21*$B$6/1000)*$D$5/$D$4,0) -> 3.023228905 | E37: =IF(E21>0,($B$11*E21*$B$6/1000)*$E$5/$E$4,0) -> 2.719322037 | F37: =IF(F21>0,($B$11*F21*$B$6/1000)*$F$5/$F$4,0) -> 2.931324799 | G37: =IF(G21>0,($B$11*G21*$B$6/1000)*$G$5/$G$4,0) -> 2.672281672 | H37: =IF(H21>0,($B$11*H21*$B$6/1000)*$H$5/$H$4,0) -> 2.792118889 | I37: =IF(I21>0,($B$11*I21*$B$6/1000)*$I$5/$I$4,0) -> 2.028087823
A38: Leistung bei eingetragener Fläche (KW) | C38: 30 | D38: =IF(D22>0,($B$12*D22*$B$6/1000)*$D$5/$D$4,0) -> 2.167860481 | E38: =IF(E22>0,($B$12*E22*$B$6/1000)*$E$5/$E$4,0) -> 1.918980661 | F38: =IF(F22>0,($B$12*F22*$B$6/1000)*$F$5/$F$4,0) -> 2.091965227 | G38: =IF(G22>0,($B$12*G22*$B$6/1000)*$G$5/$G$4,0) -> 1.875592209 | H38: =IF(H22>0,($B$12*H22*$B$6/1000)*$H$5/$H$4,0) -> 2.193863068 | I38: =IF(I22>0,($B$12*I22*$B$6/1000)*$I$5/$I$4,0) -> 1.689120295
A39: Leistung bei eingetragener Fläche (KW) | C39: 40 | D39: =IF(D23>0,($B$13*D23*$B$6/1000)*$D$5/$D$4,0) -> 0.8615960911 | E39: =IF(E23>0,($B$13*E23*$B$6/1000)*$E$5/$E$4,0) -> 0.7133184448 | F39: =IF(F23>0,($B$13*F23*$B$6/1000)*$F$5/$F$4,0) -> 0.8279454044 | G39: =IF(G23>0,($B$13*G23*$B$6/1000)*$G$5/$G$4,0) -> 0.6752479031 | H39: =IF(H23>0,($B$13*H23*$B$6/1000)*$H$5/$H$4,0) -> 1.223430087 | I39: =IF(I23>0,($B$13*I23*$B$6/1000)*$I$5/$I$4,0) -> 0.9393656892
A40: Leistung bei eingetragener Fläche (KW) | C40: 50 | D40: =IF(D24>0,($B$14*D24*$B$6/1000)*$D$5/$D$4,0) -> 0 | E40: =IF(E24>0,($B$14*E24*$B$6/1000)*$E$5/$E$4,0) -> 0 | F40: =IF(F24>0,($B$14*F24*$B$6/1000)*$F$5/$F$4,0) -> 0 | G40: =IF(G24>0,($B$14*G24*$B$6/1000)*$G$5/$G$4,0) -> 0 | H40: =IF(H24>0,($B$14*H24*$B$6/1000)*$H$5/$H$4,0) -> 0.3037628978 | I40: =IF(I24>0,($B$14*I24*$B$6/1000)*$I$5/$I$4,0) -> 0.03392885917
A41: Leistung bei eingetragener Fläche (KW) | C41: 60 | D41: =IF(D25>0,($B$15*D25*$B$6/1000)*$D$5/$D$4,0) -> 0 | E41: =IF(E25>0,($B$15*E25*$B$6/1000)*$E$5/$E$4,0) -> 0 | F41: =IF(F25>0,($B$15*F25*$B$6/1000)*$F$5/$F$4,0) -> 0 | G41: =IF(G25>0,($B$15*G25*$B$6/1000)*$G$5/$G$4,0) -> 0 | H41: =IF(H25>0,($B$15*H25*$B$6/1000)*$H$5/$H$4,0) -> 0 | I41: =IF(I25>0,($B$15*I25*$B$6/1000)*$I$5/$I$4,0) -> 0
A42: Leistung bei eingetragener Fläche (KW) | C42: 70 | D42: =IF(D26>0,($B$16*D26*$B$6/1000)*$D$5/$D$4,0) -> 0 | E42: =IF(E26>0,($B$16*E26*$B$6/1000)*$E$5/$E$4,0) -> 0 | F42: =IF(F26>0,($B$16*F26*$B$6/1000)*$F$5/$F$4,0) -> 0 | G42: =IF(G26>0,($B$16*G26*$B$6/1000)*$G$5/$G$4,0) -> 0 | H42: =IF(H26>0,($B$16*H26*$B$6/1000)*$H$5/$H$4,0) -> 0 | I42: =IF(I26>0,($B$16*I26*$B$6/1000)*$I$5/$I$4,0) -> 0
A43: KW Schnitt > | D43: =SUM(D28:D42)/15 -> 1.548288362 | E43: =SUM(E28:E42)/15 -> 1.392177954 | F43: 1.507790023 | G43: 1.365010259 | H43: 1.526217087 | I43: 1.094306641
A44: KWH gesamt bei Azimut -70 bis +70 > | D44: =IF(D43>0,D43*$B$17,0) -> 11.61216272 | E44: 10.44133465 | F44: 11.30842517 | G44: 10.23757694 | H44: 11.44662815 | I44: 8.207299806
A45: Puffervolumen (L) > | B45: =Eingaben!B7 -> 1500 | C45: Erwärmung (K)> | D45: =IF(D44>0,D44/(($B$45/1000)*1*1.163),0) -> 6.656441798 | E45: =IF(E44>0,E44/(($B$45/1000)*1*1.163),0) -> 5.98528785 | F45: 6.482330279 | G45: 5.868487787 | H45: 6.561552393 | I45: 4.704671714
A46: Laufzeit gesamt (Std.) > | B46: =B17 -> 7.5 | C46: ="Berechnung nach Tagesverlauf bei leichter Bewölkung (mit IAM) mit Diff. "&B5&" bei "&B6&" m²"&" am " -> Berechnung nach Tagesverlauf bei leichter Bewölkung (mit IAM) mit Diff. 28 bei 10,46 m² am | H46: =H17 -> 2013-12-21
A47: Wirkungsgrad bei Diff.0 > | D47: =$D$6-$D$7*(0/1000)-$D$8*1000*((0/1000*0/1000)) -> 0.81 | E47: =$E$6-$E$7*(0/1000)-$E$8*1000*((0/1000*0/1000)) -> 0.785 | F47: =$F$6-$F$7*(0/1000)-$F$8*1000*((0/1000*0/1000)) -> 0.82 | G47: =$G$6-$G$7*(0/1000)-$G$8*1000*((0/1000*0/1000)) -> 0.8 | H47: =$H$6-$H$7*(0/1000)-$H$8*1000*((0/1000*0/1000)) -> 0.64 | I47: =$I$6-$I$7*(0/1000)-$I$8*1000*((0/1000*0/1000)) -> 0.654
A48: Wirkungsgrad bei eingestellter Diff. bei 0° > | D48: =IF(Eingaben!L46>0,($D$6-$D$7*($B$5/Eingaben!L46)-$D$8*Eingaben!L46*(($B$5/Eingaben!L46*$B$5/Eingaben!L46)))*$D$9,0) -> 0.5765236509 | E48: =IF(Eingaben!L46>0,($E$6-$E$7*($B$5/Eingaben!L46)-$E$8*Eingaben!L46*(($B$5/Eingaben!L46*$B$5/Eingaben!L46)))*$E$9,0) -> 0.5326704419 | F48: =IF(Eingaben!L46>0,($F$6-$F$7*($B$5/Eingaben!L46)-$F$8*Eingaben!L46*(($B$5/Eingaben!L46*$B$5/Eingaben!L46)))*$F$9,0) -> 0.5753808572 | G48: =IF(Eingaben!L46>0,($G$6-$G$7*($B$5/Eingaben!L46)-$G$8*Eingaben!L46*(($B$5/Eingaben!L46*$B$5/Eingaben!L46)))*$G$9,0) -> 0.5343637575 | H48: =IF(Eingaben!L46>0,($H$6-$H$7*($B$5/Eingaben!L46)-$H$8*Eingaben!L46*(($B$5/Eingaben!L46*$B$5/Eingaben!L46)))*$H$9,0) -> 0.5847212969 | I48: =IF(Eingaben!L46>0,($I$6-$I$7*($B$5/Eingaben!L46)-$I$8*Eingaben!L46*(($B$5/Eingaben!L46*$B$5/Eingaben!L46)))*$I$9,0) -> 0.5293399956
A49: Wirkungsgrad bei eingestellter Diff. bei 10° > | D49: =IF(Eingaben!L47>0,($D$6-$D$7*($B$5/Eingaben!L47)-$D$8*Eingaben!L47*(($B$5/Eingaben!L47*$B$5/Eingaben!L47)))*$D$10,0) -> 0.5704593301 | E49: =IF(Eingaben!L47>0,($E$6-$E$7*($B$5/Eingaben!L47)-$E$8*Eingaben!L47*(($B$5/Eingaben!L47*$B$5/Eingaben!L47)))*$E$10,0) -> 0.5261164274 | F49: =IF(Eingaben!L47>0,($F$6-$F$7*($B$5/Eingaben!L47)-$F$8*Eingaben!L47*(($B$5/Eingaben!L47*$B$5/Eingaben!L47)))*$F$10,0) -> 0.5690271132 | G49: =IF(Eingaben!L47>0,($G$6-$G$7*($B$5/Eingaben!L47)-$G$8*Eingaben!L47*(($B$5/Eingaben!L47*$B$5/Eingaben!L47)))*$G$10,0) -> 0.5274641148 | H49: =IF(Eingaben!L47>0,($H$6-$H$7*($B$5/Eingaben!L47)-$H$8*Eingaben!L47*(($B$5/Eingaben!L47*$B$5/Eingaben!L47)))*$H$10,0) -> 0.5891183413 | I49: =IF(Eingaben!L47>0,($I$6-$I$7*($B$5/Eingaben!L47)-$I$8*Eingaben!L47*(($B$5/Eingaben!L47*$B$5/Eingaben!L47)))*$I$10,0) -> 0.5261020734
A50: Wirkungsgrad bei eingestellter Diff. bei 20° > | D50: =IF(Eingaben!L48>0,($D$6-$D$7*($B$5/Eingaben!L48)-$D$8*Eingaben!L48*(($B$5/Eingaben!L48*$B$5/Eingaben!L48)))*$D$11,0) -> 0.5326371191 | E50: =IF(Eingaben!L48>0,($E$6-$E$7*($B$5/Eingaben!L48)-$E$8*Eingaben!L48*(($B$5/Eingaben!L48*$B$5/Eingaben!L48)))*$E$11,0) -> 0.4803876731 | F50: =IF(Eingaben!L48>0,($F$6-$F$7*($B$5/Eingaben!L48)-$F$8*Eingaben!L48*(($B$5/Eingaben!L48*$B$5/Eingaben!L48)))*$F$11,0) -> 0.5241058172 | G50: =IF(Eingaben!L48>0,($G$6-$G$7*($B$5/Eingaben!L48)-$G$8*Eingaben!L48*(($B$5/Eingaben!L48*$B$5/Eingaben!L48)))*$G$11,0) -> 0.4795878116 | H50: =IF(Eingaben!L48>0,($H$6-$H$7*($B$5/Eingaben!L48)-$H$8*Eingaben!L48*(($B$5/Eingaben!L48*$B$5/Eingaben!L48)))*$H$11,0) -> 0.5800738689 | I50: =IF(Eingaben!L48>0,($I$6-$I$7*($B$5/Eingaben!L48)-$I$8*Eingaben!L48*(($B$5/Eingaben!L48*$B$5/Eingaben!L48)))*$I$11,0) -> 0.5261439705
A51: Wirkungsgrad bei eingestellter Diff. bei 30° > | D51: =IF(Eingaben!L49>0,($D$6-$D$7*($B$5/Eingaben!L49)-$D$8*Eingaben!L49*(($B$5/Eingaben!L49*$B$5/Eingaben!L49)))*$D$12,0) -> 0.4565537066 | E51: =IF(Eingaben!L49>0,($E$6-$E$7*($B$5/Eingaben!L49)-$E$8*Eingaben!L49*(($B$5/Eingaben!L49*$B$5/Eingaben!L49)))*$E$12,0) -> 0.3998370329 | F51: =IF(Eingaben!L49>0,($F$6-$F$7*($B$5/Eingaben!L49)-$F$8*Eingaben!L49*(($B$5/Eingaben!L49*$B$5/Eingaben!L49)))*$F$12,0) -> 0.4454266849 | G51: =IF(Eingaben!L49>0,($G$6-$G$7*($B$5/Eingaben!L49)-$G$8*Eingaben!L49*(($B$5/Eingaben!L49*$B$5/Eingaben!L49)))*$G$12,0) -> 0.3950532786 | H51: =IF(Eingaben!L49>0,($H$6-$H$7*($B$5/Eingaben!L49)-$H$8*Eingaben!L49*(($B$5/Eingaben!L49*$B$5/Eingaben!L49)))*$H$12,0) -> 0.5685568247 | I51: =IF(Eingaben!L49>0,($I$6-$I$7*($B$5/Eingaben!L49)-$I$8*Eingaben!L49*(($B$5/Eingaben!L49*$B$5/Eingaben!L49)))*$I$12,0) -> 0.5379087678
A52: Wirkungsgrad bei eingestellter Diff. bei 40° > | D52: =IF(Eingaben!L50>0,($D$6-$D$7*($B$5/Eingaben!L50)-$D$8*Eingaben!L50*(($B$5/Eingaben!L50*$B$5/Eingaben!L50)))*$D$13,0) -> 0.219904053 | E52: =IF(Eingaben!L50>0,($E$6-$E$7*($B$5/Eingaben!L50)-$E$8*Eingaben!L50*(($B$5/Eingaben!L50*$B$5/Eingaben!L50)))*$E$13,0) -> 0.1524416839 | F52: =IF(Eingaben!L50>0,($F$6-$F$7*($B$5/Eingaben!L50)-$F$8*Eingaben!L50*(($B$5/Eingaben!L50*$B$5/Eingaben!L50)))*$F$13,0) -> 0.2050011051 | G52: =IF(Eingaben!L50>0,($G$6-$G$7*($B$5/Eingaben!L50)-$G$8*Eingaben!L50*(($B$5/Eingaben!L50*$B$5/Eingaben!L50)))*$G$13,0) -> 0.1348754248 | H52: =IF(Eingaben!L50>0,($H$6-$H$7*($B$5/Eingaben!L50)-$H$8*Eingaben!L50*(($B$5/Eingaben!L50*$B$5/Eingaben!L50)))*$H$13,0) -> 0.5125052632 | I52: =IF(Eingaben!L50>0,($I$6-$I$7*($B$5/Eingaben!L50)-$I$8*Eingaben!L50*(($B$5/Eingaben!L50*$B$5/Eingaben!L50)))*$I$13,0) -> 0.4469690565
A53: Wirkungsgrad bei eingestellter Diff. bei 50° > | D53: =IF(Eingaben!L51>0,($D$6-$D$7*($B$5/Eingaben!L51)-$D$8*Eingaben!L51*(($B$5/Eingaben!L51*$B$5/Eingaben!L51)))*$D$14,0) -> -0.6834294737 | E53: =IF(Eingaben!L51>0,($E$6-$E$7*($B$5/Eingaben!L51)-$E$8*Eingaben!L51*(($B$5/Eingaben!L51*$B$5/Eingaben!L51)))*$E$14,0) -> -0.8235994152 | F53: =IF(Eingaben!L51>0,($F$6-$F$7*($B$5/Eingaben!L51)-$F$8*Eingaben!L51*(($B$5/Eingaben!L51*$B$5/Eingaben!L51)))*$F$14,0) -> -0.7429847953 | G53: =IF(Eingaben!L51>0,($G$6-$G$7*($B$5/Eingaben!L51)-$G$8*Eingaben!L51*(($B$5/Eingaben!L51*$B$5/Eingaben!L51)))*$G$14,0) -> -0.9013333333 | H53: =IF(Eingaben!L51>0,($H$6-$H$7*($B$5/Eingaben!L51)-$H$8*Eingaben!L51*(($B$5/Eingaben!L51*$B$5/Eingaben!L51)))*$H$14,0) -> 0.2705602339 | I53: =IF(Eingaben!L51>0,($I$6-$I$7*($B$5/Eingaben!L51)-$I$8*Eingaben!L51*(($B$5/Eingaben!L51*$B$5/Eingaben!L51)))*$I$14,0) -> -0.2266825731
A54: Wirkungsgrad bei eingestellter Diff. bei 60° > | D54: =IF(Eingaben!L52>0,($D$6-$D$7*($B$5/Eingaben!L52)-$D$8*Eingaben!L52*(($B$5/Eingaben!L52*$B$5/Eingaben!L52)))*$D$15,0) -> 0 | E54: =IF(Eingaben!L52>0,($E$6-$E$7*($B$5/Eingaben!L52)-$E$8*Eingaben!L52*(($B$5/Eingaben!L52*$B$5/Eingaben!L52)))*$E$15,0) -> 0 | F54: =IF(Eingaben!L52>0,($F$6-$F$7*($B$5/Eingaben!L52)-$F$8*Eingaben!L52*(($B$5/Eingaben!L52*$B$5/Eingaben!L52)))*$F$15,0) -> 0 | G54: =IF(Eingaben!L52>0,($G$6-$G$7*($B$5/Eingaben!L52)-$G$8*Eingaben!L52*(($B$5/Eingaben!L52*$B$5/Eingaben!L52)))*$G$15,0) -> 0 | H54: =IF(Eingaben!L52>0,($H$6-$H$7*($B$5/Eingaben!L52)-$H$8*Eingaben!L52*(($B$5/Eingaben!L52*$B$5/Eingaben!L52)))*$H$15,0) -> 0 | I54: =IF(Eingaben!L52>0,($I$6-$I$7*($B$5/Eingaben!L52)-$I$8*Eingaben!L52*(($B$5/Eingaben!L52*$B$5/Eingaben!L52)))*$I$15,0) -> 0
A55: Wirkungsgrad bei eingestellter Diff. bei 70° > | D55: =IF(Eingaben!L53>0,($D$6-$D$7*($B$5/Eingaben!L53)-$D$8*Eingaben!L53*(($B$5/Eingaben!L53*$B$5/Eingaben!L53)))*$D$16,0) -> 0 | E55: =IF(Eingaben!L53>0,($E$6-$E$7*($B$5/Eingaben!L53)-$E$8*Eingaben!L53*(($B$5/Eingaben!L53*$B$5/Eingaben!L53)))*$E$16,0) -> 0 | F55: =IF(Eingaben!L53>0,($F$6-$F$7*($B$5/Eingaben!L53)-$F$8*Eingaben!L53*(($B$5/Eingaben!L53*$B$5/Eingaben!L53)))*$F$16,0) -> 0 | G55: =IF(Eingaben!L53>0,($G$6-$G$7*($B$5/Eingaben!L53)-$G$8*Eingaben!L53*(($B$5/Eingaben!L53*$B$5/Eingaben!L53)))*$G$16,0) -> 0 | H55: =IF(Eingaben!L53>0,($H$6-$H$7*($B$5/Eingaben!L53)-$H$8*Eingaben!L53*(($B$5/Eingaben!L53*$B$5/Eingaben!L53)))*$H$16,0) -> 0 | I55: =IF(Eingaben!L53>0,($I$6-$I$7*($B$5/Eingaben!L53)-$I$8*Eingaben!L53*(($B$5/Eingaben!L53*$B$5/Eingaben!L53)))*$I$16,0) -> 0
A56: Leistung nach Tagesverlauf | C56: Azimut | D56: =D27 -> SolRose 26 | E56: =E27 -> Synergie 210 | F56: Sunex AMX 2,85 | G56: Sunex 2,0 | H56: Star Azzurro CPC | I56: Billig VRK
A57: Leistung bei eingetragener Fläche (KW) | C57: -70 | D57: =IF(D55>0,(Eingaben!L53*D55*$B$6/1000)*$D$5/$D$4,0) -> 0 | E57: =IF(E55>0,(Eingaben!L53*E55*$B$6/1000)*$E$5/$E$4,0) -> 0 | F57: =IF(F55>0,(Eingaben!L53*F55*$B$6/1000)*$F$5/$F$4,0) -> 0 | G57: =IF(G55>0,(Eingaben!L53*G55*$B$6/1000)*$G$5/$G$4,0) -> 0 | H57: =IF(H55>0,(Eingaben!L53*H55*$B$6/1000)*$H$5/$H$4,0) -> 0 | I57: =IF(I55>0,(Eingaben!L53*I55*$B$6/1000)*$I$5/$I$4,0) -> 0
A58: Leistung bei eingetragener Fläche (KW) | C58: -60 | D58: =IF(D54>0,(Eingaben!L52*D54*$B$6/1000)*$D$5/$D$4,0) -> 0 | E58: =IF(E54>0,(Eingaben!L52*E54*$B$6/1000)*$E$5/$E$4,0) -> 0 | F58: =IF(F54>0,(Eingaben!L52*F54*$B$6/1000)*$F$5/$F$4,0) -> 0 | G58: =IF(G54>0,(Eingaben!L52*G54*$B$6/1000)*$G$5/$G$4,0) -> 0 | H58: =IF(H54>0,(Eingaben!L52*H54*$B$6/1000)*$H$5/$H$4,0) -> 0 | I58: =IF(I54>0,(Eingaben!L52*I54*$B$6/1000)*$I$5/$I$4,0) -> 0
A59: Leistung bei eingetragener Fläche (KW) | C59: -50 | D59: =IF(D53>0,(Eingaben!L51*D53*$B$6/1000)*$D$5/$D$4,0) -> 0 | E59: =IF(E53>0,(Eingaben!L51*E53*$B$6/1000)*$E$5/$E$4,0) -> 0 | F59: =IF(F53>0,(Eingaben!L51*F53*$B$6/1000)*$F$5/$F$4,0) -> 0 | G59: =IF(G53>0,(Eingaben!L51*G53*$B$6/1000)*$G$5/$G$4,0) -> 0 | H59: =IF(H53>0,(Eingaben!L51*H53*$B$6/1000)*$H$5/$H$4,0) -> 0.1713543602 | I59: =IF(I53>0,(Eingaben!L51*I53*$B$6/1000)*$I$5/$I$4,0) -> 0
A60: Leistung bei eingetragener Fläche (KW) | C60: -40 | D60: =IF(D52>0,(Eingaben!L50*D52*$B$6/1000)*$D$5/$D$4,0) -> 0.3954641404 | E60: =IF(E52>0,(Eingaben!L50*E52*$B$6/1000)*$E$5/$E$4,0) -> 0.2676608733 | F60: =IF(F52>0,(Eingaben!L50*F52*$B$6/1000)*$F$5/$F$4,0) -> 0.361023803 | G60: =IF(G52>0,(Eingaben!L50*G52*$B$6/1000)*$G$5/$G$4,0) -> 0.2314221268 | H60: =IF(H52>0,(Eingaben!L50*H52*$B$6/1000)*$H$5/$H$4,0) -> 0.8587999438 | I60: =IF(I52>0,(Eingaben!L50*I52*$B$6/1000)*$I$5/$I$4,0) -> 0.5748701866
A61: Leistung bei eingetragener Fläche (KW) | C61: -30 | D61: =IF(D51>0,(Eingaben!L49*D51*$B$6/1000)*$D$5/$D$4,0) -> 1.367327029 | E61: =IF(E51>0,(Eingaben!L49*E51*$B$6/1000)*$E$5/$E$4,0) -> 1.169151577 | F61: =IF(F51>0,(Eingaben!L49*F51*$B$6/1000)*$F$5/$F$4,0) -> 1.306358925 | G61: =IF(G51>0,(Eingaben!L49*G51*$B$6/1000)*$G$5/$G$4,0) -> 1.128845162 | H61: =IF(H51>0,(Eingaben!L49*H51*$B$6/1000)*$H$5/$H$4,0) -> 1.586624679 | I61: =IF(I51>0,(Eingaben!L49*I51*$B$6/1000)*$I$5/$I$4,0) -> 1.152146227
A62: Leistung bei eingetragener Fläche (KW) | C62: -20 | D62: =IF(D50>0,(Eingaben!L48*D50*$B$6/1000)*$D$5/$D$4,0) -> 2.006241546 | E62: =IF(E50>0,(Eingaben!L48*E50*$B$6/1000)*$E$5/$E$4,0) -> 1.766651651 | F62: =IF(F50>0,(Eingaben!L48*F50*$B$6/1000)*$F$5/$F$4,0) -> 1.933198859 | G62: =IF(G50>0,(Eingaben!L48*G50*$B$6/1000)*$G$5/$G$4,0) -> 1.723527066 | H62: =IF(H50>0,(Eingaben!L48*H50*$B$6/1000)*$H$5/$H$4,0) -> 2.035892747 | I62: =IF(I50>0,(Eingaben!L48*I50*$B$6/1000)*$I$5/$I$4,0) -> 1.417342603
A63: Leistung bei eingetragener Fläche (KW) | C63: -10 | D63: =IF(D49>0,(Eingaben!L47*D49*$B$6/1000)*$D$5/$D$4,0) -> 2.4879724 | E63: =IF(E49>0,(Eingaben!L47*E49*$B$6/1000)*$E$5/$E$4,0) -> 2.240319768 | F63: =IF(F49>0,(Eingaben!L47*F49*$B$6/1000)*$F$5/$F$4,0) -> 2.43029834 | G63: =IF(G49>0,(Eingaben!L47*G49*$B$6/1000)*$G$5/$G$4,0) -> 2.194886003 | H63: =IF(H49>0,(Eingaben!L47*H49*$B$6/1000)*$H$5/$H$4,0) -> 2.39410513 | I63: =IF(I49>0,(Eingaben!L47*I49*$B$6/1000)*$I$5/$I$4,0) -> 1.641002856
A64: Leistung bei eingetragener Fläche (KW) | C64: 0 | D64: =IF(D48>0,(Eingaben!L46*D48*$B$6/1000)*$D$5/$D$4,0) -> 2.579730658 | E64: =IF(E48>0,(Eingaben!L46*E48*$B$6/1000)*$E$5/$E$4,0) -> 2.327143226 | F64: =IF(F48>0,(Eingaben!L46*F48*$B$6/1000)*$F$5/$F$4,0) -> 2.521264478 | G64: =IF(G48>0,(Eingaben!L46*G48*$B$6/1000)*$G$5/$G$4,0) -> 2.281352588 | H64: =IF(H48>0,(Eingaben!L46*H48*$B$6/1000)*$H$5/$H$4,0) -> 2.437956495 | I64: =IF(I48>0,(Eingaben!L46*I48*$B$6/1000)*$I$5/$I$4,0) -> 1.693988272
A65: Leistung bei eingetragener Fläche (KW) | C65: 10 | D65: =IF(D49>0,(Eingaben!L47*D49*$B$6/1000)*$D$5/$D$4,0) -> 2.4879724 | E65: =IF(E49>0,(Eingaben!L47*E49*$B$6/1000)*$E$5/$E$4,0) -> 2.240319768 | F65: =IF(F49>0,(Eingaben!L47*F49*$B$6/1000)*$F$5/$F$4,0) -> 2.43029834 | G65: =IF(G49>0,(Eingaben!L47*G49*$B$6/1000)*$G$5/$G$4,0) -> 2.194886003 | H65: =IF(H49>0,(Eingaben!L47*H49*$B$6/1000)*$H$5/$H$4,0) -> 2.39410513 | I65: =IF(I49>0,(Eingaben!L47*I49*$B$6/1000)*$I$5/$I$4,0) -> 1.641002856
A66: Leistung bei eingetragener Fläche (KW) | C66: 20 | D66: =IF(D50>0,(Eingaben!L48*D50*$B$6/1000)*$D$5/$D$4,0) -> 2.006241546 | E66: =IF(E50>0,(Eingaben!L48*E50*$B$6/1000)*$E$5/$E$4,0) -> 1.766651651 | F66: =IF(F50>0,(Eingaben!L48*F50*$B$6/1000)*$F$5/$F$4,0) -> 1.933198859 | G66: =IF(G50>0,(Eingaben!L48*G50*$B$6/1000)*$G$5/$G$4,0) -> 1.723527066 | H66: =IF(H50>0,(Eingaben!L48*H50*$B$6/1000)*$H$5/$H$4,0) -> 2.035892747 | I66: =IF(I50>0,(Eingaben!L48*I50*$B$6/1000)*$I$5/$I$4,0) -> 1.417342603
A67: Leistung bei eingetragener Fläche (KW) | C67: 30 | D67: =IF(D51>0,(Eingaben!L49*D51*$B$6/1000)*$D$5/$D$4,0) -> 1.367327029 | E67: =IF(E51>0,(Eingaben!L49*E51*$B$6/1000)*$E$5/$E$4,0) -> 1.169151577 | F67: =IF(F51>0,(Eingaben!L49*F51*$B$6/1000)*$F$5/$F$4,0) -> 1.306358925 | G67: =IF(G51>0,(Eingaben!L49*G51*$B$6/1000)*$G$5/$G$4,0) -> 1.128845162 | H67: =IF(H51>0,(Eingaben!L49*H51*$B$6/1000)*$H$5/$H$4,0) -> 1.586624679 | I67: =IF(I51>0,(Eingaben!L49*I51*$B$6/1000)*$I$5/$I$4,0) -> 1.152146227
A68: Leistung bei eingetragener Fläche (KW) | C68: 40 | D68: =IF(D52>0,(Eingaben!L50*D52*$B$6/1000)*$D$5/$D$4,0) -> 0.3954641404 | E68: =IF(E52>0,(Eingaben!L50*E52*$B$6/1000)*$E$5/$E$4,0) -> 0.2676608733 | F68: =IF(F52>0,(Eingaben!L50*F52*$B$6/1000)*$F$5/$F$4,0) -> 0.361023803 | G68: =IF(G52>0,(Eingaben!L50*G52*$B$6/1000)*$G$5/$G$4,0) -> 0.2314221268 | H68: =IF(H52>0,(Eingaben!L50*H52*$B$6/1000)*$H$5/$H$4,0) -> 0.8587999438 | I68: =IF(I52>0,(Eingaben!L50*I52*$B$6/1000)*$I$5/$I$4,0) -> 0.5748701866
A69: Leistung bei eingetragener Fläche (KW) | C69: 50 | D69: =IF(D53>0,(Eingaben!L51*D53*$B$6/1000)*$D$5/$D$4,0) -> 0 | E69: =IF(E53>0,(Eingaben!L51*E53*$B$6/1000)*$E$5/$E$4,0) -> 0 | F69: =IF(F53>0,(Eingaben!L51*F53*$B$6/1000)*$F$5/$F$4,0) -> 0 | G69: =IF(G53>0,(Eingaben!L51*G53*$B$6/1000)*$G$5/$G$4,0) -> 0 | H69: =IF(H53>0,(Eingaben!L51*H53*$B$6/1000)*$H$5/$H$4,0) -> 0.1713543602 | I69: =IF(I53>0,(Eingaben!L51*I53*$B$6/1000)*$I$5/$I$4,0) -> 0
A70: Leistung bei eingetragener Fläche (KW) | C70: 60 | D70: =IF(D54>0,(Eingaben!L52*D54*$B$6/1000)*$D$5/$D$4,0) -> 0 | E70: =IF(E54>0,(Eingaben!L52*E54*$B$6/1000)*$E$5/$E$4,0) -> 0 | F70: =IF(F54>0,(Eingaben!L52*F54*$B$6/1000)*$F$5/$F$4,0) -> 0 | G70: =IF(G54>0,(Eingaben!L52*G54*$B$6/1000)*$G$5/$G$4,0) -> 0 | H70: =IF(H54>0,(Eingaben!L52*H54*$B$6/1000)*$H$5/$H$4,0) -> 0 | I70: =IF(I54>0,(Eingaben!L52*I54*$B$6/1000)*$I$5/$I$4,0) -> 0
A71: Leistung bei eingetragener Fläche (KW) | C71: 70 | D71: =IF(D55>0,(Eingaben!L53*D55*$B$6/1000)*$D$5/$D$4,0) -> 0 | E71: =IF(E55>0,(Eingaben!L53*E55*$B$6/1000)*$E$5/$E$4,0) -> 0 | F71: =IF(F55>0,(Eingaben!L53*F55*$B$6/1000)*$F$5/$F$4,0) -> 0 | G71: =IF(G55>0,(Eingaben!L53*G55*$B$6/1000)*$G$5/$G$4,0) -> 0 | H71: =IF(H55>0,(Eingaben!L53*H55*$B$6/1000)*$H$5/$H$4,0) -> 0 | I71: =IF(I55>0,(Eingaben!L53*I55*$B$6/1000)*$I$5/$I$4,0) -> 0
A72: KW Schnitt > | D72: =SUM(D57:D71)/15 -> 1.006249393 | E72: =SUM(E57:E71)/15 -> 0.8809807309 | F72: 0.9722016222 | G72: 0.8559142202 | H72: 1.102100681 | I72: 0.7509808013
A73: KWH gesamt bei Azimut -70 bis +70 > | D73: =IF(D72>0,D72*$B$17,0) -> 7.546870444 | E73: 6.607355482 | F73: 7.291512167 | G73: 6.419356652 | H73: 8.265755107 | I73: 5.632356009
A74: Puffervolumen (L) > | B74: =B45 -> 1500 | C74: Erwärmung (K)> | D74: =IF(D73>0,D73/(($B$45/1000)*1*1.163),0) -> 4.326093691 | E74: =IF(E73>0,E73/(($B$45/1000)*1*1.163),0) -> 3.787535387 | F74: 4.179714627 | G74: 3.679768789 | H74: 4.738180056 | I74: 3.228636291
A75: Laufzeit gesamt (Std.) > | B75: =B17 -> 7.5 | C75: ="Berechnung nach Tagesverlauf bei mittlerer Bewölkung (mit IAM) mit Diff. "&B5&" bei "&B6&" m²"&" am " -> Berechnung nach Tagesverlauf bei mittlerer Bewölkung (mit IAM) mit Diff. 28 bei 10,46 m² am | H75: =H17 -> 2013-12-21
A76: Wirkungsgrad bei Diff.0 > | D76: =$D$6-$D$7*(0/1000)-$D$8*1000*((0/1000*0/1000)) -> 0.81 | E76: =$E$6-$E$7*(0/1000)-$E$8*1000*((0/1000*0/1000)) -> 0.785 | F76: =$F$6-$F$7*(0/1000)-$F$8*1000*((0/1000*0/1000)) -> 0.82 | G76: =$G$6-$G$7*(0/1000)-$G$8*1000*((0/1000*0/1000)) -> 0.8 | H76: =$H$6-$H$7*(0/1000)-$H$8*1000*((0/1000*0/1000)) -> 0.64 | I76: =$I$6-$I$7*(0/1000)-$I$8*1000*((0/1000*0/1000)) -> 0.654
A77: Wirkungsgrad bei eingestellter Diff. bei 0° > | D77: =IF(Eingaben!L82>0,($D$6-$D$7*($B$5/Eingaben!L82)-$D$8*Eingaben!L82*(($B$5/Eingaben!L82*$B$5/Eingaben!L82)))*$D$9,0) -> 0.4597854763 | E77: =IF(Eingaben!L82>0,($E$6-$E$7*($B$5/Eingaben!L82)-$E$8*Eingaben!L82*(($B$5/Eingaben!L82*$B$5/Eingaben!L82)))*$E$9,0) -> 0.4065056629 | F77: =IF(Eingaben!L82>0,($F$6-$F$7*($B$5/Eingaben!L82)-$F$8*Eingaben!L82*(($B$5/Eingaben!L82*$B$5/Eingaben!L82)))*$F$9,0) -> 0.4530712858 | G77: =IF(Eingaben!L82>0,($G$6-$G$7*($B$5/Eingaben!L82)-$G$8*Eingaben!L82*(($B$5/Eingaben!L82*$B$5/Eingaben!L82)))*$G$9,0) -> 0.4015456362 | H77: =IF(Eingaben!L82>0,($H$6-$H$7*($B$5/Eingaben!L82)-$H$8*Eingaben!L82*(($B$5/Eingaben!L82*$B$5/Eingaben!L82)))*$H$9,0) -> 0.5570819454 | I77: =IF(Eingaben!L82>0,($I$6-$I$7*($B$5/Eingaben!L82)-$I$8*Eingaben!L82*(($B$5/Eingaben!L82*$B$5/Eingaben!L82)))*$I$9,0) -> 0.4670099933
A78: Wirkungsgrad bei eingestellter Diff. bei 10° > | D78: =IF(Eingaben!L83>0,($D$6-$D$7*($B$5/Eingaben!L83)-$D$8*Eingaben!L83*(($B$5/Eingaben!L83*$B$5/Eingaben!L83)))*$D$10,0) -> 0.4506889952 | E78: =IF(Eingaben!L83>0,($E$6-$E$7*($B$5/Eingaben!L83)-$E$8*Eingaben!L83*(($B$5/Eingaben!L83*$B$5/Eingaben!L83)))*$E$10,0) -> 0.3966746411 | F78: =IF(Eingaben!L83>0,($F$6-$F$7*($B$5/Eingaben!L83)-$F$8*Eingaben!L83*(($B$5/Eingaben!L83*$B$5/Eingaben!L83)))*$F$10,0) -> 0.4435406699 | G78: =IF(Eingaben!L83>0,($G$6-$G$7*($B$5/Eingaben!L83)-$G$8*Eingaben!L83*(($B$5/Eingaben!L83*$B$5/Eingaben!L83)))*$G$10,0) -> 0.3911961722 | H78: =IF(Eingaben!L83>0,($H$6-$H$7*($B$5/Eingaben!L83)-$H$8*Eingaben!L83*(($B$5/Eingaben!L83*$B$5/Eingaben!L83)))*$H$10,0) -> 0.560477512 | I78: =IF(Eingaben!L83>0,($I$6-$I$7*($B$5/Eingaben!L83)-$I$8*Eingaben!L83*(($B$5/Eingaben!L83*$B$5/Eingaben!L83)))*$I$10,0) -> 0.46215311
A79: Wirkungsgrad bei eingestellter Diff. bei 20° > | D79: =IF(Eingaben!L84>0,($D$6-$D$7*($B$5/Eingaben!L84)-$D$8*Eingaben!L84*(($B$5/Eingaben!L84*$B$5/Eingaben!L84)))*$D$11,0) -> 0.3939556787 | E79: =IF(Eingaben!L84>0,($E$6-$E$7*($B$5/Eingaben!L84)-$E$8*Eingaben!L84*(($B$5/Eingaben!L84*$B$5/Eingaben!L84)))*$E$11,0) -> 0.3320065097 | F79: =IF(Eingaben!L84>0,($F$6-$F$7*($B$5/Eingaben!L84)-$F$8*Eingaben!L84*(($B$5/Eingaben!L84*$B$5/Eingaben!L84)))*$F$11,0) -> 0.3802587258 | G79: =IF(Eingaben!L84>0,($G$6-$G$7*($B$5/Eingaben!L84)-$G$8*Eingaben!L84*(($B$5/Eingaben!L84*$B$5/Eingaben!L84)))*$G$11,0) -> 0.3233817175 | H79: =IF(Eingaben!L84>0,($H$6-$H$7*($B$5/Eingaben!L84)-$H$8*Eingaben!L84*(($B$5/Eingaben!L84*$B$5/Eingaben!L84)))*$H$11,0) -> 0.5469108033 | I79: =IF(Eingaben!L84>0,($I$6-$I$7*($B$5/Eingaben!L84)-$I$8*Eingaben!L84*(($B$5/Eingaben!L84*$B$5/Eingaben!L84)))*$I$11,0) -> 0.4491359557
A80: Wirkungsgrad bei eingestellter Diff. bei 30° > | D80: =IF(Eingaben!L85>0,($D$6-$D$7*($B$5/Eingaben!L85)-$D$8*Eingaben!L85*(($B$5/Eingaben!L85*$B$5/Eingaben!L85)))*$D$12,0) -> 0.2838805599 | E80: =IF(Eingaben!L85>0,($E$6-$E$7*($B$5/Eingaben!L85)-$E$8*Eingaben!L85*(($B$5/Eingaben!L85*$B$5/Eingaben!L85)))*$E$12,0) -> 0.2151055493 | F80: =IF(Eingaben!L85>0,($F$6-$F$7*($B$5/Eingaben!L85)-$F$8*Eingaben!L85*(($B$5/Eingaben!L85*$B$5/Eingaben!L85)))*$F$12,0) -> 0.2663400274 | G80: =IF(Eingaben!L85>0,($G$6-$G$7*($B$5/Eingaben!L85)-$G$8*Eingaben!L85*(($B$5/Eingaben!L85*$B$5/Eingaben!L85)))*$G$12,0) -> 0.2005799179 | H80: =IF(Eingaben!L85>0,($H$6-$H$7*($B$5/Eingaben!L85)-$H$8*Eingaben!L85*(($B$5/Eingaben!L85*$B$5/Eingaben!L85)))*$H$12,0) -> 0.526435237 | I80: =IF(Eingaben!L85>0,($I$6-$I$7*($B$5/Eingaben!L85)-$I$8*Eingaben!L85*(($B$5/Eingaben!L85*$B$5/Eingaben!L85)))*$I$12,0) -> 0.4308131517
A81: Wirkungsgrad bei eingestellter Diff. bei 40° > | D81: =IF(Eingaben!L86>0,($D$6-$D$7*($B$5/Eingaben!L86)-$D$8*Eingaben!L86*(($B$5/Eingaben!L86*$B$5/Eingaben!L86)))*$D$13,0) -> -0.05894392043 | E81: =IF(Eingaben!L86>0,($E$6-$E$7*($B$5/Eingaben!L86)-$E$8*Eingaben!L86*(($B$5/Eingaben!L86*$B$5/Eingaben!L86)))*$E$13,0) -> -0.1520624741 | F81: =IF(Eingaben!L86>0,($F$6-$F$7*($B$5/Eingaben!L86)-$F$8*Eingaben!L86*(($B$5/Eingaben!L86*$B$5/Eingaben!L86)))*$F$13,0) -> -0.09019834231 | G81: =IF(Eingaben!L86>0,($G$6-$G$7*($B$5/Eingaben!L86)-$G$8*Eingaben!L86*(($B$5/Eingaben!L86*$B$5/Eingaben!L86)))*$G$13,0) -> -0.1856868628 | H81: =IF(Eingaben!L86>0,($H$6-$H$7*($B$5/Eingaben!L86)-$H$8*Eingaben!L86*(($B$5/Eingaben!L86*$B$5/Eingaben!L86)))*$H$13,0) -> 0.4423578947 | I81: =IF(Eingaben!L86>0,($I$6-$I$7*($B$5/Eingaben!L86)-$I$8*Eingaben!L86*(($B$5/Eingaben!L86*$B$5/Eingaben!L86)))*$I$13,0) -> 0.2453535847
A82: Wirkungsgrad bei eingestellter Diff. bei 50° > | D82: =IF(Eingaben!L87>0,($D$6-$D$7*($B$5/Eingaben!L87)-$D$8*Eingaben!L87*(($B$5/Eingaben!L87*$B$5/Eingaben!L87)))*$D$14,0) -> -1.405844211 | E82: =IF(Eingaben!L87>0,($E$6-$E$7*($B$5/Eingaben!L87)-$E$8*Eingaben!L87*(($B$5/Eingaben!L87*$B$5/Eingaben!L87)))*$E$14,0) -> -1.604349123 | F82: =IF(Eingaben!L87>0,($F$6-$F$7*($B$5/Eingaben!L87)-$F$8*Eingaben!L87*(($B$5/Eingaben!L87*$B$5/Eingaben!L87)))*$F$14,0) -> -1.499877193 | G82: =IF(Eingaben!L87>0,($G$6-$G$7*($B$5/Eingaben!L87)-$G$8*Eingaben!L87*(($B$5/Eingaben!L87*$B$5/Eingaben!L87)))*$G$14,0) -> -1.732 | H82: =IF(Eingaben!L87>0,($H$6-$H$7*($B$5/Eingaben!L87)-$H$8*Eingaben!L87*(($B$5/Eingaben!L87*$B$5/Eingaben!L87)))*$H$14,0) -> 0.09224035088 | I82: =IF(Eingaben!L87>0,($I$6-$I$7*($B$5/Eingaben!L87)-$I$8*Eingaben!L87*(($B$5/Eingaben!L87*$B$5/Eingaben!L87)))*$I$14,0) -> -0.7847438596
A83: Wirkungsgrad bei eingestellter Diff. bei 60° > | D83: =IF(Eingaben!L88>0,($D$6-$D$7*($B$5/Eingaben!L88)-$D$8*Eingaben!L88*(($B$5/Eingaben!L88*$B$5/Eingaben!L88)))*$D$15,0) -> 0 | E83: =IF(Eingaben!L88>0,($E$6-$E$7*($B$5/Eingaben!L88)-$E$8*Eingaben!L88*(($B$5/Eingaben!L88*$B$5/Eingaben!L88)))*$E$15,0) -> 0 | F83: =IF(Eingaben!L88>0,($F$6-$F$7*($B$5/Eingaben!L88)-$F$8*Eingaben!L88*(($B$5/Eingaben!L88*$B$5/Eingaben!L88)))*$F$15,0) -> 0 | G83: =IF(Eingaben!L88>0,($G$6-$G$7*($B$5/Eingaben!L88)-$G$8*Eingaben!L88*(($B$5/Eingaben!L88*$B$5/Eingaben!L88)))*$G$15,0) -> 0 | H83: =IF(Eingaben!L88>0,($H$6-$H$7*($B$5/Eingaben!L88)-$H$8*Eingaben!L88*(($B$5/Eingaben!L88*$B$5/Eingaben!L88)))*$H$15,0) -> 0 | I83: =IF(Eingaben!L88>0,($I$6-$I$7*($B$5/Eingaben!L88)-$I$8*Eingaben!L88*(($B$5/Eingaben!L88*$B$5/Eingaben!L88)))*$I$15,0) -> 0
A84: Wirkungsgrad bei eingestellter Diff. bei 70° > | D84: =IF(Eingaben!L89>0,($D$6-$D$7*($B$5/Eingaben!L89)-$D$8*Eingaben!L89*(($B$5/Eingaben!L89*$B$5/Eingaben!L89)))*$D$16,0) -> 0 | E84: =IF(Eingaben!L89>0,($E$6-$E$7*($B$5/Eingaben!L89)-$E$8*Eingaben!L89*(($B$5/Eingaben!L89*$B$5/Eingaben!L89)))*$E$16,0) -> 0 | F84: =IF(Eingaben!L89>0,($F$6-$F$7*($B$5/Eingaben!L89)-$F$8*Eingaben!L89*(($B$5/Eingaben!L89*$B$5/Eingaben!L89)))*$F$16,0) -> 0 | G84: =IF(Eingaben!L89>0,($G$6-$G$7*($B$5/Eingaben!L89)-$G$8*Eingaben!L89*(($B$5/Eingaben!L89*$B$5/Eingaben!L89)))*$G$16,0) -> 0 | H84: =IF(Eingaben!L89>0,($H$6-$H$7*($B$5/Eingaben!L89)-$H$8*Eingaben!L89*(($B$5/Eingaben!L89*$B$5/Eingaben!L89)))*$H$16,0) -> 0 | I84: =IF(Eingaben!L89>0,($I$6-$I$7*($B$5/Eingaben!L89)-$I$8*Eingaben!L89*(($B$5/Eingaben!L89*$B$5/Eingaben!L89)))*$I$16,0) -> 0
A85: Leistung nach Tagesverlauf | C85: Azimut | D85: =D27 -> SolRose 26 | E85: =E27 -> Synergie 210 | F85: Sunex AMX 2,85 | G85: Sunex 2,0 | H85: Star Azzurro CPC | I85: Billig VRK
A86: Leistung bei eingetragener Fläche (KW) | C86: -70 | D86: =IF(D84>0,(Eingaben!L89*D84*$B$6/1000)*$D$5/$D$4,0) -> 0 | E86: =IF(E84>0,(Eingaben!L89*E84*$B$6/1000)*$E$5/$E$4,0) -> 0 | F86: =IF(F84>0,(Eingaben!L89*F84*$B$6/1000)*$F$5/$F$4,0) -> 0 | G86: =IF(G84>0,(Eingaben!L89*G84*$B$6/1000)*$G$5/$G$4,0) -> 0 | H86: =IF(H84>0,(Eingaben!L89*H84*$B$6/1000)*$H$5/$H$4,0) -> 0 | I86: =IF(I84>0,(Eingaben!L89*I84*$B$6/1000)*$I$5/$I$4,0) -> 0
A87: Leistung bei eingetragener Fläche (KW) | C87: -60 | D87: =IF(D83>0,(Eingaben!L88*D83*$B$6/1000)*$D$5/$D$4,0) -> 0 | E87: =IF(E83>0,(Eingaben!L88*E83*$B$6/1000)*$E$5/$E$4,0) -> 0 | F87: =IF(F83>0,(Eingaben!L88*F83*$B$6/1000)*$F$5/$F$4,0) -> 0 | G87: =IF(G83>0,(Eingaben!L88*G83*$B$6/1000)*$G$5/$G$4,0) -> 0 | H87: =IF(H83>0,(Eingaben!L88*H83*$B$6/1000)*$H$5/$H$4,0) -> 0 | I87: =IF(I83>0,(Eingaben!L88*I83*$B$6/1000)*$I$5/$I$4,0) -> 0
A88: Leistung bei eingetragener Fläche (KW) | C88: -50 | D88: =IF(D82>0,(Eingaben!L87*D82*$B$6/1000)*$D$5/$D$4,0) -> 0 | E88: =IF(E82>0,(Eingaben!L87*E82*$B$6/1000)*$E$5/$E$4,0) -> 0 | F88: =IF(F82>0,(Eingaben!L87*F82*$B$6/1000)*$F$5/$F$4,0) -> 0 | G88: =IF(G82>0,(Eingaben!L87*G82*$B$6/1000)*$G$5/$G$4,0) -> 0 | H88: =IF(H82>0,(Eingaben!L87*H82*$B$6/1000)*$H$5/$H$4,0) -> 0.0389458226 | I88: =IF(I82>0,(Eingaben!L87*I82*$B$6/1000)*$I$5/$I$4,0) -> 0
A89: Leistung bei eingetragener Fläche (KW) | C89: -40 | D89: =IF(D81>0,(Eingaben!L86*D81*$B$6/1000)*$D$5/$D$4,0) -> 0 | E89: =IF(E81>0,(Eingaben!L86*E81*$B$6/1000)*$E$5/$E$4,0) -> 0 | F89: =IF(F81>0,(Eingaben!L86*F81*$B$6/1000)*$F$5/$F$4,0) -> 0 | G89: =IF(G81>0,(Eingaben!L86*G81*$B$6/1000)*$G$5/$G$4,0) -> 0 | H89: =IF(H81>0,(Eingaben!L86*H81*$B$6/1000)*$H$5/$H$4,0) -> 0.4941698 | I89: =IF(I81>0,(Eingaben!L86*I81*$B$6/1000)*$I$5/$I$4,0) -> 0.210374684
A90: Leistung bei eingetragener Fläche (KW) | C90: -30 | D90: =IF(D80>0,(Eingaben!L85*D80*$B$6/1000)*$D$5/$D$4,0) -> 0.5667935768 | E90: =IF(E80>0,(Eingaben!L85*E80*$B$6/1000)*$E$5/$E$4,0) -> 0.4193224932 | F90: =IF(F80>0,(Eingaben!L85*F80*$B$6/1000)*$F$5/$F$4,0) -> 0.5207526231 | G90: =IF(G80>0,(Eingaben!L85*G80*$B$6/1000)*$G$5/$G$4,0) -> 0.3820981155 | H90: =IF(H80>0,(Eingaben!L85*H80*$B$6/1000)*$H$5/$H$4,0) -> 0.9793862905 | I90: =IF(I80>0,(Eingaben!L85*I80*$B$6/1000)*$I$5/$I$4,0) -> 0.6151721594
A91: Leistung bei eingetragener Fläche (KW) | C91: -20 | D91: =IF(D79>0,(Eingaben!L84*D79*$B$6/1000)*$D$5/$D$4,0) -> 0.9892541862 | E91: =IF(E79>0,(Eingaben!L84*E79*$B$6/1000)*$E$5/$E$4,0) -> 0.8139812644 | F91: =IF(F79>0,(Eingaben!L84*F79*$B$6/1000)*$F$5/$F$4,0) -> 0.9350729195 | G91: =IF(G79>0,(Eingaben!L84*G79*$B$6/1000)*$G$5/$G$4,0) -> 0.7747724597 | H91: =IF(H79>0,(Eingaben!L84*H79*$B$6/1000)*$H$5/$H$4,0) -> 1.279666605 | I91: =IF(I79>0,(Eingaben!L84*I79*$B$6/1000)*$I$5/$I$4,0) -> 0.8065973832
A92: Leistung bei eingetragener Fläche (KW) | C92: -10 | D92: =IF(D78>0,(Eingaben!L83*D78*$B$6/1000)*$D$5/$D$4,0) -> 1.310408089 | E92: =IF(E78>0,(Eingaben!L83*E78*$B$6/1000)*$E$5/$E$4,0) -> 1.126085398 | F92: =IF(F78>0,(Eingaben!L83*F78*$B$6/1000)*$F$5/$F$4,0) -> 1.26289958 | G92: =IF(G78>0,(Eingaben!L83*G78*$B$6/1000)*$G$5/$G$4,0) -> 1.085231492 | H92: =IF(H78>0,(Eingaben!L83*H78*$B$6/1000)*$H$5/$H$4,0) -> 1.51847486 | I92: =IF(I78>0,(Eingaben!L83*I78*$B$6/1000)*$I$5/$I$4,0) -> 0.9610233604
A93: Leistung bei eingetragener Fläche (KW) | C93: 0 | D93: =IF(D77>0,(Eingaben!L82*D77*$B$6/1000)*$D$5/$D$4,0) -> 1.371580261 | E93: =IF(E77>0,(Eingaben!L82*E77*$B$6/1000)*$E$5/$E$4,0) -> 1.183967703 | F93: =IF(F77>0,(Eingaben!L82*F77*$B$6/1000)*$F$5/$F$4,0) -> 1.323543672 | G93: =IF(G77>0,(Eingaben!L82*G77*$B$6/1000)*$G$5/$G$4,0) -> 1.142875883 | H93: =IF(H77>0,(Eingaben!L82*H77*$B$6/1000)*$H$5/$H$4,0) -> 1.548477373 | I93: =IF(I77>0,(Eingaben!L82*I77*$B$6/1000)*$I$5/$I$4,0) -> 0.9963469706
A94: Leistung bei eingetragener Fläche (KW) | C94: 10 | D94: =IF(D78>0,(Eingaben!L83*D78*$B$6/1000)*$D$5/$D$4,0) -> 1.310408089 | E94: =IF(E78>0,(Eingaben!L83*E78*$B$6/1000)*$E$5/$E$4,0) -> 1.126085398 | F94: =IF(F78>0,(Eingaben!L83*F78*$B$6/1000)*$F$5/$F$4,0) -> 1.26289958 | G94: =IF(G78>0,(Eingaben!L83*G78*$B$6/1000)*$G$5/$G$4,0) -> 1.085231492 | H94: =IF(H78>0,(Eingaben!L83*H78*$B$6/1000)*$H$5/$H$4,0) -> 1.51847486 | I94: =IF(I78>0,(Eingaben!L83*I78*$B$6/1000)*$I$5/$I$4,0) -> 0.9610233604
A95: Leistung bei eingetragener Fläche (KW) | C95: 20 | D95: =IF(D79>0,(Eingaben!L84*D79*$B$6/1000)*$D$5/$D$4,0) -> 0.9892541862 | E95: =IF(E79>0,(Eingaben!L84*E79*$B$6/1000)*$E$5/$E$4,0) -> 0.8139812644 | F95: =IF(F79>0,(Eingaben!L84*F79*$B$6/1000)*$F$5/$F$4,0) -> 0.9350729195 | G95: =IF(G79>0,(Eingaben!L84*G79*$B$6/1000)*$G$5/$G$4,0) -> 0.7747724597 | H95: =IF(H79>0,(Eingaben!L84*H79*$B$6/1000)*$H$5/$H$4,0) -> 1.279666605 | I95: =IF(I79>0,(Eingaben!L84*I79*$B$6/1000)*$I$5/$I$4,0) -> 0.8065973832
A96: Leistung bei eingetragener Fläche (KW) | C96: 30 | D96: =IF(D80>0,(Eingaben!L85*D80*$B$6/1000)*$D$5/$D$4,0) -> 0.5667935768 | E96: =IF(E80>0,(Eingaben!L85*E80*$B$6/1000)*$E$5/$E$4,0) -> 0.4193224932 | F96: =IF(F80>0,(Eingaben!L85*F80*$B$6/1000)*$F$5/$F$4,0) -> 0.5207526231 | G96: =IF(G80>0,(Eingaben!L85*G80*$B$6/1000)*$G$5/$G$4,0) -> 0.3820981155 | H96: =IF(H80>0,(Eingaben!L85*H80*$B$6/1000)*$H$5/$H$4,0) -> 0.9793862905 | I96: =IF(I80>0,(Eingaben!L85*I80*$B$6/1000)*$I$5/$I$4,0) -> 0.6151721594
A97: Leistung bei eingetragener Fläche (KW) | C97: 40 | D97: =IF(D81>0,(Eingaben!L86*D81*$B$6/1000)*$D$5/$D$4,0) -> 0 | E97: =IF(E81>0,(Eingaben!L86*E81*$B$6/1000)*$E$5/$E$4,0) -> 0 | F97: =IF(F81>0,(Eingaben!L86*F81*$B$6/1000)*$F$5/$F$4,0) -> 0 | G97: =IF(G81>0,(Eingaben!L86*G81*$B$6/1000)*$G$5/$G$4,0) -> 0 | H97: =IF(H81>0,(Eingaben!L86*H81*$B$6/1000)*$H$5/$H$4,0) -> 0.4941698 | I97: =IF(I81>0,(Eingaben!L86*I81*$B$6/1000)*$I$5/$I$4,0) -> 0.210374684
A98: Leistung bei eingetragener Fläche (KW) | C98: 50 | D98: =IF(D82>0,(Eingaben!L87*D82*$B$6/1000)*$D$5/$D$4,0) -> 0 | E98: =IF(E82>0,(Eingaben!L87*E82*$B$6/1000)*$E$5/$E$4,0) -> 0 | F98: =IF(F82>0,(Eingaben!L87*F82*$B$6/1000)*$F$5/$F$4,0) -> 0 | G98: =IF(G82>0,(Eingaben!L87*G82*$B$6/1000)*$G$5/$G$4,0) -> 0 | H98: =IF(H82>0,(Eingaben!L87*H82*$B$6/1000)*$H$5/$H$4,0) -> 0.0389458226 | I98: =IF(I82>0,(Eingaben!L87*I82*$B$6/1000)*$I$5/$I$4,0) -> 0
A99: Leistung bei eingetragener Fläche (KW) | C99: 60 | D99: =IF(D83>0,(Eingaben!L88*D83*$B$6/1000)*$D$5/$D$4,0) -> 0 | E99: =IF(E83>0,(Eingaben!L88*E83*$B$6/1000)*$E$5/$E$4,0) -> 0 | F99: =IF(F83>0,(Eingaben!L88*F83*$B$6/1000)*$F$5/$F$4,0) -> 0 | G99: =IF(G83>0,(Eingaben!L88*G83*$B$6/1000)*$G$5/$G$4,0) -> 0 | H99: =IF(H83>0,(Eingaben!L88*H83*$B$6/1000)*$H$5/$H$4,0) -> 0 | I99: =IF(I83>0,(Eingaben!L88*I83*$B$6/1000)*$I$5/$I$4,0) -> 0
A100: Leistung bei eingetragener Fläche (KW) | C100: 70 | D100: =IF(D84>0,(Eingaben!L89*D84*$B$6/1000)*$D$5/$D$4,0) -> 0 | E100: =IF(E84>0,(Eingaben!L89*E84*$B$6/1000)*$E$5/$E$4,0) -> 0 | F100: =IF(F84>0,(Eingaben!L89*F84*$B$6/1000)*$F$5/$F$4,0) -> 0 | G100: =IF(G84>0,(Eingaben!L89*G84*$B$6/1000)*$G$5/$G$4,0) -> 0 | H100: =IF(H84>0,(Eingaben!L89*H84*$B$6/1000)*$H$5/$H$4,0) -> 0 | I100: =IF(I84>0,(Eingaben!L89*I84*$B$6/1000)*$I$5/$I$4,0) -> 0
A101: KW Schnitt > | D101: =SUM(D86:D100)/15 -> 0.4736327977 | E101: =SUM(E86:E100)/15 -> 0.393516401 | F101: 0.4507329279 | G101: 0.3751386679 | H101: 0.6779842753 | I101: 0.4121788096
A102: KWH gesamt bei Azimut -70 bis +70 > | D102: =IF(D101>0,D101*$B$17,0) -> 3.552245983 | E102: 2.951373007 | F102: 3.380496959 | G102: 2.813540009 | H102: 5.084882065 | I102: 3.091341072
A103: Puffervolumen (L) > | B103: =B45 -> 1500 | C103: Erwärmung (K)> | D103: =IF(D102>0,D102/(($B$45/1000)*1*1.163),0) -> 2.036254504 | E103: =IF(E102>0,E102/(($B$45/1000)*1*1.163),0) -> 1.691815997 | F103: 1.937802785 | G103: 1.612805967 | H103: 2.914807719 | I103: 1.772049912
A104: Laufzeit gesamt (Std.) > | B104: =B17 -> 7.5 | C104: ="Berechnung nach Tagesverlauf bei starker Bewölkung (mit IAM) mit Diff. "&B5&" bei "&B6&" m²"&" am " -> Berechnung nach Tagesverlauf bei starker Bewölkung (mit IAM) mit Diff. 28 bei 10,46 m² am | H104: =H17 -> 2013-12-21
A105: Wirkungsgrad bei Diff.0 > | D105: =$D$6-$D$7*(0/1000)-$D$8*1000*((0/1000*0/1000)) -> 0.81 | E105: =$E$6-$E$7*(0/1000)-$E$8*1000*((0/1000*0/1000)) -> 0.785 | F105: =$F$6-$F$7*(0/1000)-$F$8*1000*((0/1000*0/1000)) -> 0.82 | G105: =$G$6-$G$7*(0/1000)-$G$8*1000*((0/1000*0/1000)) -> 0.8 | H105: =$H$6-$H$7*(0/1000)-$H$8*1000*((0/1000*0/1000)) -> 0.64 | I105: =$I$6-$I$7*(0/1000)-$I$8*1000*((0/1000*0/1000)) -> 0.654
A106: Wirkungsgrad bei eingestellter Diff. bei 0° > | D106: =IF(Eingaben!L124>0,($D$6-$D$7*($B$5/Eingaben!L124)-$D$8*Eingaben!L124*(($B$5/Eingaben!L124*$B$5/Eingaben!L124)))*$D$9,0) -> 0.1095709527 | E106: =IF(Eingaben!L124>0,($E$6-$E$7*($B$5/Eingaben!L124)-$E$8*Eingaben!L124*(($B$5/Eingaben!L124*$B$5/Eingaben!L124)))*$E$9,0) -> 0.02801132578 | F106: =IF(Eingaben!L124>0,($F$6-$F$7*($B$5/Eingaben!L124)-$F$8*Eingaben!L124*(($B$5/Eingaben!L124*$B$5/Eingaben!L124)))*$F$9,0) -> 0.08614257162 | G106: =IF(Eingaben!L124>0,($G$6-$G$7*($B$5/Eingaben!L124)-$G$8*Eingaben!L124*(($B$5/Eingaben!L124*$B$5/Eingaben!L124)))*$G$9,0) -> 0.003091272485 | H106: =IF(Eingaben!L124>0,($H$6-$H$7*($B$5/Eingaben!L124)-$H$8*Eingaben!L124*(($B$5/Eingaben!L124*$B$5/Eingaben!L124)))*$H$9,0) -> 0.4741638907 | I106: =IF(Eingaben!L124>0,($I$6-$I$7*($B$5/Eingaben!L124)-$I$8*Eingaben!L124*(($B$5/Eingaben!L124*$B$5/Eingaben!L124)))*$I$9,0) -> 0.2800199867
A107: Wirkungsgrad bei eingestellter Diff. bei 10° > | D107: =IF(Eingaben!L125>0,($D$6-$D$7*($B$5/Eingaben!L125)-$D$8*Eingaben!L125*(($B$5/Eingaben!L125*$B$5/Eingaben!L125)))*$D$10,0) -> 0.09137799043 | E107: =IF(Eingaben!L125>0,($E$6-$E$7*($B$5/Eingaben!L125)-$E$8*Eingaben!L125*(($B$5/Eingaben!L125*$B$5/Eingaben!L125)))*$E$10,0) -> 0.008349282297 | F107: =IF(Eingaben!L125>0,($F$6-$F$7*($B$5/Eingaben!L125)-$F$8*Eingaben!L125*(($B$5/Eingaben!L125*$B$5/Eingaben!L125)))*$F$10,0) -> 0.06708133971 | G107: =IF(Eingaben!L125>0,($G$6-$G$7*($B$5/Eingaben!L125)-$G$8*Eingaben!L125*(($B$5/Eingaben!L125*$B$5/Eingaben!L125)))*$G$10,0) -> -0.0176076555 | H107: =IF(Eingaben!L125>0,($H$6-$H$7*($B$5/Eingaben!L125)-$H$8*Eingaben!L125*(($B$5/Eingaben!L125*$B$5/Eingaben!L125)))*$H$10,0) -> 0.4745550239 | I107: =IF(Eingaben!L125>0,($I$6-$I$7*($B$5/Eingaben!L125)-$I$8*Eingaben!L125*(($B$5/Eingaben!L125*$B$5/Eingaben!L125)))*$I$10,0) -> 0.2703062201
A108: Wirkungsgrad bei eingestellter Diff. bei 20° > | D108: =IF(Eingaben!L126>0,($D$6-$D$7*($B$5/Eingaben!L126)-$D$8*Eingaben!L126*(($B$5/Eingaben!L126*$B$5/Eingaben!L126)))*$D$11,0) -> -0.02208864266 | E108: =IF(Eingaben!L126>0,($E$6-$E$7*($B$5/Eingaben!L126)-$E$8*Eingaben!L126*(($B$5/Eingaben!L126*$B$5/Eingaben!L126)))*$E$11,0) -> -0.1131369806 | F108: =IF(Eingaben!L126>0,($F$6-$F$7*($B$5/Eingaben!L126)-$F$8*Eingaben!L126*(($B$5/Eingaben!L126*$B$5/Eingaben!L126)))*$F$11,0) -> -0.05128254848 | G108: =IF(Eingaben!L126>0,($G$6-$G$7*($B$5/Eingaben!L126)-$G$8*Eingaben!L126*(($B$5/Eingaben!L126*$B$5/Eingaben!L126)))*$G$11,0) -> -0.1452365651 | H108: =IF(Eingaben!L126>0,($H$6-$H$7*($B$5/Eingaben!L126)-$H$8*Eingaben!L126*(($B$5/Eingaben!L126*$B$5/Eingaben!L126)))*$H$11,0) -> 0.4474216066 | I108: =IF(Eingaben!L126>0,($I$6-$I$7*($B$5/Eingaben!L126)-$I$8*Eingaben!L126*(($B$5/Eingaben!L126*$B$5/Eingaben!L126)))*$I$11,0) -> 0.2181119114
A109: Wirkungsgrad bei eingestellter Diff. bei 30° > | D109: =IF(Eingaben!L127>0,($D$6-$D$7*($B$5/Eingaben!L127)-$D$8*Eingaben!L127*(($B$5/Eingaben!L127*$B$5/Eingaben!L127)))*$D$12,0) -> -0.2341388802 | E109: =IF(Eingaben!L127>0,($E$6-$E$7*($B$5/Eingaben!L127)-$E$8*Eingaben!L127*(($B$5/Eingaben!L127*$B$5/Eingaben!L127)))*$E$12,0) -> -0.3390889013 | F109: =IF(Eingaben!L127>0,($F$6-$F$7*($B$5/Eingaben!L127)-$F$8*Eingaben!L127*(($B$5/Eingaben!L127*$B$5/Eingaben!L127)))*$F$12,0) -> -0.2709199453 | G109: =IF(Eingaben!L127>0,($G$6-$G$7*($B$5/Eingaben!L127)-$G$8*Eingaben!L127*(($B$5/Eingaben!L127*$B$5/Eingaben!L127)))*$G$12,0) -> -0.3828401642 | H109: =IF(Eingaben!L127>0,($H$6-$H$7*($B$5/Eingaben!L127)-$H$8*Eingaben!L127*(($B$5/Eingaben!L127*$B$5/Eingaben!L127)))*$H$12,0) -> 0.4000704741 | I109: =IF(Eingaben!L127>0,($I$6-$I$7*($B$5/Eingaben!L127)-$I$8*Eingaben!L127*(($B$5/Eingaben!L127*$B$5/Eingaben!L127)))*$I$12,0) -> 0.1095263033
A110: Wirkungsgrad bei eingestellter Diff. bei 40° > | D110: =IF(Eingaben!L128>0,($D$6-$D$7*($B$5/Eingaben!L128)-$D$8*Eingaben!L128*(($B$5/Eingaben!L128*$B$5/Eingaben!L128)))*$D$13,0) -> -0.8954878409 | E110: =IF(Eingaben!L128>0,($E$6-$E$7*($B$5/Eingaben!L128)-$E$8*Eingaben!L128*(($B$5/Eingaben!L128*$B$5/Eingaben!L128)))*$E$13,0) -> -1.065574948 | F110: =IF(Eingaben!L128>0,($F$6-$F$7*($B$5/Eingaben!L128)-$F$8*Eingaben!L128*(($B$5/Eingaben!L128*$B$5/Eingaben!L128)))*$F$13,0) -> -0.9757966846 | G110: =IF(Eingaben!L128>0,($G$6-$G$7*($B$5/Eingaben!L128)-$G$8*Eingaben!L128*(($B$5/Eingaben!L128*$B$5/Eingaben!L128)))*$G$13,0) -> -1.147373726 | H110: =IF(Eingaben!L128>0,($H$6-$H$7*($B$5/Eingaben!L128)-$H$8*Eingaben!L128*(($B$5/Eingaben!L128*$B$5/Eingaben!L128)))*$H$13,0) -> 0.2319157895 | I110: =IF(Eingaben!L128>0,($I$6-$I$7*($B$5/Eingaben!L128)-$I$8*Eingaben!L128*(($B$5/Eingaben!L128*$B$5/Eingaben!L128)))*$I$13,0) -> -0.3594928305
A111: Wirkungsgrad bei eingestellter Diff. bei 50° > | D111: =IF(Eingaben!L129>0,($D$6-$D$7*($B$5/Eingaben!L129)-$D$8*Eingaben!L129*(($B$5/Eingaben!L129*$B$5/Eingaben!L129)))*$D$14,0) -> -3.573088421 | E111: =IF(Eingaben!L129>0,($E$6-$E$7*($B$5/Eingaben!L129)-$E$8*Eingaben!L129*(($B$5/Eingaben!L129*$B$5/Eingaben!L129)))*$E$14,0) -> -3.946598246 | F111: =IF(Eingaben!L129>0,($F$6-$F$7*($B$5/Eingaben!L129)-$F$8*Eingaben!L129*(($B$5/Eingaben!L129*$B$5/Eingaben!L129)))*$F$14,0) -> -3.770554386 | G111: =IF(Eingaben!L129>0,($G$6-$G$7*($B$5/Eingaben!L129)-$G$8*Eingaben!L129*(($B$5/Eingaben!L129*$B$5/Eingaben!L129)))*$G$14,0) -> -4.224 | H111: =IF(Eingaben!L129>0,($H$6-$H$7*($B$5/Eingaben!L129)-$H$8*Eingaben!L129*(($B$5/Eingaben!L129*$B$5/Eingaben!L129)))*$H$14,0) -> -0.4427192982 | I111: =IF(Eingaben!L129>0,($I$6-$I$7*($B$5/Eingaben!L129)-$I$8*Eingaben!L129*(($B$5/Eingaben!L129*$B$5/Eingaben!L129)))*$I$14,0) -> -2.458927719
A112: Wirkungsgrad bei eingestellter Diff. bei 60° > | D112: =IF(Eingaben!L130>0,($D$6-$D$7*($B$5/Eingaben!L130)-$D$8*Eingaben!L130*(($B$5/Eingaben!L130*$B$5/Eingaben!L130)))*$D$15,0) -> 0 | E112: =IF(Eingaben!L130>0,($E$6-$E$7*($B$5/Eingaben!L130)-$E$8*Eingaben!L130*(($B$5/Eingaben!L130*$B$5/Eingaben!L130)))*$E$15,0) -> 0 | F112: =IF(Eingaben!L130>0,($F$6-$F$7*($B$5/Eingaben!L130)-$F$8*Eingaben!L130*(($B$5/Eingaben!L130*$B$5/Eingaben!L130)))*$F$15,0) -> 0 | G112: =IF(Eingaben!L130>0,($G$6-$G$7*($B$5/Eingaben!L130)-$G$8*Eingaben!L130*(($B$5/Eingaben!L130*$B$5/Eingaben!L130)))*$G$15,0) -> 0 | H112: =IF(Eingaben!L130>0,($H$6-$H$7*($B$5/Eingaben!L130)-$H$8*Eingaben!L130*(($B$5/Eingaben!L130*$B$5/Eingaben!L130)))*$H$15,0) -> 0 | I112: =IF(Eingaben!L130>0,($I$6-$I$7*($B$5/Eingaben!L130)-$I$8*Eingaben!L130*(($B$5/Eingaben!L130*$B$5/Eingaben!L130)))*$I$15,0) -> 0
A113: Wirkungsgrad bei eingestellter Diff. bei 70° > | D113: =IF(Eingaben!L131>0,($D$6-$D$7*($B$5/Eingaben!L131)-$D$8*Eingaben!L131*(($B$5/Eingaben!L131*$B$5/Eingaben!L131)))*$D$16,0) -> 0 | E113: =IF(Eingaben!L131>0,($E$6-$E$7*($B$5/Eingaben!L131)-$E$8*Eingaben!L131*(($B$5/Eingaben!L131*$B$5/Eingaben!L131)))*$E$16,0) -> 0 | F113: =IF(Eingaben!L131>0,($F$6-$F$7*($B$5/Eingaben!L131)-$F$8*Eingaben!L131*(($B$5/Eingaben!L131*$B$5/Eingaben!L131)))*$F$16,0) -> 0 | G113: =IF(Eingaben!L131>0,($G$6-$G$7*($B$5/Eingaben!L131)-$G$8*Eingaben!L131*(($B$5/Eingaben!L131*$B$5/Eingaben!L131)))*$G$16,0) -> 0 | H113: =IF(Eingaben!L131>0,($H$6-$H$7*($B$5/Eingaben!L131)-$H$8*Eingaben!L131*(($B$5/Eingaben!L131*$B$5/Eingaben!L131)))*$H$16,0) -> 0 | I113: =IF(Eingaben!L131>0,($I$6-$I$7*($B$5/Eingaben!L131)-$I$8*Eingaben!L131*(($B$5/Eingaben!L131*$B$5/Eingaben!L131)))*$I$16,0) -> 0
A114: Leistung nach Tagesverlauf | C114: Azimut | D114: =D27 -> SolRose 26 | E114: =E27 -> Synergie 210 | F114: Sunex AMX 2,85 | G114: Sunex 2,0 | H114: Star Azzurro CPC | I114: Billig VRK
A115: Leistung bei eingetragener Fläche (KW) | C115: -70 | D115: =IF(D113>0,(Eingaben!L131*D113*$B$6/1000)*$D$5/$D$4,0) -> 0 | E115: =IF(E113>0,(Eingaben!L131*E113*$B$6/1000)*$E$5/$E$4,0) -> 0 | F115: =IF(F113>0,(Eingaben!L131*F113*$B$6/1000)*$F$5/$F$4,0) -> 0 | G115: =IF(G113>0,(Eingaben!L131*G113*$B$6/1000)*$G$5/$G$4,0) -> 0 | H115: =IF(H113>0,(Eingaben!L131*H113*$B$6/1000)*$H$5/$H$4,0) -> 0 | I115: =IF(I113>0,(Eingaben!L131*I113*$B$6/1000)*$I$5/$I$4,0) -> 0
A116: Leistung bei eingetragener Fläche (KW) | C116: -60 | D116: =IF(D112>0,(Eingaben!L130*D112*$B$6/1000)*$D$5/$D$4,0) -> 0 | E116: =IF(E112>0,(Eingaben!L130*E112*$B$6/1000)*$E$5/$E$4,0) -> 0 | F116: =IF(F112>0,(Eingaben!L130*F112*$B$6/1000)*$F$5/$F$4,0) -> 0 | G116: =IF(G112>0,(Eingaben!L130*G112*$B$6/1000)*$G$5/$G$4,0) -> 0 | H116: =IF(H112>0,(Eingaben!L130*H112*$B$6/1000)*$H$5/$H$4,0) -> 0 | I116: =IF(I112>0,(Eingaben!L130*I112*$B$6/1000)*$I$5/$I$4,0) -> 0
A117: Leistung bei eingetragener Fläche (KW) | C117: -50 | D117: =IF(D111>0,(Eingaben!L129*D111*$B$6/1000)*$D$5/$D$4,0) -> 0 | E117: =IF(E111>0,(Eingaben!L129*E111*$B$6/1000)*$E$5/$E$4,0) -> 0 | F117: =IF(F111>0,(Eingaben!L129*F111*$B$6/1000)*$F$5/$F$4,0) -> 0 | G117: =IF(G111>0,(Eingaben!L129*G111*$B$6/1000)*$G$5/$G$4,0) -> 0 | H117: =IF(H111>0,(Eingaben!L129*H111*$B$6/1000)*$H$5/$H$4,0) -> 0 | I117: =IF(I111>0,(Eingaben!L129*I111*$B$6/1000)*$I$5/$I$4,0) -> 0
A118: Leistung bei eingetragener Fläche (KW) | C118: -40 | D118: =IF(D110>0,(Eingaben!L128*D110*$B$6/1000)*$D$5/$D$4,0) -> 0 | E118: =IF(E110>0,(Eingaben!L128*E110*$B$6/1000)*$E$5/$E$4,0) -> 0 | F118: =IF(F110>0,(Eingaben!L128*F110*$B$6/1000)*$F$5/$F$4,0) -> 0 | G118: =IF(G110>0,(Eingaben!L128*G110*$B$6/1000)*$G$5/$G$4,0) -> 0 | H118: =IF(H110>0,(Eingaben!L128*H110*$B$6/1000)*$H$5/$H$4,0) -> 0.1295396563 | I118: =IF(I110>0,(Eingaben!L128*I110*$B$6/1000)*$I$5/$I$4,0) -> 0
A119: Leistung bei eingetragener Fläche (KW) | C119: -30 | D119: =IF(D109>0,(Eingaben!L127*D109*$B$6/1000)*$D$5/$D$4,0) -> 0 | E119: =IF(E109>0,(Eingaben!L127*E109*$B$6/1000)*$E$5/$E$4,0) -> 0 | F119: =IF(F109>0,(Eingaben!L127*F109*$B$6/1000)*$F$5/$F$4,0) -> 0 | G119: =IF(G109>0,(Eingaben!L127*G109*$B$6/1000)*$G$5/$G$4,0) -> 0 | H119: =IF(H109>0,(Eingaben!L127*H109*$B$6/1000)*$H$5/$H$4,0) -> 0.3721479016 | I119: =IF(I109>0,(Eingaben!L127*I109*$B$6/1000)*$I$5/$I$4,0) -> 0.07819809154
A120: Leistung bei eingetragener Fläche (KW) | C120: -20 | D120: =IF(D108>0,(Eingaben!L126*D108*$B$6/1000)*$D$5/$D$4,0) -> 0 | E120: =IF(E108>0,(Eingaben!L126*E108*$B$6/1000)*$E$5/$E$4,0) -> 0 | F120: =IF(F108>0,(Eingaben!L126*F108*$B$6/1000)*$F$5/$F$4,0) -> 0 | G120: =IF(G108>0,(Eingaben!L126*G108*$B$6/1000)*$G$5/$G$4,0) -> 0 | H120: =IF(H108>0,(Eingaben!L126*H108*$B$6/1000)*$H$5/$H$4,0) -> 0.5234404631 | I120: =IF(I108>0,(Eingaben!L126*I108*$B$6/1000)*$I$5/$I$4,0) -> 0.1958521632
A121: Leistung bei eingetragener Fläche (KW) | C121: -10 | D121: =IF(D107>0,(Eingaben!L125*D107*$B$6/1000)*$D$5/$D$4,0) -> 0.1328437782 | E121: =IF(E107>0,(Eingaben!L125*E107*$B$6/1000)*$E$5/$E$4,0) -> 0.01185102841 | F121: =IF(F107>0,(Eingaben!L125*F107*$B$6/1000)*$F$5/$F$4,0) -> 0.09550082049 | G121: =IF(G107>0,(Eingaben!L125*G107*$B$6/1000)*$G$5/$G$4,0) -> 0 | H121: =IF(H107>0,(Eingaben!L125*H107*$B$6/1000)*$H$5/$H$4,0) -> 0.6428445908 | I121: =IF(I107>0,(Eingaben!L125*I107*$B$6/1000)*$I$5/$I$4,0) -> 0.2810438644
A122: Leistung bei eingetragener Fläche (KW) | C122: 0 | D122: =IF(D106>0,(Eingaben!L124*D106*$B$6/1000)*$D$5/$D$4,0) -> 0.1634298642 | E122: =IF(E106>0,(Eingaben!L124*E106*$B$6/1000)*$E$5/$E$4,0) -> 0.04079218087 | F122: =IF(F106>0,(Eingaben!L124*F106*$B$6/1000)*$F$5/$F$4,0) -> 0.1258228662 | G122: =IF(G106>0,(Eingaben!L124*G106*$B$6/1000)*$G$5/$G$4,0) -> 0.004399177143 | H122: =IF(H106>0,(Eingaben!L124*H106*$B$6/1000)*$H$5/$H$4,0) -> 0.6589982516 | I122: =IF(I106>0,(Eingaben!L124*I106*$B$6/1000)*$I$5/$I$4,0) -> 0.2987056695
A123: Leistung bei eingetragener Fläche (KW) | C123: 10 | D123: =IF(D107>0,(Eingaben!L125*D107*$B$6/1000)*$D$5/$D$4,0) -> 0.1328437782 | E123: =IF(E107>0,(Eingaben!L125*E107*$B$6/1000)*$E$5/$E$4,0) -> 0.01185102841 | F123: =IF(F107>0,(Eingaben!L125*F107*$B$6/1000)*$F$5/$F$4,0) -> 0.09550082049 | G123: =IF(G107>0,(Eingaben!L125*G107*$B$6/1000)*$G$5/$G$4,0) -> 0 | H123: =IF(H107>0,(Eingaben!L125*H107*$B$6/1000)*$H$5/$H$4,0) -> 0.6428445908 | I123: =IF(I107>0,(Eingaben!L125*I107*$B$6/1000)*$I$5/$I$4,0) -> 0.2810438644
A124: Leistung bei eingetragener Fläche (KW) | C124: 20 | D124: =IF(D108>0,(Eingaben!L126*D108*$B$6/1000)*$D$5/$D$4,0) -> 0 | E124: =IF(E108>0,(Eingaben!L126*E108*$B$6/1000)*$E$5/$E$4,0) -> 0 | F124: =IF(F108>0,(Eingaben!L126*F108*$B$6/1000)*$F$5/$F$4,0) -> 0 | G124: =IF(G108>0,(Eingaben!L126*G108*$B$6/1000)*$G$5/$G$4,0) -> 0 | H124: =IF(H108>0,(Eingaben!L126*H108*$B$6/1000)*$H$5/$H$4,0) -> 0.5234404631 | I124: =IF(I108>0,(Eingaben!L126*I108*$B$6/1000)*$I$5/$I$4,0) -> 0.1958521632
A125: Leistung bei eingetragener Fläche (KW) | C125: 30 | D125: =IF(D109>0,(Eingaben!L127*D109*$B$6/1000)*$D$5/$D$4,0) -> 0 | E125: =IF(E109>0,(Eingaben!L127*E109*$B$6/1000)*$E$5/$E$4,0) -> 0 | F125: =IF(F109>0,(Eingaben!L127*F109*$B$6/1000)*$F$5/$F$4,0) -> 0 | G125: =IF(G109>0,(Eingaben!L127*G109*$B$6/1000)*$G$5/$G$4,0) -> 0 | H125: =IF(H109>0,(Eingaben!L127*H109*$B$6/1000)*$H$5/$H$4,0) -> 0.3721479016 | I125: =IF(I109>0,(Eingaben!L127*I109*$B$6/1000)*$I$5/$I$4,0) -> 0.07819809154
A126: Leistung bei eingetragener Fläche (KW) | C126: 40 | D126: =IF(D110>0,(Eingaben!L128*D110*$B$6/1000)*$D$5/$D$4,0) -> 0 | E126: =IF(E110>0,(Eingaben!L128*E110*$B$6/1000)*$E$5/$E$4,0) -> 0 | F126: =IF(F110>0,(Eingaben!L128*F110*$B$6/1000)*$F$5/$F$4,0) -> 0 | G126: =IF(G110>0,(Eingaben!L128*G110*$B$6/1000)*$G$5/$G$4,0) -> 0 | H126: =IF(H110>0,(Eingaben!L128*H110*$B$6/1000)*$H$5/$H$4,0) -> 0.1295396563 | I126: =IF(I110>0,(Eingaben!L128*I110*$B$6/1000)*$I$5/$I$4,0) -> 0
A127: Leistung bei eingetragener Fläche (KW) | C127: 50 | D127: =IF(D111>0,(Eingaben!L129*D111*$B$6/1000)*$D$5/$D$4,0) -> 0 | E127: =IF(E111>0,(Eingaben!L129*E111*$B$6/1000)*$E$5/$E$4,0) -> 0 | F127: =IF(F111>0,(Eingaben!L129*F111*$B$6/1000)*$F$5/$F$4,0) -> 0 | G127: =IF(G111>0,(Eingaben!L129*G111*$B$6/1000)*$G$5/$G$4,0) -> 0 | H127: =IF(H111>0,(Eingaben!L129*H111*$B$6/1000)*$H$5/$H$4,0) -> 0 | I127: =IF(I111>0,(Eingaben!L129*I111*$B$6/1000)*$I$5/$I$4,0) -> 0
A128: Leistung bei eingetragener Fläche (KW) | C128: 60 | D128: =IF(D112>0,(Eingaben!L130*D112*$B$6/1000)*$D$5/$D$4,0) -> 0 | E128: =IF(E112>0,(Eingaben!L130*E112*$B$6/1000)*$E$5/$E$4,0) -> 0 | F128: =IF(F112>0,(Eingaben!L130*F112*$B$6/1000)*$F$5/$F$4,0) -> 0 | G128: =IF(G112>0,(Eingaben!L130*G112*$B$6/1000)*$G$5/$G$4,0) -> 0 | H128: =IF(H112>0,(Eingaben!L130*H112*$B$6/1000)*$H$5/$H$4,0) -> 0 | I128: =IF(I112>0,(Eingaben!L130*I112*$B$6/1000)*$I$5/$I$4,0) -> 0
A129: Leistung bei eingetragener Fläche (KW) | C129: 70 | D129: =IF(D113>0,(Eingaben!L131*D113*$B$6/1000)*$D$5/$D$4,0) -> 0 | E129: =IF(E113>0,(Eingaben!L131*E113*$B$6/1000)*$E$5/$E$4,0) -> 0 | F129: =IF(F113>0,(Eingaben!L131*F113*$B$6/1000)*$F$5/$F$4,0) -> 0 | G129: =IF(G113>0,(Eingaben!L131*G113*$B$6/1000)*$G$5/$G$4,0) -> 0 | H129: =IF(H113>0,(Eingaben!L131*H113*$B$6/1000)*$H$5/$H$4,0) -> 0 | I129: =IF(I113>0,(Eingaben!L131*I113*$B$6/1000)*$I$5/$I$4,0) -> 0
A130: KW Schnitt > | D130: =SUM(D115:D129)/15 -> 0.02860782804 | E130: =SUM(E115:E129)/15 -> 0.004299615845 | F130: 0.02112163381 | G130: 0.0002932784762 | H130: 0.266329565 | I130: 0.09392626051
A131: KWH gesamt bei Azimut -70 bis +70 > | D131: =IF(D130>0,D130*$B$17,0) -> 0.2145587103 | E131: 0.03224711884 | F131: 0.1584122536 | G131: 0.002199588571 | H131: 1.997471738 | I131: 0.7044469538
A132: Puffervolumen (L) > | B132: =B45 -> 1500 | C132: Erwärmung (K)> | D132: =IF(D131>0,D131/(($B$45/1000)*1*1.163),0) -> 0.1229915221 | E132: =IF(E131>0,E131/(($B$45/1000)*1*1.163),0) -> 0.01848502083 | F132: 0.09080668019 | G132: 0.001260870491 | H132: 1.145011028 | I132: 0.4038102344

Sheet Sommer
A1: Solartirol Tool Sommer Berechnung eines Tagesverlaufes mit IAM (Beispielort Breitengrad 48,8 Kollektorneigung 50°, Strahlung mit Getsolar ermittelt)
C2: Infos > | D2: =Herbstfrühjahr!D2 -> 0 | E2: =Herbstfrühjahr!E2 -> 0 | F2: =Herbstfrühjahr!F2 -> 0 | G2: =Herbstfrühjahr!G2 -> 0 | H2: =Herbstfrühjahr!H2 -> 0 | I2: =Herbstfrühjahr!I2 -> 0
A3: allgemeine Eingaben | C3: Kollektor > | D3: =Herbstfrühjahr!D3 -> SolRose 26 | E3: =Herbstfrühjahr!E3 -> Synergie 210 | F3: =Herbstfrühjahr!F3 -> Sunex AMX 2,85 | G3: =Herbstfrühjahr!G3 -> Sunex 2,0 | H3: =Herbstfrühjahr!H3 -> Star Azzurro CPC | I3: =Herbstfrühjahr!I3 -> Billig VRK
C4: Bruttofl.(m²) | D4: =Herbstfrühjahr!D4 -> 2.6 | E4: =Herbstfrühjahr!E4 -> 2.07 | F4: =Herbstfrühjahr!F4 -> 2.87 | G4: =Herbstfrühjahr!G4 -> 2.03 | H4: =Herbstfrühjahr!H4 -> 3.92 | I4: =Herbstfrühjahr!I4 -> 4.18
A5: Berechnung zu Diff. | B5: =Eingaben!B5 -> 35 | C5: Aperturfl. (m²) | D5: =Herbstfrühjahr!D5 -> 2.47 | E5: =Herbstfrühjahr!E5 -> 1.92 | F5: =Herbstfrühjahr!F5 -> 2.67 | G5: =Herbstfrühjahr!G5 -> 1.84 | H5: =Herbstfrühjahr!H5 -> 3.47 | I5: =Herbstfrühjahr!I5 -> 2.84
A6: Gesamtfläche (m²) | B6: =Eingaben!B6 -> 10.46 | C6: η0 | D6: =Herbstfrühjahr!D6 -> 0.81 | E6: =Herbstfrühjahr!E6 -> 0.785 | F6: =Herbstfrühjahr!F6 -> 0.82 | G6: =Herbstfrühjahr!G6 -> 0.8 | H6: =Herbstfrühjahr!H6 -> 0.64 | I6: =Herbstfrühjahr!I6 -> 0.654
A7: Strahlungseingaben zu Datum | C7: a1 | D7: =Herbstfrühjahr!D7 -> 3.36 | E7: =Herbstfrühjahr!E7 -> 3.722 | F7: =Herbstfrühjahr!F7 -> 3.29 | G7: =Herbstfrühjahr!G7 -> 4.16 | H7: =Herbstfrühjahr!H7 -> 0.749 | I7: =Herbstfrühjahr!I7 -> 1.82
A8: GBS zu Datum (W/m²) | B8: =Eingaben!L31 -> 2013-06-21 | C8: a2 | D8: =Herbstfrühjahr!D8 -> 0.0141 | E8: =Herbstfrühjahr!E8 -> 0.012 | F8: =Herbstfrühjahr!F8 -> 0.023 | G8: =Herbstfrühjahr!G8 -> 0.004 | H8: =Herbstfrühjahr!H8 -> 0.005 | I8: =Herbstfrühjahr!I8 -> 0.0066
A9: Strahlung 0° | B9: =Eingaben!L32 -> 993 | C9: IAM 0° | D9: =Herbstfrühjahr!D9 -> 1 | E9: =Herbstfrühjahr!E9 -> 1 | F9: =Herbstfrühjahr!F9 -> 1 | G9: =Herbstfrühjahr!G9 -> 1 | H9: =Herbstfrühjahr!H9 -> 1 | I9: =Herbstfrühjahr!I9 -> 1
A10: Strahlung 10° | B10: =Eingaben!L33 -> 990 | C10: IAM 10° | D10: =Herbstfrühjahr!D10 -> 1 | E10: =Herbstfrühjahr!E10 -> 1 | F10: =Herbstfrühjahr!F10 -> 1 | G10: =Herbstfrühjahr!G10 -> 1 | H10: =Herbstfrühjahr!H10 -> 1.01 | I10: =Herbstfrühjahr!I10 -> 1
A11: Strahlung 20° | B11: =Eingaben!L34 -> 977 | C11: IAM 20° | D11: =Herbstfrühjahr!D11 -> 1 | E11: =Herbstfrühjahr!E11 -> 0.99 | F11: =Herbstfrühjahr!F11 -> 0.99 | G11: =Herbstfrühjahr!G11 -> 0.99 | H11: =Herbstfrühjahr!H11 -> 1.01 | I11: =Herbstfrühjahr!I11 -> 1.04
A12: Strahlung 30° | B12: =Eingaben!L35 -> 955 | C12: IAM 30° | D12: =Herbstfrühjahr!D12 -> 0.99 | E12: =Herbstfrühjahr!E12 -> 0.98 | F12: =Herbstfrühjahr!F12 -> 0.98 | G12: =Herbstfrühjahr!G12 -> 0.98 | H12: =Herbstfrühjahr!H12 -> 1.02 | I12: =Herbstfrühjahr!I12 -> 1.15
A13: Strahlung 40° | B13: =Eingaben!L36 -> 920 | C13: IAM 40° | D13: =Herbstfrühjahr!D13 -> 0.96 | E13: =Herbstfrühjahr!E13 -> 0.97 | F13: =Herbstfrühjahr!F13 -> 0.97 | G13: =Herbstfrühjahr!G13 -> 0.97 | H13: =Herbstfrühjahr!H13 -> 1.02 | I13: =Herbstfrühjahr!I13 -> 1.3
A14: Strahlung 50° | B14: =Eingaben!L37 -> 865 | C14: IAM 50° | D14: =Herbstfrühjahr!D14 -> 0.94 | E14: =Herbstfrühjahr!E14 -> 0.94 | F14: =Herbstfrühjahr!F14 -> 0.94 | G14: =Herbstfrühjahr!G14 -> 0.95 | H14: =Herbstfrühjahr!H14 -> 0.98 | I14: =Herbstfrühjahr!I14 -> 1.36
A15: Strahlung 60° | B15: =Eingaben!L38 -> 786 | C15: IAM 60° | D15: =Herbstfrühjahr!D15 -> 0.86 | E15: =Herbstfrühjahr!E15 -> 0.9 | F15: =Herbstfrühjahr!F15 -> 0.9 | G15: =Herbstfrühjahr!G15 -> 0.9 | H15: =Herbstfrühjahr!H15 -> 1.05 | I15: =Herbstfrühjahr!I15 -> 1.34
A16: Strahlung 70° | B16: =Eingaben!L39 -> 673 | C16: IAM 70° | D16: =Herbstfrühjahr!D16 -> 0.73 | E16: =Herbstfrühjahr!E16 -> 0.8 | F16: =Herbstfrühjahr!F16 -> 0.81 | G16: =Herbstfrühjahr!G16 -> 0.81 | H16: =Herbstfrühjahr!H16 -> 1.14 | I16: =Herbstfrühjahr!I16 -> 1.11
A17: Laufzeit gesamt (Std.) > | B17: =Eingaben!L40 -> 5.9 | C17: ="Berechnung nach Tagesverlauf bei Sonne (mit IAM) mit Diff. "&B5&" bei "&B6&" m²"&" am " -> Berechnung nach Tagesverlauf bei Sonne (mit IAM) mit Diff. 35 bei 10,46 m² am | D17: ="Berechnung nach Tagesverlauf (mit IAM) mit Diff. "&B5&" bei "&B6&" m²"&" am " -> Berechnung nach Tagesverlauf (mit IAM) mit Diff. 35 bei 10,46 m² am | H17: =B8 -> 2013-06-21
A18: Tageswirkungsgrad bei Sonne (%) > | D18: =IF(D44>0,D44/(Eingaben!$M$4/100),"") -> 59.02212687 | E18: =IF(E44>0,E44/(Eingaben!$M$4/100),"") -> 55.00818812 | F18: =IF(F44>0,F44/(Eingaben!$M$4/100),"") -> 58.49151307 | G18: =IF(G44>0,G44/(Eingaben!$M$4/100),"") -> 54.64269592 | H18: =IF(H44>0,H44/(Eingaben!$M$4/100),"") -> 54.80600933 | I18: =IF(I44>0,I44/(Eingaben!$M$4/100),"") -> 45.40207453
A19: Wirkungsgrad bei eingestellter Diff. bei 0° > | D19: =IF($B$9>0,($D$6-$D$7*($B$5/$B$9)-$D$8*$B$9*(($B$5/$B$9*$B$5/$B$9)))*$D$9,0) -> 0.6741767372 | E19: =IF($B$9>0,($E$6-$E$7*($B$5/$B$9)-$E$8*$B$9*(($B$5/$B$9*$B$5/$B$9)))*$E$9,0) -> 0.6390080564 | F19: =IF($B$9>0,($F$6-$F$7*($B$5/$B$9)-$F$8*$B$9*(($B$5/$B$9*$B$5/$B$9)))*$F$9,0) -> 0.6756646526 | G19: =IF($B$9>0,($G$6-$G$7*($B$5/$B$9)-$G$8*$B$9*(($B$5/$B$9*$B$5/$B$9)))*$G$9,0) -> 0.6484390735 | H19: =IF($B$9>0,($H$6-$H$7*($B$5/$B$9)-$H$8*$B$9*(($B$5/$B$9*$B$5/$B$9)))*$H$9,0) -> 0.6074320242 | I19: =IF($B$9>0,($I$6-$I$7*($B$5/$B$9)-$I$8*$B$9*(($B$5/$B$9*$B$5/$B$9)))*$I$9,0) -> 0.5817089627
A20: Wirkungsgrad bei eingestellter Diff. bei 10° > | D20: =IF($B$10>0,($D$6-$D$7*($B$5/$B$10)-$D$8*$B$10*(($B$5/$B$10*$B$5/$B$10)))*$D$10,0) -> 0.6737651515 | E20: =IF($B$10>0,($E$6-$E$7*($B$5/$B$10)-$E$8*$B$10*(($B$5/$B$10*$B$5/$B$10)))*$E$10,0) -> 0.6385656566 | F20: =IF($B$10>0,($F$6-$F$7*($B$5/$B$10)-$F$8*$B$10*(($B$5/$B$10*$B$5/$B$10)))*$F$10,0) -> 0.6752272727 | G20: =IF($B$10>0,($G$6-$G$7*($B$5/$B$10)-$G$8*$B$10*(($B$5/$B$10*$B$5/$B$10)))*$G$10,0) -> 0.647979798 | H20: =IF($B$10>0,($H$6-$H$7*($B$5/$B$10)-$H$8*$B$10*(($B$5/$B$10*$B$5/$B$10)))*$H$10,0) -> 0.6134066667 | I20: =IF($B$10>0,($I$6-$I$7*($B$5/$B$10)-$I$8*$B$10*(($B$5/$B$10*$B$5/$B$10)))*$I$10,0) -> 0.581489899
A21: Wirkungsgrad bei eingestellter Diff. bei 20° > | D21: =IF($B$11>0,($D$6-$D$7*($B$5/$B$11)-$D$8*$B$11*(($B$5/$B$11*$B$5/$B$11)))*$D$11,0) -> 0.6719524053 | E21: =IF($B$11>0,($E$6-$E$7*($B$5/$B$11)-$E$8*$B$11*(($B$5/$B$11*$B$5/$B$11)))*$E$11,0) -> 0.6302510235 | F21: =IF($B$11>0,($F$6-$F$7*($B$5/$B$11)-$F$8*$B$11*(($B$5/$B$11*$B$5/$B$11)))*$F$11,0) -> 0.666567912 | G21: =IF($B$11>0,($G$6-$G$7*($B$5/$B$11)-$G$8*$B$11*(($B$5/$B$11*$B$5/$B$11)))*$G$11,0) -> 0.6394974411 | H21: =IF($B$11>0,($H$6-$H$7*($B$5/$B$11)-$H$8*$B$11*(($B$5/$B$11*$B$5/$B$11)))*$H$11,0) -> 0.6129676561 | I21: =IF($B$11>0,($I$6-$I$7*($B$5/$B$11)-$I$8*$B$11*(($B$5/$B$11*$B$5/$B$11)))*$I$11,0) -> 0.6037460798
A22: Wirkungsgrad bei eingestellter Diff. bei 30° > | D22: =IF($B$12>0,($D$6-$D$7*($B$5/$B$12)-$D$8*$B$12*(($B$5/$B$12*$B$5/$B$12)))*$D$12,0) -> 0.6620845288 | E22: =IF($B$12>0,($E$6-$E$7*($B$5/$B$12)-$E$8*$B$12*(($B$5/$B$12*$B$5/$B$12)))*$E$12,0) -> 0.6205349738 | F22: =IF($B$12>0,($F$6-$F$7*($B$5/$B$12)-$F$8*$B$12*(($B$5/$B$12*$B$5/$B$12)))*$F$12,0) -> 0.6565230366 | G22: =IF($B$12>0,($G$6-$G$7*($B$5/$B$12)-$G$8*$B$12*(($B$5/$B$12*$B$5/$B$12)))*$G$12,0) -> 0.6295602094 | H22: =IF($B$12>0,($H$6-$H$7*($B$5/$B$12)-$H$8*$B$12*(($B$5/$B$12*$B$5/$B$12)))*$H$12,0) -> 0.6182588482 | I22: =IF($B$12>0,($I$6-$I$7*($B$5/$B$12)-$I$8*$B$12*(($B$5/$B$12*$B$5/$B$12)))*$I$12,0) -> 0.6656573298
A23: Wirkungsgrad bei eingestellter Diff. bei 40° > | D23: =IF($B$13>0,($D$6-$D$7*($B$5/$B$13)-$D$8*$B$13*(($B$5/$B$13*$B$5/$B$13)))*$D$13,0) -> 0.6368634783 | E23: =IF($B$13>0,($E$6-$E$7*($B$5/$B$13)-$E$8*$B$13*(($B$5/$B$13*$B$5/$B$13)))*$E$13,0) -> 0.6086011957 | F23: =IF($B$13>0,($F$6-$F$7*($B$5/$B$13)-$F$8*$B$13*(($B$5/$B$13*$B$5/$B$13)))*$F$13,0) -> 0.6442855978 | G23: =IF($B$13>0,($G$6-$G$7*($B$5/$B$13)-$G$8*$B$13*(($B$5/$B$13*$B$5/$B$13)))*$G$13,0) -> 0.6173206522 | H23: =IF($B$13>0,($H$6-$H$7*($B$5/$B$13)-$H$8*$B$13*(($B$5/$B$13*$B$5/$B$13)))*$H$13,0) -> 0.6169447826 | I23: =IF($B$13>0,($I$6-$I$7*($B$5/$B$13)-$I$8*$B$13*(($B$5/$B$13*$B$5/$B$13)))*$I$13,0) -> 0.7487646739
A24: Wirkungsgrad bei eingestellter Diff. bei 50° > | D24: =IF($B$14>0,($D$6-$D$7*($B$5/$B$14)-$D$8*$B$14*(($B$5/$B$14*$B$5/$B$14)))*$D$14,0) -> 0.6148333526 | E24: =IF($B$14>0,($E$6-$E$7*($B$5/$B$14)-$E$8*$B$14*(($B$5/$B$14*$B$5/$B$14)))*$E$14,0) -> 0.5803603468 | F24: =IF($B$14>0,($F$6-$F$7*($B$5/$B$14)-$F$8*$B$14*(($B$5/$B$14*$B$5/$B$14)))*$F$14,0) -> 0.6150479769 | G24: =IF($B$14>0,($G$6-$G$7*($B$5/$B$14)-$G$8*$B$14*(($B$5/$B$14*$B$5/$B$14)))*$G$14,0) -> 0.5947109827 | H24: =IF($B$14>0,($H$6-$H$7*($B$5/$B$14)-$H$8*$B$14*(($B$5/$B$14*$B$5/$B$14)))*$H$14,0) -> 0.5905604624 | I24: =IF($B$14>0,($I$6-$I$7*($B$5/$B$14)-$I$8*$B$14*(($B$5/$B$14*$B$5/$B$14)))*$I$14,0) -> 0.7765757225
A25: Wirkungsgrad bei eingestellter Diff. bei 60° > | D25: =IF($B$15>0,($D$6-$D$7*($B$5/$B$15)-$D$8*$B$15*(($B$5/$B$15*$B$5/$B$15)))*$D$15,0) -> 0.5490295802 | E25: =IF($B$15>0,($E$6-$E$7*($B$5/$B$15)-$E$8*$B$15*(($B$5/$B$15*$B$5/$B$15)))*$E$15,0) -> 0.5405038168 | F25: =IF($B$15>0,($F$6-$F$7*($B$5/$B$15)-$F$8*$B$15*(($B$5/$B$15*$B$5/$B$15)))*$F$15,0) -> 0.5738874046 | G25: =IF($B$15>0,($G$6-$G$7*($B$5/$B$15)-$G$8*$B$15*(($B$5/$B$15*$B$5/$B$15)))*$G$15,0) -> 0.5476717557 | H25: =IF($B$15>0,($H$6-$H$7*($B$5/$B$15)-$H$8*$B$15*(($B$5/$B$15*$B$5/$B$15)))*$H$15,0) -> 0.6287977099 | I25: =IF($B$15>0,($I$6-$I$7*($B$5/$B$15)-$I$8*$B$15*(($B$5/$B$15*$B$5/$B$15)))*$I$15,0) -> 0.7539784478
A26: Wirkungsgrad bei eingestellter Diff. bei 70° > | D26: =IF($B$16>0,($D$6-$D$7*($B$5/$B$16)-$D$8*$B$16*(($B$5/$B$16*$B$5/$B$16)))*$D$16,0) -> 0.4450044205 | E26: =IF($B$16>0,($E$6-$E$7*($B$5/$B$16)-$E$8*$B$16*(($B$5/$B$16*$B$5/$B$16)))*$E$16,0) -> 0.4556731055 | F26: =IF($B$16>0,($F$6-$F$7*($B$5/$B$16)-$F$8*$B$16*(($B$5/$B$16*$B$5/$B$16)))*$F$16,0) -> 0.4916988856 | G26: =IF($B$16>0,($G$6-$G$7*($B$5/$B$16)-$G$8*$B$16*(($B$5/$B$16*$B$5/$B$16)))*$G$16,0) -> 0.4668632987 | H26: =IF($B$16>0,($H$6-$H$7*($B$5/$B$16)-$H$8*$B$16*(($B$5/$B$16*$B$5/$B$16)))*$H$16,0) -> 0.6748190193 | I26: =IF($B$16>0,($I$6-$I$7*($B$5/$B$16)-$I$8*$B$16*(($B$5/$B$16*$B$5/$B$16)))*$I$16,0) -> 0.6075427489
A27: Leistung nach Tagesverlauf | C27: Azimut | D27: =IF(D3>0,D3,"") -> SolRose 26 | E27: =IF(E3>0,E3,"") -> Synergie 210 | F27: Sunex AMX 2,85 | G27: Sunex 2,0 | H27: Star Azzurro CPC | I27: Billig VRK
A28: Leistung bei eingetragener Fläche (KW) | C28: -70 | D28: =IF(D26>0,($B$16*D26*$B$6/1000)*$D$5/$D$4,0) -> 2.976012008 | E28: =IF(E26>0,($B$16*E26*$B$6/1000)*$E$5/$E$4,0) -> 2.975301825 | F28: =IF(F26>0,($B$16*F26*$B$6/1000)*$F$5/$F$4,0) -> 3.220144328 | G28: =IF(G26>0,($B$16*G26*$B$6/1000)*$G$5/$G$4,0) -> 2.978916076 | H28: =IF(H26>0,($B$16*H26*$B$6/1000)*$H$5/$H$4,0) -> 4.205111066 | I28: =IF(I26>0,($B$16*I26*$B$6/1000)*$I$5/$I$4,0) -> 2.905799528
A29: Leistung bei eingetragener Fläche (KW) | C29: -60 | D29: =IF(D25>0,($B$15*D25*$B$6/1000)*$D$5/$D$4,0) -> 4.288185653 | E29: =IF(E25>0,($B$15*E25*$B$6/1000)*$E$5/$E$4,0) -> 4.121771186 | F29: =IF(F25>0,($B$15*F25*$B$6/1000)*$F$5/$F$4,0) -> 4.389451839 | G29: =IF(G25>0,($B$15*G25*$B$6/1000)*$G$5/$G$4,0) -> 4.081279708 | H29: =IF(H25>0,($B$15*H25*$B$6/1000)*$H$5/$H$4,0) -> 4.576237859 | I29: =IF(I25>0,($B$15*I25*$B$6/1000)*$I$5/$I$4,0) -> 4.211678587
A30: Leistung bei eingetragener Fläche (KW) | C30: -50 | D30: =IF(D24>0,($B$14*D24*$B$6/1000)*$D$5/$D$4,0) -> 5.284803156 | E30: =IF(E24>0,($B$14*E24*$B$6/1000)*$E$5/$E$4,0) -> 4.870532064 | F30: =IF(F24>0,($B$14*F24*$B$6/1000)*$F$5/$F$4,0) -> 5.177095197 | G30: =IF(G24>0,($B$14*G24*$B$6/1000)*$G$5/$G$4,0) -> 4.877255823 | H30: =IF(H24>0,($B$14*H24*$B$6/1000)*$H$5/$H$4,0) -> 4.729939303 | I30: =IF(I24>0,($B$14*I24*$B$6/1000)*$I$5/$I$4,0) -> 4.773903762
A31: Leistung bei eingetragener Fläche (KW) | C31: -40 | D31: =IF(D23>0,($B$13*D23*$B$6/1000)*$D$5/$D$4,0) -> 5.822231393 | E31: =IF(E23>0,($B$13*E23*$B$6/1000)*$E$5/$E$4,0) -> 5.432293126 | F31: =IF(F23>0,($B$13*F23*$B$6/1000)*$F$5/$F$4,0) -> 5.768027202 | G31: =IF(G23>0,($B$13*G23*$B$6/1000)*$G$5/$G$4,0) -> 5.384583342 | H31: =IF(H23>0,($B$13*H23*$B$6/1000)*$H$5/$H$4,0) -> 5.255441613 | I31: =IF(I23>0,($B$13*I23*$B$6/1000)*$I$5/$I$4,0) -> 4.895611167
A32: Leistung bei eingetragener Fläche (KW) | C32: -30 | D32: =IF(D22>0,($B$12*D22*$B$6/1000)*$D$5/$D$4,0) -> 6.283072934 | E32: =IF(E22>0,($B$12*E22*$B$6/1000)*$E$5/$E$4,0) -> 5.749528129 | F32: =IF(F22>0,($B$12*F22*$B$6/1000)*$F$5/$F$4,0) -> 6.10118776 | G32: =IF(G22>0,($B$12*G22*$B$6/1000)*$G$5/$G$4,0) -> 5.700252745 | H32: =IF(H22>0,($B$12*H22*$B$6/1000)*$H$5/$H$4,0) -> 5.466996607 | I32: =IF(I22>0,($B$12*I22*$B$6/1000)*$I$5/$I$4,0) -> 4.517808654
A33: Leistung bei eingetragener Fläche (KW) | C33: -20 | D33: =IF(D21>0,($B$11*D21*$B$6/1000)*$D$5/$D$4,0) -> 6.523615658 | E33: =IF(E21>0,($B$11*E21*$B$6/1000)*$E$5/$E$4,0) -> 5.974075283 | F33: =IF(F21>0,($B$11*F21*$B$6/1000)*$F$5/$F$4,0) -> 6.337237977 | G33: =IF(G21>0,($B$11*G21*$B$6/1000)*$G$5/$G$4,0) -> 5.923615276 | H33: =IF(H21>0,($B$11*H21*$B$6/1000)*$H$5/$H$4,0) -> 5.545072326 | I33: =IF(I21>0,($B$11*I21*$B$6/1000)*$I$5/$I$4,0) -> 4.192013093
A34: Leistung bei eingetragener Fläche (KW) | C34: -10 | D34: =IF(D20>0,($B$10*D20*$B$6/1000)*$D$5/$D$4,0) -> 6.628252268 | E34: =IF(E20>0,($B$10*E20*$B$6/1000)*$E$5/$E$4,0) -> 6.133428684 | F34: =IF(F20>0,($B$10*F20*$B$6/1000)*$F$5/$F$4,0) -> 6.504983796 | G34: =IF(G20>0,($B$10*G20*$B$6/1000)*$G$5/$G$4,0) -> 6.08205202 | H34: =IF(H20>0,($B$10*H20*$B$6/1000)*$H$5/$H$4,0) -> 5.622879527 | I34: =IF(I20>0,($B$10*I20*$B$6/1000)*$I$5/$I$4,0) -> 4.091203785
A35: Leistung bei eingetragener Fläche (KW) | C35: 0 | D35: =IF(D19>0,($B$9*D19*$B$6/1000)*$D$5/$D$4,0) -> 6.652399178 | E35: =IF(E19>0,($B$9*E19*$B$6/1000)*$E$5/$E$4,0) -> 6.156276962 | F35: =IF(F19>0,($B$9*F19*$B$6/1000)*$F$5/$F$4,0) -> 6.528922253 | G35: =IF(G19>0,($B$9*G19*$B$6/1000)*$G$5/$G$4,0) -> 6.104806384 | H35: =IF(H19>0,($B$9*H19*$B$6/1000)*$H$5/$H$4,0) -> 5.584985183 | I35: =IF(I19>0,($B$9*I19*$B$6/1000)*$I$5/$I$4,0) -> 4.105147315
A36: Leistung bei eingetragener Fläche (KW) | C36: 10 | D36: =IF(D20>0,($B$10*D20*$B$6/1000)*$D$5/$D$4,0) -> 6.628252268 | E36: =IF(E20>0,($B$10*E20*$B$6/1000)*$E$5/$E$4,0) -> 6.133428684 | F36: =IF(F20>0,($B$10*F20*$B$6/1000)*$F$5/$F$4,0) -> 6.504983796 | G36: =IF(G20>0,($B$10*G20*$B$6/1000)*$G$5/$G$4,0) -> 6.08205202 | H36: =IF(H20>0,($B$10*H20*$B$6/1000)*$H$5/$H$4,0) -> 5.622879527 | I36: =IF(I20>0,($B$10*I20*$B$6/1000)*$I$5/$I$4,0) -> 4.091203785
A37: Leistung bei eingetragener Fläche (KW) | C37: 20 | D37: =IF(D21>0,($B$11*D21*$B$6/1000)*$D$5/$D$4,0) -> 6.523615658 | E37: =IF(E21>0,($B$11*E21*$B$6/1000)*$E$5/$E$4,0) -> 5.974075283 | F37: =IF(F21>0,($B$11*F21*$B$6/1000)*$F$5/$F$4,0) -> 6.337237977 | G37: =IF(G21>0,($B$11*G21*$B$6/1000)*$G$5/$G$4,0) -> 5.923615276 | H37: =IF(H21>0,($B$11*H21*$B$6/1000)*$H$5/$H$4,0) -> 5.545072326 | I37: =IF(I21>0,($B$11*I21*$B$6/1000)*$I$5/$I$4,0) -> 4.192013093
A38: Leistung bei eingetragener Fläche (KW) | C38: 30 | D38: =IF(D22>0,($B$12*D22*$B$6/1000)*$D$5/$D$4,0) -> 6.283072934 | E38: =IF(E22>0,($B$12*E22*$B$6/1000)*$E$5/$E$4,0) -> 5.749528129 | F38: =IF(F22>0,($B$12*F22*$B$6/1000)*$F$5/$F$4,0) -> 6.10118776 | G38: =IF(G22>0,($B$12*G22*$B$6/1000)*$G$5/$G$4,0) -> 5.700252745 | H38: =IF(H22>0,($B$12*H22*$B$6/1000)*$H$5/$H$4,0) -> 5.466996607 | I38: =IF(I22>0,($B$12*I22*$B$6/1000)*$I$5/$I$4,0) -> 4.517808654
A39: Leistung bei eingetragener Fläche (KW) | C39: 40 | D39: =IF(D23>0,($B$13*D23*$B$6/1000)*$D$5/$D$4,0) -> 5.822231393 | E39: =IF(E23>0,($B$13*E23*$B$6/1000)*$E$5/$E$4,0) -> 5.432293126 | F39: =IF(F23>0,($B$13*F23*$B$6/1000)*$F$5/$F$4,0) -> 5.768027202 | G39: =IF(G23>0,($B$13*G23*$B$6/1000)*$G$5/$G$4,0) -> 5.384583342 | H39: =IF(H23>0,($B$13*H23*$B$6/1000)*$H$5/$H$4,0) -> 5.255441613 | I39: =IF(I23>0,($B$13*I23*$B$6/1000)*$I$5/$I$4,0) -> 4.895611167
A40: Leistung bei eingetragener Fläche (KW) | C40: 50 | D40: =IF(D24>0,($B$14*D24*$B$6/1000)*$D$5/$D$4,0) -> 5.284803156 | E40: =IF(E24>0,($B$14*E24*$B$6/1000)*$E$5/$E$4,0) -> 4.870532064 | F40: =IF(F24>0,($B$14*F24*$B$6/1000)*$F$5/$F$4,0) -> 5.177095197 | G40: =IF(G24>0,($B$14*G24*$B$6/1000)*$G$5/$G$4,0) -> 4.877255823 | H40: =IF(H24>0,($B$14*H24*$B$6/1000)*$H$5/$H$4,0) -> 4.729939303 | I40: =IF(I24>0,($B$14*I24*$B$6/1000)*$I$5/$I$4,0) -> 4.773903762
A41: Leistung bei eingetragener Fläche (KW) | C41: 60 | D41: =IF(D25>0,($B$15*D25*$B$6/1000)*$D$5/$D$4,0) -> 4.288185653 | E41: =IF(E25>0,($B$15*E25*$B$6/1000)*$E$5/$E$4,0) -> 4.121771186 | F41: =IF(F25>0,($B$15*F25*$B$6/1000)*$F$5/$F$4,0) -> 4.389451839 | G41: =IF(G25>0,($B$15*G25*$B$6/1000)*$G$5/$G$4,0) -> 4.081279708 | H41: =IF(H25>0,($B$15*H25*$B$6/1000)*$H$5/$H$4,0) -> 4.576237859 | I41: =IF(I25>0,($B$15*I25*$B$6/1000)*$I$5/$I$4,0) -> 4.211678587
A42: Leistung bei eingetragener Fläche (KW) | C42: 70 | D42: =IF(D26>0,($B$16*D26*$B$6/1000)*$D$5/$D$4,0) -> 2.976012008 | E42: =IF(E26>0,($B$16*E26*$B$6/1000)*$E$5/$E$4,0) -> 2.975301825 | F42: =IF(F26>0,($B$16*F26*$B$6/1000)*$F$5/$F$4,0) -> 3.220144328 | G42: =IF(G26>0,($B$16*G26*$B$6/1000)*$G$5/$G$4,0) -> 2.978916076 | H42: =IF(H26>0,($B$16*H26*$B$6/1000)*$H$5/$H$4,0) -> 4.205111066 | I42: =IF(I26>0,($B$16*I26*$B$6/1000)*$I$5/$I$4,0) -> 2.905799528
A43: KW Schnitt > | D43: =SUM(D28:D42)/15 -> 5.484316354 | E43: 5.111342504 | F43: 5.435011897 | G43: 5.077381091 | H43: 5.092556119 | I43: 4.218745631
A44: KWH gesamt bei Azimut -70 bis +70 > | D44: =IF(D43>0,D43*$B$17,0) -> 32.35746649 | E44: 30.15692077 | F44: 32.06657019 | G44: 29.95654844 | H44: 30.0460811 | I44: 24.89059922
A45: Puffervolumen (L) > | B45: =Eingaben!B7 -> 1500 | C45: Erwärmung (K)> | D45: =IF(D44>0,D44/(($B$45/1000)*1*1.163),0) -> 18.54827543 | E45: =IF(E44>0,E44/(($B$45/1000)*1*1.163),0) -> 17.28685628 | F45: 18.3815249 | G45: 17.17199681 | H45: 17.22331963 | I45: 14.26804197
A46: Laufzeit gesamt (Std.) > | B46: =B17 -> 5.9 | C46: ="Berechnung nach Tagesverlauf bei leichter Bewölkung (mit IAM) mit Diff. "&B5&" bei "&B6&" m²"&" am " -> Berechnung nach Tagesverlauf bei leichter Bewölkung (mit IAM) mit Diff. 35 bei 10,46 m² am | H46: =H17 -> 2013-06-21
A47: Wirkungsgrad bei Diff.0 > | D47: =$D$6-$D$7*(0/1000)-$D$8*1000*((0/1000*0/1000)) -> 0.81 | E47: =$E$6-$E$7*(0/1000)-$E$8*1000*((0/1000*0/1000)) -> 0.785 | F47: =$F$6-$F$7*(0/1000)-$F$8*1000*((0/1000*0/1000)) -> 0.82 | G47: =$G$6-$G$7*(0/1000)-$G$8*1000*((0/1000*0/1000)) -> 0.8 | H47: =$H$6-$H$7*(0/1000)-$H$8*1000*((0/1000*0/1000)) -> 0.64 | I47: =$I$6-$I$7*(0/1000)-$I$8*1000*((0/1000*0/1000)) -> 0.654
A48: Wirkungsgrad bei eingestellter Diff. bei 0° > | D48: =IF(Eingaben!L68>0,($D$6-$D$7*($B$5/Eingaben!L68)-$D$8*Eingaben!L68*(($B$5/Eingaben!L68*$B$5/Eingaben!L68)))*$D$9,0) -> 0.6289023162 | E48: =IF(Eingaben!L68>0,($E$6-$E$7*($B$5/Eingaben!L68)-$E$8*Eingaben!L68*(($B$5/Eingaben!L68*$B$5/Eingaben!L68)))*$E$9,0) -> 0.5903440752 | F48: =IF(Eingaben!L68>0,($F$6-$F$7*($B$5/Eingaben!L68)-$F$8*Eingaben!L68*(($B$5/Eingaben!L68*$B$5/Eingaben!L68)))*$F$9,0) -> 0.6275528701 | G48: =IF(Eingaben!L68>0,($G$6-$G$7*($B$5/Eingaben!L68)-$G$8*Eingaben!L68*(($B$5/Eingaben!L68*$B$5/Eingaben!L68)))*$G$9,0) -> 0.5979187647 | H48: =IF(Eingaben!L68>0,($H$6-$H$7*($B$5/Eingaben!L68)-$H$8*Eingaben!L68*(($B$5/Eingaben!L68*$B$5/Eingaben!L68)))*$H$9,0) -> 0.5965760322 | I48: =IF(Eingaben!L68>0,($I$6-$I$7*($B$5/Eingaben!L68)-$I$8*Eingaben!L68*(($B$5/Eingaben!L68*$B$5/Eingaben!L68)))*$I$9,0) -> 0.5576119503
A49: Wirkungsgrad bei eingestellter Diff. bei 10° > | D49: =IF(Eingaben!L69>0,($D$6-$D$7*($B$5/Eingaben!L69)-$D$8*Eingaben!L69*(($B$5/Eingaben!L69*$B$5/Eingaben!L69)))*$D$10,0) -> 0.6283535354 | E49: =IF(Eingaben!L69>0,($E$6-$E$7*($B$5/Eingaben!L69)-$E$8*Eingaben!L69*(($B$5/Eingaben!L69*$B$5/Eingaben!L69)))*$E$10,0) -> 0.5897542088 | F49: =IF(Eingaben!L69>0,($F$6-$F$7*($B$5/Eingaben!L69)-$F$8*Eingaben!L69*(($B$5/Eingaben!L69*$B$5/Eingaben!L69)))*$F$10,0) -> 0.626969697 | G49: =IF(Eingaben!L69>0,($G$6-$G$7*($B$5/Eingaben!L69)-$G$8*Eingaben!L69*(($B$5/Eingaben!L69*$B$5/Eingaben!L69)))*$G$10,0) -> 0.5973063973 | H49: =IF(Eingaben!L69>0,($H$6-$H$7*($B$5/Eingaben!L69)-$H$8*Eingaben!L69*(($B$5/Eingaben!L69*$B$5/Eingaben!L69)))*$H$10,0) -> 0.6024088889 | I49: =IF(Eingaben!L69>0,($I$6-$I$7*($B$5/Eingaben!L69)-$I$8*Eingaben!L69*(($B$5/Eingaben!L69*$B$5/Eingaben!L69)))*$I$10,0) -> 0.5573198653
A50: Wirkungsgrad bei eingestellter Diff. bei 20° > | D50: =IF(Eingaben!L70>0,($D$6-$D$7*($B$5/Eingaben!L70)-$D$8*Eingaben!L70*(($B$5/Eingaben!L70*$B$5/Eingaben!L70)))*$D$11,0) -> 0.6259365404 | E50: =IF(Eingaben!L70>0,($E$6-$E$7*($B$5/Eingaben!L70)-$E$8*Eingaben!L70*(($B$5/Eingaben!L70*$B$5/Eingaben!L70)))*$E$11,0) -> 0.5812846981 | F50: =IF(Eingaben!L70>0,($F$6-$F$7*($B$5/Eingaben!L70)-$F$8*Eingaben!L70*(($B$5/Eingaben!L70*$B$5/Eingaben!L70)))*$F$11,0) -> 0.618157216 | G50: =IF(Eingaben!L70>0,($G$6-$G$7*($B$5/Eingaben!L70)-$G$8*Eingaben!L70*(($B$5/Eingaben!L70*$B$5/Eingaben!L70)))*$G$11,0) -> 0.5886632549 | H50: =IF(Eingaben!L70>0,($H$6-$H$7*($B$5/Eingaben!L70)-$H$8*Eingaben!L70*(($B$5/Eingaben!L70*$B$5/Eingaben!L70)))*$H$11,0) -> 0.6018235415 | I50: =IF(Eingaben!L70>0,($I$6-$I$7*($B$5/Eingaben!L70)-$I$8*Eingaben!L70*(($B$5/Eingaben!L70*$B$5/Eingaben!L70)))*$I$11,0) -> 0.5782747731
A51: Wirkungsgrad bei eingestellter Diff. bei 30° > | D51: =IF(Eingaben!L71>0,($D$6-$D$7*($B$5/Eingaben!L71)-$D$8*Eingaben!L71*(($B$5/Eingaben!L71*$B$5/Eingaben!L71)))*$D$12,0) -> 0.6154793717 | E51: =IF(Eingaben!L71>0,($E$6-$E$7*($B$5/Eingaben!L71)-$E$8*Eingaben!L71*(($B$5/Eingaben!L71*$B$5/Eingaben!L71)))*$E$12,0) -> 0.5709466318 | F51: =IF(Eingaben!L71>0,($F$6-$F$7*($B$5/Eingaben!L71)-$F$8*Eingaben!L71*(($B$5/Eingaben!L71*$B$5/Eingaben!L71)))*$F$12,0) -> 0.6074973822 | G51: =IF(Eingaben!L71>0,($G$6-$G$7*($B$5/Eingaben!L71)-$G$8*Eingaben!L71*(($B$5/Eingaben!L71*$B$5/Eingaben!L71)))*$G$12,0) -> 0.5780802792 | H51: =IF(Eingaben!L71>0,($H$6-$H$7*($B$5/Eingaben!L71)-$H$8*Eingaben!L71*(($B$5/Eingaben!L71*$B$5/Eingaben!L71)))*$H$12,0) -> 0.6067451309 | I51: =IF(Eingaben!L71>0,($I$6-$I$7*($B$5/Eingaben!L71)-$I$8*Eingaben!L71*(($B$5/Eingaben!L71*$B$5/Eingaben!L71)))*$I$12,0) -> 0.6368431065
A52: Wirkungsgrad bei eingestellter Diff. bei 40° > | D52: =IF(Eingaben!L72>0,($D$6-$D$7*($B$5/Eingaben!L72)-$D$8*Eingaben!L72*(($B$5/Eingaben!L72*$B$5/Eingaben!L72)))*$D$13,0) -> 0.5899513043 | E52: =IF(Eingaben!L72>0,($E$6-$E$7*($B$5/Eingaben!L72)-$E$8*Eingaben!L72*(($B$5/Eingaben!L72*$B$5/Eingaben!L72)))*$E$13,0) -> 0.5576515942 | F52: =IF(Eingaben!L72>0,($F$6-$F$7*($B$5/Eingaben!L72)-$F$8*Eingaben!L72*(($B$5/Eingaben!L72*$B$5/Eingaben!L72)))*$F$13,0) -> 0.5939141304 | G52: =IF(Eingaben!L72>0,($G$6-$G$7*($B$5/Eingaben!L72)-$G$8*Eingaben!L72*(($B$5/Eingaben!L72*$B$5/Eingaben!L72)))*$G$13,0) -> 0.5644275362 | H52: =IF(Eingaben!L72>0,($H$6-$H$7*($B$5/Eingaben!L72)-$H$8*Eingaben!L72*(($B$5/Eingaben!L72*$B$5/Eingaben!L72)))*$H$13,0) -> 0.6049930435 | I52: =IF(Eingaben!L72>0,($I$6-$I$7*($B$5/Eingaben!L72)-$I$8*Eingaben!L72*(($B$5/Eingaben!L72*$B$5/Eingaben!L72)))*$I$13,0) -> 0.7149528986
A53: Wirkungsgrad bei eingestellter Diff. bei 50° > | D53: =IF(Eingaben!L73>0,($D$6-$D$7*($B$5/Eingaben!L73)-$D$8*Eingaben!L73*(($B$5/Eingaben!L73*$B$5/Eingaben!L73)))*$D$14,0) -> 0.5659778035 | E53: =IF(Eingaben!L73>0,($E$6-$E$7*($B$5/Eingaben!L73)-$E$8*Eingaben!L73*(($B$5/Eingaben!L73*$B$5/Eingaben!L73)))*$E$14,0) -> 0.5278471291 | F53: =IF(Eingaben!L73>0,($F$6-$F$7*($B$5/Eingaben!L73)-$F$8*Eingaben!L73*(($B$5/Eingaben!L73*$B$5/Eingaben!L73)))*$F$14,0) -> 0.5631306358 | G53: =IF(Eingaben!L73>0,($G$6-$G$7*($B$5/Eingaben!L73)-$G$8*Eingaben!L73*(($B$5/Eingaben!L73*$B$5/Eingaben!L73)))*$G$14,0) -> 0.5396146435 | H53: =IF(Eingaben!L73>0,($H$6-$H$7*($B$5/Eingaben!L73)-$H$8*Eingaben!L73*(($B$5/Eingaben!L73*$B$5/Eingaben!L73)))*$H$14,0) -> 0.5783472832 | I53: =IF(Eingaben!L73>0,($I$6-$I$7*($B$5/Eingaben!L73)-$I$8*Eingaben!L73*(($B$5/Eingaben!L73*$B$5/Eingaben!L73)))*$I$14,0) -> 0.7389542967
A54: Wirkungsgrad bei eingestellter Diff. bei 60° > | D54: =IF(Eingaben!L74>0,($D$6-$D$7*($B$5/Eingaben!L74)-$D$8*Eingaben!L74*(($B$5/Eingaben!L74*$B$5/Eingaben!L74)))*$D$15,0) -> 0.4998394402 | E54: =IF(Eingaben!L74>0,($E$6-$E$7*($B$5/Eingaben!L74)-$E$8*Eingaben!L74*(($B$5/Eingaben!L74*$B$5/Eingaben!L74)))*$E$15,0) -> 0.4851717557 | F54: =IF(Eingaben!L74>0,($F$6-$F$7*($B$5/Eingaben!L74)-$F$8*Eingaben!L74*(($B$5/Eingaben!L74*$B$5/Eingaben!L74)))*$F$15,0) -> 0.5191832061 | G54: =IF(Eingaben!L74>0,($G$6-$G$7*($B$5/Eingaben!L74)-$G$8*Eingaben!L74*(($B$5/Eingaben!L74*$B$5/Eingaben!L74)))*$G$15,0) -> 0.4902290076 | H54: =IF(Eingaben!L74>0,($H$6-$H$7*($B$5/Eingaben!L74)-$H$8*Eingaben!L74*(($B$5/Eingaben!L74*$B$5/Eingaben!L74)))*$H$15,0) -> 0.6143969466 | I54: =IF(Eingaben!L74>0,($I$6-$I$7*($B$5/Eingaben!L74)-$I$8*Eingaben!L74*(($B$5/Eingaben!L74*$B$5/Eingaben!L74)))*$I$15,0) -> 0.7131845971
A55: Wirkungsgrad bei eingestellter Diff. bei 70° > | D55: =IF(Eingaben!L75>0,($D$6-$D$7*($B$5/Eingaben!L75)-$D$8*Eingaben!L75*(($B$5/Eingaben!L75*$B$5/Eingaben!L75)))*$D$16,0) -> 0.3962392273 | E55: =IF(Eingaben!L75>0,($E$6-$E$7*($B$5/Eingaben!L75)-$E$8*Eingaben!L75*(($B$5/Eingaben!L75*$B$5/Eingaben!L75)))*$E$16,0) -> 0.3982308073 | F55: =IF(Eingaben!L75>0,($F$6-$F$7*($B$5/Eingaben!L75)-$F$8*Eingaben!L75*(($B$5/Eingaben!L75*$B$5/Eingaben!L75)))*$F$16,0) -> 0.4341985141 | G55: =IF(Eingaben!L75>0,($G$6-$G$7*($B$5/Eingaben!L75)-$G$8*Eingaben!L75*(($B$5/Eingaben!L75*$B$5/Eingaben!L75)))*$G$16,0) -> 0.4064843982 | H55: =IF(Eingaben!L75>0,($H$6-$H$7*($B$5/Eingaben!L75)-$H$8*Eingaben!L75*(($B$5/Eingaben!L75*$B$5/Eingaben!L75)))*$H$16,0) -> 0.6565586924 | I55: =IF(Eingaben!L75>0,($I$6-$I$7*($B$5/Eingaben!L75)-$I$8*Eingaben!L75*(($B$5/Eingaben!L75*$B$5/Eingaben!L75)))*$I$16,0) -> 0.5680769985
A56: Leistung nach Tagesverlauf | C56: Azimut | D56: =D27 -> SolRose 26 | E56: =E27 -> Synergie 210 | F56: Sunex AMX 2,85 | G56: Sunex 2,0 | H56: Star Azzurro CPC | I56: Billig VRK
A57: Leistung bei eingetragener Fläche (KW) | C57: -70 | D57: =IF(D55>0,(Eingaben!L75*D55*$B$6/1000)*$D$5/$D$4,0) -> 1.98741739 | E57: =IF(E55>0,(Eingaben!L75*E55*$B$6/1000)*$E$5/$E$4,0) -> 1.95017574 | F57: =IF(F55>0,(Eingaben!L75*F55*$B$6/1000)*$F$5/$F$4,0) -> 2.132680066 | G57: =IF(G55>0,(Eingaben!L75*G55*$B$6/1000)*$G$5/$G$4,0) -> 1.945242181 | H57: =IF(H55>0,(Eingaben!L75*H55*$B$6/1000)*$H$5/$H$4,0) -> 3.068491859 | I57: =IF(I55>0,(Eingaben!L75*I55*$B$6/1000)*$I$5/$I$4,0) -> 2.037779906
A58: Leistung bei eingetragener Fläche (KW) | C58: -60 | D58: =IF(D54>0,(Eingaben!L74*D54*$B$6/1000)*$D$5/$D$4,0) -> 2.927990213 | E58: =IF(E54>0,(Eingaben!L74*E54*$B$6/1000)*$E$5/$E$4,0) -> 2.774865183 | F58: =IF(F54>0,(Eingaben!L74*F54*$B$6/1000)*$F$5/$F$4,0) -> 2.978279791 | G58: =IF(G54>0,(Eingaben!L74*G54*$B$6/1000)*$G$5/$G$4,0) -> 2.739909919 | H58: =IF(H54>0,(Eingaben!L74*H54*$B$6/1000)*$H$5/$H$4,0) -> 3.353574436 | I58: =IF(I54>0,(Eingaben!L74*I54*$B$6/1000)*$I$5/$I$4,0) -> 2.98785493
A59: Leistung bei eingetragener Fläche (KW) | C59: -50 | D59: =IF(D53>0,(Eingaben!L73*D53*$B$6/1000)*$D$5/$D$4,0) -> 3.64864878 | E59: =IF(E53>0,(Eingaben!L73*E53*$B$6/1000)*$E$5/$E$4,0) -> 3.32237081 | F59: =IF(F53>0,(Eingaben!L73*F53*$B$6/1000)*$F$5/$F$4,0) -> 3.555065238 | G59: =IF(G53>0,(Eingaben!L73*G53*$B$6/1000)*$G$5/$G$4,0) -> 3.319055901 | H59: =IF(H53>0,(Eingaben!L73*H53*$B$6/1000)*$H$5/$H$4,0) -> 3.474090783 | I59: =IF(I53>0,(Eingaben!L73*I53*$B$6/1000)*$I$5/$I$4,0) -> 3.406973004
A60: Leistung bei eingetragener Fläche (KW) | C60: -40 | D60: =IF(D52>0,(Eingaben!L72*D52*$B$6/1000)*$D$5/$D$4,0) -> 4.045018817 | E60: =IF(E52>0,(Eingaben!L72*E52*$B$6/1000)*$E$5/$E$4,0) -> 3.733142832 | F60: =IF(F52>0,(Eingaben!L72*F52*$B$6/1000)*$F$5/$F$4,0) -> 3.987803939 | G60: =IF(G52>0,(Eingaben!L72*G52*$B$6/1000)*$G$5/$G$4,0) -> 3.6924171 | H60: =IF(H52>0,(Eingaben!L72*H52*$B$6/1000)*$H$5/$H$4,0) -> 3.865223079 | I60: =IF(I52>0,(Eingaben!L72*I52*$B$6/1000)*$I$5/$I$4,0) -> 3.505905977
A61: Leistung bei eingetragener Fläche (KW) | C61: -30 | D61: =IF(D51>0,(Eingaben!L71*D51*$B$6/1000)*$D$5/$D$4,0) -> 4.380598263 | E61: =IF(E51>0,(Eingaben!L71*E51*$B$6/1000)*$E$5/$E$4,0) -> 3.967552827 | F61: =IF(F51>0,(Eingaben!L71*F51*$B$6/1000)*$F$5/$F$4,0) -> 4.23418759 | G61: =IF(G51>0,(Eingaben!L71*G51*$B$6/1000)*$G$5/$G$4,0) -> 3.925601931 | H61: =IF(H51>0,(Eingaben!L71*H51*$B$6/1000)*$H$5/$H$4,0) -> 4.023889324 | I61: =IF(I51>0,(Eingaben!L71*I51*$B$6/1000)*$I$5/$I$4,0) -> 3.241685138
A62: Leistung bei eingetragener Fläche (KW) | C62: -20 | D62: =IF(D50>0,(Eingaben!L70*D50*$B$6/1000)*$D$5/$D$4,0) -> 4.557654735 | E62: =IF(E50>0,(Eingaben!L70*E50*$B$6/1000)*$E$5/$E$4,0) -> 4.132446935 | F62: =IF(F50>0,(Eingaben!L70*F50*$B$6/1000)*$F$5/$F$4,0) -> 4.407738485 | G62: =IF(G50>0,(Eingaben!L70*G50*$B$6/1000)*$G$5/$G$4,0) -> 4.089556608 | H62: =IF(H50>0,(Eingaben!L70*H50*$B$6/1000)*$H$5/$H$4,0) -> 4.083194723 | I62: =IF(I50>0,(Eingaben!L70*I50*$B$6/1000)*$I$5/$I$4,0) -> 3.011367901
A63: Leistung bei eingetragener Fläche (KW) | C63: -10 | D63: =IF(D49>0,(Eingaben!L69*D49*$B$6/1000)*$D$5/$D$4,0) -> 4.636132193 | E63: =IF(E49>0,(Eingaben!L69*E49*$B$6/1000)*$E$5/$E$4,0) -> 4.248445728 | F63: =IF(F49>0,(Eingaben!L69*F49*$B$6/1000)*$F$5/$F$4,0) -> 4.530061082 | G63: =IF(G49>0,(Eingaben!L69*G49*$B$6/1000)*$G$5/$G$4,0) -> 4.204816946 | H63: =IF(H49>0,(Eingaben!L69*H49*$B$6/1000)*$H$5/$H$4,0) -> 4.141550123 | I63: =IF(I49>0,(Eingaben!L69*I49*$B$6/1000)*$I$5/$I$4,0) -> 2.940862532
A64: Leistung bei eingetragener Fläche (KW) | C64: 0 | D64: =IF(D48>0,(Eingaben!L68*D48*$B$6/1000)*$D$5/$D$4,0) -> 4.654242375 | E64: =IF(E48>0,(Eingaben!L68*E48*$B$6/1000)*$E$5/$E$4,0) -> 4.265581936 | F64: =IF(F48>0,(Eingaben!L68*F48*$B$6/1000)*$F$5/$F$4,0) -> 4.548014925 | G64: =IF(G48>0,(Eingaben!L68*G48*$B$6/1000)*$G$5/$G$4,0) -> 4.221882719 | H64: =IF(H48>0,(Eingaben!L68*H48*$B$6/1000)*$H$5/$H$4,0) -> 4.113877974 | I64: =IF(I48>0,(Eingaben!L68*I48*$B$6/1000)*$I$5/$I$4,0) -> 2.95132018
A65: Leistung bei eingetragener Fläche (KW) | C65: 10 | D65: =IF(D49>0,(Eingaben!L69*D49*$B$6/1000)*$D$5/$D$4,0) -> 4.636132193 | E65: =IF(E49>0,(Eingaben!L69*E49*$B$6/1000)*$E$5/$E$4,0) -> 4.248445728 | F65: =IF(F49>0,(Eingaben!L69*F49*$B$6/1000)*$F$5/$F$4,0) -> 4.530061082 | G65: =IF(G49>0,(Eingaben!L69*G49*$B$6/1000)*$G$5/$G$4,0) -> 4.204816946 | H65: =IF(H49>0,(Eingaben!L69*H49*$B$6/1000)*$H$5/$H$4,0) -> 4.141550123 | I65: =IF(I49>0,(Eingaben!L69*I49*$B$6/1000)*$I$5/$I$4,0) -> 2.940862532
A66: Leistung bei eingetragener Fläche (KW) | C66: 20 | D66: =IF(D50>0,(Eingaben!L70*D50*$B$6/1000)*$D$5/$D$4,0) -> 4.557654735 | E66: =IF(E50>0,(Eingaben!L70*E50*$B$6/1000)*$E$5/$E$4,0) -> 4.132446935 | F66: =IF(F50>0,(Eingaben!L70*F50*$B$6/1000)*$F$5/$F$4,0) -> 4.407738485 | G66: =IF(G50>0,(Eingaben!L70*G50*$B$6/1000)*$G$5/$G$4,0) -> 4.089556608 | H66: =IF(H50>0,(Eingaben!L70*H50*$B$6/1000)*$H$5/$H$4,0) -> 4.083194723 | I66: =IF(I50>0,(Eingaben!L70*I50*$B$6/1000)*$I$5/$I$4,0) -> 3.011367901
A67: Leistung bei eingetragener Fläche (KW) | C67: 30 | D67: =IF(D51>0,(Eingaben!L71*D51*$B$6/1000)*$D$5/$D$4,0) -> 4.380598263 | E67: =IF(E51>0,(Eingaben!L71*E51*$B$6/1000)*$E$5/$E$4,0) -> 3.967552827 | F67: =IF(F51>0,(Eingaben!L71*F51*$B$6/1000)*$F$5/$F$4,0) -> 4.23418759 | G67: =IF(G51>0,(Eingaben!L71*G51*$B$6/1000)*$G$5/$G$4,0) -> 3.925601931 | H67: =IF(H51>0,(Eingaben!L71*H51*$B$6/1000)*$H$5/$H$4,0) -> 4.023889324 | I67: =IF(I51>0,(Eingaben!L71*I51*$B$6/1000)*$I$5/$I$4,0) -> 3.241685138
A68: Leistung bei eingetragener Fläche (KW) | C68: 40 | D68: =IF(D52>0,(Eingaben!L72*D52*$B$6/1000)*$D$5/$D$4,0) -> 4.045018817 | E68: =IF(E52>0,(Eingaben!L72*E52*$B$6/1000)*$E$5/$E$4,0) -> 3.733142832 | F68: =IF(F52>0,(Eingaben!L72*F52*$B$6/1000)*$F$5/$F$4,0) -> 3.987803939 | G68: =IF(G52>0,(Eingaben!L72*G52*$B$6/1000)*$G$5/$G$4,0) -> 3.6924171 | H68: =IF(H52>0,(Eingaben!L72*H52*$B$6/1000)*$H$5/$H$4,0) -> 3.865223079 | I68: =IF(I52>0,(Eingaben!L72*I52*$B$6/1000)*$I$5/$I$4,0) -> 3.505905977
A69: Leistung bei eingetragener Fläche (KW) | C69: 50 | D69: =IF(D53>0,(Eingaben!L73*D53*$B$6/1000)*$D$5/$D$4,0) -> 3.64864878 | E69: =IF(E53>0,(Eingaben!L73*E53*$B$6/1000)*$E$5/$E$4,0) -> 3.32237081 | F69: =IF(F53>0,(Eingaben!L73*F53*$B$6/1000)*$F$5/$F$4,0) -> 3.555065238 | G69: =IF(G53>0,(Eingaben!L73*G53*$B$6/1000)*$G$5/$G$4,0) -> 3.319055901 | H69: =IF(H53>0,(Eingaben!L73*H53*$B$6/1000)*$H$5/$H$4,0) -> 3.474090783 | I69: =IF(I53>0,(Eingaben!L73*I53*$B$6/1000)*$I$5/$I$4,0) -> 3.406973004
A70: Leistung bei eingetragener Fläche (KW) | C70: 60 | D70: =IF(D54>0,(Eingaben!L74*D54*$B$6/1000)*$D$5/$D$4,0) -> 2.927990213 | E70: =IF(E54>0,(Eingaben!L74*E54*$B$6/1000)*$E$5/$E$4,0) -> 2.774865183 | F70: =IF(F54>0,(Eingaben!L74*F54*$B$6/1000)*$F$5/$F$4,0) -> 2.978279791 | G70: =IF(G54>0,(Eingaben!L74*G54*$B$6/1000)*$G$5/$G$4,0) -> 2.739909919 | H70: =IF(H54>0,(Eingaben!L74*H54*$B$6/1000)*$H$5/$H$4,0) -> 3.353574436 | I70: =IF(I54>0,(Eingaben!L74*I54*$B$6/1000)*$I$5/$I$4,0) -> 2.98785493
A71: Leistung bei eingetragener Fläche (KW) | C71: 70 | D71: =IF(D55>0,(Eingaben!L75*D55*$B$6/1000)*$D$5/$D$4,0) -> 1.98741739 | E71: =IF(E55>0,(Eingaben!L75*E55*$B$6/1000)*$E$5/$E$4,0) -> 1.95017574 | F71: =IF(F55>0,(Eingaben!L75*F55*$B$6/1000)*$F$5/$F$4,0) -> 2.132680066 | G71: =IF(G55>0,(Eingaben!L75*G55*$B$6/1000)*$G$5/$G$4,0) -> 1.945242181 | H71: =IF(H55>0,(Eingaben!L75*H55*$B$6/1000)*$H$5/$H$4,0) -> 3.068491859 | I71: =IF(I55>0,(Eingaben!L75*I55*$B$6/1000)*$I$5/$I$4,0) -> 2.037779906
A72: KW Schnitt > | D72: =SUM(D57:D71)/15 -> 3.801410877 | E72: =SUM(E57:E71)/15 -> 3.501572136 | F72: 3.746643154 | G72: 3.470338926 | H72: 3.742260442 | I72: 3.01441193
A73: KWH gesamt bei Azimut -70 bis +70 > | D73: =IF(D72>0,D72*$B$17,0) -> 22.42832417 | E73: 20.6592756 | F73: 22.10519461 | G73: 20.47499966 | H73: 22.07933661 | I73: 17.78503039
A74: Puffervolumen (L) > | B74: =B45 -> 1500 | C74: Erwärmung (K)> | D74: =IF(D73>0,D73/(($B$45/1000)*1*1.163),0) -> 12.85659167 | E74: =IF(E73>0,E73/(($B$45/1000)*1*1.163),0) -> 11.84251969 | F74: 12.67136406 | G74: 11.73688717 | H74: 12.65654148 | I74: 10.19491567
A75: Laufzeit gesamt (Std.) > | B75: =B17 -> 5.9 | C75: ="Berechnung nach Tagesverlauf bei mittlerer Bewölkung (mit IAM) mit Diff. "&B5&" bei "&B6&" m²"&" am " -> Berechnung nach Tagesverlauf bei mittlerer Bewölkung (mit IAM) mit Diff. 35 bei 10,46 m² am | H75: =H17 -> 2013-06-21
A76: Wirkungsgrad bei Diff.0 > | D76: =$D$6-$D$7*(0/1000)-$D$8*1000*((0/1000*0/1000)) -> 0.81 | E76: =$E$6-$E$7*(0/1000)-$E$8*1000*((0/1000*0/1000)) -> 0.785 | F76: =$F$6-$F$7*(0/1000)-$F$8*1000*((0/1000*0/1000)) -> 0.82 | G76: =$G$6-$G$7*(0/1000)-$G$8*1000*((0/1000*0/1000)) -> 0.8 | H76: =$H$6-$H$7*(0/1000)-$H$8*1000*((0/1000*0/1000)) -> 0.64 | I76: =$I$6-$I$7*(0/1000)-$I$8*1000*((0/1000*0/1000)) -> 0.654
A77: Wirkungsgrad bei eingestellter Diff. bei 0° > | D77: =IF(Eingaben!L110>0,($D$6-$D$7*($B$5/Eingaben!L110)-$D$8*Eingaben!L110*(($B$5/Eingaben!L110*$B$5/Eingaben!L110)))*$D$9,0) -> 0.5383534743 | E77: =IF(Eingaben!L110>0,($E$6-$E$7*($B$5/Eingaben!L110)-$E$8*Eingaben!L110*(($B$5/Eingaben!L110*$B$5/Eingaben!L110)))*$E$9,0) -> 0.4930161128 | F77: =IF(Eingaben!L110>0,($F$6-$F$7*($B$5/Eingaben!L110)-$F$8*Eingaben!L110*(($B$5/Eingaben!L110*$B$5/Eingaben!L110)))*$F$9,0) -> 0.5313293051 | G77: =IF(Eingaben!L110>0,($G$6-$G$7*($B$5/Eingaben!L110)-$G$8*Eingaben!L110*(($B$5/Eingaben!L110*$B$5/Eingaben!L110)))*$G$9,0) -> 0.496878147 | H77: =IF(Eingaben!L110>0,($H$6-$H$7*($B$5/Eingaben!L110)-$H$8*Eingaben!L110*(($B$5/Eingaben!L110*$B$5/Eingaben!L110)))*$H$9,0) -> 0.5748640483 | I77: =IF(Eingaben!L110>0,($I$6-$I$7*($B$5/Eingaben!L110)-$I$8*Eingaben!L110*(($B$5/Eingaben!L110*$B$5/Eingaben!L110)))*$I$9,0) -> 0.5094179255
A78: Wirkungsgrad bei eingestellter Diff. bei 10° > | D78: =IF(Eingaben!L111>0,($D$6-$D$7*($B$5/Eingaben!L111)-$D$8*Eingaben!L111*(($B$5/Eingaben!L111*$B$5/Eingaben!L111)))*$D$10,0) -> 0.537530303 | E78: =IF(Eingaben!L111>0,($E$6-$E$7*($B$5/Eingaben!L111)-$E$8*Eingaben!L111*(($B$5/Eingaben!L111*$B$5/Eingaben!L111)))*$E$10,0) -> 0.4921313131 | F78: =IF(Eingaben!L111>0,($F$6-$F$7*($B$5/Eingaben!L111)-$F$8*Eingaben!L111*(($B$5/Eingaben!L111*$B$5/Eingaben!L111)))*$F$10,0) -> 0.5304545455 | G78: =IF(Eingaben!L111>0,($G$6-$G$7*($B$5/Eingaben!L111)-$G$8*Eingaben!L111*(($B$5/Eingaben!L111*$B$5/Eingaben!L111)))*$G$10,0) -> 0.495959596 | H78: =IF(Eingaben!L111>0,($H$6-$H$7*($B$5/Eingaben!L111)-$H$8*Eingaben!L111*(($B$5/Eingaben!L111*$B$5/Eingaben!L111)))*$H$10,0) -> 0.5804133333 | I78: =IF(Eingaben!L111>0,($I$6-$I$7*($B$5/Eingaben!L111)-$I$8*Eingaben!L111*(($B$5/Eingaben!L111*$B$5/Eingaben!L111)))*$I$10,0) -> 0.508979798
A79: Wirkungsgrad bei eingestellter Diff. bei 20° > | D79: =IF(Eingaben!L112>0,($D$6-$D$7*($B$5/Eingaben!L112)-$D$8*Eingaben!L112*(($B$5/Eingaben!L112*$B$5/Eingaben!L112)))*$D$11,0) -> 0.5339048106 | E79: =IF(Eingaben!L112>0,($E$6-$E$7*($B$5/Eingaben!L112)-$E$8*Eingaben!L112*(($B$5/Eingaben!L112*$B$5/Eingaben!L112)))*$E$11,0) -> 0.4833520471 | F79: =IF(Eingaben!L112>0,($F$6-$F$7*($B$5/Eingaben!L112)-$F$8*Eingaben!L112*(($B$5/Eingaben!L112*$B$5/Eingaben!L112)))*$F$11,0) -> 0.521335824 | G79: =IF(Eingaben!L112>0,($G$6-$G$7*($B$5/Eingaben!L112)-$G$8*Eingaben!L112*(($B$5/Eingaben!L112*$B$5/Eingaben!L112)))*$G$11,0) -> 0.4869948823 | H79: =IF(Eingaben!L112>0,($H$6-$H$7*($B$5/Eingaben!L112)-$H$8*Eingaben!L112*(($B$5/Eingaben!L112*$B$5/Eingaben!L112)))*$H$11,0) -> 0.5795353122 | I79: =IF(Eingaben!L112>0,($I$6-$I$7*($B$5/Eingaben!L112)-$I$8*Eingaben!L112*(($B$5/Eingaben!L112*$B$5/Eingaben!L112)))*$I$11,0) -> 0.5273321597
A80: Wirkungsgrad bei eingestellter Diff. bei 30° > | D80: =IF(Eingaben!L113>0,($D$6-$D$7*($B$5/Eingaben!L113)-$D$8*Eingaben!L113*(($B$5/Eingaben!L113*$B$5/Eingaben!L113)))*$D$12,0) -> 0.5222690576 | E80: =IF(Eingaben!L113>0,($E$6-$E$7*($B$5/Eingaben!L113)-$E$8*Eingaben!L113*(($B$5/Eingaben!L113*$B$5/Eingaben!L113)))*$E$12,0) -> 0.4717699476 | F80: =IF(Eingaben!L113>0,($F$6-$F$7*($B$5/Eingaben!L113)-$F$8*Eingaben!L113*(($B$5/Eingaben!L113*$B$5/Eingaben!L113)))*$F$12,0) -> 0.5094460733 | G80: =IF(Eingaben!L113>0,($G$6-$G$7*($B$5/Eingaben!L113)-$G$8*Eingaben!L113*(($B$5/Eingaben!L113*$B$5/Eingaben!L113)))*$G$12,0) -> 0.4751204188 | H80: =IF(Eingaben!L113>0,($H$6-$H$7*($B$5/Eingaben!L113)-$H$8*Eingaben!L113*(($B$5/Eingaben!L113*$B$5/Eingaben!L113)))*$H$12,0) -> 0.5837176963 | I80: =IF(Eingaben!L113>0,($I$6-$I$7*($B$5/Eingaben!L113)-$I$8*Eingaben!L113*(($B$5/Eingaben!L113*$B$5/Eingaben!L113)))*$I$12,0) -> 0.5792146597
A81: Wirkungsgrad bei eingestellter Diff. bei 40° > | D81: =IF(Eingaben!L114>0,($D$6-$D$7*($B$5/Eingaben!L114)-$D$8*Eingaben!L114*(($B$5/Eingaben!L114*$B$5/Eingaben!L114)))*$D$13,0) -> 0.4961269565 | E81: =IF(Eingaben!L114>0,($E$6-$E$7*($B$5/Eingaben!L114)-$E$8*Eingaben!L114*(($B$5/Eingaben!L114*$B$5/Eingaben!L114)))*$E$13,0) -> 0.4557523913 | F81: =IF(Eingaben!L114>0,($F$6-$F$7*($B$5/Eingaben!L114)-$F$8*Eingaben!L114*(($B$5/Eingaben!L114*$B$5/Eingaben!L114)))*$F$13,0) -> 0.4931711957 | G81: =IF(Eingaben!L114>0,($G$6-$G$7*($B$5/Eingaben!L114)-$G$8*Eingaben!L114*(($B$5/Eingaben!L114*$B$5/Eingaben!L114)))*$G$13,0) -> 0.4586413043 | H81: =IF(Eingaben!L114>0,($H$6-$H$7*($B$5/Eingaben!L114)-$H$8*Eingaben!L114*(($B$5/Eingaben!L114*$B$5/Eingaben!L114)))*$H$13,0) -> 0.5810895652 | I81: =IF(Eingaben!L114>0,($I$6-$I$7*($B$5/Eingaben!L114)-$I$8*Eingaben!L114*(($B$5/Eingaben!L114*$B$5/Eingaben!L114)))*$I$13,0) -> 0.6473293478
A82: Wirkungsgrad bei eingestellter Diff. bei 50° > | D82: =IF(Eingaben!L115>0,($D$6-$D$7*($B$5/Eingaben!L115)-$D$8*Eingaben!L115*(($B$5/Eingaben!L115*$B$5/Eingaben!L115)))*$D$14,0) -> 0.4682667052 | E82: =IF(Eingaben!L115>0,($E$6-$E$7*($B$5/Eingaben!L115)-$E$8*Eingaben!L115*(($B$5/Eingaben!L115*$B$5/Eingaben!L115)))*$E$14,0) -> 0.4228206936 | F82: =IF(Eingaben!L115>0,($F$6-$F$7*($B$5/Eingaben!L115)-$F$8*Eingaben!L115*(($B$5/Eingaben!L115*$B$5/Eingaben!L115)))*$F$14,0) -> 0.4592959538 | G82: =IF(Eingaben!L115>0,($G$6-$G$7*($B$5/Eingaben!L115)-$G$8*Eingaben!L115*(($B$5/Eingaben!L115*$B$5/Eingaben!L115)))*$G$14,0) -> 0.4294219653 | H82: =IF(Eingaben!L115>0,($H$6-$H$7*($B$5/Eingaben!L115)-$H$8*Eingaben!L115*(($B$5/Eingaben!L115*$B$5/Eingaben!L115)))*$H$14,0) -> 0.5539209249 | I82: =IF(Eingaben!L115>0,($I$6-$I$7*($B$5/Eingaben!L115)-$I$8*Eingaben!L115*(($B$5/Eingaben!L115*$B$5/Eingaben!L115)))*$I$14,0) -> 0.6637114451
A83: Wirkungsgrad bei eingestellter Diff. bei 60° > | D83: =IF(Eingaben!L116>0,($D$6-$D$7*($B$5/Eingaben!L116)-$D$8*Eingaben!L116*(($B$5/Eingaben!L116*$B$5/Eingaben!L116)))*$D$15,0) -> 0.4014591603 | E83: =IF(Eingaben!L116>0,($E$6-$E$7*($B$5/Eingaben!L116)-$E$8*Eingaben!L116*(($B$5/Eingaben!L116*$B$5/Eingaben!L116)))*$E$15,0) -> 0.3745076336 | F83: =IF(Eingaben!L116>0,($F$6-$F$7*($B$5/Eingaben!L116)-$F$8*Eingaben!L116*(($B$5/Eingaben!L116*$B$5/Eingaben!L116)))*$F$15,0) -> 0.4097748092 | G83: =IF(Eingaben!L116>0,($G$6-$G$7*($B$5/Eingaben!L116)-$G$8*Eingaben!L116*(($B$5/Eingaben!L116*$B$5/Eingaben!L116)))*$G$15,0) -> 0.3753435115 | H83: =IF(Eingaben!L116>0,($H$6-$H$7*($B$5/Eingaben!L116)-$H$8*Eingaben!L116*(($B$5/Eingaben!L116*$B$5/Eingaben!L116)))*$H$15,0) -> 0.5855954198 | I83: =IF(Eingaben!L116>0,($I$6-$I$7*($B$5/Eingaben!L116)-$I$8*Eingaben!L116*(($B$5/Eingaben!L116*$B$5/Eingaben!L116)))*$I$15,0) -> 0.6315968957
A84: Wirkungsgrad bei eingestellter Diff. bei 70° > | D84: =IF(Eingaben!L117>0,($D$6-$D$7*($B$5/Eingaben!L117)-$D$8*Eingaben!L117*(($B$5/Eingaben!L117*$B$5/Eingaben!L117)))*$D$16,0) -> 0.298708841 | E84: =IF(Eingaben!L117>0,($E$6-$E$7*($B$5/Eingaben!L117)-$E$8*Eingaben!L117*(($B$5/Eingaben!L117*$B$5/Eingaben!L117)))*$E$16,0) -> 0.283346211 | F84: =IF(Eingaben!L117>0,($F$6-$F$7*($B$5/Eingaben!L117)-$F$8*Eingaben!L117*(($B$5/Eingaben!L117*$B$5/Eingaben!L117)))*$F$16,0) -> 0.3191977712 | G84: =IF(Eingaben!L117>0,($G$6-$G$7*($B$5/Eingaben!L117)-$G$8*Eingaben!L117*(($B$5/Eingaben!L117*$B$5/Eingaben!L117)))*$G$16,0) -> 0.2857265973 | H84: =IF(Eingaben!L117>0,($H$6-$H$7*($B$5/Eingaben!L117)-$H$8*Eingaben!L117*(($B$5/Eingaben!L117*$B$5/Eingaben!L117)))*$H$16,0) -> 0.6200380386 | I84: =IF(Eingaben!L117>0,($I$6-$I$7*($B$5/Eingaben!L117)-$I$8*Eingaben!L117*(($B$5/Eingaben!L117*$B$5/Eingaben!L117)))*$I$16,0) -> 0.4891454978
A85: Leistung nach Tagesverlauf | C85: Azimut | D85: =D27 -> SolRose 26 | E85: =E27 -> Synergie 210 | F85: Sunex AMX 2,85 | G85: Sunex 2,0 | H85: Star Azzurro CPC | I85: Billig VRK
A86: Leistung bei eingetragener Fläche (KW) | C86: -70 | D86: =IF(D84>0,(Eingaben!L117*D84*$B$6/1000)*$D$5/$D$4,0) -> 0.9988227719 | E86: =IF(E84>0,(Eingaben!L117*E84*$B$6/1000)*$E$5/$E$4,0) -> 0.9250496557 | F86: =IF(F84>0,(Eingaben!L117*F84*$B$6/1000)*$F$5/$F$4,0) -> 1.045215804 | G86: =IF(G84>0,(Eingaben!L117*G84*$B$6/1000)*$G$5/$G$4,0) -> 0.9115682861 | H86: =IF(H84>0,(Eingaben!L117*H84*$B$6/1000)*$H$5/$H$4,0) -> 1.931872652 | I86: =IF(I84>0,(Eingaben!L117*I84*$B$6/1000)*$I$5/$I$4,0) -> 1.169760284
A87: Leistung bei eingetragener Fläche (KW) | C87: -60 | D87: =IF(D83>0,(Eingaben!L116*D83*$B$6/1000)*$D$5/$D$4,0) -> 1.567794773 | E87: =IF(E83>0,(Eingaben!L116*E83*$B$6/1000)*$E$5/$E$4,0) -> 1.427959179 | F87: =IF(F83>0,(Eingaben!L116*F83*$B$6/1000)*$F$5/$F$4,0) -> 1.567107742 | G87: =IF(G83>0,(Eingaben!L116*G83*$B$6/1000)*$G$5/$G$4,0) -> 1.39854013 | H87: =IF(H83>0,(Eingaben!L116*H83*$B$6/1000)*$H$5/$H$4,0) -> 2.130911013 | I87: =IF(I83>0,(Eingaben!L116*I83*$B$6/1000)*$I$5/$I$4,0) -> 1.764031272
A88: Leistung bei eingetragener Fläche (KW) | C88: -50 | D88: =IF(D82>0,(Eingaben!L115*D82*$B$6/1000)*$D$5/$D$4,0) -> 2.012494403 | E88: =IF(E82>0,(Eingaben!L115*E82*$B$6/1000)*$E$5/$E$4,0) -> 1.774209555 | F88: =IF(F82>0,(Eingaben!L115*F82*$B$6/1000)*$F$5/$F$4,0) -> 1.93303528 | G88: =IF(G82>0,(Eingaben!L115*G82*$B$6/1000)*$G$5/$G$4,0) -> 1.76085598 | H88: =IF(H82>0,(Eingaben!L115*H82*$B$6/1000)*$H$5/$H$4,0) -> 2.218242263 | I88: =IF(I82>0,(Eingaben!L115*I82*$B$6/1000)*$I$5/$I$4,0) -> 2.040042247
A89: Leistung bei eingetragener Fläche (KW) | C89: -40 | D89: =IF(D81>0,(Eingaben!L114*D81*$B$6/1000)*$D$5/$D$4,0) -> 2.267806241 | E89: =IF(E81>0,(Eingaben!L114*E81*$B$6/1000)*$E$5/$E$4,0) -> 2.033992539 | F89: =IF(F81>0,(Eingaben!L114*F81*$B$6/1000)*$F$5/$F$4,0) -> 2.207580677 | G89: =IF(G81>0,(Eingaben!L114*G81*$B$6/1000)*$G$5/$G$4,0) -> 2.000250857 | H89: =IF(H81>0,(Eingaben!L114*H81*$B$6/1000)*$H$5/$H$4,0) -> 2.475004545 | I89: =IF(I81>0,(Eingaben!L114*I81*$B$6/1000)*$I$5/$I$4,0) -> 2.116200787
A90: Leistung bei eingetragener Fläche (KW) | C90: -30 | D90: =IF(D80>0,(Eingaben!L113*D80*$B$6/1000)*$D$5/$D$4,0) -> 2.478123591 | E90: =IF(E80>0,(Eingaben!L113*E80*$B$6/1000)*$E$5/$E$4,0) -> 2.185577525 | F90: =IF(F80>0,(Eingaben!L113*F80*$B$6/1000)*$F$5/$F$4,0) -> 2.36718742 | G90: =IF(G80>0,(Eingaben!L113*G80*$B$6/1000)*$G$5/$G$4,0) -> 2.150951117 | H90: =IF(H80>0,(Eingaben!L113*H80*$B$6/1000)*$H$5/$H$4,0) -> 2.580782042 | I90: =IF(I80>0,(Eingaben!L113*I80*$B$6/1000)*$I$5/$I$4,0) -> 1.965561622
A91: Leistung bei eingetragener Fläche (KW) | C91: -20 | D91: =IF(D79>0,(Eingaben!L112*D79*$B$6/1000)*$D$5/$D$4,0) -> 2.591693813 | E91: =IF(E79>0,(Eingaben!L112*E79*$B$6/1000)*$E$5/$E$4,0) -> 2.290818586 | F91: =IF(F79>0,(Eingaben!L112*F79*$B$6/1000)*$F$5/$F$4,0) -> 2.478238993 | G91: =IF(G79>0,(Eingaben!L112*G79*$B$6/1000)*$G$5/$G$4,0) -> 2.255497941 | H91: =IF(H79>0,(Eingaben!L112*H79*$B$6/1000)*$H$5/$H$4,0) -> 2.62131712 | I91: =IF(I79>0,(Eingaben!L112*I79*$B$6/1000)*$I$5/$I$4,0) -> 1.830722709
A92: Leistung bei eingetragener Fläche (KW) | C92: -10 | D92: =IF(D78>0,(Eingaben!L111*D78*$B$6/1000)*$D$5/$D$4,0) -> 2.644012118 | E92: =IF(E78>0,(Eingaben!L111*E78*$B$6/1000)*$E$5/$E$4,0) -> 2.363462771 | F92: =IF(F78>0,(Eingaben!L111*F78*$B$6/1000)*$F$5/$F$4,0) -> 2.555138368 | G92: =IF(G78>0,(Eingaben!L111*G78*$B$6/1000)*$G$5/$G$4,0) -> 2.327581872 | H92: =IF(H78>0,(Eingaben!L111*H78*$B$6/1000)*$H$5/$H$4,0) -> 2.66022072 | I92: =IF(I78>0,(Eingaben!L111*I78*$B$6/1000)*$I$5/$I$4,0) -> 1.790521279
A93: Leistung bei eingetragener Fläche (KW) | C93: 0 | D93: =IF(D77>0,(Eingaben!L110*D77*$B$6/1000)*$D$5/$D$4,0) -> 2.656085573 | E93: =IF(E77>0,(Eingaben!L110*E77*$B$6/1000)*$E$5/$E$4,0) -> 2.37488691 | F93: =IF(F77>0,(Eingaben!L110*F77*$B$6/1000)*$F$5/$F$4,0) -> 2.567107596 | G93: =IF(G77>0,(Eingaben!L110*G77*$B$6/1000)*$G$5/$G$4,0) -> 2.338959054 | H93: =IF(H77>0,(Eingaben!L110*H77*$B$6/1000)*$H$5/$H$4,0) -> 2.642770766 | I93: =IF(I77>0,(Eingaben!L110*I77*$B$6/1000)*$I$5/$I$4,0) -> 1.797493045
A94: Leistung bei eingetragener Fläche (KW) | C94: 10 | D94: =IF(D78>0,(Eingaben!L111*D78*$B$6/1000)*$D$5/$D$4,0) -> 2.644012118 | E94: =IF(E78>0,(Eingaben!L111*E78*$B$6/1000)*$E$5/$E$4,0) -> 2.363462771 | F94: =IF(F78>0,(Eingaben!L111*F78*$B$6/1000)*$F$5/$F$4,0) -> 2.555138368 | G94: =IF(G78>0,(Eingaben!L111*G78*$B$6/1000)*$G$5/$G$4,0) -> 2.327581872 | H94: =IF(H78>0,(Eingaben!L111*H78*$B$6/1000)*$H$5/$H$4,0) -> 2.66022072 | I94: =IF(I78>0,(Eingaben!L111*I78*$B$6/1000)*$I$5/$I$4,0) -> 1.790521279
A95: Leistung bei eingetragener Fläche (KW) | C95: 20 | D95: =IF(D79>0,(Eingaben!L112*D79*$B$6/1000)*$D$5/$D$4,0) -> 2.591693813 | E95: =IF(E79>0,(Eingaben!L112*E79*$B$6/1000)*$E$5/$E$4,0) -> 2.290818586 | F95: =IF(F79>0,(Eingaben!L112*F79*$B$6/1000)*$F$5/$F$4,0) -> 2.478238993 | G95: =IF(G79>0,(Eingaben!L112*G79*$B$6/1000)*$G$5/$G$4,0) -> 2.255497941 | H95: =IF(H79>0,(Eingaben!L112*H79*$B$6/1000)*$H$5/$H$4,0) -> 2.62131712 | I95: =IF(I79>0,(Eingaben!L112*I79*$B$6/1000)*$I$5/$I$4,0) -> 1.830722709
A96: Leistung bei eingetragener Fläche (KW) | C96: 30 | D96: =IF(D80>0,(Eingaben!L113*D80*$B$6/1000)*$D$5/$D$4,0) -> 2.478123591 | E96: =IF(E80>0,(Eingaben!L113*E80*$B$6/1000)*$E$5/$E$4,0) -> 2.185577525 | F96: =IF(F80>0,(Eingaben!L113*F80*$B$6/1000)*$F$5/$F$4,0) -> 2.36718742 | G96: =IF(G80>0,(Eingaben!L113*G80*$B$6/1000)*$G$5/$G$4,0) -> 2.150951117 | H96: =IF(H80>0,(Eingaben!L113*H80*$B$6/1000)*$H$5/$H$4,0) -> 2.580782042 | I96: =IF(I80>0,(Eingaben!L113*I80*$B$6/1000)*$I$5/$I$4,0) -> 1.965561622
A97: Leistung bei eingetragener Fläche (KW) | C97: 40 | D97: =IF(D81>0,(Eingaben!L114*D81*$B$6/1000)*$D$5/$D$4,0) -> 2.267806241 | E97: =IF(E81>0,(Eingaben!L114*E81*$B$6/1000)*$E$5/$E$4,0) -> 2.033992539 | F97: =IF(F81>0,(Eingaben!L114*F81*$B$6/1000)*$F$5/$F$4,0) -> 2.207580677 | G97: =IF(G81>0,(Eingaben!L114*G81*$B$6/1000)*$G$5/$G$4,0) -> 2.000250857 | H97: =IF(H81>0,(Eingaben!L114*H81*$B$6/1000)*$H$5/$H$4,0) -> 2.475004545 | I97: =IF(I81>0,(Eingaben!L114*I81*$B$6/1000)*$I$5/$I$4,0) -> 2.116200787
A98: Leistung bei eingetragener Fläche (KW) | C98: 50 | D98: =IF(D82>0,(Eingaben!L115*D82*$B$6/1000)*$D$5/$D$4,0) -> 2.012494403 | E98: =IF(E82>0,(Eingaben!L115*E82*$B$6/1000)*$E$5/$E$4,0) -> 1.774209555 | F98: =IF(F82>0,(Eingaben!L115*F82*$B$6/1000)*$F$5/$F$4,0) -> 1.93303528 | G98: =IF(G82>0,(Eingaben!L115*G82*$B$6/1000)*$G$5/$G$4,0) -> 1.76085598 | H98: =IF(H82>0,(Eingaben!L115*H82*$B$6/1000)*$H$5/$H$4,0) -> 2.218242263 | I98: =IF(I82>0,(Eingaben!L115*I82*$B$6/1000)*$I$5/$I$4,0) -> 2.040042247
A99: Leistung bei eingetragener Fläche (KW) | C99: 60 | D99: =IF(D83>0,(Eingaben!L116*D83*$B$6/1000)*$D$5/$D$4,0) -> 1.567794773 | E99: =IF(E83>0,(Eingaben!L116*E83*$B$6/1000)*$E$5/$E$4,0) -> 1.427959179 | F99: =IF(F83>0,(Eingaben!L116*F83*$B$6/1000)*$F$5/$F$4,0) -> 1.567107742 | G99: =IF(G83>0,(Eingaben!L116*G83*$B$6/1000)*$G$5/$G$4,0) -> 1.39854013 | H99: =IF(H83>0,(Eingaben!L116*H83*$B$6/1000)*$H$5/$H$4,0) -> 2.130911013 | I99: =IF(I83>0,(Eingaben!L116*I83*$B$6/1000)*$I$5/$I$4,0) -> 1.764031272
A100: Leistung bei eingetragener Fläche (KW) | C100: 70 | D100: =IF(D84>0,(Eingaben!L117*D84*$B$6/1000)*$D$5/$D$4,0) -> 0.9988227719 | E100: =IF(E84>0,(Eingaben!L117*E84*$B$6/1000)*$E$5/$E$4,0) -> 0.9250496557 | F100: =IF(F84>0,(Eingaben!L117*F84*$B$6/1000)*$F$5/$F$4,0) -> 1.045215804 | G100: =IF(G84>0,(Eingaben!L117*G84*$B$6/1000)*$G$5/$G$4,0) -> 0.9115682861 | H100: =IF(H84>0,(Eingaben!L117*H84*$B$6/1000)*$H$5/$H$4,0) -> 1.931872652 | I100: =IF(I84>0,(Eingaben!L117*I84*$B$6/1000)*$I$5/$I$4,0) -> 1.169760284
A101: KW Schnitt > | D101: =SUM(D86:D100)/15 -> 2.118505399 | E101: =SUM(E86:E100)/15 -> 1.891801769 | F101: 2.058274411 | G101: 1.863296761 | H101: 2.391964765 | I101: 1.81007823
A102: KWH gesamt bei Azimut -70 bis +70 > | D102: =IF(D101>0,D101*$B$17,0) -> 12.49918186 | E102: 11.16163044 | F102: 12.14381902 | G102: 10.99345089 | H102: 14.11259211 | I102: 10.67946155
A103: Puffervolumen (L) > | B103: =B45 -> 1500 | C103: Erwärmung (K)> | D103: =IF(D102>0,D102/(($B$45/1000)*1*1.163),0) -> 7.164907914 | E103: =IF(E102>0,E102/(($B$45/1000)*1*1.163),0) -> 6.398183111 | F103: 6.961203224 | G103: 6.301777525 | H103: 8.089763321 | I103: 6.121789369
A104: Laufzeit gesamt (Std.) > | B104: =B17 -> 5.9 | C104: ="Berechnung nach Tagesverlauf bei starker Bewölkung (mit IAM) mit Diff. "&B5&" bei "&B6&" m²"&" am " -> Berechnung nach Tagesverlauf bei starker Bewölkung (mit IAM) mit Diff. 35 bei 10,46 m² am | H104: =H17 -> 2013-06-21
A105: Wirkungsgrad bei Diff.0 > | D105: =$D$6-$D$7*(0/1000)-$D$8*1000*((0/1000*0/1000)) -> 0.81 | E105: =$E$6-$E$7*(0/1000)-$E$8*1000*((0/1000*0/1000)) -> 0.785 | F105: =$F$6-$F$7*(0/1000)-$F$8*1000*((0/1000*0/1000)) -> 0.82 | G105: =$G$6-$G$7*(0/1000)-$G$8*1000*((0/1000*0/1000)) -> 0.8 | H105: =$H$6-$H$7*(0/1000)-$H$8*1000*((0/1000*0/1000)) -> 0.64 | I105: =$I$6-$I$7*(0/1000)-$I$8*1000*((0/1000*0/1000)) -> 0.654
A106: Wirkungsgrad bei eingestellter Diff. bei 0° > | D106: =IF(Eingaben!L146>0,($D$6-$D$7*($B$5/Eingaben!L146)-$D$8*Eingaben!L146*(($B$5/Eingaben!L146*$B$5/Eingaben!L146)))*$D$9,0) -> 0.2667069486 | E106: =IF(Eingaben!L146>0,($E$6-$E$7*($B$5/Eingaben!L146)-$E$8*Eingaben!L146*(($B$5/Eingaben!L146*$B$5/Eingaben!L146)))*$E$9,0) -> 0.2010322256 | F106: =IF(Eingaben!L146>0,($F$6-$F$7*($B$5/Eingaben!L146)-$F$8*Eingaben!L146*(($B$5/Eingaben!L146*$B$5/Eingaben!L146)))*$F$9,0) -> 0.2426586103 | G106: =IF(Eingaben!L146>0,($G$6-$G$7*($B$5/Eingaben!L146)-$G$8*Eingaben!L146*(($B$5/Eingaben!L146*$B$5/Eingaben!L146)))*$G$9,0) -> 0.1937562941 | H106: =IF(Eingaben!L146>0,($H$6-$H$7*($B$5/Eingaben!L146)-$H$8*Eingaben!L146*(($B$5/Eingaben!L146*$B$5/Eingaben!L146)))*$H$9,0) -> 0.5097280967 | I106: =IF(Eingaben!L146>0,($I$6-$I$7*($B$5/Eingaben!L146)-$I$8*Eingaben!L146*(($B$5/Eingaben!L146*$B$5/Eingaben!L146)))*$I$9,0) -> 0.364835851
A107: Wirkungsgrad bei eingestellter Diff. bei 10° > | D107: =IF(Eingaben!L147>0,($D$6-$D$7*($B$5/Eingaben!L147)-$D$8*Eingaben!L147*(($B$5/Eingaben!L147*$B$5/Eingaben!L147)))*$D$10,0) -> 0.2650606061 | E107: =IF(Eingaben!L147>0,($E$6-$E$7*($B$5/Eingaben!L147)-$E$8*Eingaben!L147*(($B$5/Eingaben!L147*$B$5/Eingaben!L147)))*$E$10,0) -> 0.1992626263 | F107: =IF(Eingaben!L147>0,($F$6-$F$7*($B$5/Eingaben!L147)-$F$8*Eingaben!L147*(($B$5/Eingaben!L147*$B$5/Eingaben!L147)))*$F$10,0) -> 0.2409090909 | G107: =IF(Eingaben!L147>0,($G$6-$G$7*($B$5/Eingaben!L147)-$G$8*Eingaben!L147*(($B$5/Eingaben!L147*$B$5/Eingaben!L147)))*$G$10,0) -> 0.1919191919 | H107: =IF(Eingaben!L147>0,($H$6-$H$7*($B$5/Eingaben!L147)-$H$8*Eingaben!L147*(($B$5/Eingaben!L147*$B$5/Eingaben!L147)))*$H$10,0) -> 0.5144266667 | I107: =IF(Eingaben!L147>0,($I$6-$I$7*($B$5/Eingaben!L147)-$I$8*Eingaben!L147*(($B$5/Eingaben!L147*$B$5/Eingaben!L147)))*$I$10,0) -> 0.363959596
A108: Wirkungsgrad bei eingestellter Diff. bei 20° > | D108: =IF(Eingaben!L148>0,($D$6-$D$7*($B$5/Eingaben!L148)-$D$8*Eingaben!L148*(($B$5/Eingaben!L148*$B$5/Eingaben!L148)))*$D$11,0) -> 0.2578096213 | E108: =IF(Eingaben!L148>0,($E$6-$E$7*($B$5/Eingaben!L148)-$E$8*Eingaben!L148*(($B$5/Eingaben!L148*$B$5/Eingaben!L148)))*$E$11,0) -> 0.1895540942 | F108: =IF(Eingaben!L148>0,($F$6-$F$7*($B$5/Eingaben!L148)-$F$8*Eingaben!L148*(($B$5/Eingaben!L148*$B$5/Eingaben!L148)))*$F$11,0) -> 0.2308716479 | G108: =IF(Eingaben!L148>0,($G$6-$G$7*($B$5/Eingaben!L148)-$G$8*Eingaben!L148*(($B$5/Eingaben!L148*$B$5/Eingaben!L148)))*$G$11,0) -> 0.1819897646 | H108: =IF(Eingaben!L148>0,($H$6-$H$7*($B$5/Eingaben!L148)-$H$8*Eingaben!L148*(($B$5/Eingaben!L148*$B$5/Eingaben!L148)))*$H$11,0) -> 0.5126706244 | I108: =IF(Eingaben!L148>0,($I$6-$I$7*($B$5/Eingaben!L148)-$I$8*Eingaben!L148*(($B$5/Eingaben!L148*$B$5/Eingaben!L148)))*$I$11,0) -> 0.3745043193
A109: Wirkungsgrad bei eingestellter Diff. bei 30° > | D109: =IF(Eingaben!L149>0,($D$6-$D$7*($B$5/Eingaben!L149)-$D$8*Eingaben!L149*(($B$5/Eingaben!L149*$B$5/Eingaben!L149)))*$D$12,0) -> 0.2426381152 | E109: =IF(Eingaben!L149>0,($E$6-$E$7*($B$5/Eingaben!L149)-$E$8*Eingaben!L149*(($B$5/Eingaben!L149*$B$5/Eingaben!L149)))*$E$12,0) -> 0.1742398953 | F109: =IF(Eingaben!L149>0,($F$6-$F$7*($B$5/Eingaben!L149)-$F$8*Eingaben!L149*(($B$5/Eingaben!L149*$B$5/Eingaben!L149)))*$F$12,0) -> 0.2152921466 | G109: =IF(Eingaben!L149>0,($G$6-$G$7*($B$5/Eingaben!L149)-$G$8*Eingaben!L149*(($B$5/Eingaben!L149*$B$5/Eingaben!L149)))*$G$12,0) -> 0.1662408377 | H109: =IF(Eingaben!L149>0,($H$6-$H$7*($B$5/Eingaben!L149)-$H$8*Eingaben!L149*(($B$5/Eingaben!L149*$B$5/Eingaben!L149)))*$H$12,0) -> 0.5146353927 | I109: =IF(Eingaben!L149>0,($I$6-$I$7*($B$5/Eingaben!L149)-$I$8*Eingaben!L149*(($B$5/Eingaben!L149*$B$5/Eingaben!L149)))*$I$12,0) -> 0.4063293194
A110: Wirkungsgrad bei eingestellter Diff. bei 40° > | D110: =IF(Eingaben!L150>0,($D$6-$D$7*($B$5/Eingaben!L150)-$D$8*Eingaben!L150*(($B$5/Eingaben!L150*$B$5/Eingaben!L150)))*$D$13,0) -> 0.214653913 | E110: =IF(Eingaben!L150>0,($E$6-$E$7*($B$5/Eingaben!L150)-$E$8*Eingaben!L150*(($B$5/Eingaben!L150*$B$5/Eingaben!L150)))*$E$13,0) -> 0.1500547826 | F110: =IF(Eingaben!L150>0,($F$6-$F$7*($B$5/Eingaben!L150)-$F$8*Eingaben!L150*(($B$5/Eingaben!L150*$B$5/Eingaben!L150)))*$F$13,0) -> 0.1909423913 | G110: =IF(Eingaben!L150>0,($G$6-$G$7*($B$5/Eingaben!L150)-$G$8*Eingaben!L150*(($B$5/Eingaben!L150*$B$5/Eingaben!L150)))*$G$13,0) -> 0.1412826087 | H110: =IF(Eingaben!L150>0,($H$6-$H$7*($B$5/Eingaben!L150)-$H$8*Eingaben!L150*(($B$5/Eingaben!L150*$B$5/Eingaben!L150)))*$H$13,0) -> 0.5093791304 | I110: =IF(Eingaben!L150>0,($I$6-$I$7*($B$5/Eingaben!L150)-$I$8*Eingaben!L150*(($B$5/Eingaben!L150*$B$5/Eingaben!L150)))*$I$13,0) -> 0.4444586957
A111: Wirkungsgrad bei eingestellter Diff. bei 50° > | D111: =IF(Eingaben!L151>0,($D$6-$D$7*($B$5/Eingaben!L151)-$D$8*Eingaben!L151*(($B$5/Eingaben!L151*$B$5/Eingaben!L151)))*$D$14,0) -> 0.1751334104 | E111: =IF(Eingaben!L151>0,($E$6-$E$7*($B$5/Eingaben!L151)-$E$8*Eingaben!L151*(($B$5/Eingaben!L151*$B$5/Eingaben!L151)))*$E$14,0) -> 0.1077413873 | F111: =IF(Eingaben!L151>0,($F$6-$F$7*($B$5/Eingaben!L151)-$F$8*Eingaben!L151*(($B$5/Eingaben!L151*$B$5/Eingaben!L151)))*$F$14,0) -> 0.1477919075 | G111: =IF(Eingaben!L151>0,($G$6-$G$7*($B$5/Eingaben!L151)-$G$8*Eingaben!L151*(($B$5/Eingaben!L151*$B$5/Eingaben!L151)))*$G$14,0) -> 0.09884393064 | H111: =IF(Eingaben!L151>0,($H$6-$H$7*($B$5/Eingaben!L151)-$H$8*Eingaben!L151*(($B$5/Eingaben!L151*$B$5/Eingaben!L151)))*$H$14,0) -> 0.4806418497 | I111: =IF(Eingaben!L151>0,($I$6-$I$7*($B$5/Eingaben!L151)-$I$8*Eingaben!L151*(($B$5/Eingaben!L151*$B$5/Eingaben!L151)))*$I$14,0) -> 0.4379828902
A112: Wirkungsgrad bei eingestellter Diff. bei 60° > | D112: =IF(Eingaben!L152>0,($D$6-$D$7*($B$5/Eingaben!L152)-$D$8*Eingaben!L152*(($B$5/Eingaben!L152*$B$5/Eingaben!L152)))*$D$15,0) -> 0.1063183206 | E112: =IF(Eingaben!L152>0,($E$6-$E$7*($B$5/Eingaben!L152)-$E$8*Eingaben!L152*(($B$5/Eingaben!L152*$B$5/Eingaben!L152)))*$E$15,0) -> 0.04251526718 | F112: =IF(Eingaben!L152>0,($F$6-$F$7*($B$5/Eingaben!L152)-$F$8*Eingaben!L152*(($B$5/Eingaben!L152*$B$5/Eingaben!L152)))*$F$15,0) -> 0.08154961832 | G112: =IF(Eingaben!L152>0,($G$6-$G$7*($B$5/Eingaben!L152)-$G$8*Eingaben!L152*(($B$5/Eingaben!L152*$B$5/Eingaben!L152)))*$G$15,0) -> 0.0306870229 | H112: =IF(Eingaben!L152>0,($H$6-$H$7*($B$5/Eingaben!L152)-$H$8*Eingaben!L152*(($B$5/Eingaben!L152*$B$5/Eingaben!L152)))*$H$15,0) -> 0.4991908397 | I112: =IF(Eingaben!L152>0,($I$6-$I$7*($B$5/Eingaben!L152)-$I$8*Eingaben!L152*(($B$5/Eingaben!L152*$B$5/Eingaben!L152)))*$I$15,0) -> 0.3868337913
A113: Wirkungsgrad bei eingestellter Diff. bei 70° > | D113: =IF(Eingaben!L142>0,($D$6-$D$7*($B$5/Eingaben!L142)-$D$8*Eingaben!L142*(($B$5/Eingaben!L142*$B$5/Eingaben!L142)))*$D$16,0) -> -0.6093942073 | E113: =IF(Eingaben!L142>0,($E$6-$E$7*($B$5/Eingaben!L142)-$E$8*Eingaben!L142*(($B$5/Eingaben!L142*$B$5/Eingaben!L142)))*$E$16,0) -> -0.7863414634 | F113: =IF(Eingaben!L142>0,($F$6-$F$7*($B$5/Eingaben!L142)-$F$8*Eingaben!L142*(($B$5/Eingaben!L142*$B$5/Eingaben!L142)))*$F$16,0) -> -0.7515713415 | G113: =IF(Eingaben!L142>0,($G$6-$G$7*($B$5/Eingaben!L142)-$G$8*Eingaben!L142*(($B$5/Eingaben!L142*$B$5/Eingaben!L142)))*$G$16,0) -> -0.8386463415 | H113: =IF(Eingaben!L142>0,($H$6-$H$7*($B$5/Eingaben!L142)-$H$8*Eingaben!L142*(($B$5/Eingaben!L142*$B$5/Eingaben!L142)))*$H$16,0) -> 0.279995122 | I113: =IF(Eingaben!L142>0,($I$6-$I$7*($B$5/Eingaben!L142)-$I$8*Eingaben!L142*(($B$5/Eingaben!L142*$B$5/Eingaben!L142)))*$I$16,0) -> -0.2457837805
A114: Leistung nach Tagesverlauf | C114: Azimut | D114: =D27 -> SolRose 26 | E114: =E27 -> Synergie 210 | F114: Sunex AMX 2,85 | G114: Sunex 2,0 | H114: Star Azzurro CPC | I114: Billig VRK
A115: Leistung bei eingetragener Fläche (KW) | C115: -70 | D115: =IF(D113>0,(Eingaben!L142*D113*$B$6/1000)*$D$5/$D$4,0) -> 0 | E115: =IF(E113>0,(Eingaben!L142*E113*$B$6/1000)*$E$5/$E$4,0) -> 0 | F115: =IF(F113>0,(Eingaben!L142*F113*$B$6/1000)*$F$5/$F$4,0) -> 0 | G115: =IF(G113>0,(Eingaben!L142*G113*$B$6/1000)*$G$5/$G$4,0) -> 0 | H115: =IF(H113>0,(Eingaben!L142*H113*$B$6/1000)*$H$5/$H$4,0) -> 0.2125883249 | I115: =IF(I113>0,(Eingaben!L142*I113*$B$6/1000)*$I$5/$I$4,0) -> 0
A116: Leistung bei eingetragener Fläche (KW) | C116: -60 | D116: =IF(D112>0,(Eingaben!L152*D112*$B$6/1000)*$D$5/$D$4,0) -> 0.2075993324 | E116: =IF(E112>0,(Eingaben!L152*E112*$B$6/1000)*$E$5/$E$4,0) -> 0.08105317565 | F116: =IF(F112>0,(Eingaben!L152*F112*$B$6/1000)*$F$5/$F$4,0) -> 0.1559356937 | G116: =IF(G112>0,(Eingaben!L152*G112*$B$6/1000)*$G$5/$G$4,0) -> 0.05717034089 | H116: =IF(H112>0,(Eingaben!L152*H112*$B$6/1000)*$H$5/$H$4,0) -> 0.9082475904 | I116: =IF(I112>0,(Eingaben!L152*I112*$B$6/1000)*$I$5/$I$4,0) -> 0.5402076149
A117: Leistung bei eingetragener Fläche (KW) | C117: -50 | D117: =IF(D111>0,(Eingaben!L151*D111*$B$6/1000)*$D$5/$D$4,0) -> 0.3763400262 | E117: =IF(E111>0,(Eingaben!L151*E111*$B$6/1000)*$E$5/$E$4,0) -> 0.226048301 | F117: =IF(F111>0,(Eingaben!L151*F111*$B$6/1000)*$F$5/$F$4,0) -> 0.3110053213 | G117: =IF(G111>0,(Eingaben!L151*G111*$B$6/1000)*$G$5/$G$4,0) -> 0.2026560591 | H117: =IF(H111>0,(Eingaben!L151*H111*$B$6/1000)*$H$5/$H$4,0) -> 0.962393743 | I117: =IF(I111>0,(Eingaben!L151*I111*$B$6/1000)*$I$5/$I$4,0) -> 0.67311149
A118: Leistung bei eingetragener Fläche (KW) | C118: -40 | D118: =IF(D110>0,(Eingaben!L150*D110*$B$6/1000)*$D$5/$D$4,0) -> 0.4905936648 | E118: =IF(E110>0,(Eingaben!L150*E110*$B$6/1000)*$E$5/$E$4,0) -> 0.3348422456 | F118: =IF(F110>0,(Eingaben!L150*F110*$B$6/1000)*$F$5/$F$4,0) -> 0.4273574137 | G118: =IF(G110>0,(Eingaben!L150*G110*$B$6/1000)*$G$5/$G$4,0) -> 0.3080846148 | H118: =IF(H110>0,(Eingaben!L150*H110*$B$6/1000)*$H$5/$H$4,0) -> 1.084786011 | I118: =IF(I110>0,(Eingaben!L150*I110*$B$6/1000)*$I$5/$I$4,0) -> 0.7264955965
A119: Leistung bei eingetragener Fläche (KW) | C119: -30 | D119: =IF(D109>0,(Eingaben!L149*D109*$B$6/1000)*$D$5/$D$4,0) -> 0.5756489195 | E119: =IF(E109>0,(Eingaben!L149*E109*$B$6/1000)*$E$5/$E$4,0) -> 0.4036022228 | F119: =IF(F109>0,(Eingaben!L149*F109*$B$6/1000)*$F$5/$F$4,0) -> 0.5001872502 | G119: =IF(G109>0,(Eingaben!L149*G109*$B$6/1000)*$G$5/$G$4,0) -> 0.3763003034 | H119: =IF(H109>0,(Eingaben!L149*H109*$B$6/1000)*$H$5/$H$4,0) -> 1.137674759 | I119: =IF(I109>0,(Eingaben!L149*I109*$B$6/1000)*$I$5/$I$4,0) -> 0.6894381061
A120: Leistung bei eingetragener Fläche (KW) | C120: -20 | D120: =IF(D108>0,(Eingaben!L148*D108*$B$6/1000)*$D$5/$D$4,0) -> 0.62573289 | E120: =IF(E108>0,(Eingaben!L148*E108*$B$6/1000)*$E$5/$E$4,0) -> 0.4491902379 | F120: =IF(F108>0,(Eingaben!L148*F108*$B$6/1000)*$F$5/$F$4,0) -> 0.5487395015 | G120: =IF(G108>0,(Eingaben!L148*G108*$B$6/1000)*$G$5/$G$4,0) -> 0.4214392741 | H120: =IF(H108>0,(Eingaben!L148*H108*$B$6/1000)*$H$5/$H$4,0) -> 1.159439517 | I120: =IF(I108>0,(Eingaben!L148*I108*$B$6/1000)*$I$5/$I$4,0) -> 0.650077517
A121: Leistung bei eingetragener Fläche (KW) | C121: -10 | D121: =IF(D107>0,(Eingaben!L147*D107*$B$6/1000)*$D$5/$D$4,0) -> 0.6518920425 | E121: =IF(E107>0,(Eingaben!L147*E107*$B$6/1000)*$E$5/$E$4,0) -> 0.4784798145 | F121: =IF(F107>0,(Eingaben!L147*F107*$B$6/1000)*$F$5/$F$4,0) -> 0.5802156533 | G121: =IF(G107>0,(Eingaben!L147*G107*$B$6/1000)*$G$5/$G$4,0) -> 0.450346798 | H121: =IF(H107>0,(Eingaben!L147*H107*$B$6/1000)*$H$5/$H$4,0) -> 1.178891317 | I121: =IF(I107>0,(Eingaben!L147*I107*$B$6/1000)*$I$5/$I$4,0) -> 0.6401800268
A122: Leistung bei eingetragener Fläche (KW) | C122: 0 | D122: =IF(D106>0,(Eingaben!L146*D106*$B$6/1000)*$D$5/$D$4,0) -> 0.65792877 | E122: =IF(E106>0,(Eingaben!L146*E106*$B$6/1000)*$E$5/$E$4,0) -> 0.4841918841 | F122: =IF(F106>0,(Eingaben!L146*F106*$B$6/1000)*$F$5/$F$4,0) -> 0.5862002676 | G122: =IF(G106>0,(Eingaben!L146*G106*$B$6/1000)*$G$5/$G$4,0) -> 0.4560353892 | H122: =IF(H106>0,(Eingaben!L146*H106*$B$6/1000)*$H$5/$H$4,0) -> 1.171663558 | I122: =IF(I106>0,(Eingaben!L146*I106*$B$6/1000)*$I$5/$I$4,0) -> 0.6436659094
A123: Leistung bei eingetragener Fläche (KW) | C123: 10 | D123: =IF(D107>0,(Eingaben!L147*D107*$B$6/1000)*$D$5/$D$4,0) -> 0.6518920425 | E123: =IF(E107>0,(Eingaben!L147*E107*$B$6/1000)*$E$5/$E$4,0) -> 0.4784798145 | F123: =IF(F107>0,(Eingaben!L147*F107*$B$6/1000)*$F$5/$F$4,0) -> 0.5802156533 | G123: =IF(G107>0,(Eingaben!L147*G107*$B$6/1000)*$G$5/$G$4,0) -> 0.450346798 | H123: =IF(H107>0,(Eingaben!L147*H107*$B$6/1000)*$H$5/$H$4,0) -> 1.178891317 | I123: =IF(I107>0,(Eingaben!L147*I107*$B$6/1000)*$I$5/$I$4,0) -> 0.6401800268
A124: Leistung bei eingetragener Fläche (KW) | C124: 20 | D124: =IF(D108>0,(Eingaben!L148*D108*$B$6/1000)*$D$5/$D$4,0) -> 0.62573289 | E124: =IF(E108>0,(Eingaben!L148*E108*$B$6/1000)*$E$5/$E$4,0) -> 0.4491902379 | F124: =IF(F108>0,(Eingaben!L148*F108*$B$6/1000)*$F$5/$F$4,0) -> 0.5487395015 | G124: =IF(G108>0,(Eingaben!L148*G108*$B$6/1000)*$G$5/$G$4,0) -> 0.4214392741 | H124: =IF(H108>0,(Eingaben!L148*H108*$B$6/1000)*$H$5/$H$4,0) -> 1.159439517 | I124: =IF(I108>0,(Eingaben!L148*I108*$B$6/1000)*$I$5/$I$4,0) -> 0.650077517
A125: Leistung bei eingetragener Fläche (KW) | C125: 30 | D125: =IF(D109>0,(Eingaben!L149*D109*$B$6/1000)*$D$5/$D$4,0) -> 0.5756489195 | E125: =IF(E109>0,(Eingaben!L149*E109*$B$6/1000)*$E$5/$E$4,0) -> 0.4036022228 | F125: =IF(F109>0,(Eingaben!L149*F109*$B$6/1000)*$F$5/$F$4,0) -> 0.5001872502 | G125: =IF(G109>0,(Eingaben!L149*G109*$B$6/1000)*$G$5/$G$4,0) -> 0.3763003034 | H125: =IF(H109>0,(Eingaben!L149*H109*$B$6/1000)*$H$5/$H$4,0) -> 1.137674759 | I125: =IF(I109>0,(Eingaben!L149*I109*$B$6/1000)*$I$5/$I$4,0) -> 0.6894381061
A126: Leistung bei eingetragener Fläche (KW) | C126: 40 | D126: =IF(D110>0,(Eingaben!L150*D110*$B$6/1000)*$D$5/$D$4,0) -> 0.4905936648 | E126: =IF(E110>0,(Eingaben!L150*E110*$B$6/1000)*$E$5/$E$4,0) -> 0.3348422456 | F126: =IF(F110>0,(Eingaben!L150*F110*$B$6/1000)*$F$5/$F$4,0) -> 0.4273574137 | G126: =IF(G110>0,(Eingaben!L150*G110*$B$6/1000)*$G$5/$G$4,0) -> 0.3080846148 | H126: =IF(H110>0,(Eingaben!L150*H110*$B$6/1000)*$H$5/$H$4,0) -> 1.084786011 | I126: =IF(I110>0,(Eingaben!L150*I110*$B$6/1000)*$I$5/$I$4,0) -> 0.7264955965
A127: Leistung bei eingetragener Fläche (KW) | C127: 50 | D127: =IF(D111>0,(Eingaben!L151*D111*$B$6/1000)*$D$5/$D$4,0) -> 0.3763400262 | E127: =IF(E111>0,(Eingaben!L151*E111*$B$6/1000)*$E$5/$E$4,0) -> 0.226048301 | F127: =IF(F111>0,(Eingaben!L151*F111*$B$6/1000)*$F$5/$F$4,0) -> 0.3110053213 | G127: =IF(G111>0,(Eingaben!L151*G111*$B$6/1000)*$G$5/$G$4,0) -> 0.2026560591 | H127: =IF(H111>0,(Eingaben!L151*H111*$B$6/1000)*$H$5/$H$4,0) -> 0.962393743 | I127: =IF(I111>0,(Eingaben!L151*I111*$B$6/1000)*$I$5/$I$4,0) -> 0.67311149
A128: Leistung bei eingetragener Fläche (KW) | C128: 60 | D128: =IF(D112>0,(Eingaben!L152*D112*$B$6/1000)*$D$5/$D$4,0) -> 0.2075993324 | E128: =IF(E112>0,(Eingaben!L152*E112*$B$6/1000)*$E$5/$E$4,0) -> 0.08105317565 | F128: =IF(F112>0,(Eingaben!L152*F112*$B$6/1000)*$F$5/$F$4,0) -> 0.1559356937 | G128: =IF(G112>0,(Eingaben!L152*G112*$B$6/1000)*$G$5/$G$4,0) -> 0.05717034089 | H128: =IF(H112>0,(Eingaben!L152*H112*$B$6/1000)*$H$5/$H$4,0) -> 0.9082475904 | I128: =IF(I112>0,(Eingaben!L152*I112*$B$6/1000)*$I$5/$I$4,0) -> 0.5402076149
A129: Leistung bei eingetragener Fläche (KW) | C129: 70 | D129: =IF(D113>0,(Eingaben!L142*D113*$B$6/1000)*$D$5/$D$4,0) -> 0 | E129: =IF(E113>0,(Eingaben!L142*E113*$B$6/1000)*$E$5/$E$4,0) -> 0 | F129: =IF(F113>0,(Eingaben!L142*F113*$B$6/1000)*$F$5/$F$4,0) -> 0 | G129: =IF(G113>0,(Eingaben!L142*G113*$B$6/1000)*$G$5/$G$4,0) -> 0 | H129: =IF(H113>0,(Eingaben!L142*H113*$B$6/1000)*$H$5/$H$4,0) -> 0.2125883249 | I129: =IF(I113>0,(Eingaben!L142*I113*$B$6/1000)*$I$5/$I$4,0) -> 0
A130: KW Schnitt > | D130: =SUM(D115:D129)/15 -> 0.434236168 | E130: =SUM(E115:E129)/15 -> 0.2953749253 | F130: 0.3755387957 | G130: 0.2725353447 | H130: 0.9639804055 | I130: 0.5655124408
A131: KWH gesamt bei Azimut -70 bis +70 > | D131: =IF(D130>0,D130*$B$17,0) -> 2.561993391 | E131: 1.742712059 | F131: 2.215678894 | G131: 1.607958533 | H131: 5.687484392 | I131: 3.336523401
A132: Puffervolumen (L) > | B132: =B45 -> 1500 | C132: Erwärmung (K)> | D132: =IF(D131>0,D131/(($B$45/1000)*1*1.163),0) -> 1.468611861 | E132: =IF(E131>0,E131/(($B$45/1000)*1*1.163),0) -> 0.9989750983 | F132: 1.270093949 | G132: 0.9217303144 | H132: 3.260237542 | I132: 1.912595816

Sheet Diagramme
B1: Sommer | H1: Frühjahr/Herbst | N1: Winter
B18: Gesamtfläche (m²) > | E18: =Sommer!B6 -> 10.46 | H18: Gesamtfläche (m²) > | K18: =Herbstfrühjahr!B6 -> 10.46 | N18: Gesamtfläche (m²) > | Q18: =Winter!B6 -> 10.46
B19: Temperaturdifferenz (fix in K) > | E19: =Sommer!B5 -> 35 | H19: Temperaturdifferenz (fix in K) > | K19: =Herbstfrühjahr!B5 -> 32 | N19: Temperaturdifferenz (fix in K) > | Q19: =Winter!B5 -> 28
B20: eingetragenes Datum > | E20: =Sommer!B8 -> 2013-06-21 | H20: eingetragenes Datum > | K20: =Herbstfrühjahr!B8 -> 2013-09-23 | N20: eingetragenes Datum > | Q20: =Winter!B8 -> 2013-12-21
B21: Lfz. Von Azimut -70bis+70 (Std.) | E21: =Sommer!B17 -> 5.9 | H21: Lfz. Von Azimut -70bis+70 (Std.) | K21: =Herbstfrühjahr!B17 -> 8.5 | N21: Lfz. Von Azimut -70bis+70 (Std.) | Q21: =Winter!B17 -> 7.5
B22: KW Schnitt Sommertag | F22: Ertrag (kWh) | H22: KW Schnitt Frühjahr/Herbst Tag | L22: Ertrag (kWh) | N22: KW Schnitt Wintertag | R22: Ertrag (kWh)
B23: =Herbstfrühjahr!D3 -> SolRose 26 | E23: =Sommer!D43 -> 5.484316354 | F23: =Sommer!D44 -> 32.35746649 | H23: =B23 -> SolRose 26 | K23: =Herbstfrühjahr!D43 -> 4.395392095 | L23: =Herbstfrühjahr!D44 -> 37.3608328 | N23: =B23 -> SolRose 26 | Q23: =Winter!D43 -> 1.548288362 | R23: =Winter!D44 -> 11.61216272
B24: =Herbstfrühjahr!E3 -> Synergie 210 | E24: =Sommer!E43 -> 5.111342504 | F24: =Sommer!E44 -> 30.15692077 | H24: Synergie 210 | K24: =Herbstfrühjahr!E43 -> 4.057418908 | L24: =Herbstfrühjahr!E44 -> 34.48806072 | N24: Synergie 210 | Q24: =Winter!E43 -> 1.392177954 | R24: =Winter!E44 -> 10.44133465
B25: =Herbstfrühjahr!F3 -> Sunex AMX 2,85 | E25: =Sommer!F43 -> 5.435011897 | F25: =Sommer!F44 -> 32.06657019 | H25: Sunex AMX 2,85 | K25: =Herbstfrühjahr!F43 -> 4.330163184 | L25: =Herbstfrühjahr!F44 -> 36.80638706 | N25: Sunex AMX 2,85 | Q25: =Winter!F43 -> 1.507790023 | R25: =Winter!F44 -> 11.30842517
B26: =Herbstfrühjahr!G3 -> Sunex 2,0 | E26: =Sommer!G43 -> 5.077381091 | F26: =Sommer!G44 -> 29.95654844 | H26: Sunex 2,0 | K26: =Herbstfrühjahr!G43 -> 4.017579371 | L26: =Herbstfrühjahr!G44 -> 34.14942465 | N26: Sunex 2,0 | Q26: =Winter!G43 -> 1.365010259 | R26: =Winter!G44 -> 10.23757694
B27: =Herbstfrühjahr!H3 -> Star Azzurro CPC | E27: =Sommer!H43 -> 5.092556119 | F27: =Sommer!H44 -> 30.0460811 | H27: Star Azzurro CPC | K27: =Herbstfrühjahr!H43 -> 4.063982502 | L27: =Herbstfrühjahr!H44 -> 34.54385127 | N27: Star Azzurro CPC | Q27: =Winter!H43 -> 1.526217087 | R27: =Winter!H44 -> 11.44662815
B28: =Herbstfrühjahr!I3 -> Billig VRK | E28: =Sommer!I43 -> 4.218745631 | F28: =Sommer!I44 -> 24.89059922 | H28: Billig VRK | K28: =Herbstfrühjahr!I43 -> 3.31319586 | L28: =Herbstfrühjahr!I44 -> 28.16216481 | N28: Billig VRK | Q28: =Winter!I43 -> 1.094306641 | R28: =Winter!I44 -> 8.207299806
B29: im Sommer wird Azimut -70 bis+70 schneller erreicht ! | H29: im Frühj.Herbst wird Azimut -70 bis+70 langsamer erreicht ! | N29: im Winter wird Azimut -70 bis+70 gar nicht erreicht ! (nur bis ~50°)

Sheet Maxpeak
A1: Nachbildung der Max.Peak Diagramme lt. Prüfberichte (SPF usw.) mit Originaldarstellung nach Modulfläche und variabel auswählbarer Fläche (zum Vergleich zu anderen Kollektoren)
A2: allgemeine Eingaben | C2: Infos > | D2: =Herbstfrühjahr!D2 -> 0 | E2: =Herbstfrühjahr!E2 -> 0 | F2: =Herbstfrühjahr!F2 -> 0 | G2: =Herbstfrühjahr!G2 -> 0 | H2: =Herbstfrühjahr!H2 -> 0 | I2: =Herbstfrühjahr!I2 -> 0
C3: Kollektor > | D3: =Herbstfrühjahr!D3 -> SolRose 26 | E3: =Herbstfrühjahr!E3 -> Synergie 210 | F3: =Herbstfrühjahr!F3 -> Sunex AMX 2,85 | G3: =Herbstfrühjahr!G3 -> Sunex 2,0 | H3: =Herbstfrühjahr!H3 -> Star Azzurro CPC | I3: =Herbstfrühjahr!I3 -> Billig VRK
C4: Bruttofl.(m²) | D4: =Herbstfrühjahr!D4 -> 2.6 | E4: =Herbstfrühjahr!E4 -> 2.07 | F4: =Herbstfrühjahr!F4 -> 2.87 | G4: =Herbstfrühjahr!G4 -> 2.03 | H4: =Herbstfrühjahr!H4 -> 3.92 | I4: =Herbstfrühjahr!I4 -> 4.18
C5: Aperturfl. (m²) | D5: =Herbstfrühjahr!D5 -> 2.47 | E5: =Herbstfrühjahr!E5 -> 1.92 | F5: =Herbstfrühjahr!F5 -> 2.67 | G5: =Herbstfrühjahr!G5 -> 1.84 | H5: =Herbstfrühjahr!H5 -> 3.47 | I5: =Herbstfrühjahr!I5 -> 2.84
A6: Gesamtfläche (m²) | B6: =Eingaben!B6 -> 10.46 | C6: η0 | D6: =Herbstfrühjahr!D6 -> 0.81 | E6: =Herbstfrühjahr!E6 -> 0.785 | F6: =Herbstfrühjahr!F6 -> 0.82 | G6: =Herbstfrühjahr!G6 -> 0.8 | H6: =Herbstfrühjahr!H6 -> 0.64 | I6: =Herbstfrühjahr!I6 -> 0.654
C7: a1 | D7: =Herbstfrühjahr!D7 -> 3.36 | E7: =Herbstfrühjahr!E7 -> 3.722 | F7: =Herbstfrühjahr!F7 -> 3.29 | G7: =Herbstfrühjahr!G7 -> 4.16 | H7: =Herbstfrühjahr!H7 -> 0.749 | I7: =Herbstfrühjahr!I7 -> 1.82
C8: a2 | D8: =Herbstfrühjahr!D8 -> 0.0141 | E8: =Herbstfrühjahr!E8 -> 0.012 | F8: =Herbstfrühjahr!F8 -> 0.023 | G8: =Herbstfrühjahr!G8 -> 0.004 | H8: =Herbstfrühjahr!H8 -> 0.005 | I8: =Herbstfrühjahr!I8 -> 0.0066
A9: Strahlung Direkt | B9: 1000 | C9: Bruttoflächenanteil (%) > | D9: =IF(D5>0,D5/(D4/100),"") -> 95 | E9: =IF(E5>0,E5/(E4/100),"") -> 92.75362319 | F9: 93.03135889 | G9: 90.64039409 | H9: 88.52040816 | I9: 67.94258373
C10: Wirkungsgrad bei Diff.0 (%) > | D10: =($D$6-$D$7*(0/1000)-$D$8*1000*((0/1000*0/1000)))*100 -> 81 | E10: =($E$6-$E$7*(0/1000)-$E$8*1000*((0/1000*0/1000)))*100 -> 78.5 | F10: =($F$6-$F$7*(0/1000)-$F$8*1000*((0/1000*0/1000)))*100 -> 82 | G10: =($G$6-$G$7*(0/1000)-$G$8*1000*((0/1000*0/1000)))*100 -> 80 | H10: =($H$6-$H$7*(0/1000)-$H$8*1000*((0/1000*0/1000)))*100 -> 64 | I10: =($I$6-$I$7*(0/1000)-$I$8*1000*((0/1000*0/1000)))*100 -> 65.4
A11: max. Peak nach eingestellter Gesamtfläche in W (gleiche Flächen !) > | D11: =IF(D26>0,D26*1000,"") -> 8048.97 | E11: =IF(E26>0,E26*1000,"") -> 7616.092754 | F11: 7979.485714 | G11: 7584.788177 | H11: 5925.910204 | I11: 4647.843445
A12: max. Peak nach Modulfläche in W (verschiedene Flächen !) > | D12: =IF(D38>0,D38*1000,"") -> 2000.7 | E12: =IF(E38>0,E38*1000,"") -> 1507.2 | F12: 2189.4 | G12: 1472 | H12: 2220.8 | I12: 1857.36
A14: =A37 -> bei 1000 W/m² | C14: Diff. | D14: =IF(D3>0,D3,"") -> SolRose 26 | E14: =IF(E3>0,E3,"") -> Synergie 210 | F14: Sunex AMX 2,85 | G14: Sunex 2,0 | H14: Star Azzurro CPC | I14: Billig VRK
B15: Diff. | C15: 0 | D15: =IF(Maxpeak!$B$9>0,($D$6-$D$7*(0/Maxpeak!$B$9)-$D$8*Maxpeak!$B$9*((0/Maxpeak!$B$9*0/Maxpeak!$B$9))),0) -> 0.81 | E15: =IF(Maxpeak!$B$9>0,($E$6-$E$7*(0/Maxpeak!$B$9)-$E$8*Maxpeak!$B$9*((0/Maxpeak!$B$9*0/Maxpeak!$B$9))),0) -> 0.785 | F15: =IF(Maxpeak!$B$9>0,($F$6-$F$7*(0/Maxpeak!$B$9)-$F$8*Maxpeak!$B$9*((0/Maxpeak!$B$9*0/Maxpeak!$B$9))),0) -> 0.82 | G15: =IF(Maxpeak!$B$9>0,($G$6-$G$7*(0/Maxpeak!$B$9)-$G$8*Maxpeak!$B$9*((0/Maxpeak!$B$9*0/Maxpeak!$B$9))),0) -> 0.8 | H15: =IF(Maxpeak!$B$9>0,($H$6-$H$7*(0/Maxpeak!$B$9)-$H$8*Maxpeak!$B$9*((0/Maxpeak!$B$9*0/Maxpeak!$B$9))),0) -> 0.64 | I15: =IF(Maxpeak!$B$9>0,($I$6-$I$7*(0/Maxpeak!$B$9)-$I$8*Maxpeak!$B$9*((0/Maxpeak!$B$9*0/Maxpeak!$B$9))),0) -> 0.654
B16: Diff. | C16: 10 | D16: =IF(Maxpeak!$B$9>0,($D$6-$D$7*(10/Maxpeak!$B$9)-$D$8*Maxpeak!$B$9*((10/Maxpeak!$B$9*10/Maxpeak!$B$9))),0) -> 0.77499 | E16: =IF(Maxpeak!$B$9>0,($E$6-$E$7*(10/Maxpeak!$B$9)-$E$8*Maxpeak!$B$9*((10/Maxpeak!$B$9*10/Maxpeak!$B$9))),0) -> 0.74658 | F16: =IF(Maxpeak!$B$9>0,($F$6-$F$7*(10/Maxpeak!$B$9)-$F$8*Maxpeak!$B$9*((10/Maxpeak!$B$9*10/Maxpeak!$B$9))),0) -> 0.7848 | G16: =IF(Maxpeak!$B$9>0,($G$6-$G$7*(10/Maxpeak!$B$9)-$G$8*Maxpeak!$B$9*((10/Maxpeak!$B$9*10/Maxpeak!$B$9))),0) -> 0.758 | H16: =IF(Maxpeak!$B$9>0,($H$6-$H$7*(10/Maxpeak!$B$9)-$H$8*Maxpeak!$B$9*((10/Maxpeak!$B$9*10/Maxpeak!$B$9))),0) -> 0.63201 | I16: =IF(Maxpeak!$B$9>0,($I$6-$I$7*(10/Maxpeak!$B$9)-$I$8*Maxpeak!$B$9*((10/Maxpeak!$B$9*10/Maxpeak!$B$9))),0) -> 0.63514
B17: Diff. | C17: 20 | D17: =IF(Maxpeak!$B$9>0,($D$6-$D$7*(20/Maxpeak!$B$9)-$D$8*Maxpeak!$B$9*((20/Maxpeak!$B$9*20/Maxpeak!$B$9))),0) -> 0.73716 | E17: =IF(Maxpeak!$B$9>0,($E$6-$E$7*(20/Maxpeak!$B$9)-$E$8*Maxpeak!$B$9*((20/Maxpeak!$B$9*20/Maxpeak!$B$9))),0) -> 0.70576 | F17: =IF(Maxpeak!$B$9>0,($F$6-$F$7*(20/Maxpeak!$B$9)-$F$8*Maxpeak!$B$9*((20/Maxpeak!$B$9*20/Maxpeak!$B$9))),0) -> 0.745 | G17: =IF(Maxpeak!$B$9>0,($G$6-$G$7*(20/Maxpeak!$B$9)-$G$8*Maxpeak!$B$9*((20/Maxpeak!$B$9*20/Maxpeak!$B$9))),0) -> 0.7152 | H17: =IF(Maxpeak!$B$9>0,($H$6-$H$7*(20/Maxpeak!$B$9)-$H$8*Maxpeak!$B$9*((20/Maxpeak!$B$9*20/Maxpeak!$B$9))),0) -> 0.62302 | I17: =IF(Maxpeak!$B$9>0,($I$6-$I$7*(20/Maxpeak!$B$9)-$I$8*Maxpeak!$B$9*((20/Maxpeak!$B$9*20/Maxpeak!$B$9))),0) -> 0.61496
B18: Diff. | C18: 30 | D18: =IF(Maxpeak!$B$9>0,($D$6-$D$7*(30/Maxpeak!$B$9)-$D$8*Maxpeak!$B$9*((30/Maxpeak!$B$9*30/Maxpeak!$B$9))),0) -> 0.69651 | E18: =IF(Maxpeak!$B$9>0,($E$6-$E$7*(30/Maxpeak!$B$9)-$E$8*Maxpeak!$B$9*((30/Maxpeak!$B$9*30/Maxpeak!$B$9))),0) -> 0.66254 | F18: =IF(Maxpeak!$B$9>0,($F$6-$F$7*(30/Maxpeak!$B$9)-$F$8*Maxpeak!$B$9*((30/Maxpeak!$B$9*30/Maxpeak!$B$9))),0) -> 0.7006 | G18: =IF(Maxpeak!$B$9>0,($G$6-$G$7*(30/Maxpeak!$B$9)-$G$8*Maxpeak!$B$9*((30/Maxpeak!$B$9*30/Maxpeak!$B$9))),0) -> 0.6716 | H18: =IF(Maxpeak!$B$9>0,($H$6-$H$7*(30/Maxpeak!$B$9)-$H$8*Maxpeak!$B$9*((30/Maxpeak!$B$9*30/Maxpeak!$B$9))),0) -> 0.61303 | I18: =IF(Maxpeak!$B$9>0,($I$6-$I$7*(30/Maxpeak!$B$9)-$I$8*Maxpeak!$B$9*((30/Maxpeak!$B$9*30/Maxpeak!$B$9))),0) -> 0.59346
B19: Diff. | C19: 40 | D19: =IF(Maxpeak!$B$9>0,($D$6-$D$7*(40/Maxpeak!$B$9)-$D$8*Maxpeak!$B$9*((40/Maxpeak!$B$9*40/Maxpeak!$B$9))),0) -> 0.65304 | E19: =IF(Maxpeak!$B$9>0,($E$6-$E$7*(40/Maxpeak!$B$9)-$E$8*Maxpeak!$B$9*((40/Maxpeak!$B$9*40/Maxpeak!$B$9))),0) -> 0.61692 | F19: =IF(Maxpeak!$B$9>0,($F$6-$F$7*(40/Maxpeak!$B$9)-$F$8*Maxpeak!$B$9*((40/Maxpeak!$B$9*40/Maxpeak!$B$9))),0) -> 0.6516 | G19: =IF(Maxpeak!$B$9>0,($G$6-$G$7*(40/Maxpeak!$B$9)-$G$8*Maxpeak!$B$9*((40/Maxpeak!$B$9*40/Maxpeak!$B$9))),0) -> 0.6272 | H19: =IF(Maxpeak!$B$9>0,($H$6-$H$7*(40/Maxpeak!$B$9)-$H$8*Maxpeak!$B$9*((40/Maxpeak!$B$9*40/Maxpeak!$B$9))),0) -> 0.60204 | I19: =IF(Maxpeak!$B$9>0,($I$6-$I$7*(40/Maxpeak!$B$9)-$I$8*Maxpeak!$B$9*((40/Maxpeak!$B$9*40/Maxpeak!$B$9))),0) -> 0.57064
B20: Diff. | C20: 50 | D20: =IF(Maxpeak!$B$9>0,($D$6-$D$7*(50/Maxpeak!$B$9)-$D$8*Maxpeak!$B$9*((50/Maxpeak!$B$9*50/Maxpeak!$B$9))),0) -> 0.60675 | E20: =IF(Maxpeak!$B$9>0,($E$6-$E$7*(50/Maxpeak!$B$9)-$E$8*Maxpeak!$B$9*((50/Maxpeak!$B$9*50/Maxpeak!$B$9))),0) -> 0.5689 | F20: =IF(Maxpeak!$B$9>0,($F$6-$F$7*(50/Maxpeak!$B$9)-$F$8*Maxpeak!$B$9*((50/Maxpeak!$B$9*50/Maxpeak!$B$9))),0) -> 0.598 | G20: =IF(Maxpeak!$B$9>0,($G$6-$G$7*(50/Maxpeak!$B$9)-$G$8*Maxpeak!$B$9*((50/Maxpeak!$B$9*50/Maxpeak!$B$9))),0) -> 0.582 | H20: =IF(Maxpeak!$B$9>0,($H$6-$H$7*(50/Maxpeak!$B$9)-$H$8*Maxpeak!$B$9*((50/Maxpeak!$B$9*50/Maxpeak!$B$9))),0) -> 0.59005 | I20: =IF(Maxpeak!$B$9>0,($I$6-$I$7*(50/Maxpeak!$B$9)-$I$8*Maxpeak!$B$9*((50/Maxpeak!$B$9*50/Maxpeak!$B$9))),0) -> 0.5465
B21: Diff. | C21: 60 | D21: =IF(Maxpeak!$B$9>0,($D$6-$D$7*(60/Maxpeak!$B$9)-$D$8*Maxpeak!$B$9*((60/Maxpeak!$B$9*60/Maxpeak!$B$9))),0) -> 0.55764 | E21: =IF(Maxpeak!$B$9>0,($E$6-$E$7*(60/Maxpeak!$B$9)-$E$8*Maxpeak!$B$9*((60/Maxpeak!$B$9*60/Maxpeak!$B$9))),0) -> 0.51848 | F21: =IF(Maxpeak!$B$9>0,($F$6-$F$7*(60/Maxpeak!$B$9)-$F$8*Maxpeak!$B$9*((60/Maxpeak!$B$9*60/Maxpeak!$B$9))),0) -> 0.5398 | G21: =IF(Maxpeak!$B$9>0,($G$6-$G$7*(60/Maxpeak!$B$9)-$G$8*Maxpeak!$B$9*((60/Maxpeak!$B$9*60/Maxpeak!$B$9))),0) -> 0.536 | H21: =IF(Maxpeak!$B$9>0,($H$6-$H$7*(60/Maxpeak!$B$9)-$H$8*Maxpeak!$B$9*((60/Maxpeak!$B$9*60/Maxpeak!$B$9))),0) -> 0.57706 | I21: =IF(Maxpeak!$B$9>0,($I$6-$I$7*(60/Maxpeak!$B$9)-$I$8*Maxpeak!$B$9*((60/Maxpeak!$B$9*60/Maxpeak!$B$9))),0) -> 0.52104
B22: Diff. | C22: 70 | D22: =IF(Maxpeak!$B$9>0,($D$6-$D$7*(70/Maxpeak!$B$9)-$D$8*Maxpeak!$B$9*((70/Maxpeak!$B$9*70/Maxpeak!$B$9))),0) -> 0.50571 | E22: =IF(Maxpeak!$B$9>0,($E$6-$E$7*(70/Maxpeak!$B$9)-$E$8*Maxpeak!$B$9*((70/Maxpeak!$B$9*70/Maxpeak!$B$9))),0) -> 0.46566 | F22: =IF(Maxpeak!$B$9>0,($F$6-$F$7*(70/Maxpeak!$B$9)-$F$8*Maxpeak!$B$9*((70/Maxpeak!$B$9*70/Maxpeak!$B$9))),0) -> 0.477 | G22: =IF(Maxpeak!$B$9>0,($G$6-$G$7*(70/Maxpeak!$B$9)-$G$8*Maxpeak!$B$9*((70/Maxpeak!$B$9*70/Maxpeak!$B$9))),0) -> 0.4892 | H22: =IF(Maxpeak!$B$9>0,($H$6-$H$7*(70/Maxpeak!$B$9)-$H$8*Maxpeak!$B$9*((70/Maxpeak!$B$9*70/Maxpeak!$B$9))),0) -> 0.56307 | I22: =IF(Maxpeak!$B$9>0,($I$6-$I$7*(70/Maxpeak!$B$9)-$I$8*Maxpeak!$B$9*((70/Maxpeak!$B$9*70/Maxpeak!$B$9))),0) -> 0.49426
B23: Diff. | C23: 80 | D23: =IF(Maxpeak!$B$9>0,($D$6-$D$7*(80/Maxpeak!$B$9)-$D$8*Maxpeak!$B$9*((80/Maxpeak!$B$9*80/Maxpeak!$B$9))),0) -> 0.45096 | E23: =IF(Maxpeak!$B$9>0,($E$6-$E$7*(80/Maxpeak!$B$9)-$E$8*Maxpeak!$B$9*((80/Maxpeak!$B$9*80/Maxpeak!$B$9))),0) -> 0.41044 | F23: =IF(Maxpeak!$B$9>0,($F$6-$F$7*(80/Maxpeak!$B$9)-$F$8*Maxpeak!$B$9*((80/Maxpeak!$B$9*80/Maxpeak!$B$9))),0) -> 0.4096 | G23: =IF(Maxpeak!$B$9>0,($G$6-$G$7*(80/Maxpeak!$B$9)-$G$8*Maxpeak!$B$9*((80/Maxpeak!$B$9*80/Maxpeak!$B$9))),0) -> 0.4416 | H23: =IF(Maxpeak!$B$9>0,($H$6-$H$7*(80/Maxpeak!$B$9)-$H$8*Maxpeak!$B$9*((80/Maxpeak!$B$9*80/Maxpeak!$B$9))),0) -> 0.54808 | I23: =IF(Maxpeak!$B$9>0,($I$6-$I$7*(80/Maxpeak!$B$9)-$I$8*Maxpeak!$B$9*((80/Maxpeak!$B$9*80/Maxpeak!$B$9))),0) -> 0.46616
B24: Diff. | C24: 90 | D24: =IF(Maxpeak!$B$9>0,($D$6-$D$7*(90/Maxpeak!$B$9)-$D$8*Maxpeak!$B$9*((90/Maxpeak!$B$9*90/Maxpeak!$B$9))),0) -> 0.39339 | E24: =IF(Maxpeak!$B$9>0,($E$6-$E$7*(90/Maxpeak!$B$9)-$E$8*Maxpeak!$B$9*((90/Maxpeak!$B$9*90/Maxpeak!$B$9))),0) -> 0.35282 | F24: =IF(Maxpeak!$B$9>0,($F$6-$F$7*(90/Maxpeak!$B$9)-$F$8*Maxpeak!$B$9*((90/Maxpeak!$B$9*90/Maxpeak!$B$9))),0) -> 0.3376 | G24: =IF(Maxpeak!$B$9>0,($G$6-$G$7*(90/Maxpeak!$B$9)-$G$8*Maxpeak!$B$9*((90/Maxpeak!$B$9*90/Maxpeak!$B$9))),0) -> 0.3932 | H24: =IF(Maxpeak!$B$9>0,($H$6-$H$7*(90/Maxpeak!$B$9)-$H$8*Maxpeak!$B$9*((90/Maxpeak!$B$9*90/Maxpeak!$B$9))),0) -> 0.53209 | I24: =IF(Maxpeak!$B$9>0,($I$6-$I$7*(90/Maxpeak!$B$9)-$I$8*Maxpeak!$B$9*((90/Maxpeak!$B$9*90/Maxpeak!$B$9))),0) -> 0.43674
B25: Diff. | C25: 100 | D25: =IF(Maxpeak!$B$9>0,($D$6-$D$7*(100/Maxpeak!$B$9)-$D$8*Maxpeak!$B$9*((100/Maxpeak!$B$9*100/Maxpeak!$B$9))),0) -> 0.333 | E25: =IF(Maxpeak!$B$9>0,($E$6-$E$7*(100/Maxpeak!$B$9)-$E$8*Maxpeak!$B$9*((100/Maxpeak!$B$9*100/Maxpeak!$B$9))),0) -> 0.2928 | F25: =IF(Maxpeak!$B$9>0,($F$6-$F$7*(100/Maxpeak!$B$9)-$F$8*Maxpeak!$B$9*((100/Maxpeak!$B$9*100/Maxpeak!$B$9))),0) -> 0.261 | G25: =IF(Maxpeak!$B$9>0,($G$6-$G$7*(100/Maxpeak!$B$9)-$G$8*Maxpeak!$B$9*((100/Maxpeak!$B$9*100/Maxpeak!$B$9))),0) -> 0.344 | H25: =IF(Maxpeak!$B$9>0,($H$6-$H$7*(100/Maxpeak!$B$9)-$H$8*Maxpeak!$B$9*((100/Maxpeak!$B$9*100/Maxpeak!$B$9))),0) -> 0.5151 | I25: =IF(Maxpeak!$B$9>0,($I$6-$I$7*(100/Maxpeak!$B$9)-$I$8*Maxpeak!$B$9*((100/Maxpeak!$B$9*100/Maxpeak!$B$9))),0) -> 0.406
A26: pro eingetragene m² | B26: KW | C26: 0 | D26: =IF(D15>0,(Maxpeak!$B$9*D15*Maxpeak!$B$6/1000)*$D$5/$D$4,0) -> 8.04897 | E26: =IF(E15>0,(Maxpeak!$B$9*E15*Maxpeak!$B$6/1000)*$E$5/$E$4,0) -> 7.616092754 | F26: =IF(F15>0,(Maxpeak!$B$9*F15*Maxpeak!$B$6/1000)*$F$5/$F$4,0) -> 7.979485714 | G26: =IF(G15>0,(Maxpeak!$B$9*G15*Maxpeak!$B$6/1000)*$G$5/$G$4,0) -> 7.584788177 | H26: =IF(H15>0,(Maxpeak!$B$9*H15*Maxpeak!$B$6/1000)*$H$5/$H$4,0) -> 5.925910204 | I26: =IF(I15>0,(Maxpeak!$B$9*I15*Maxpeak!$B$6/1000)*$I$5/$I$4,0) -> 4.647843445
A27: pro eingetragene m² | B27: KW | C27: 10 | D27: =IF(D16>0,(Maxpeak!$B$9*D16*Maxpeak!$B$6/1000)*$D$5/$D$4,0) -> 7.70107563 | E27: =IF(E16>0,(Maxpeak!$B$9*E16*Maxpeak!$B$6/1000)*$E$5/$E$4,0) -> 7.2433408 | F27: =IF(F16>0,(Maxpeak!$B$9*F16*Maxpeak!$B$6/1000)*$F$5/$F$4,0) -> 7.636951693 | G27: =IF(G16>0,(Maxpeak!$B$9*G16*Maxpeak!$B$6/1000)*$G$5/$G$4,0) -> 7.186586798 | H27: =IF(H16>0,(Maxpeak!$B$9*H16*Maxpeak!$B$6/1000)*$H$5/$H$4,0) -> 5.851928919 | I27: =IF(I16>0,(Maxpeak!$B$9*I16*Maxpeak!$B$6/1000)*$I$5/$I$4,0) -> 4.513809305
A28: pro eingetragene m² | B28: KW | C28: 20 | D28: =IF(D17>0,(Maxpeak!$B$9*D17*Maxpeak!$B$6/1000)*$D$5/$D$4,0) -> 7.32515892 | E28: =IF(E17>0,(Maxpeak!$B$9*E17*Maxpeak!$B$6/1000)*$E$5/$E$4,0) -> 6.847303977 | F28: =IF(F17>0,(Maxpeak!$B$9*F17*Maxpeak!$B$6/1000)*$F$5/$F$4,0) -> 7.249654704 | G28: =IF(G17>0,(Maxpeak!$B$9*G17*Maxpeak!$B$6/1000)*$G$5/$G$4,0) -> 6.780800631 | H28: =IF(H17>0,(Maxpeak!$B$9*H17*Maxpeak!$B$6/1000)*$H$5/$H$4,0) -> 5.768688399 | I28: =IF(I17>0,(Maxpeak!$B$9*I17*Maxpeak!$B$6/1000)*$I$5/$I$4,0) -> 4.370394197
A29: pro eingetragene m² | B29: KW | C29: 30 | D29: =IF(D18>0,(Maxpeak!$B$9*D18*Maxpeak!$B$6/1000)*$D$5/$D$4,0) -> 6.92121987 | E29: =IF(E18>0,(Maxpeak!$B$9*E18*Maxpeak!$B$6/1000)*$E$5/$E$4,0) -> 6.427982284 | F29: =IF(F18>0,(Maxpeak!$B$9*F18*Maxpeak!$B$6/1000)*$F$5/$F$4,0) -> 6.817594746 | G29: =IF(G18>0,(Maxpeak!$B$9*G18*Maxpeak!$B$6/1000)*$G$5/$G$4,0) -> 6.367429675 | H29: =IF(H18>0,(Maxpeak!$B$9*H18*Maxpeak!$B$6/1000)*$H$5/$H$4,0) -> 5.676188644 | I29: =IF(I18>0,(Maxpeak!$B$9*I18*Maxpeak!$B$6/1000)*$I$5/$I$4,0) -> 4.217598121
A30: pro eingetragene m² | B30: KW | C30: 40 | D30: =IF(D19>0,(Maxpeak!$B$9*D19*Maxpeak!$B$6/1000)*$D$5/$D$4,0) -> 6.48925848 | E30: =IF(E19>0,(Maxpeak!$B$9*E19*Maxpeak!$B$6/1000)*$E$5/$E$4,0) -> 5.985375722 | F30: =IF(F19>0,(Maxpeak!$B$9*F19*Maxpeak!$B$6/1000)*$F$5/$F$4,0) -> 6.340771819 | G30: =IF(G19>0,(Maxpeak!$B$9*G19*Maxpeak!$B$6/1000)*$G$5/$G$4,0) -> 5.946473931 | H30: =IF(H19>0,(Maxpeak!$B$9*H19*Maxpeak!$B$6/1000)*$H$5/$H$4,0) -> 5.574429655 | I30: =IF(I19>0,(Maxpeak!$B$9*I19*Maxpeak!$B$6/1000)*$I$5/$I$4,0) -> 4.055421076
A31: pro eingetragene m² | B31: KW | C31: 50 | D31: =IF(D20>0,(Maxpeak!$B$9*D20*Maxpeak!$B$6/1000)*$D$5/$D$4,0) -> 6.02927475 | E31: =IF(E20>0,(Maxpeak!$B$9*E20*Maxpeak!$B$6/1000)*$E$5/$E$4,0) -> 5.51948429 | F31: =IF(F20>0,(Maxpeak!$B$9*F20*Maxpeak!$B$6/1000)*$F$5/$F$4,0) -> 5.819185923 | G31: =IF(G20>0,(Maxpeak!$B$9*G20*Maxpeak!$B$6/1000)*$G$5/$G$4,0) -> 5.517933399 | H31: =IF(H20>0,(Maxpeak!$B$9*H20*Maxpeak!$B$6/1000)*$H$5/$H$4,0) -> 5.463411431 | I31: =IF(I20>0,(Maxpeak!$B$9*I20*Maxpeak!$B$6/1000)*$I$5/$I$4,0) -> 3.883863062
A32: pro eingetragene m² | B32: KW | C32: 60 | D32: =IF(D21>0,(Maxpeak!$B$9*D21*Maxpeak!$B$6/1000)*$D$5/$D$4,0) -> 5.54126868 | E32: =IF(E21>0,(Maxpeak!$B$9*E21*Maxpeak!$B$6/1000)*$E$5/$E$4,0) -> 5.030307988 | F32: =IF(F21>0,(Maxpeak!$B$9*F21*Maxpeak!$B$6/1000)*$F$5/$F$4,0) -> 5.252837059 | G32: =IF(G21>0,(Maxpeak!$B$9*G21*Maxpeak!$B$6/1000)*$G$5/$G$4,0) -> 5.081808079 | H32: =IF(H21>0,(Maxpeak!$B$9*H21*Maxpeak!$B$6/1000)*$H$5/$H$4,0) -> 5.343133972 | I32: =IF(I21>0,(Maxpeak!$B$9*I21*Maxpeak!$B$6/1000)*$I$5/$I$4,0) -> 3.70292408
A33: pro eingetragene m² | B33: KW | C33: 70 | D33: =IF(D22>0,(Maxpeak!$B$9*D22*Maxpeak!$B$6/1000)*$D$5/$D$4,0) -> 5.02524027 | E33: =IF(E22>0,(Maxpeak!$B$9*E22*Maxpeak!$B$6/1000)*$E$5/$E$4,0) -> 4.517846817 | F33: =IF(F22>0,(Maxpeak!$B$9*F22*Maxpeak!$B$6/1000)*$F$5/$F$4,0) -> 4.641725226 | G33: =IF(G22>0,(Maxpeak!$B$9*G22*Maxpeak!$B$6/1000)*$G$5/$G$4,0) -> 4.63809797 | H33: =IF(H22>0,(Maxpeak!$B$9*H22*Maxpeak!$B$6/1000)*$H$5/$H$4,0) -> 5.213597279 | I33: =IF(I22>0,(Maxpeak!$B$9*I22*Maxpeak!$B$6/1000)*$I$5/$I$4,0) -> 3.51260413
A34: pro eingetragene m² | B34: KW | C34: 80 | D34: =IF(D23>0,(Maxpeak!$B$9*D23*Maxpeak!$B$6/1000)*$D$5/$D$4,0) -> 4.48118952 | E34: =IF(E23>0,(Maxpeak!$B$9*E23*Maxpeak!$B$6/1000)*$E$5/$E$4,0) -> 3.982100777 | F34: =IF(F23>0,(Maxpeak!$B$9*F23*Maxpeak!$B$6/1000)*$F$5/$F$4,0) -> 3.985850425 | G34: =IF(G23>0,(Maxpeak!$B$9*G23*Maxpeak!$B$6/1000)*$G$5/$G$4,0) -> 4.186803074 | H34: =IF(H23>0,(Maxpeak!$B$9*H23*Maxpeak!$B$6/1000)*$H$5/$H$4,0) -> 5.074801351 | I34: =IF(I23>0,(Maxpeak!$B$9*I23*Maxpeak!$B$6/1000)*$I$5/$I$4,0) -> 3.312903211
A35: pro eingetragene m² | B35: KW | C35: 90 | D35: =IF(D24>0,(Maxpeak!$B$9*D24*Maxpeak!$B$6/1000)*$D$5/$D$4,0) -> 3.90911643 | E35: =IF(E24>0,(Maxpeak!$B$9*E24*Maxpeak!$B$6/1000)*$E$5/$E$4,0) -> 3.423069867 | F35: =IF(F24>0,(Maxpeak!$B$9*F24*Maxpeak!$B$6/1000)*$F$5/$F$4,0) -> 3.285212655 | G35: =IF(G24>0,(Maxpeak!$B$9*G24*Maxpeak!$B$6/1000)*$G$5/$G$4,0) -> 3.727923389 | H35: =IF(H24>0,(Maxpeak!$B$9*H24*Maxpeak!$B$6/1000)*$H$5/$H$4,0) -> 4.926746188 | I35: =IF(I24>0,(Maxpeak!$B$9*I24*Maxpeak!$B$6/1000)*$I$5/$I$4,0) -> 3.103821324
A36: pro eingetragene m² | B36: KW | C36: 100 | D36: =IF(D25>0,(Maxpeak!$B$9*D25*Maxpeak!$B$6/1000)*$D$5/$D$4,0) -> 3.309021 | E36: =IF(E25>0,(Maxpeak!$B$9*E25*Maxpeak!$B$6/1000)*$E$5/$E$4,0) -> 2.840754087 | F36: =IF(F25>0,(Maxpeak!$B$9*F25*Maxpeak!$B$6/1000)*$F$5/$F$4,0) -> 2.539811916 | G36: =IF(G25>0,(Maxpeak!$B$9*G25*Maxpeak!$B$6/1000)*$G$5/$G$4,0) -> 3.261458916 | H36: =IF(H25>0,(Maxpeak!$B$9*H25*Maxpeak!$B$6/1000)*$H$5/$H$4,0) -> 4.769431791 | I36: =IF(I25>0,(Maxpeak!$B$9*I25*Maxpeak!$B$6/1000)*$I$5/$I$4,0) -> 2.885358469
A37: ="bei "&Maxpeak!B9 &" W/m²" -> bei 1000 W/m² | C37: Diff. | D37: =D14 -> SolRose 26 | E37: =E14 -> Synergie 210 | F37: Sunex AMX 2,85 | G37: Sunex 2,0 | H37: Star Azzurro CPC | I37: Billig VRK
A38: pro Modulbruttofläche | B38: KW | C38: 0 | D38: =IF(D15>0,(Maxpeak!$B$9*D15*$D$4/1000)*$D$5/$D$4,0) -> 2.0007 | E38: =IF(E15>0,(Maxpeak!$B$9*E15*$E$4/1000)*$E$5/$E$4,0) -> 1.5072 | F38: =IF(F15>0,(Maxpeak!$B$9*F15*$F$4/1000)*$F$5/$F$4,0) -> 2.1894 | G38: =IF(G15>0,(Maxpeak!$B$9*G15*$G$4/1000)*$G$5/$G$4,0) -> 1.472 | H38: =IF(H15>0,(Maxpeak!$B$9*H15*$H$4/1000)*$H$5/$H$4,0) -> 2.2208 | I38: =IF(I15>0,(Maxpeak!$B$9*I15*$I$4/1000)*$I$5/$I$4,0) -> 1.85736
A39: pro Modulbruttofläche | B39: KW | C39: 10 | D39: =IF(D16>0,(Maxpeak!$B$9*D16*$D$4/1000)*$D$5/$D$4,0) -> 1.9142253 | E39: =IF(E16>0,(Maxpeak!$B$9*E16*$E$4/1000)*$E$5/$E$4,0) -> 1.4334336 | F39: =IF(F16>0,(Maxpeak!$B$9*F16*$F$4/1000)*$F$5/$F$4,0) -> 2.095416 | G39: =IF(G16>0,(Maxpeak!$B$9*G16*$G$4/1000)*$G$5/$G$4,0) -> 1.39472 | H39: =IF(H16>0,(Maxpeak!$B$9*H16*$H$4/1000)*$H$5/$H$4,0) -> 2.1930747 | I39: =IF(I16>0,(Maxpeak!$B$9*I16*$I$4/1000)*$I$5/$I$4,0) -> 1.8037976
A40: pro Modulbruttofläche | B40: KW | C40: 20 | D40: =IF(D17>0,(Maxpeak!$B$9*D17*$D$4/1000)*$D$5/$D$4,0) -> 1.8207852 | E40: =IF(E17>0,(Maxpeak!$B$9*E17*$E$4/1000)*$E$5/$E$4,0) -> 1.3550592 | F40: =IF(F17>0,(Maxpeak!$B$9*F17*$F$4/1000)*$F$5/$F$4,0) -> 1.98915 | G40: =IF(G17>0,(Maxpeak!$B$9*G17*$G$4/1000)*$G$5/$G$4,0) -> 1.315968 | H40: =IF(H17>0,(Maxpeak!$B$9*H17*$H$4/1000)*$H$5/$H$4,0) -> 2.1618794 | I40: =IF(I17>0,(Maxpeak!$B$9*I17*$I$4/1000)*$I$5/$I$4,0) -> 1.7464864
A41: pro Modulbruttofläche | B41: KW | C41: 30 | D41: =IF(D18>0,(Maxpeak!$B$9*D18*$D$4/1000)*$D$5/$D$4,0) -> 1.7203797 | E41: =IF(E18>0,(Maxpeak!$B$9*E18*$E$4/1000)*$E$5/$E$4,0) -> 1.2720768 | F41: =IF(F18>0,(Maxpeak!$B$9*F18*$F$4/1000)*$F$5/$F$4,0) -> 1.870602 | G41: =IF(G18>0,(Maxpeak!$B$9*G18*$G$4/1000)*$G$5/$G$4,0) -> 1.235744 | H41: =IF(H18>0,(Maxpeak!$B$9*H18*$H$4/1000)*$H$5/$H$4,0) -> 2.1272141 | I41: =IF(I18>0,(Maxpeak!$B$9*I18*$I$4/1000)*$I$5/$I$4,0) -> 1.6854264
A42: pro Modulbruttofläche | B42: KW | C42: 40 | D42: =IF(D19>0,(Maxpeak!$B$9*D19*$D$4/1000)*$D$5/$D$4,0) -> 1.6130088 | E42: =IF(E19>0,(Maxpeak!$B$9*E19*$E$4/1000)*$E$5/$E$4,0) -> 1.1844864 | F42: =IF(F19>0,(Maxpeak!$B$9*F19*$F$4/1000)*$F$5/$F$4,0) -> 1.739772 | G42: =IF(G19>0,(Maxpeak!$B$9*G19*$G$4/1000)*$G$5/$G$4,0) -> 1.154048 | H42: =IF(H19>0,(Maxpeak!$B$9*H19*$H$4/1000)*$H$5/$H$4,0) -> 2.0890788 | I42: =IF(I19>0,(Maxpeak!$B$9*I19*$I$4/1000)*$I$5/$I$4,0) -> 1.6206176
A43: pro Modulbruttofläche | B43: KW | C43: 50 | D43: =IF(D20>0,(Maxpeak!$B$9*D20*$D$4/1000)*$D$5/$D$4,0) -> 1.4986725 | E43: =IF(E20>0,(Maxpeak!$B$9*E20*$E$4/1000)*$E$5/$E$4,0) -> 1.092288 | F43: =IF(F20>0,(Maxpeak!$B$9*F20*$F$4/1000)*$F$5/$F$4,0) -> 1.59666 | G43: =IF(G20>0,(Maxpeak!$B$9*G20*$G$4/1000)*$G$5/$G$4,0) -> 1.07088 | H43: =IF(H20>0,(Maxpeak!$B$9*H20*$H$4/1000)*$H$5/$H$4,0) -> 2.0474735 | I43: =IF(I20>0,(Maxpeak!$B$9*I20*$I$4/1000)*$I$5/$I$4,0) -> 1.55206
A44: pro Modulbruttofläche | B44: KW | C44: 60 | D44: =IF(D21>0,(Maxpeak!$B$9*D21*$D$4/1000)*$D$5/$D$4,0) -> 1.3773708 | E44: =IF(E21>0,(Maxpeak!$B$9*E21*$E$4/1000)*$E$5/$E$4,0) -> 0.9954816 | F44: =IF(F21>0,(Maxpeak!$B$9*F21*$F$4/1000)*$F$5/$F$4,0) -> 1.441266 | G44: =IF(G21>0,(Maxpeak!$B$9*G21*$G$4/1000)*$G$5/$G$4,0) -> 0.98624 | H44: =IF(H21>0,(Maxpeak!$B$9*H21*$H$4/1000)*$H$5/$H$4,0) -> 2.0023982 | I44: =IF(I21>0,(Maxpeak!$B$9*I21*$I$4/1000)*$I$5/$I$4,0) -> 1.4797536
A45: pro Modulbruttofläche | B45: KW | C45: 70 | D45: =IF(D22>0,(Maxpeak!$B$9*D22*$D$4/1000)*$D$5/$D$4,0) -> 1.2491037 | E45: =IF(E22>0,(Maxpeak!$B$9*E22*$E$4/1000)*$E$5/$E$4,0) -> 0.8940672 | F45: =IF(F22>0,(Maxpeak!$B$9*F22*$F$4/1000)*$F$5/$F$4,0) -> 1.27359 | G45: =IF(G22>0,(Maxpeak!$B$9*G22*$G$4/1000)*$G$5/$G$4,0) -> 0.900128 | H45: =IF(H22>0,(Maxpeak!$B$9*H22*$H$4/1000)*$H$5/$H$4,0) -> 1.9538529 | I45: =IF(I22>0,(Maxpeak!$B$9*I22*$I$4/1000)*$I$5/$I$4,0) -> 1.4036984
A46: pro Modulbruttofläche | B46: KW | C46: 80 | D46: =IF(D23>0,(Maxpeak!$B$9*D23*$D$4/1000)*$D$5/$D$4,0) -> 1.1138712 | E46: =IF(E23>0,(Maxpeak!$B$9*E23*$E$4/1000)*$E$5/$E$4,0) -> 0.7880448 | F46: =IF(F23>0,(Maxpeak!$B$9*F23*$F$4/1000)*$F$5/$F$4,0) -> 1.093632 | G46: =IF(G23>0,(Maxpeak!$B$9*G23*$G$4/1000)*$G$5/$G$4,0) -> 0.812544 | H46: =IF(H23>0,(Maxpeak!$B$9*H23*$H$4/1000)*$H$5/$H$4,0) -> 1.9018376 | I46: =IF(I23>0,(Maxpeak!$B$9*I23*$I$4/1000)*$I$5/$I$4,0) -> 1.3238944
A47: pro Modulbruttofläche | B47: KW | C47: 90 | D47: =IF(D24>0,(Maxpeak!$B$9*D24*$D$4/1000)*$D$5/$D$4,0) -> 0.9716733 | E47: =IF(E24>0,(Maxpeak!$B$9*E24*$E$4/1000)*$E$5/$E$4,0) -> 0.6774144 | F47: =IF(F24>0,(Maxpeak!$B$9*F24*$F$4/1000)*$F$5/$F$4,0) -> 0.901392 | G47: =IF(G24>0,(Maxpeak!$B$9*G24*$G$4/1000)*$G$5/$G$4,0) -> 0.723488 | H47: =IF(H24>0,(Maxpeak!$B$9*H24*$H$4/1000)*$H$5/$H$4,0) -> 1.8463523 | I47: =IF(I24>0,(Maxpeak!$B$9*I24*$I$4/1000)*$I$5/$I$4,0) -> 1.2403416
A48: pro Modulbruttofläche | B48: KW | C48: 100 | D48: =IF(D25>0,(Maxpeak!$B$9*D25*$D$4/1000)*$D$5/$D$4,0) -> 0.82251 | E48: =IF(E25>0,(Maxpeak!$B$9*E25*$E$4/1000)*$E$5/$E$4,0) -> 0.562176 | F48: =IF(F25>0,(Maxpeak!$B$9*F25*$F$4/1000)*$F$5/$F$4,0) -> 0.69687 | G48: =IF(G25>0,(Maxpeak!$B$9*G25*$G$4/1000)*$G$5/$G$4,0) -> 0.63296 | H48: =IF(H25>0,(Maxpeak!$B$9*H25*$H$4/1000)*$H$5/$H$4,0) -> 1.787397 | I48: =IF(I25>0,(Maxpeak!$B$9*I25*$I$4/1000)*$I$5/$I$4,0) -> 1.15304

Sheet Jahreshochrechnung (hidden)
A1: Solartirol / Jahressimulation (fixe Diff.) Tagesdaten nach Praxisdaten in Würzburg hochgerechnet (Anzahl der guten mittleren schlechten Tage in Sommer Frühj.Herbst Winter aus Praxisdaten entnommen)
A2: eingetragene Gesamtfläche (m²) > | C2: =Eingaben!B6 -> 10.46 | D2: ="Monatsertäge bei eingetragener Fläche "&C2&" m² im Tagesverlauf von Azimut -70° bis +70°" -> Monatsertäge bei eingetragener Fläche 10,46 m² im Tagesverlauf von Azimut -70° bis +70°
A3: =A23 -> Sommer Diff. 35 | B3: Anzahl (Tage) | D3: =D23 -> SolRose 26 | E3: =E23 -> Synergie 210 | F3: Sunex AMX 2,85 | G3: Sunex 2,0 | H3: Star Azzurro CPC | I3: Billig VRK
A4: Sommer sonniger Tag | B4: 66.7 | C4: überwiegend viel Strahlung (tlw. nicht nutzbar) | D4: =D24*$B$4 -> 2158.243015 | E4: =E24*$B$4 -> 2011.466616 | F4: 2138.840232 | G4: 1998.101781 | H4: 2004.073609 | I4: 1660.202968
A5: Sommer leicht bewölkt | B5: 14.7 | D5: =D25*$B$5 -> 329.6963654 | E5: =E25*$B$5 -> 303.6913514 | F5: 324.9463607 | G5: 300.9824951 | H5: 324.5662481 | I5: 261.4399467
A6: Sommer mittel bewölkt | B6: 8.3 | D6: =D26*$B$6 -> 103.7432094 | E6: =E26*$B$6 -> 92.64153262 | F6: 100.7936979 | G6: 91.24564241 | H6: 117.1345145 | I6: 88.63953091
A7: Sommer stark bewölkt | B7: 2.3 | D7: =D27*$B$7 -> 5.8925848 | E7: =E27*$B$7 -> 4.008237736 | F7: 5.096061457 | G7: 3.698304627 | H7: 13.0812141 | I7: 7.674003822
A8: =A28 -> Frühjahr/Herbst Diff. 32 | B8: =SUM(B4:B7) -> 92 | C8: Summe Sommer (kWh)> | D8: =SUM(D4:D7) -> 2597.575175 | E8: =SUM(E4:E7) -> 2411.807737 | F8: 2569.676352 | G8: 2394.028223 | H8: 2458.855586 | I8: 2017.95645
A9: Frühjahr/Herbst sonniger Tag | B9: 99.3 | C9: rel.viel Strahlung (gut nutzbar) | D9: =D29*$B$9 -> 3709.930698 | E9: =E29*$B$9 -> 3424.66443 | F9: 3654.874235 | G9: 3391.037868 | H9: 3430.204431 | I9: 2796.502965
A10: Frühjahr/Herbst leicht bewölkt | B10: 22 | D10: =D30*$B$10 -> 563.7255611 | E10: =E30*$B$10 -> 512.7948967 | F10: 551.900077 | G10: 505.8901118 | H10: 556.9961128 | I10: 439.337305
A11: Frühjahr/Herbst mittel bewölkt | B11: 23.7 | D11: =D31*$B$11 -> 329.1206079 | E11: =E31*$B$11 -> 288.0257563 | F11: 316.782429 | G11: 281.8628212 | H11: 381.384168 | I11: 279.1288876
A12: Frühjahr/Herbst stark bewölkt | B12: 38 | D12: =D32*$B$12 -> 104.883445 | E12: =E32*$B$12 -> 70.22397189 | F12: 91.54450255 | G12: 63.92854906 | H12: 260.9198881 | I12: 140.104412
A13: =A33 -> Winter Diff. 28 | B13: =SUM(B9:B12) -> 183 | C13: Summe Frühj./Herbst (kWh)> | D13: =SUM(D9:D12) -> 4707.660312 | E13: =SUM(E9:E12) -> 4295.709055 | F13: 4615.101244 | G13: 4242.71935 | H13: 4629.5046 | I13: 3655.07357
A14: Winter sonniger Tag | B14: 11 | C14: überwiegend wenig Strahlung (tlw. auch schwer nutzbar, bei Vereisung oder Schnee) | D14: =D34*$B$14 -> 127.7337899 | E14: =E34*$B$14 -> 114.8546812 | F14: 124.3926769 | G14: 112.6133464 | H14: 125.9129096 | I14: 90.28029786
A15: Winter leicht bewölkt | B15: 5 | D15: =D35*$B$15 -> 37.73435222 | E15: =E35*$B$15 -> 33.03677741 | F15: 36.45756083 | G15: 32.09678326 | H15: 41.32877554 | I15: 28.16178005
A16: Winter mittel bewölkt | B16: 16.3 | D16: =D36*$B$16 -> 57.90160952 | E16: =E36*$B$16 -> 48.10738002 | F16: 55.10210043 | G16: 45.86070215 | H16: 82.88357766 | I16: 50.38885948
A17: Winter stark bewölkt | B17: 58 | D17: =D37*$B$17 -> 12.4444052 | E17: =E37*$B$17 -> 1.870332893 | F17: 9.187910708 | G17: 0.1275761371 | H17: 115.8533608 | I17: 40.85792332
B18: =SUM(B14:B17) -> 90.3 | C18: Summe Winter (kWh)> | D18: =SUM(D14:D17) -> 235.8141568 | E18: =SUM(E14:E17) -> 197.8691715 | F18: 225.1402489 | G18: 190.6984079 | H18: 365.9786236 | I18: 209.6888607
A19: Anzahl der Tage Gesamt > | B19: =B8+B13+B18 -> 365.3 | C19: Jahresertrag (kWh) > | D19: =D8+D13+D18 -> 7541.049643 | E19: =E8+E13+E18 -> 6905.385963 | F19: 7409.917844 | G19: 6827.44598 | H19: 7454.338809 | I19: 5882.71888
B20: =MAX(D19:I19) -> 7541.049643 | C20: Leistung Jahresertrag (%) > | D20: =D19/($B$20/100) -> 100 | E20: 91.57062068 | F20: 98.26109355 | G20: 90.53707778 | H20: 98.85014902 | I20: 78.00928464
A21: Hinweis / die Erträge sind nur theoretisch nach der Einstrahlung möglich, wenn sie auch nutzbar sind (z.B. im Sommer ist nur ein Teil nutzbar, je nach Verbrauch und Anlagengröße)
D22: ="Tagesertrag bei eingetragener Fläche "&C22&" m² im Tagesverlauf von Azimut -70° bis +70°" -> Tagesertrag bei eingetragener Fläche m² im Tagesverlauf von Azimut -70° bis +70°
A23: ="Sommer Diff. "&Eingaben!$B$5 -> Sommer Diff. 35 | B23: Strahlung (%) | C23: Strahlung/kWh/m² | D23: =Eingaben!$D$3 -> SolRose 26 | E23: =Eingaben!$E$3 -> Synergie 210 | F23: =Eingaben!$F$3 -> Sunex AMX 2,85 | G23: =Eingaben!$G$3 -> Sunex 2,0 | H23: =Eingaben!$H$3 -> Star Azzurro CPC | I23: =Eingaben!$I$3 -> Billig VRK
A24: Sommer sonniger Tag | B24: 100 | C24: =Eingaben!Q40 -> 5.241166667 | D24: =Sommer!D44 -> 32.35746649 | E24: =Sommer!E44 -> 30.15692077 | F24: =Sommer!F44 -> 32.06657019 | G24: =Sommer!G44 -> 29.95654844 | H24: =Sommer!H44 -> 30.0460811 | I24: =Sommer!I44 -> 24.89059922
A25: Sommer leicht bewölkt | B25: =Eingaben!$L$43 -> 75 | C25: =Eingaben!Q76 -> 3.930875 | D25: =Sommer!D73 -> 22.42832417 | E25: =Sommer!E73 -> 20.6592756 | F25: =Sommer!F73 -> 22.10519461 | G25: =Sommer!G73 -> 20.47499966 | H25: =Sommer!H73 -> 22.07933661 | I25: =Sommer!I73 -> 17.78503039
A26: Sommer mittel bewölkt | B26: =Eingaben!$L$79 -> 50 | C26: =Eingaben!Q118 -> 2.620583333 | D26: =Sommer!D102 -> 12.49918186 | E26: =Sommer!E102 -> 11.16163044 | F26: =Sommer!F102 -> 12.14381902 | G26: =Sommer!G102 -> 10.99345089 | H26: =Sommer!H102 -> 14.11259211 | I26: =Sommer!I102 -> 10.67946155
A27: Sommer stark bewölkt | B27: =Eingaben!$L$121 -> 25 | C27: =Eingaben!Q154 -> 1.310291667 | D27: =Sommer!D131 -> 2.561993391 | E27: =Sommer!E131 -> 1.742712059 | F27: =Sommer!F131 -> 2.215678894 | G27: =Sommer!G131 -> 1.607958533 | H27: =Sommer!H131 -> 5.687484392 | I27: =Sommer!I131 -> 3.336523401
A28: ="Frühjahr/Herbst Diff. "&Eingaben!$B$4 -> Frühjahr/Herbst Diff. 32
A29: Frühjahr/Herbst sonniger Tag | B29: 100 | C29: =Eingaben!Q29 -> 6.104133333 | D29: =Herbstfrühjahr!D44 -> 37.3608328 | E29: =Herbstfrühjahr!E44 -> 34.48806072 | F29: =Herbstfrühjahr!F44 -> 36.80638706 | G29: =Herbstfrühjahr!G44 -> 34.14942465 | H29: =Herbstfrühjahr!H44 -> 34.54385127 | I29: =Herbstfrühjahr!I44 -> 28.16216481
A30: Frühjahr/Herbst leicht bewölkt | B30: =B25 -> 75 | C30: =Eingaben!Q65 -> 4.5781 | D30: =Herbstfrühjahr!D73 -> 25.62388914 | E30: =Herbstfrühjahr!E73 -> 23.30885894 | F30: =Herbstfrühjahr!F73 -> 25.08636714 | G30: =Herbstfrühjahr!G73 -> 22.99500508 | H30: =Herbstfrühjahr!H73 -> 25.31800513 | I30: =Herbstfrühjahr!I73 -> 19.9698775
A31: Frühjahr/Herbst mittel bewölkt | B31: =B26 -> 50 | C31: =Eingaben!Q108 -> 3.052066667 | D31: =Herbstfrühjahr!D102 -> 13.88694548 | E31: =Herbstfrühjahr!E102 -> 12.1529855 | F31: =Herbstfrühjahr!F102 -> 13.36634721 | G31: =Herbstfrühjahr!G102 -> 11.89294604 | H31: =Herbstfrühjahr!H102 -> 16.09215899 | I31: =Herbstfrühjahr!I102 -> 11.77759019
A32: Frühjahr/Herbst stark bewölkt | B32: =B27 -> 25 | C32: =Eingaben!Q143 -> 1.526033333 | D32: =Herbstfrühjahr!D131 -> 2.760090658 | E32: =Herbstfrühjahr!E131 -> 1.84799926 | F32: =Herbstfrühjahr!F131 -> 2.409065857 | G32: =Herbstfrühjahr!G131 -> 1.682330238 | H32: =Herbstfrühjahr!H131 -> 6.866312845 | I32: =Herbstfrühjahr!I131 -> 3.686958211
A33: ="Winter Diff. "&Eingaben!$B$3 -> Winter Diff. 28
A34: Winter sonniger Tag | B34: 100 | C34: =Eingaben!Q18 -> 2.12515 | D34: =Winter!D44 -> 11.61216272 | E34: =Winter!E44 -> 10.44133465 | F34: =Winter!F44 -> 11.30842517 | G34: =Winter!G44 -> 10.23757694 | H34: =Winter!H44 -> 11.44662815 | I34: =Winter!I44 -> 8.207299806
A35: Winter leicht bewölkt | B35: =B25 -> 75 | C35: =Eingaben!Q54 -> 1.5938625 | D35: =Winter!D73 -> 7.546870444 | E35: =Winter!E73 -> 6.607355482 | F35: =Winter!F73 -> 7.291512167 | G35: =Winter!G73 -> 6.419356652 | H35: =Winter!H73 -> 8.265755107 | I35: =Winter!I73 -> 5.632356009
A36: Winter mittel bewölkt | B36: =B26 -> 50 | C36: =Eingaben!Q90 -> 1.062575 | D36: =Winter!D102 -> 3.552245983 | E36: =Winter!E102 -> 2.951373007 | F36: =Winter!F102 -> 3.380496959 | G36: =Winter!G102 -> 2.813540009 | H36: =Winter!H102 -> 5.084882065 | I36: =Winter!I102 -> 3.091341072
A37: Winter stark bewölkt | B37: =B27 -> 25 | C37: =Eingaben!Q132 -> 0.5312875 | D37: =Winter!D131 -> 0.2145587103 | E37: =Winter!E131 -> 0.03224711884 | F37: =Winter!F131 -> 0.1584122536 | G37: =Winter!G131 -> 0.002199588571 | H37: =Winter!H131 -> 1.997471738 | I37: =Winter!I131 -> 0.7044469538

Sheet Amortisation
A1: Angaben zur Amortisationsberechnung
A3: Anlagenkosten (ohne Kollektor) | C3: realer Energieverbrauch (kWh) | F3: Gesamtverbrauch | G3: durchschnittliche Kosten der ext.Energie innerhalb der eingetragenen Laufzeit (€/kWh) | K3: Medium
A4: 8000 | C4: Sommer | E4: 843 | F4: =E4+E5+E6 -> 18910 | G4: Preis aktuell | H4: Preis leichter Anstieg | I4: Preis mittlerer Anstieg | J4: Preis hoher Anstieg
A5: Berechnungszeitraum 1 (J) | C5: Frühjahr + Herbst | E5: 7377 | F5: Preis in € > | G5: =G6*10 -> 0.85 | H5: =H6*10 -> 0.95 | I5: 1.2 | J5: 1.5
A6: 15 | C6: Winter | E6: 10690 | F6: Preis pro kWh > | G6: 0.085 | H6: 0.095 | I6: 0.12 | J6: 0.15 | K6: Öl
A7: Kollektorbez. | B7: Jahresertr. (/m² Brutto) | C7: Bruttofläche | D7: Kol.Kosten €/m² | E7: Kollektorkosten gesamt | F7: nutzbare Erträge (kWh) | G7: Gewinn bei. akt.Preis (€) | H7: Gewinn leichter Anstieg (€) | I7: Gewinn mittlerer Anstieg (€) | J7: Gewinn hoher Anstieg (€) | K7: Aufpreis
A8: =Eingaben!D3 -> SolRose 26 | B8: =F8/C8 -> 553.200236 | C8: =Eingaben!$B$6 -> 10.46 | D8: =Eingaben!D17 -> 0 | E8: =C8*D8 -> 0 | F8: =B16+C16+E16 -> 5786.474468 | G8: =IF(A8>"",(B8*C8*$G$6*$A$6)-(E8+K8+$A$4),"") -> -622.2450528 | H8: =IF(A8>"",(B8*C8*$H$6*$A$6)-(E8+K8+$A$4),"") -> 245.7261174 | I8: =IF(A8>"",(B8*C8*$I$6*$A$6)-(E8+K8+$A$4),"") -> 2415.654043 | J8: =IF(A8>"",(B8*C8*$J$6*$A$6)-(E8+K8+$A$4),"") -> 5019.567554
A9: =Eingaben!E3 -> Synergie 210 | B9: =F9/C9 -> 510.189123 | C9: =Eingaben!$B$6 -> 10.46 | D9: =Eingaben!E17 -> 104 | E9: =C9*D9 -> 1087.84 | F9: =B17+C17+E17 -> 5336.578226 | G9: =IF(A9>"",(B9*C9*$G$6*$A$6)-(E9+K9+$A$4),"") -> -2283.702762 | H9: =IF(A9>"",(B9*C9*$H$6*$A$6)-(E9+K9+$A$4),"") -> -1483.216028 | I9: =IF(A9>"",(B9*C9*$I$6*$A$6)-(E9+K9+$A$4),"") -> 518.0008071 | J9: =IF(A9>"",(B9*C9*$J$6*$A$6)-(E9+K9+$A$4),"") -> 2919.461009
A10: =Eingaben!F3 -> Sunex AMX 2,85 | B10: 543.3309266 | C10: =Eingaben!$B$6 -> 10.46 | D10: =Eingaben!F17 -> 0 | E10: 0 | F10: 5683.241493 | G10: -753.8670969 | H10: 98.61912695 | I10: 2229.834687 | J10: 4787.293358
A11: =Eingaben!G3 -> Sunex 2,0 | B11: 504.4376441 | C11: =Eingaben!$B$6 -> 10.46 | D11: =Eingaben!G17 -> 135 | E11: 1412.1 | F11: 5276.417758 | G11: -2684.667359 | H11: -1893.204695 | I11: 85.45196388 | J11: 2459.839955
A12: =Eingaben!H3 -> Star Azzurro CPC | B12: 558.1723923 | C12: =Eingaben!$B$6 -> 10.46 | D12: =Eingaben!H17 -> 650 | E12: 6799 | F12: 5838.483223 | G12: -7354.93389 | H12: -6479.161407 | I12: -4289.730198 | J12: -1662.412748
A13: =Eingaben!I3 -> Billig VRK | B13: 450.0728901 | C13: =Eingaben!$B$6 -> 10.46 | D13: =Eingaben!I17 -> 218 | E13: 2280.28 | F13: 4707.762431 | G13: -4277.882901 | H13: -3571.718536 | I13: -1806.307624 | J13: 312.1854694
B14: max. nutzbare Teilerträge | F14: Zeitraum 2 (J) | G14: Gewinne nach verschiedenen Preisentwicklungen !
A15: Kollektorbez. | B15: Sommer | C15: Frühjahr/Herbst | E15: Winter | F15: 20 | G15: Gewinn bei. akt.Preis (€) | H15: Gewinn leichter Anstieg (€) | I15: Gewinn mittlerer Anstieg (€) | J15: Gewinn hoher Anstieg (€)
A16: =A8 -> SolRose 26 | B16: =IF($E$4>Eingaben!D91,Eingaben!D91,$E$4) -> 843 | C16: =IF($E$5>Eingaben!D92,Eingaben!D92,$E$5) -> 4707.660312 | E16: =IF($E$6>Eingaben!D93,Eingaben!D93,$E$6) -> 235.8141568 | F16: =IF(A8>"",A8,"") -> SolRose 26 | G16: =IF(A8>"",(B8*C8*$G$6*$F$15)-(E8+K8+$A$4),"") -> 1837.006596 | H16: =IF(A8>"",(B8*C8*$H$6*$F$15)-(E8+K8+$A$4),"") -> 2994.30149 | I16: =IF(A8>"",(B8*C8*$I$6*$F$15)-(E8+K8+$A$4),"") -> 5887.538724 | J16: =IF(A8>"",(B8*C8*$J$6*$F$15)-(E8+K8+$A$4),"") -> 9359.423405
A17: =A9 -> Synergie 210 | B17: =IF($E$4>Eingaben!E91,Eingaben!E91,$E$4) -> 843 | C17: =IF($E$5>Eingaben!E92,Eingaben!E92,$E$5) -> 4295.709055 | E17: =IF($E$6>Eingaben!E93,Eingaben!E93,$E$6) -> 197.8691715 | F17: Synergie 210 | G17: -15.65701551 | H17: 1051.65863 | I17: 3719.947743 | J17: 6921.894679
A18: Sunex AMX 2,85 | B18: =IF($E$4>Eingaben!F91,Eingaben!F91,$E$4) -> 843 | C18: =IF($E$5>Eingaben!F92,Eingaben!F92,$E$5) -> 4615.101244 | E18: =IF($E$6>Eingaben!F93,Eingaben!F93,$E$6) -> 225.1402489 | F18: Sunex AMX 2,85 | G18: 1661.510537 | H18: 2798.158836 | I18: 5639.779582 | J18: 9049.724478
A19: Sunex 2,0 | B19: =IF($E$4>Eingaben!G91,Eingaben!G91,$E$4) -> 843 | C19: =IF($E$5>Eingaben!G92,Eingaben!G92,$E$5) -> 4242.71935 | E19: =IF($E$6>Eingaben!G93,Eingaben!G93,$E$6) -> 190.6984079 | F19: Sunex 2,0 | G19: -442.1898119 | H19: 613.0937397 | I19: 3251.302619 | J19: 6417.153273
A20: Star Azzurro CPC | B20: =IF($E$4>Eingaben!H91,Eingaben!H91,$E$4) -> 843 | C20: =IF($E$5>Eingaben!H92,Eingaben!H92,$E$5) -> 4629.5046 | E20: =IF($E$6>Eingaben!H93,Eingaben!H93,$E$6) -> 365.9786236 | F20: Star Azzurro CPC | G20: -4873.578521 | H20: -3705.881876 | I20: -786.6402643 | J20: 2716.44967
A21: Billig VRK | B21: =IF($E$4>Eingaben!I91,Eingaben!I91,$E$4) -> 843 | C21: =IF($E$5>Eingaben!I92,Eingaben!I92,$E$5) -> 3655.07357 | E21: =IF($E$6>Eingaben!I93,Eingaben!I93,$E$6) -> 209.6888607 | F21: Billig VRK | G21: -2277.083868 | H21: -1335.531381 | I21: 1018.349834 | J21: 3843.007293
B22: Deckung (%) | F22: =A15 -> Kollektorbez. | G22: Amortisation nach Jahre
A23: Kollektorbez. | B23: Sommer | C23: Frühjahr/Herbst | E23: Winter | G23: Jahre bei aktuellen Preis | H23: Jahre leichter Anstieg | I23: Jahre mittlerer Anstieg | J23: Jahre hoher Anstieg | K23: Preis (€)
A24: =A16 -> SolRose 26 | B24: =B16/($E$4/100) -> 100 | C24: =C16/($E$5/100) -> 63.81537633 | E24: =E16/($E$6/100) -> 2.205932243 | F24: =A16 -> SolRose 26 | G24: =($A$4+E8) /(F8*$G$6) -> 16.26511057 | H24: =($A$4+E8) /(F8*$H$6) -> 14.55299367 | I24: =($A$4+E8) /(F8*$I$6) -> 11.52111999 | J24: =($A$4+E8) /(F8*$J$6) -> 9.216895992 | K24: =$A$4+E8+K8 -> 8000
A25: =A17 -> Synergie 210 | B25: =B17/($E$4/100) -> 100 | C25: =C17/($E$5/100) -> 58.23111095 | E25: =E17/($E$6/100) -> 1.850974476 | F25: Synergie 210 | G25: =($A$4+E9) /(F9*$G$6) -> 20.03451653 | H25: =($A$4+E9) /(F9*$H$6) -> 17.92562006 | I25: =($A$4+E9) /(F9*$I$6) -> 14.19111588 | J25: =($A$4+E9) /(F9*$J$6) -> 11.3528927 | K25: =$A$4+E9+K9 -> 9087.84
A26: Sunex AMX 2,85 | B26: 100 | C26: 62.56067838 | E26: 2.106082777 | F26: Sunex AMX 2,85 | G26: 16.56055742 | H26: 14.81734085 | I26: 11.73039484 | J26: 9.38431587 | K26: 8000
A27: Sunex 2,0 | B27: 100 | C27: 57.51280127 | E27: 1.783895303 | F27: Sunex 2,0 | G27: 20.98594033 | H27: 18.77689398 | I27: 14.86504107 | J27: 11.89203286 | K27: 9412.1
A28: Star Azzurro CPC | B28: 100 | C28: 62.75592517 | E28: 3.423560558 | F28: Star Azzurro CPC | G28: 29.8203961 | H28: 26.68140704 | I28: 21.12278057 | J28: 16.89822446 | K28: 14799
A29: Billig VRK | B29: 100 | C29: 49.54688315 | E29: 1.961542196 | F29: Billig VRK | G29: 25.69043625 | H29: 22.9861798 | I29: 18.19739234 | J29: 14.55791387 | K29: 10280.28

Sheet Temperaturen
A1: Vorgaben | C1: Berechnung der Differenzen und Kollektortemperaturen bei verschiedenen Vorgaben !
A2: =Eingaben!A5 -> Diff.Sommer > | B2: =Eingaben!B5 -> 35 | C2: Formel Diff = Q / (c*m) Q = kW C=3,7 kJ/kg K (Glycolgemisch, Wasser =~4,19) m= Liter (je nach Durchfluss)
A3: =Eingaben!A4 -> Diff.Frühjahr/Herbst > | B3: =Eingaben!B4 -> 32
A4: =Eingaben!A3 -> Diff.Winter > | B4: =Eingaben!B3 -> 28
A5: =Eingaben!A6 -> Gesamtfläche (m²) > | B5: =Eingaben!B6 -> 10.46
A6: AT Sommer > | B6: 25
A7: AT Frühj./Herbst > | B7: 15
A8: AT Winter > | B8: 5
A9: Durchfluss (l/h) > | B9: 600
C10: =C197 -> Kollektor > | D10: SolRose 26 | E10: Synergie 210 | F10: Sunex AMX 2,85 | G10: Sunex 2,0 | H10: Star Azzurro CPC | I10: Billig VRK | K10: =D197 -> SolRose 26 | L10: Synergie 210 | M10: Sunex AMX 2,85 | N10: Sunex 2,0 | O10: Star Azzurro CPC | P10: Billig VRK | R10: =D197 -> SolRose 26 | S10: Synergie 210 | T10: Sunex AMX 2,85 | U10: Sunex 2,0 | V10: Star Azzurro CPC | W10: Billig VRK
A11: Detailtemperaturen bei allen Winkelfaktoren | D11: Detailtemperaturen Sommer bei Sonne | K11: Detailtemperaturen Frühjahr Herbst bei Sonne | R11: Detailtemperaturen Winter bei Sonne
A12: Sonne Azimut > | B12: -70 | C12: Diff. Solarkreis (K) > | D12: =Sommer!D28/(3.7*($B$9/3600)) -> 4.825965418 | E12: =Sommer!E28/(3.7*($B$9/3600)) -> 4.82481377 | F12: =Sommer!F28/(3.7*($B$9/3600)) -> 5.221855667 | G12: =Sommer!G28/(3.7*($B$9/3600)) -> 4.830674717 | H12: =Sommer!H28/(3.7*($B$9/3600)) -> 6.819099026 | I12: =Sommer!I28/(3.7*($B$9/3600)) -> 4.712107343 | K12: =Herbstfrühjahr!D28/(3.7*(Temperaturen!$B$9/3600)) -> 1.690634471 | L12: =Herbstfrühjahr!E28/(3.7*(Temperaturen!$B$9/3600)) -> 1.586996018 | M12: =Herbstfrühjahr!F28/(3.7*(Temperaturen!$B$9/3600)) -> 1.791102821 | N12: =Herbstfrühjahr!G28/(3.7*(Temperaturen!$B$9/3600)) -> 1.558966702 | O12: =Herbstfrühjahr!H28/(3.7*(Temperaturen!$B$9/3600)) -> 3.09531431 | P12: =Herbstfrühjahr!I28/(3.7*(Temperaturen!$B$9/3600)) -> 1.912612309 | R12: =Winter!D28/(3.7*(Temperaturen!$B$9/3600)) -> 0 | S12: =Winter!E28/(3.7*(Temperaturen!$B$9/3600)) -> 0 | T12: =Winter!F28/(3.7*(Temperaturen!$B$9/3600)) -> 0 | U12: =Winter!G28/(3.7*(Temperaturen!$B$9/3600)) -> 0 | V12: =Winter!H28/(3.7*(Temperaturen!$B$9/3600)) -> 0 | W12: =Winter!I28/(3.7*(Temperaturen!$B$9/3600)) -> 0
C13: Solar VL Temperatur (°C) > | D13: =$B$2+$B$6+(D12/2) -> 62.41298271 | E13: 62.41240689 | F13: 62.61092783 | G13: 62.41533736 | H13: 63.40954951 | I13: 62.35605367 | K13: =Temperaturen!$B$2+Temperaturen!$B$6+(K12/2) -> 60.84531724 | L13: =Temperaturen!$B$2+Temperaturen!$B$6+(L12/2) -> 60.79349801 | M13: =Temperaturen!$B$2+Temperaturen!$B$6+(M12/2) -> 60.89555141 | N13: =Temperaturen!$B$2+Temperaturen!$B$6+(N12/2) -> 60.77948335 | O13: =Temperaturen!$B$2+Temperaturen!$B$6+(O12/2) -> 61.54765716 | P13: =Temperaturen!$B$2+Temperaturen!$B$6+(P12/2) -> 60.95630615 | R13: =Temperaturen!$B$2+Temperaturen!$B$6+(R12/2) -> 60 | S13: =Temperaturen!$B$2+Temperaturen!$B$6+(S12/2) -> 60 | T13: =Temperaturen!$B$2+Temperaturen!$B$6+(T12/2) -> 60 | U13: =Temperaturen!$B$2+Temperaturen!$B$6+(U12/2) -> 60 | V13: =Temperaturen!$B$2+Temperaturen!$B$6+(V12/2) -> 60 | W13: =Temperaturen!$B$2+Temperaturen!$B$6+(W12/2) -> 60
C14: Solar RL Temperatur (°C) > | D14: =$B$2+$B$6-(D12/2) -> 57.58701729 | E14: 57.58759311 | F14: 57.38907217 | G14: 57.58466264 | H14: 56.59045049 | I14: 57.64394633 | K14: =Temperaturen!$B$2+Temperaturen!$B$6-(K12/2) -> 59.15468276 | L14: =Temperaturen!$B$2+Temperaturen!$B$6-(L12/2) -> 59.20650199 | M14: =Temperaturen!$B$2+Temperaturen!$B$6-(M12/2) -> 59.10444859 | N14: =Temperaturen!$B$2+Temperaturen!$B$6-(N12/2) -> 59.22051665 | O14: =Temperaturen!$B$2+Temperaturen!$B$6-(O12/2) -> 58.45234284 | P14: =Temperaturen!$B$2+Temperaturen!$B$6-(P12/2) -> 59.04369385 | R14: =Temperaturen!$B$2+Temperaturen!$B$6-(R12/2) -> 60 | S14: =Temperaturen!$B$2+Temperaturen!$B$6-(S12/2) -> 60 | T14: =Temperaturen!$B$2+Temperaturen!$B$6-(T12/2) -> 60 | U14: =Temperaturen!$B$2+Temperaturen!$B$6-(U12/2) -> 60 | V14: =Temperaturen!$B$2+Temperaturen!$B$6-(V12/2) -> 60 | W14: =Temperaturen!$B$2+Temperaturen!$B$6-(W12/2) -> 60
A15: Sonne Azimut > | B15: -60 | C15: Diff. Solarkreis (K) > | D15: =Sommer!D29/(3.7*($B$9/3600)) -> 6.953814573 | E15: =Sommer!E29/(3.7*($B$9/3600)) -> 6.683953275 | F15: =Sommer!F29/(3.7*($B$9/3600)) -> 7.11803001 | G15: =Sommer!G29/(3.7*($B$9/3600)) -> 6.618291419 | H15: =Sommer!H29/(3.7*($B$9/3600)) -> 7.420926258 | I15: =Sommer!I29/(3.7*($B$9/3600)) -> 6.829749061 | K15: =Herbstfrühjahr!D29/(3.7*(Temperaturen!$B$9/3600)) -> 4.191816173 | L15: =Herbstfrühjahr!E29/(3.7*(Temperaturen!$B$9/3600)) -> 3.963984729 | M15: =Herbstfrühjahr!F29/(3.7*(Temperaturen!$B$9/3600)) -> 4.272678483 | N15: =Herbstfrühjahr!G29/(3.7*(Temperaturen!$B$9/3600)) -> 3.901844632 | O15: =Herbstfrühjahr!H29/(3.7*(Temperaturen!$B$9/3600)) -> 4.828599802 | P15: =Herbstfrühjahr!I29/(3.7*(Temperaturen!$B$9/3600)) -> 4.288448449 | R15: =Winter!D29/(3.7*(Temperaturen!$B$9/3600)) -> 0 | S15: =Winter!E29/(3.7*(Temperaturen!$B$9/3600)) -> 0 | T15: =Winter!F29/(3.7*(Temperaturen!$B$9/3600)) -> 0 | U15: =Winter!G29/(3.7*(Temperaturen!$B$9/3600)) -> 0 | V15: =Winter!H29/(3.7*(Temperaturen!$B$9/3600)) -> 0 | W15: =Winter!I29/(3.7*(Temperaturen!$B$9/3600)) -> 0
C16: Solar VL Temperatur (°C) > | D16: =$B$2+$B$6+(D15/2) -> 63.47690729 | E16: 63.34197664 | F16: 63.559015 | G16: 63.30914571 | H16: 63.71046313 | I16: 63.41487453 | K16: =Temperaturen!$B$2+Temperaturen!$B$6+(K15/2) -> 62.09590809 | L16: =Temperaturen!$B$2+Temperaturen!$B$6+(L15/2) -> 61.98199236 | M16: =Temperaturen!$B$2+Temperaturen!$B$6+(M15/2) -> 62.13633924 | N16: =Temperaturen!$B$2+Temperaturen!$B$6+(N15/2) -> 61.95092232 | O16: =Temperaturen!$B$2+Temperaturen!$B$6+(O15/2) -> 62.4142999 | P16: =Temperaturen!$B$2+Temperaturen!$B$6+(P15/2) -> 62.14422422 | R16: =Temperaturen!$B$2+Temperaturen!$B$6+(R15/2) -> 60 | S16: =Temperaturen!$B$2+Temperaturen!$B$6+(S15/2) -> 60 | T16: =Temperaturen!$B$2+Temperaturen!$B$6+(T15/2) -> 60 | U16: =Temperaturen!$B$2+Temperaturen!$B$6+(U15/2) -> 60 | V16: =Temperaturen!$B$2+Temperaturen!$B$6+(V15/2) -> 60 | W16: =Temperaturen!$B$2+Temperaturen!$B$6+(W15/2) -> 60
C17: Solar RL Temperatur (°C) > | D17: =$B$2+$B$6-(D15/2) -> 56.52309271 | E17: 56.65802336 | F17: 56.440985 | G17: 56.69085429 | H17: 56.28953687 | I17: 56.58512547 | K17: =Temperaturen!$B$2+Temperaturen!$B$6-(K15/2) -> 57.90409191 | L17: =Temperaturen!$B$2+Temperaturen!$B$6-(L15/2) -> 58.01800764 | M17: =Temperaturen!$B$2+Temperaturen!$B$6-(M15/2) -> 57.86366076 | N17: =Temperaturen!$B$2+Temperaturen!$B$6-(N15/2) -> 58.04907768 | O17: =Temperaturen!$B$2+Temperaturen!$B$6-(O15/2) -> 57.5857001 | P17: =Temperaturen!$B$2+Temperaturen!$B$6-(P15/2) -> 57.85577578 | R17: =Temperaturen!$B$2+Temperaturen!$B$6-(R15/2) -> 60 | S17: =Temperaturen!$B$2+Temperaturen!$B$6-(S15/2) -> 60 | T17: =Temperaturen!$B$2+Temperaturen!$B$6-(T15/2) -> 60 | U17: =Temperaturen!$B$2+Temperaturen!$B$6-(U15/2) -> 60 | V17: =Temperaturen!$B$2+Temperaturen!$B$6-(V15/2) -> 60 | W17: =Temperaturen!$B$2+Temperaturen!$B$6-(W15/2) -> 60
A18: Sonne Azimut > | B18: -50 | C18: Diff. Solarkreis (K) > | D18: =Sommer!D30/(3.7*($B$9/3600)) -> 8.569951065 | E18: =Sommer!E30/(3.7*($B$9/3600)) -> 7.898160105 | F18: =Sommer!F30/(3.7*($B$9/3600)) -> 8.395289509 | G18: =Sommer!G30/(3.7*($B$9/3600)) -> 7.909063496 | H18: =Sommer!H30/(3.7*($B$9/3600)) -> 7.670171843 | I18: =Sommer!I30/(3.7*($B$9/3600)) -> 7.741465559 | K18: =Herbstfrühjahr!D30/(3.7*(Temperaturen!$B$9/3600)) -> 6.213561582 | L18: =Herbstfrühjahr!E30/(3.7*(Temperaturen!$B$9/3600)) -> 5.684211421 | M18: =Herbstfrühjahr!F30/(3.7*(Temperaturen!$B$9/3600)) -> 6.080297419 | N18: =Herbstfrühjahr!G30/(3.7*(Temperaturen!$B$9/3600)) -> 5.672675377 | O18: =Herbstfrühjahr!H30/(3.7*(Temperaturen!$B$9/3600)) -> 5.759206342 | P18: =Herbstfrühjahr!I30/(3.7*(Temperaturen!$B$9/3600)) -> 5.715755557 | R18: =Winter!D30/(3.7*(Temperaturen!$B$9/3600)) -> 0 | S18: =Winter!E30/(3.7*(Temperaturen!$B$9/3600)) -> 0 | T18: =Winter!F30/(3.7*(Temperaturen!$B$9/3600)) -> 0 | U18: =Winter!G30/(3.7*(Temperaturen!$B$9/3600)) -> 0 | V18: =Winter!H30/(3.7*(Temperaturen!$B$9/3600)) -> 0.4925884829 | W18: =Winter!I30/(3.7*(Temperaturen!$B$9/3600)) -> 0.05501977162
C19: Solar VL Temperatur (°C) > | D19: =$B$2+$B$6+(D18/2) -> 64.28497553 | E19: 63.94908005 | F19: 64.19764475 | G19: 63.95453175 | H19: 63.83508592 | I19: 63.87073278 | K19: =Temperaturen!$B$2+Temperaturen!$B$6+(K18/2) -> 63.10678079 | L19: =Temperaturen!$B$2+Temperaturen!$B$6+(L18/2) -> 62.84210571 | M19: =Temperaturen!$B$2+Temperaturen!$B$6+(M18/2) -> 63.04014871 | N19: =Temperaturen!$B$2+Temperaturen!$B$6+(N18/2) -> 62.83633769 | O19: =Temperaturen!$B$2+Temperaturen!$B$6+(O18/2) -> 62.87960317 | P19: =Temperaturen!$B$2+Temperaturen!$B$6+(P18/2) -> 62.85787778 | R19: =Temperaturen!$B$2+Temperaturen!$B$6+(R18/2) -> 60 | S19: =Temperaturen!$B$2+Temperaturen!$B$6+(S18/2) -> 60 | T19: =Temperaturen!$B$2+Temperaturen!$B$6+(T18/2) -> 60 | U19: =Temperaturen!$B$2+Temperaturen!$B$6+(U18/2) -> 60 | V19: =Temperaturen!$B$2+Temperaturen!$B$6+(V18/2) -> 60.24629424 | W19: =Temperaturen!$B$2+Temperaturen!$B$6+(W18/2) -> 60.02750989
C20: Solar RL Temperatur (°C) > | D20: =$B$2+$B$6-(D18/2) -> 55.71502447 | E20: 56.05091995 | F20: 55.80235525 | G20: 56.04546825 | H20: 56.16491408 | I20: 56.12926722 | K20: =Temperaturen!$B$2+Temperaturen!$B$6-(K18/2) -> 56.89321921 | L20: =Temperaturen!$B$2+Temperaturen!$B$6-(L18/2) -> 57.15789429 | M20: =Temperaturen!$B$2+Temperaturen!$B$6-(M18/2) -> 56.95985129 | N20: =Temperaturen!$B$2+Temperaturen!$B$6-(N18/2) -> 57.16366231 | O20: =Temperaturen!$B$2+Temperaturen!$B$6-(O18/2) -> 57.12039683 | P20: =Temperaturen!$B$2+Temperaturen!$B$6-(P18/2) -> 57.14212222 | R20: =Temperaturen!$B$2+Temperaturen!$B$6-(R18/2) -> 60 | S20: =Temperaturen!$B$2+Temperaturen!$B$6-(S18/2) -> 60 | T20: =Temperaturen!$B$2+Temperaturen!$B$6-(T18/2) -> 60 | U20: =Temperaturen!$B$2+Temperaturen!$B$6-(U18/2) -> 60 | V20: =Temperaturen!$B$2+Temperaturen!$B$6-(V18/2) -> 59.75370576 | W20: =Temperaturen!$B$2+Temperaturen!$B$6-(W18/2) -> 59.97249011
A21: Sonne Azimut > | B21: -40 | C21: Diff. Solarkreis (K) > | D21: =Sommer!D31/(3.7*($B$9/3600)) -> 9.441456313 | E21: =Sommer!E31/(3.7*($B$9/3600)) -> 8.809123987 | F21: =Sommer!F31/(3.7*($B$9/3600)) -> 9.353557625 | G21: =Sommer!G31/(3.7*($B$9/3600)) -> 8.731756771 | H21: =Sommer!H31/(3.7*($B$9/3600)) -> 8.52233775 | I21: =Sommer!I31/(3.7*($B$9/3600)) -> 7.938828919 | K21: =Herbstfrühjahr!D31/(3.7*(Temperaturen!$B$9/3600)) -> 7.435900114 | L21: =Herbstfrühjahr!E31/(3.7*(Temperaturen!$B$9/3600)) -> 6.907874426 | M21: =Herbstfrühjahr!F31/(3.7*(Temperaturen!$B$9/3600)) -> 7.366331302 | N21: =Herbstfrühjahr!G31/(3.7*(Temperaturen!$B$9/3600)) -> 6.830068135 | O21: =Herbstfrühjahr!H31/(3.7*(Temperaturen!$B$9/3600)) -> 6.847030483 | P21: =Herbstfrühjahr!I31/(3.7*(Temperaturen!$B$9/3600)) -> 6.316029482 | R21: =Winter!D31/(3.7*(Temperaturen!$B$9/3600)) -> 1.39718285 | S21: =Winter!E31/(3.7*(Temperaturen!$B$9/3600)) -> 1.156732613 | T21: =Winter!F31/(3.7*(Temperaturen!$B$9/3600)) -> 1.342614169 | U21: =Winter!G31/(3.7*(Temperaturen!$B$9/3600)) -> 1.0949966 | V21: =Winter!H31/(3.7*(Temperaturen!$B$9/3600)) -> 1.983940682 | W21: =Winter!I31/(3.7*(Temperaturen!$B$9/3600)) -> 1.523295712
C22: Solar VL Temperatur (°C) > | D22: =$B$2+$B$6+(D21/2) -> 64.72072816 | E22: 64.40456199 | F22: 64.67677881 | G22: 64.36587839 | H22: 64.26116888 | I22: 63.96941446 | K22: =Temperaturen!$B$2+Temperaturen!$B$6+(K21/2) -> 63.71795006 | L22: =Temperaturen!$B$2+Temperaturen!$B$6+(L21/2) -> 63.45393721 | M22: =Temperaturen!$B$2+Temperaturen!$B$6+(M21/2) -> 63.68316565 | N22: =Temperaturen!$B$2+Temperaturen!$B$6+(N21/2) -> 63.41503407 | O22: =Temperaturen!$B$2+Temperaturen!$B$6+(O21/2) -> 63.42351524 | P22: =Temperaturen!$B$2+Temperaturen!$B$6+(P21/2) -> 63.15801474 | R22: =Temperaturen!$B$2+Temperaturen!$B$6+(R21/2) -> 60.69859143 | S22: =Temperaturen!$B$2+Temperaturen!$B$6+(S21/2) -> 60.57836631 | T22: =Temperaturen!$B$2+Temperaturen!$B$6+(T21/2) -> 60.67130708 | U22: =Temperaturen!$B$2+Temperaturen!$B$6+(U21/2) -> 60.5474983 | V22: =Temperaturen!$B$2+Temperaturen!$B$6+(V21/2) -> 60.99197034 | W22: =Temperaturen!$B$2+Temperaturen!$B$6+(W21/2) -> 60.76164786
C23: Solar RL Temperatur (°C) > | D23: =$B$2+$B$6-(D21/2) -> 55.27927184 | E23: 55.59543801 | F23: 55.32322119 | G23: 55.63412161 | H23: 55.73883112 | I23: 56.03058554 | K23: =Temperaturen!$B$2+Temperaturen!$B$6-(K21/2) -> 56.28204994 | L23: =Temperaturen!$B$2+Temperaturen!$B$6-(L21/2) -> 56.54606279 | M23: =Temperaturen!$B$2+Temperaturen!$B$6-(M21/2) -> 56.31683435 | N23: =Temperaturen!$B$2+Temperaturen!$B$6-(N21/2) -> 56.58496593 | O23: =Temperaturen!$B$2+Temperaturen!$B$6-(O21/2) -> 56.57648476 | P23: =Temperaturen!$B$2+Temperaturen!$B$6-(P21/2) -> 56.84198526 | R23: =Temperaturen!$B$2+Temperaturen!$B$6-(R21/2) -> 59.30140857 | S23: =Temperaturen!$B$2+Temperaturen!$B$6-(S21/2) -> 59.42163369 | T23: =Temperaturen!$B$2+Temperaturen!$B$6-(T21/2) -> 59.32869292 | U23: =Temperaturen!$B$2+Temperaturen!$B$6-(U21/2) -> 59.4525017 | V23: =Temperaturen!$B$2+Temperaturen!$B$6-(V21/2) -> 59.00802966 | W23: =Temperaturen!$B$2+Temperaturen!$B$6-(W21/2) -> 59.23835214
A24: Sonne Azimut > | B24: -30 | C24: Diff. Solarkreis (K) > | D24: =Sommer!D32/(3.7*($B$9/3600)) -> 10.18876692 | E24: =Sommer!E32/(3.7*($B$9/3600)) -> 9.323559128 | F24: =Sommer!F32/(3.7*($B$9/3600)) -> 9.89381799 | G24: =Sommer!G32/(3.7*($B$9/3600)) -> 9.2436531 | H24: =Sommer!H32/(3.7*($B$9/3600)) -> 8.865399903 | I24: =Sommer!I32/(3.7*($B$9/3600)) -> 7.326176195 | K24: =Herbstfrühjahr!D32/(3.7*(Temperaturen!$B$9/3600)) -> 8.831239387 | L24: =Herbstfrühjahr!E32/(3.7*(Temperaturen!$B$9/3600)) -> 8.06839673 | M24: =Herbstfrühjahr!F32/(3.7*(Temperaturen!$B$9/3600)) -> 8.58355498 | N24: =Herbstfrühjahr!G32/(3.7*(Temperaturen!$B$9/3600)) -> 7.985310912 | O24: =Herbstfrühjahr!H32/(3.7*(Temperaturen!$B$9/3600)) -> 7.729190305 | P24: =Herbstfrühjahr!I32/(3.7*(Temperaturen!$B$9/3600)) -> 6.367340844 | R24: =Winter!D32/(3.7*(Temperaturen!$B$9/3600)) -> 3.515449429 | S24: =Winter!E32/(3.7*(Temperaturen!$B$9/3600)) -> 3.111860531 | T24: =Winter!F32/(3.7*(Temperaturen!$B$9/3600)) -> 3.392376044 | U24: =Winter!G32/(3.7*(Temperaturen!$B$9/3600)) -> 3.041500879 | V24: =Winter!H32/(3.7*(Temperaturen!$B$9/3600)) -> 3.557615787 | W24: =Winter!I32/(3.7*(Temperaturen!$B$9/3600)) -> 2.739113992
C25: Solar VL Temperatur (°C) > | D25: =$B$2+$B$6+(D24/2) -> 65.09438346 | E25: 64.66177956 | F25: 64.94690899 | G25: 64.62182655 | H25: 64.43269995 | I25: 63.6630881 | K25: =Temperaturen!$B$2+Temperaturen!$B$6+(K24/2) -> 64.41561969 | L25: =Temperaturen!$B$2+Temperaturen!$B$6+(L24/2) -> 64.03419836 | M25: =Temperaturen!$B$2+Temperaturen!$B$6+(M24/2) -> 64.29177749 | N25: =Temperaturen!$B$2+Temperaturen!$B$6+(N24/2) -> 63.99265546 | O25: =Temperaturen!$B$2+Temperaturen!$B$6+(O24/2) -> 63.86459515 | P25: =Temperaturen!$B$2+Temperaturen!$B$6+(P24/2) -> 63.18367042 | R25: =Temperaturen!$B$2+Temperaturen!$B$6+(R24/2) -> 61.75772471 | S25: =Temperaturen!$B$2+Temperaturen!$B$6+(S24/2) -> 61.55593027 | T25: =Temperaturen!$B$2+Temperaturen!$B$6+(T24/2) -> 61.69618802 | U25: =Temperaturen!$B$2+Temperaturen!$B$6+(U24/2) -> 61.52075044 | V25: =Temperaturen!$B$2+Temperaturen!$B$6+(V24/2) -> 61.77880789 | W25: =Temperaturen!$B$2+Temperaturen!$B$6+(W24/2) -> 61.369557
C26: Solar RL Temperatur (°C) > | D26: =$B$2+$B$6-(D24/2) -> 54.90561654 | E26: 55.33822044 | F26: 55.05309101 | G26: 55.37817345 | H26: 55.56730005 | I26: 56.3369119 | K26: =Temperaturen!$B$2+Temperaturen!$B$6-(K24/2) -> 55.58438031 | L26: =Temperaturen!$B$2+Temperaturen!$B$6-(L24/2) -> 55.96580164 | M26: =Temperaturen!$B$2+Temperaturen!$B$6-(M24/2) -> 55.70822251 | N26: =Temperaturen!$B$2+Temperaturen!$B$6-(N24/2) -> 56.00734454 | O26: =Temperaturen!$B$2+Temperaturen!$B$6-(O24/2) -> 56.13540485 | P26: =Temperaturen!$B$2+Temperaturen!$B$6-(P24/2) -> 56.81632958 | R26: =Temperaturen!$B$2+Temperaturen!$B$6-(R24/2) -> 58.24227529 | S26: =Temperaturen!$B$2+Temperaturen!$B$6-(S24/2) -> 58.44406973 | T26: =Temperaturen!$B$2+Temperaturen!$B$6-(T24/2) -> 58.30381198 | U26: =Temperaturen!$B$2+Temperaturen!$B$6-(U24/2) -> 58.47924956 | V26: =Temperaturen!$B$2+Temperaturen!$B$6-(V24/2) -> 58.22119211 | W26: =Temperaturen!$B$2+Temperaturen!$B$6-(W24/2) -> 58.630443
A27: Sonne Azimut > | B27: -20 | C27: Diff. Solarkreis (K) > | D27: =Sommer!D33/(3.7*($B$9/3600)) -> 10.5788362 | E27: =Sommer!E33/(3.7*($B$9/3600)) -> 9.687689649 | F27: =Sommer!F33/(3.7*($B$9/3600)) -> 10.27660212 | G27: =Sommer!G33/(3.7*($B$9/3600)) -> 9.605862609 | H27: =Sommer!H33/(3.7*($B$9/3600)) -> 8.992009177 | I27: =Sommer!I33/(3.7*($B$9/3600)) -> 6.797859069 | K27: =Herbstfrühjahr!D33/(3.7*(Temperaturen!$B$9/3600)) -> 9.742744004 | L27: =Herbstfrühjahr!E33/(3.7*(Temperaturen!$B$9/3600)) -> 8.921023047 | M27: =Herbstfrühjahr!F33/(3.7*(Temperaturen!$B$9/3600)) -> 9.478191774 | N27: =Herbstfrühjahr!G33/(3.7*(Temperaturen!$B$9/3600)) -> 8.833923252 | O27: =Herbstfrühjahr!H33/(3.7*(Temperaturen!$B$9/3600)) -> 8.264871766 | P27: =Herbstfrühjahr!I33/(3.7*(Temperaturen!$B$9/3600)) -> 6.252117935 | R27: =Winter!D33/(3.7*(Temperaturen!$B$9/3600)) -> 4.90253336 | S27: =Winter!E33/(3.7*(Temperaturen!$B$9/3600)) -> 4.409711411 | T27: =Winter!F33/(3.7*(Temperaturen!$B$9/3600)) -> 4.753499674 | U27: =Winter!G33/(3.7*(Temperaturen!$B$9/3600)) -> 4.333429739 | V27: =Winter!H33/(3.7*(Temperaturen!$B$9/3600)) -> 4.52776036 | W27: =Winter!I33/(3.7*(Temperaturen!$B$9/3600)) -> 3.288791065
C28: Solar VL Temperatur (°C) > | D28: =$B$2+$B$6+(D27/2) -> 65.2894181 | E28: 64.84384482 | F28: 65.13830106 | G28: 64.8029313 | H28: 64.49600459 | I28: 63.39892953 | K28: =Temperaturen!$B$2+Temperaturen!$B$6+(K27/2) -> 64.871372 | L28: =Temperaturen!$B$2+Temperaturen!$B$6+(L27/2) -> 64.46051152 | M28: =Temperaturen!$B$2+Temperaturen!$B$6+(M27/2) -> 64.73909589 | N28: =Temperaturen!$B$2+Temperaturen!$B$6+(N27/2) -> 64.41696163 | O28: =Temperaturen!$B$2+Temperaturen!$B$6+(O27/2) -> 64.13243588 | P28: =Temperaturen!$B$2+Temperaturen!$B$6+(P27/2) -> 63.12605897 | R28: =Temperaturen!$B$2+Temperaturen!$B$6+(R27/2) -> 62.45126668 | S28: =Temperaturen!$B$2+Temperaturen!$B$6+(S27/2) -> 62.20485571 | T28: =Temperaturen!$B$2+Temperaturen!$B$6+(T27/2) -> 62.37674984 | U28: =Temperaturen!$B$2+Temperaturen!$B$6+(U27/2) -> 62.16671487 | V28: =Temperaturen!$B$2+Temperaturen!$B$6+(V27/2) -> 62.26388018 | W28: =Temperaturen!$B$2+Temperaturen!$B$6+(W27/2) -> 61.64439553
C29: Solar RL Temperatur (°C) > | D29: =$B$2+$B$6-(D27/2) -> 54.7105819 | E29: 55.15615518 | F29: 54.86169894 | G29: 55.1970687 | H29: 55.50399541 | I29: 56.60107047 | K29: =Temperaturen!$B$2+Temperaturen!$B$6-(K27/2) -> 55.128628 | L29: =Temperaturen!$B$2+Temperaturen!$B$6-(L27/2) -> 55.53948848 | M29: =Temperaturen!$B$2+Temperaturen!$B$6-(M27/2) -> 55.26090411 | N29: =Temperaturen!$B$2+Temperaturen!$B$6-(N27/2) -> 55.58303837 | O29: =Temperaturen!$B$2+Temperaturen!$B$6-(O27/2) -> 55.86756412 | P29: =Temperaturen!$B$2+Temperaturen!$B$6-(P27/2) -> 56.87394103 | R29: =Temperaturen!$B$2+Temperaturen!$B$6-(R27/2) -> 57.54873332 | S29: =Temperaturen!$B$2+Temperaturen!$B$6-(S27/2) -> 57.79514429 | T29: =Temperaturen!$B$2+Temperaturen!$B$6-(T27/2) -> 57.62325016 | U29: =Temperaturen!$B$2+Temperaturen!$B$6-(U27/2) -> 57.83328513 | V29: =Temperaturen!$B$2+Temperaturen!$B$6-(V27/2) -> 57.73611982 | W29: =Temperaturen!$B$2+Temperaturen!$B$6-(W27/2) -> 58.35560447
A30: Sonne Azimut > | B30: -10 | C30: Diff. Solarkreis (K) > | D30: =Sommer!D34/(3.7*($B$9/3600)) -> 10.74851719 | E30: =Sommer!E34/(3.7*($B$9/3600)) -> 9.946100569 | F30: =Sommer!F34/(3.7*($B$9/3600)) -> 10.54862237 | G30: =Sommer!G34/(3.7*($B$9/3600)) -> 9.862787059 | H30: =Sommer!H34/(3.7*($B$9/3600)) -> 9.118183016 | I30: =Sommer!I34/(3.7*($B$9/3600)) -> 6.634384516 | K30: =Herbstfrühjahr!D34/(3.7*(Temperaturen!$B$9/3600)) -> 10.18652505 | L30: =Herbstfrühjahr!E34/(3.7*(Temperaturen!$B$9/3600)) -> 9.431048694 | M30: =Herbstfrühjahr!F34/(3.7*(Temperaturen!$B$9/3600)) -> 10.01388111 | N30: =Herbstfrühjahr!G34/(3.7*(Temperaturen!$B$9/3600)) -> 9.341343122 | O30: =Herbstfrühjahr!H34/(3.7*(Temperaturen!$B$9/3600)) -> 8.594864885 | P30: =Herbstfrühjahr!I34/(3.7*(Temperaturen!$B$9/3600)) -> 6.267911337 | R30: =Winter!D34/(3.7*(Temperaturen!$B$9/3600)) -> 5.944113586 | S30: =Winter!E34/(3.7*(Temperaturen!$B$9/3600)) -> 5.439817521 | T30: =Winter!F34/(3.7*(Temperaturen!$B$9/3600)) -> 5.834103406 | U30: =Winter!G34/(3.7*(Temperaturen!$B$9/3600)) -> 5.358714346 | V30: =Winter!H34/(3.7*(Temperaturen!$B$9/3600)) -> 5.30227362 | W30: =Winter!I34/(3.7*(Temperaturen!$B$9/3600)) -> 3.763755166
C31: Solar VL Temperatur (°C) > | D31: =$B$2+$B$6+(D30/2) -> 65.3742586 | E31: 64.97305028 | F31: 65.27431119 | G31: 64.93139353 | H31: 64.55909151 | I31: 63.31719226 | K31: =Temperaturen!$B$2+Temperaturen!$B$6+(K30/2) -> 65.09326253 | L31: =Temperaturen!$B$2+Temperaturen!$B$6+(L30/2) -> 64.71552435 | M31: =Temperaturen!$B$2+Temperaturen!$B$6+(M30/2) -> 65.00694055 | N31: =Temperaturen!$B$2+Temperaturen!$B$6+(N30/2) -> 64.67067156 | O31: =Temperaturen!$B$2+Temperaturen!$B$6+(O30/2) -> 64.29743244 | P31: =Temperaturen!$B$2+Temperaturen!$B$6+(P30/2) -> 63.13395567 | R31: =Temperaturen!$B$2+Temperaturen!$B$6+(R30/2) -> 62.97205679 | S31: =Temperaturen!$B$2+Temperaturen!$B$6+(S30/2) -> 62.71990876 | T31: =Temperaturen!$B$2+Temperaturen!$B$6+(T30/2) -> 62.9170517 | U31: =Temperaturen!$B$2+Temperaturen!$B$6+(U30/2) -> 62.67935717 | V31: =Temperaturen!$B$2+Temperaturen!$B$6+(V30/2) -> 62.65113681 | W31: =Temperaturen!$B$2+Temperaturen!$B$6+(W30/2) -> 61.88187758
C32: Solar RL Temperatur (°C) > | D32: =$B$2+$B$6-(D30/2) -> 54.6257414 | E32: 55.02694972 | F32: 54.72568881 | G32: 55.06860647 | H32: 55.44090849 | I32: 56.68280774 | K32: =Temperaturen!$B$2+Temperaturen!$B$6-(K30/2) -> 54.90673747 | L32: =Temperaturen!$B$2+Temperaturen!$B$6-(L30/2) -> 55.28447565 | M32: =Temperaturen!$B$2+Temperaturen!$B$6-(M30/2) -> 54.99305945 | N32: =Temperaturen!$B$2+Temperaturen!$B$6-(N30/2) -> 55.32932844 | O32: =Temperaturen!$B$2+Temperaturen!$B$6-(O30/2) -> 55.70256756 | P32: =Temperaturen!$B$2+Temperaturen!$B$6-(P30/2) -> 56.86604433 | R32: =Temperaturen!$B$2+Temperaturen!$B$6-(R30/2) -> 57.02794321 | S32: =Temperaturen!$B$2+Temperaturen!$B$6-(S30/2) -> 57.28009124 | T32: =Temperaturen!$B$2+Temperaturen!$B$6-(T30/2) -> 57.0829483 | U32: =Temperaturen!$B$2+Temperaturen!$B$6-(U30/2) -> 57.32064283 | V32: =Temperaturen!$B$2+Temperaturen!$B$6-(V30/2) -> 57.34886319 | W32: =Temperaturen!$B$2+Temperaturen!$B$6-(W30/2) -> 58.11812242
A33: Sonne Azimut > | B33: 0 | C33: Diff. Solarkreis (K) > | D33: =Sommer!D35/(3.7*($B$9/3600)) -> 10.78767434 | E33: =Sommer!E35/(3.7*($B$9/3600)) -> 9.983151831 | F33: =Sommer!F35/(3.7*($B$9/3600)) -> 10.58744149 | G33: =Sommer!G35/(3.7*($B$9/3600)) -> 9.899686028 | H33: =Sommer!H35/(3.7*($B$9/3600)) -> 9.056732729 | I33: =Sommer!I35/(3.7*($B$9/3600)) -> 6.656995646 | K33: =Herbstfrühjahr!D35/(3.7*(Temperaturen!$B$9/3600)) -> 10.33010127 | L33: =Herbstfrühjahr!E35/(3.7*(Temperaturen!$B$9/3600)) -> 9.566903321 | M33: =Herbstfrühjahr!F35/(3.7*(Temperaturen!$B$9/3600)) -> 10.15621788 | N33: =Herbstfrühjahr!G35/(3.7*(Temperaturen!$B$9/3600)) -> 9.476639343 | O33: =Herbstfrühjahr!H35/(3.7*(Temperaturen!$B$9/3600)) -> 8.615472638 | P33: =Herbstfrühjahr!I35/(3.7*(Temperaturen!$B$9/3600)) -> 6.350818815 | R33: =Winter!D35/(3.7*(Temperaturen!$B$9/3600)) -> 6.142509819 | S33: =Winter!E35/(3.7*(Temperaturen!$B$9/3600)) -> 5.627543915 | T33: =Winter!F35/(3.7*(Temperaturen!$B$9/3600)) -> 6.030786946 | U33: =Winter!G35/(3.7*(Temperaturen!$B$9/3600)) -> 5.545669124 | V33: =Winter!H35/(3.7*(Temperaturen!$B$9/3600)) -> 5.39584154 | W33: =Winter!I35/(3.7*(Temperaturen!$B$9/3600)) -> 3.878318226
C34: Solar VL Temperatur (°C) > | D34: =$B$2+$B$6+(D33/2) -> 65.39383717 | E34: 64.99157592 | F34: 65.29372075 | G34: 64.94984301 | H34: 64.52836636 | I34: 63.32849782 | K34: =Temperaturen!$B$2+Temperaturen!$B$6+(K33/2) -> 65.16505064 | L34: =Temperaturen!$B$2+Temperaturen!$B$6+(L33/2) -> 64.78345166 | M34: =Temperaturen!$B$2+Temperaturen!$B$6+(M33/2) -> 65.07810894 | N34: =Temperaturen!$B$2+Temperaturen!$B$6+(N33/2) -> 64.73831967 | O34: =Temperaturen!$B$2+Temperaturen!$B$6+(O33/2) -> 64.30773632 | P34: =Temperaturen!$B$2+Temperaturen!$B$6+(P33/2) -> 63.17540941 | R34: =Temperaturen!$B$2+Temperaturen!$B$6+(R33/2) -> 63.07125491 | S34: =Temperaturen!$B$2+Temperaturen!$B$6+(S33/2) -> 62.81377196 | T34: =Temperaturen!$B$2+Temperaturen!$B$6+(T33/2) -> 63.01539347 | U34: =Temperaturen!$B$2+Temperaturen!$B$6+(U33/2) -> 62.77283456 | V34: =Temperaturen!$B$2+Temperaturen!$B$6+(V33/2) -> 62.69792077 | W34: =Temperaturen!$B$2+Temperaturen!$B$6+(W33/2) -> 61.93915911
C35: Solar RL Temperatur (°C) > | D35: =$B$2+$B$6-(D33/2) -> 54.60616283 | E35: 55.00842408 | F35: 54.70627925 | G35: 55.05015699 | H35: 55.47163364 | I35: 56.67150218 | K35: =Temperaturen!$B$2+Temperaturen!$B$6-(K33/2) -> 54.83494936 | L35: =Temperaturen!$B$2+Temperaturen!$B$6-(L33/2) -> 55.21654834 | M35: =Temperaturen!$B$2+Temperaturen!$B$6-(M33/2) -> 54.92189106 | N35: =Temperaturen!$B$2+Temperaturen!$B$6-(N33/2) -> 55.26168033 | O35: =Temperaturen!$B$2+Temperaturen!$B$6-(O33/2) -> 55.69226368 | P35: =Temperaturen!$B$2+Temperaturen!$B$6-(P33/2) -> 56.82459059 | R35: =Temperaturen!$B$2+Temperaturen!$B$6-(R33/2) -> 56.92874509 | S35: =Temperaturen!$B$2+Temperaturen!$B$6-(S33/2) -> 57.18622804 | T35: =Temperaturen!$B$2+Temperaturen!$B$6-(T33/2) -> 56.98460653 | U35: =Temperaturen!$B$2+Temperaturen!$B$6-(U33/2) -> 57.22716544 | V35: =Temperaturen!$B$2+Temperaturen!$B$6-(V33/2) -> 57.30207923 | W35: =Temperaturen!$B$2+Temperaturen!$B$6-(W33/2) -> 58.06084089
A36: Sonne Azimut > | B36: 10 | C36: Diff. Solarkreis (K) > | D36: =Sommer!D36/(3.7*($B$9/3600)) -> 10.74851719 | E36: =Sommer!E36/(3.7*($B$9/3600)) -> 9.946100569 | F36: =Sommer!F36/(3.7*($B$9/3600)) -> 10.54862237 | G36: =Sommer!G36/(3.7*($B$9/3600)) -> 9.862787059 | H36: =Sommer!H36/(3.7*($B$9/3600)) -> 9.118183016 | I36: =Sommer!I36/(3.7*($B$9/3600)) -> 6.634384516 | K36: =Herbstfrühjahr!D36/(3.7*(Temperaturen!$B$9/3600)) -> 10.18652505 | L36: =Herbstfrühjahr!E36/(3.7*(Temperaturen!$B$9/3600)) -> 9.431048694 | M36: =Herbstfrühjahr!F36/(3.7*(Temperaturen!$B$9/3600)) -> 10.01388111 | N36: =Herbstfrühjahr!G36/(3.7*(Temperaturen!$B$9/3600)) -> 9.341343122 | O36: =Herbstfrühjahr!H36/(3.7*(Temperaturen!$B$9/3600)) -> 8.594864885 | P36: =Herbstfrühjahr!I36/(3.7*(Temperaturen!$B$9/3600)) -> 6.267911337 | R36: =Winter!D36/(3.7*(Temperaturen!$B$9/3600)) -> 5.944113586 | S36: =Winter!E36/(3.7*(Temperaturen!$B$9/3600)) -> 5.439817521 | T36: =Winter!F36/(3.7*(Temperaturen!$B$9/3600)) -> 5.834103406 | U36: =Winter!G36/(3.7*(Temperaturen!$B$9/3600)) -> 5.358714346 | V36: =Winter!H36/(3.7*(Temperaturen!$B$9/3600)) -> 5.30227362 | W36: =Winter!I36/(3.7*(Temperaturen!$B$9/3600)) -> 3.763755166
C37: Solar VL Temperatur (°C) > | D37: =$B$2+$B$6+(D36/2) -> 65.3742586 | E37: 64.97305028 | F37: 65.27431119 | G37: 64.93139353 | H37: 64.55909151 | I37: 63.31719226 | K37: =Temperaturen!$B$2+Temperaturen!$B$6+(K36/2) -> 65.09326253 | L37: =Temperaturen!$B$2+Temperaturen!$B$6+(L36/2) -> 64.71552435 | M37: =Temperaturen!$B$2+Temperaturen!$B$6+(M36/2) -> 65.00694055 | N37: =Temperaturen!$B$2+Temperaturen!$B$6+(N36/2) -> 64.67067156 | O37: =Temperaturen!$B$2+Temperaturen!$B$6+(O36/2) -> 64.29743244 | P37: =Temperaturen!$B$2+Temperaturen!$B$6+(P36/2) -> 63.13395567 | R37: =Temperaturen!$B$2+Temperaturen!$B$6+(R36/2) -> 62.97205679 | S37: =Temperaturen!$B$2+Temperaturen!$B$6+(S36/2) -> 62.71990876 | T37: =Temperaturen!$B$2+Temperaturen!$B$6+(T36/2) -> 62.9170517 | U37: =Temperaturen!$B$2+Temperaturen!$B$6+(U36/2) -> 62.67935717 | V37: =Temperaturen!$B$2+Temperaturen!$B$6+(V36/2) -> 62.65113681 | W37: =Temperaturen!$B$2+Temperaturen!$B$6+(W36/2) -> 61.88187758
C38: Solar RL Temperatur (°C) > | D38: =$B$2+$B$6-(D36/2) -> 54.6257414 | E38: 55.02694972 | F38: 54.72568881 | G38: 55.06860647 | H38: 55.44090849 | I38: 56.68280774 | K38: =Temperaturen!$B$2+Temperaturen!$B$6-(K36/2) -> 54.90673747 | L38: =Temperaturen!$B$2+Temperaturen!$B$6-(L36/2) -> 55.28447565 | M38: =Temperaturen!$B$2+Temperaturen!$B$6-(M36/2) -> 54.99305945 | N38: =Temperaturen!$B$2+Temperaturen!$B$6-(N36/2) -> 55.32932844 | O38: =Temperaturen!$B$2+Temperaturen!$B$6-(O36/2) -> 55.70256756 | P38: =Temperaturen!$B$2+Temperaturen!$B$6-(P36/2) -> 56.86604433 | R38: =Temperaturen!$B$2+Temperaturen!$B$6-(R36/2) -> 57.02794321 | S38: =Temperaturen!$B$2+Temperaturen!$B$6-(S36/2) -> 57.28009124 | T38: =Temperaturen!$B$2+Temperaturen!$B$6-(T36/2) -> 57.0829483 | U38: =Temperaturen!$B$2+Temperaturen!$B$6-(U36/2) -> 57.32064283 | V38: =Temperaturen!$B$2+Temperaturen!$B$6-(V36/2) -> 57.34886319 | W38: =Temperaturen!$B$2+Temperaturen!$B$6-(W36/2) -> 58.11812242
